Workbook

Sheet SD Drought Tool
C2: Be sure to enable macros before performing analysis. Data retrieval may take up to a minute or more depending on your internet connection.
L11: Now | M11: Now | N11: Now
L13: Choose County
L15: Choose Station
C30: Station names in all caps are NOAA NWS COOP climate stations.
C31: Station names with an ID (like SD-BD-1) in parantheses are CoCoRahs stations.
C32: Other station types are identified after the name (i.e., RAWS and SNOTEL).
F40: Now | G40: Now | H40: Vlookup | I40: Now | J40: Now
F41: 1 | G41: 1 | H41: 2 | I41: =J41-20 -> 2003 | J41: =YEAR(NOW()) -> 2023
F42: 2 | G42: 2 | H42: 3 | I42: =I41+1 -> 2004 | J42: This is the old drop-down list, decided to go back further in time; new list starts at CA70
F43: 3 | G43: 3 | H43: 4 | I43: =I42+1 -> 2005
F44: 4 | G44: 4 | H44: 5 | I44: 2006
F45: 5 | G45: 5 | H45: 6 | I45: 2007
F46: 6 | G46: 6 | H46: 7 | I46: 2008
F47: 7 | G47: 7 | H47: 8 | I47: 2009
F48: 8 | G48: 8 | H48: 9 | I48: 2010
F49: 9 | G49: 9 | H49: 10 | I49: 2011
F50: 10 | G50: 10 | H50: 11 | I50: 2012
F51: 11 | G51: 11 | H51: 12 | I51: 2013
F52: 12 | G52: 12 | H52: 13 | I52: 2014
F53: 13 | H53: 14 | I53: 2015
F54: 14 | H54: 15 | I54: 2016
F55: 15 | H55: 16 | I55: 2017
F56: 16 | H56: 17 | I56: 2018
F57: 17 | H57: 18 | I57: 2019
F58: 18 | H58: 19 | I58: 2020
F59: 19 | H59: 20 | I59: 2021
F60: 20 | H60: 21 | I60: 2022
F61: 21 | H61: 22 | I61: 2023
F62: 22
F63: 23
F64: 24
F65: 25
F66: 26
F67: 27
F68: 28
F69: 29
F70: 30 | CA70: Now
F71: 31 | CA71: =YEAR(NOW()) -> 2023
CA72: =IF(CA71-1>1899,CA71-1,"") -> 2022
CA73: =IF(CA72-1>1899,CA72-1,"") -> 2021
CA74: 2020
CA75: 2019
CA76: 2018
CA77: 2017
CA78: 2016
CA79: 2015
CA80: 2014
CA81: 2013
CA82: 2012
CA83: 2011
CA84: 2010
CA85: 2009
CA86: 2008
CA87: 2007
CA88: 2006
CA89: 2005
CA90: 2004
CA91: 2003
CA92: 2002
CA93: 2001
CA94: 2000
A95: Choose County | B95: Aurora | C95: Beadle | D95: Bennett | E95: Bon Homme | F95: Brookings | G95: Brown | H95: Brule | I95: Buffalo | J95: Butte | K95: Campbell | L95: Charles Mix | M95: Clark | N95: Clay | O95: Codington | P95: Corson | Q95: Custer | R95: Davison | S95: Day | T95: Deuel | U95: Dewey | V95: Douglas | W95: Edmunds | X95: Fall River | Y95: Faulk | Z95: Grant | AA95: Gregory | AB95: Haakon | AC95: Hamlin | AD95: Hand | AE95: Hanson | AF95: Harding | AG95: Hughes | AH95: Hutchinson | AI95: Hyde | AJ95: Jackson | AK95: Jerauld | AL95: Jones | AM95: Kingsbury | AN95: Lake | AO95: Lawrence | AP95: Lincoln | AQ95: Lyman | AR95: Marshall | AS95: McCook | AT95: McPherson | AU95: Meade | AV95: Mellette | AW95: Miner | AX95: Minnehaha | AY95: Moody | AZ95: Oglala Lakota | BA95: Pennington | BB95: Perkins | BC95: Potter | BD95: Roberts | BE95: Sanborn | BF95: Spink | BG95: Stanley | BH95: Sully | BI95: Todd | BJ95: Tripp | BK95: Turner | BL95: Union | BM95: Walworth | BN95: Yankton | BO95: Ziebach | CA95: 1999
A96: A101:A102 | B96: B101:B115 | C96: C101:C115 | D96: D101:D115 | E96: E101:E115 | F96: F101:F115 | G96: G101:G115 | H96: H101:H115 | I96: I101:I115 | J96: J101:J115 | K96: K101:K115 | L96: L101:L115 | M96: M101:M115 | N96: N101:N115 | O96: O101:O115 | P96: P101:P115 | Q96: Q101:Q115 | R96: R101:R115 | S96: S101:S115 | T96: T101:T115 | U96: U101:U115 | V96: V101:V115 | W96: W101:W115 | X96: X101:X115 | Y96: Y101:Y115 | Z96: Z101:Z115 | AA96: AA101:AA115 | AB96: AB101:AB115 | AC96: AC101:AC115 | AD96: AD101:AD115 | AE96: AE101:AE115 | AF96: AF101:AF115 | AG96: AG101:AG115 | AH96: AH101:AH115 | AI96: AI101:AI115 | AJ96: AJ101:AJ115 | AK96: AK101:AK115 | AL96: AL101:AL115 | AM96: AM101:AM115 | AN96: AN101:AN115 | AO96: AO101:AO115 | AP96: AP101:AP115 | AQ96: AQ101:AQ115 | AR96: AR101:AR115 | AS96: AS101:AS115 | AT96: AT101:AT115 | AU96: AU101:AU115 | AV96: AV101:AV115 | AW96: AW101:AW115 | AX96: AX101:AX116 | AY96: AY101:AY115 | AZ96: AZ101:AZ115 | BA96: BA101:BA124 | BB96: BB101:BB115 | BC96: BC101:BC115 | BD96: BD101:BD115 | BE96: BE101:BE115 | BF96: BF101:BF115 | BG96: BG101:BG115 | BH96: BH101:BH115 | BI96: BI101:BI115 | BJ96: BJ101:BJ115 | BK96: BK101:BK115 | BL96: BL101:BL115 | BM96: BM101:BM115 | BN96: BN101:BN115 | BO96: BO101:BO115 | CA96: 1998
B97: =CONCATENATE("W.Stations!",B99,":$D$427") -> W.Stations!$B$73:$D$427 | C97: W.Stations!$B$75:$D$427 | D97: W.Stations!$B$82:$D$427 | E97: W.Stations!$B$85:$D$427 | F97: W.Stations!$B$88:$D$427 | G97: W.Stations!$B$98:$D$427 | H97: W.Stations!$B$103:$D$427 | I97: W.Stations!$B$108:$D$427 | J97: W.Stations!$B$110:$D$427 | K97: W.Stations!$B$115:$D$427 | L97: W.Stations!$B$118:$D$427 | M97: W.Stations!$B$123:$D$427 | N97: W.Stations!$B$125:$D$427 | O97: W.Stations!$B$127:$D$427 | P97: W.Stations!$B$132:$D$427 | Q97: W.Stations!$B$135:$D$427 | R97: W.Stations!$B$145:$D$427 | S97: W.Stations!$B$151:$D$427 | T97: W.Stations!$B$157:$D$427 | U97: W.Stations!$B$160:$D$427 | V97: W.Stations!$B$164:$D$427 | W97: W.Stations!$B$169:$D$427 | X97: W.Stations!$B$177:$D$427 | Y97: W.Stations!$B$189:$D$427 | Z97: W.Stations!$B$192:$D$427 | AA97: W.Stations!$B$198:$D$427 | AB97: W.Stations!$B$205:$D$427 | AC97: W.Stations!$B$213:$D$427 | AD97: W.Stations!$B$217:$D$427 | AE97: W.Stations!$B$221:$D$427 | AF97: W.Stations!$B$224:$D$427 | AG97: W.Stations!$B$230:$D$427 | AH97: =CONCATENATE("W.Stations!",AH99,":$D$427") -> W.Stations!$B$236:$D$427 | AI97: W.Stations!$B$240:$D$427 | AJ97: W.Stations!$B$248:$D$427 | AK97: W.Stations!$B$253:$D$427 | AL97: W.Stations!$B$255:$D$427 | AM97: W.Stations!$B$257:$D$427 | AN97: W.Stations!$B$262:$D$427 | AO97: W.Stations!$B$266:$D$427 | AP97: W.Stations!$B$275:$D$427 | AQ97: W.Stations!$B$282:$D$427 | AR97: W.Stations!$B$291:$D$427 | AS97: W.Stations!$B$295:$D$427 | AT97: W.Stations!$B$300:$D$427 | AU97: W.Stations!$B$305:$D$427 | AV97: W.Stations!$B$317:$D$427 | AW97: W.Stations!$B$323:$D$427 | AX97: W.Stations!$B$326:$D$427 | AY97: W.Stations!$B$338:$D$427 | AZ97: W.Stations!$B$340:$D$427 | BA97: W.Stations!$B$342:$D$427 | BB97: W.Stations!$B$365:$D$427 | BC97: W.Stations!$B$371:$D$427 | BD97: W.Stations!$B$373:$D$427 | BE97: W.Stations!$B$379:$D$427 | BF97: W.Stations!$B$382:$D$427 | BG97: W.Stations!$B$388:$D$427 | BH97: W.Stations!$B$391:$D$427 | BI97: W.Stations!$B$396:$D$427 | BJ97: W.Stations!$B$401:$D$427 | BK97: W.Stations!$B$407:$D$427 | BL97: W.Stations!$B$412:$D$427 | BM97: W.Stations!$B$419:$D$427 | BN97: W.Stations!$B$421:$D$427 | BO97: W.Stations!$B$424:$D$427 | CA97: 1997
B98: =COUNTIF(W.Stations!$B$73:$B$427,B100) -> 2 | C98: =COUNTIF(W.Stations!$B$73:$B$427,C100) -> 7 | D98: =COUNTIF(W.Stations!$B$73:$B$427,D100) -> 3 | E98: =COUNTIF(W.Stations!$B$73:$B$427,E100) -> 3 | F98: =COUNTIF(W.Stations!$B$73:$B$427,F100) -> 10 | G98: =COUNTIF(W.Stations!$B$73:$B$427,G100) -> 5 | H98: =COUNTIF(W.Stations!$B$73:$B$427,H100) -> 5 | I98: =COUNTIF(W.Stations!$B$73:$B$427,I100) -> 1 | J98: =COUNTIF(W.Stations!$B$73:$B$427,J100) -> 5 | K98: =COUNTIF(W.Stations!$B$73:$B$427,K100) -> 3 | L98: =COUNTIF(W.Stations!$B$73:$B$427,L100) -> 5 | M98: =COUNTIF(W.Stations!$B$73:$B$427,M100) -> 2 | N98: =COUNTIF(W.Stations!$B$73:$B$427,N100) -> 2 | O98: =COUNTIF(W.Stations!$B$73:$B$427,O100) -> 5 | P98: =COUNTIF(W.Stations!$B$73:$B$427,P100) -> 3 | Q98: =COUNTIF(W.Stations!$B$73:$B$427,Q100) -> 10 | R98: =COUNTIF(W.Stations!$B$73:$B$427,R100) -> 6 | S98: =COUNTIF(W.Stations!$B$73:$B$427,S100) -> 6 | T98: =COUNTIF(W.Stations!$B$73:$B$427,T100) -> 2 | U98: =COUNTIF(W.Stations!$B$73:$B$427,U100) -> 4 | V98: =COUNTIF(W.Stations!$B$73:$B$427,V100) -> 5 | W98: =COUNTIF(W.Stations!$B$73:$B$427,W100) -> 8 | X98: =COUNTIF(W.Stations!$B$73:$B$427,X100) -> 12 | Y98: =COUNTIF(W.Stations!$B$73:$B$427,Y100) -> 3 | Z98: =COUNTIF(W.Stations!$B$73:$B$427,Z100) -> 6 | AA98: =COUNTIF(W.Stations!$B$73:$B$427,AA100) -> 7 | AB98: =COUNTIF(W.Stations!$B$73:$B$427,AB100) -> 8 | AC98: =COUNTIF(W.Stations!$B$73:$B$427,AC100) -> 4 | AD98: =COUNTIF(W.Stations!$B$73:$B$427,AD100) -> 3 | AE98: =COUNTIF(W.Stations!$B$73:$B$427,AE100) -> 3 | AF98: =COUNTIF(W.Stations!$B$73:$B$427,AF100) -> 6 | AG98: =COUNTIF(W.Stations!$B$73:$B$427,AG100) -> 6 | AH98: =COUNTIF(W.Stations!$B$73:$B$427,AH100) -> 4 | AI98: =COUNTIF(W.Stations!$B$73:$B$427,AI100) -> 8 | AJ98: =COUNTIF(W.Stations!$B$73:$B$427,AJ100) -> 5 | AK98: =COUNTIF(W.Stations!$B$73:$B$427,AK100) -> 2 | AL98: =COUNTIF(W.Stations!$B$73:$B$427,AL100) -> 2 | AM98: =COUNTIF(W.Stations!$B$73:$B$427,AM100) -> 5 | AN98: =COUNTIF(W.Stations!$B$73:$B$427,AN100) -> 3 | AO98: =COUNTIF(W.Stations!$B$73:$B$427,AO100) -> 9 | AP98: =COUNTIF(W.Stations!$B$73:$B$427,AP100) -> 7 | AQ98: =COUNTIF(W.Stations!$B$73:$B$427,AQ100) -> 9 | AR98: =COUNTIF(W.Stations!$B$73:$B$427,AR100) -> 4 | AS98: =COUNTIF(W.Stations!$B$73:$B$427,AS100) -> 4 | AT98: =COUNTIF(W.Stations!$B$73:$B$427,AT100) -> 5 | AU98: =COUNTIF(W.Stations!$B$73:$B$427,AU100) -> 12 | AV98: =COUNTIF(W.Stations!$B$73:$B$427,AV100) -> 6 | AW98: =COUNTIF(W.Stations!$B$73:$B$427,AW100) -> 3 | AX98: =COUNTIF(W.Stations!$B$73:$B$427,AX100) -> 11 | AY98: =COUNTIF(W.Stations!$B$73:$B$427,AY100) -> 2 | AZ98: =COUNTIF(W.Stations!$B$73:$B$427,AZ100) -> 2 | BA98: =COUNTIF(W.Stations!$B$73:$B$427,BA100) -> 23 | BB98: =COUNTIF(W.Stations!$B$73:$B$427,BB100) -> 6 | BC98: =COUNTIF(W.Stations!$B$73:$B$427,BC100) -> 1 | BD98: =COUNTIF(W.Stations!$B$73:$B$427,BD100) -> 6 | BE98: =COUNTIF(W.Stations!$B$73:$B$427,BE100) -> 3 | BF98: =COUNTIF(W.Stations!$B$73:$B$427,BF100) -> 6 | BG98: =COUNTIF(W.Stations!$B$73:$B$427,BG100) -> 3 | BH98: =COUNTIF(W.Stations!$B$73:$B$427,BH100) -> 4 | BI98: =COUNTIF(W.Stations!$B$73:$B$427,BI100) -> 4 | BJ98: =COUNTIF(W.Stations!$B$73:$B$427,BJ100) -> 5 | BK98: =COUNTIF(W.Stations!$B$73:$B$427,BK100) -> 4 | BL98: =COUNTIF(W.Stations!$B$73:$B$427,BL100) -> 6 | BM98: =COUNTIF(W.Stations!$B$73:$B$427,BM100) -> 2 | BN98: =COUNTIF(W.Stations!$B$73:$B$427,BN100) -> 2 | BO98: =COUNTIF(W.Stations!$B$73:$B$427,BO100) -> 4 | CA98: 1996
B99: =ADDRESS(72+(MATCH(B100,W.Stations!$B$73:$B$427,0)),2) -> $B$73 | C99: =ADDRESS(72+(MATCH(C100,W.Stations!$B$73:$B$427,0)),2) -> $B$75 | D99: =ADDRESS(72+(MATCH(D100,W.Stations!$B$73:$B$427,0)),2) -> $B$82 | E99: =ADDRESS(72+(MATCH(E100,W.Stations!$B$73:$B$427,0)),2) -> $B$85 | F99: =ADDRESS(72+(MATCH(F100,W.Stations!$B$73:$B$427,0)),2) -> $B$88 | G99: =ADDRESS(72+(MATCH(G100,W.Stations!$B$73:$B$427,0)),2) -> $B$98 | H99: =ADDRESS(72+(MATCH(H100,W.Stations!$B$73:$B$427,0)),2) -> $B$103 | I99: =ADDRESS(72+(MATCH(I100,W.Stations!$B$73:$B$427,0)),2) -> $B$108 | J99: =ADDRESS(72+(MATCH(J100,W.Stations!$B$73:$B$427,0)),2) -> $B$110 | K99: =ADDRESS(72+(MATCH(K100,W.Stations!$B$73:$B$427,0)),2) -> $B$115 | L99: =ADDRESS(72+(MATCH(L100,W.Stations!$B$73:$B$427,0)),2) -> $B$118 | M99: =ADDRESS(72+(MATCH(M100,W.Stations!$B$73:$B$427,0)),2) -> $B$123 | N99: =ADDRESS(72+(MATCH(N100,W.Stations!$B$73:$B$427,0)),2) -> $B$125 | O99: =ADDRESS(72+(MATCH(O100,W.Stations!$B$73:$B$427,0)),2) -> $B$127 | P99: =ADDRESS(72+(MATCH(P100,W.Stations!$B$73:$B$427,0)),2) -> $B$132 | Q99: =ADDRESS(72+(MATCH(Q100,W.Stations!$B$73:$B$427,0)),2) -> $B$135 | R99: =ADDRESS(72+(MATCH(R100,W.Stations!$B$73:$B$427,0)),2) -> $B$145 | S99: =ADDRESS(72+(MATCH(S100,W.Stations!$B$73:$B$427,0)),2) -> $B$151 | T99: =ADDRESS(72+(MATCH(T100,W.Stations!$B$73:$B$427,0)),2) -> $B$157 | U99: =ADDRESS(72+(MATCH(U100,W.Stations!$B$73:$B$427,0)),2) -> $B$160 | V99: =ADDRESS(72+(MATCH(V100,W.Stations!$B$73:$B$427,0)),2) -> $B$164 | W99: =ADDRESS(72+(MATCH(W100,W.Stations!$B$73:$B$427,0)),2) -> $B$169 | X99: =ADDRESS(72+(MATCH(X100,W.Stations!$B$73:$B$427,0)),2) -> $B$177 | Y99: =ADDRESS(72+(MATCH(Y100,W.Stations!$B$73:$B$427,0)),2) -> $B$189 | Z99: =ADDRESS(72+(MATCH(Z100,W.Stations!$B$73:$B$427,0)),2) -> $B$192 | AA99: =ADDRESS(72+(MATCH(AA100,W.Stations!$B$73:$B$427,0)),2) -> $B$198 | AB99: =ADDRESS(72+(MATCH(AB100,W.Stations!$B$73:$B$427,0)),2) -> $B$205 | AC99: =ADDRESS(72+(MATCH(AC100,W.Stations!$B$73:$B$427,0)),2) -> $B$213 | AD99: =ADDRESS(72+(MATCH(AD100,W.Stations!$B$73:$B$427,0)),2) -> $B$217 | AE99: =ADDRESS(72+(MATCH(AE100,W.Stations!$B$73:$B$427,0)),2) -> $B$221 | AF99: =ADDRESS(72+(MATCH(AF100,W.Stations!$B$73:$B$427,0)),2) -> $B$224 | AG99: =ADDRESS(72+(MATCH(AG100,W.Stations!$B$73:$B$427,0)),2) -> $B$230 | AH99: =ADDRESS(72+(MATCH(AH100,W.Stations!$B$73:$B$427,0)),2) -> $B$236 | AI99: =ADDRESS(72+(MATCH(AI100,W.Stations!$B$73:$B$427,0)),2) -> $B$240 | AJ99: =ADDRESS(72+(MATCH(AJ100,W.Stations!$B$73:$B$427,0)),2) -> $B$248 | AK99: =ADDRESS(72+(MATCH(AK100,W.Stations!$B$73:$B$427,0)),2) -> $B$253 | AL99: =ADDRESS(72+(MATCH(AL100,W.Stations!$B$73:$B$427,0)),2) -> $B$255 | AM99: =ADDRESS(72+(MATCH(AM100,W.Stations!$B$73:$B$427,0)),2) -> $B$257 | AN99: =ADDRESS(72+(MATCH(AN100,W.Stations!$B$73:$B$427,0)),2) -> $B$262 | AO99: =ADDRESS(72+(MATCH(AO100,W.Stations!$B$73:$B$427,0)),2) -> $B$266 | AP99: =ADDRESS(72+(MATCH(AP100,W.Stations!$B$73:$B$427,0)),2) -> $B$275 | AQ99: =ADDRESS(72+(MATCH(AQ100,W.Stations!$B$73:$B$427,0)),2) -> $B$282 | AR99: =ADDRESS(72+(MATCH(AR100,W.Stations!$B$73:$B$427,0)),2) -> $B$291 | AS99: =ADDRESS(72+(MATCH(AS100,W.Stations!$B$73:$B$427,0)),2) -> $B$295 | AT99: =ADDRESS(72+(MATCH(AT100,W.Stations!$B$73:$B$427,0)),2) -> $B$300 | AU99: =ADDRESS(72+(MATCH(AU100,W.Stations!$B$73:$B$427,0)),2) -> $B$305 | AV99: =ADDRESS(72+(MATCH(AV100,W.Stations!$B$73:$B$427,0)),2) -> $B$317 | AW99: =ADDRESS(72+(MATCH(AW100,W.Stations!$B$73:$B$427,0)),2) -> $B$323 | AX99: =ADDRESS(72+(MATCH(AX100,W.Stations!$B$73:$B$427,0)),2) -> $B$326 | AY99: =ADDRESS(72+(MATCH(AY100,W.Stations!$B$73:$B$427,0)),2) -> $B$338 | AZ99: =ADDRESS(72+(MATCH(AZ100,W.Stations!$B$73:$B$427,0)),2) -> $B$340 | BA99: =ADDRESS(72+(MATCH(BA100,W.Stations!$B$73:$B$427,0)),2) -> $B$342 | BB99: =ADDRESS(72+(MATCH(BB100,W.Stations!$B$73:$B$427,0)),2) -> $B$365 | BC99: =ADDRESS(72+(MATCH(BC100,W.Stations!$B$73:$B$427,0)),2) -> $B$371 | BD99: =ADDRESS(72+(MATCH(BD100,W.Stations!$B$73:$B$427,0)),2) -> $B$373 | BE99: =ADDRESS(72+(MATCH(BE100,W.Stations!$B$73:$B$427,0)),2) -> $B$379 | BF99: =ADDRESS(72+(MATCH(BF100,W.Stations!$B$73:$B$427,0)),2) -> $B$382 | BG99: =ADDRESS(72+(MATCH(BG100,W.Stations!$B$73:$B$427,0)),2) -> $B$388 | BH99: =ADDRESS(72+(MATCH(BH100,W.Stations!$B$73:$B$427,0)),2) -> $B$391 | BI99: =ADDRESS(72+(MATCH(BI100,W.Stations!$B$73:$B$427,0)),2) -> $B$396 | BJ99: =ADDRESS(72+(MATCH(BJ100,W.Stations!$B$73:$B$427,0)),2) -> $B$401 | BK99: =ADDRESS(72+(MATCH(BK100,W.Stations!$B$73:$B$427,0)),2) -> $B$407 | BL99: =ADDRESS(72+(MATCH(BL100,W.Stations!$B$73:$B$427,0)),2) -> $B$412 | BM99: =ADDRESS(72+(MATCH(BM100,W.Stations!$B$73:$B$427,0)),2) -> $B$419 | BN99: =ADDRESS(72+(MATCH(BN100,W.Stations!$B$73:$B$427,0)),2) -> $B$421 | BO99: =ADDRESS(72+(MATCH(BO100,W.Stations!$B$73:$B$427,0)),2) -> $B$424 | CA99: 1995
A100: Choose County | B100: Aurora | C100: Beadle | D100: Bennett | E100: Bon Homme | F100: Brookings | G100: Brown | H100: Brule | I100: Buffalo | J100: Butte | K100: Campbell | L100: Charles Mix | M100: Clark | N100: Clay | O100: Codington | P100: Corson | Q100: Custer | R100: Davison | S100: Day | T100: Deuel | U100: Dewey | V100: Douglas | W100: Edmunds | X100: Fall River | Y100: Faulk | Z100: Grant | AA100: Gregory | AB100: Haakon | AC100: Hamlin | AD100: Hand | AE100: Hanson | AF100: Harding | AG100: Hughes | AH100: Hutchinson | AI100: Hyde | AJ100: Jackson | AK100: Jerauld | AL100: Jones | AM100: Kingsbury | AN100: Lake | AO100: Lawrence | AP100: Lincoln | AQ100: Lyman | AR100: Marshall | AS100: McCook | AT100: McPherson | AU100: Meade | AV100: Mellette | AW100: Miner | AX100: Minnehaha | AY100: Moody | AZ100: Oglala Lakota | BA100: Pennington | BB100: Perkins | BC100: Potter | BD100: Roberts | BE100: Sanborn | BF100: Spink | BG100: Stanley | BH100: Sully | BI100: Todd | BJ100: Tripp | BK100: Turner | BL100: Union | BM100: Walworth | BN100: Yankton | BO100: Ziebach | CA100: 1994
A101: Choose Station | B101: County Average | C101: County Average | D101: County Average | E101: County Average | F101: County Average | G101: County Average | H101: County Average | I101: County Average | J101: County Average | K101: County Average | L101: County Average | M101: County Average | N101: County Average | O101: County Average | P101: County Average | Q101: County Average | R101: County Average | S101: County Average | T101: County Average | U101: County Average | V101: County Average | W101: County Average | X101: County Average | Y101: County Average | Z101: County Average | AA101: County Average | AB101: County Average | AC101: County Average | AD101: County Average | AE101: County Average | AF101: County Average | AG101: County Average | AH101: County Average | AI101: County Average | AJ101: County Average | AK101: County Average | AL101: County Average | AM101: County Average | AN101: County Average | AO101: County Average | AP101: County Average | AQ101: County Average | AR101: County Average | AS101: County Average | AT101: County Average | AU101: County Average | AV101: County Average | AW101: County Average | AX101: County Average | AY101: County Average | AZ101: County Average | BA101: County Average | BB101: County Average | BC101: County Average | BD101: County Average | BE101: County Average | BF101: County Average | BG101: County Average | BH101: County Average | BI101: County Average | BJ101: County Average | BK101: County Average | BL101: County Average | BM101: County Average | BN101: County Average | BO101: County Average | CA101: 1993
B102: =INDEX(INDIRECT(B97),1,3) -> WHITE LAKE | C102: HURON WB AIRPORT | D102: Batesland 7.4 NNE (SD-BN-2) | E102: TYNDALL | F102: BROOKINGS 2 NE | G102: ABERDEEN WSO AP | H102: CHAMBERLAIN 5 S | I102: GANN VALLEY | J102: BELLE FOURCHE | K102: POLLOCK | L102: ACADEMY 2 NE | M102: CLARK | N102: VERMILLION 2 SE | O102: WATERTOWN FAA AP | P102: MC INTOSH 6 SE | Q102: CUSTER | R102: MITCHELL | S102: ANDOVER | T102: Gary 6.1 SW (SD-DL-7) | U102: TIMBER LAKE | V102: PLATTE | W102: BOWDLE | X102: EDGEMONT | Y102: FAULKTON 1 NW | Z102: BIG STONE CITY 2 NW | AA102: GREGORY | AB102: MILESVILLE 8 NE | AC102: CASTLEWOOD | AD102: MILLER | AE102: ALEXANDRIA | AF102: BUFFALO | AG102: PIERRE | AH102: =INDEX(INDIRECT(AH97),1,3) -> MENNO | AI102: HIGHMORE 1 W | AJ102: COTTONWOOD 3 E | AK102: WESSINGTON SPRINGS | AL102: MURDO | AM102: DE SMET | AN102: MADISON 2 E | AO102: LEAD | AP102: CANTON 4 WNW | AQ102: KENNEBEC | AR102: BRITTON | AS102: BRIDGEWATER | AT102: EUREKA | AU102: ELM SPRINGS 3 ESE | AV102: WOOD | AW102: HOWARD | AX102: COLTON 2 E | AY102: FLANDREAU | AZ102: KYLE 2 E | BA102: HILL CITY | BB102: BISON | BC102: GETTYSBURG | BD102: SISSETON 1 E | BE102: FORESTBURG 4 NNE | BF102: Tulare 4.5 SSW (SD-SP-1) | BG102: OAHE DAM | BH102: ONIDA 4 NW | BI102: MISSION 14 S | BJ102: WINNER | BK102: CENTERVILLE 6 SE | BL102: AKRON | BM102: MOBRIDGE 2 NNW | BN102: YANKTON 2 E | BO102: DUPREE 15 SSE | CA102: 1992
B103: =IF(B$98>1,INDEX(INDIRECT(B$97),2,3),"") -> Stickney 3.8 SW (SD-AR-8) | C103: IROQUOIS | D103: Martin 14.1 ENE (SD-BN-17) | E103: Avon 7.5 NE (SD-BH-15) | F103: Astoria 2.2 SSE (SD-BK-2) | G103: COLUMBIA 8 N | H103: Chamberlain 0.3 W (SD-BL-1) | J103: NEWELL | K103: Herreid 3.6 ESE (SD-CP-6) | L103: PICKSTOWN | M103: RAYMOND 3 NE (1931-2015) | N103: Vermillion 1.4 SE (SD-CY-10) | O103: Watertown 2.3 E (SD-CD-30) | P103: MC LAUGHLIN | Q103: Custer 10.2 E (SD-CS-1) | R103: Mitchell 0.9 SSE (SD-DV-31) | S103: WAUBAY NATL WILDLIFE RE | T103: CLEAR LAKE (1903-2019) | U103: North Eagle Butte 1.7 NNW (SD-DW-5) | V103: Armour 4.6 W (SD-DG-2) | W103: IPSWICH | X103: HOT SPRINGS | Y103: Chelsea 3.8 W (SD-FK-6) | Z103: Big Stone City 5.0 WNW (SD-GT-8) | AA103: Bonesteel 0.1 S (SD-GY-21) | AB103: PHILIP 2 N | AC103: Hayti 0.1 WNW (SD-HM-1) | AD103: Miller 0.3 SSW (SD-HD-12) | AE103: Alexandria 0.4 WNW (SD-HN-17) | AF103: CAMP CROOK | AG103: Pierre 0.7 WSW (SD-HG-14) | AH103: =IF(AH$98>1,INDEX(INDIRECT(AH$97),2,3),"") -> Emery 10.8 S (SD-HT-16) | AI103: Harrold 3.8 ESE (SD-HY-3) | AJ103: INTERIOR 3 NE | AK103: Wessington Springs 9.3 SSW (SD-JR-8) | AL103: Okaton 2.6 NW (SD-JN-3) | AM103: Arlington 9.0 SSW (SD-KY-10) | AN103: Madison 0.2 NW (SD-LK-9) | AO103: SPEARFISH | AP103: Harrisburg 0.8 NNE (SD-LN-34) | AQ103: Kennebec 0.3 SE (SD-LY-2) | AR103: Britton 6.3 NNE (SD-MR-12) | AS103: Montrose 2.4 E (SD-MC-12) | AT103: Eureka 0.3 SSE (SD-MP-3) | AU103: FAITH | AV103: Belvidere 14.9 SSE (SD-ML-11) | AW103: Fulton 9.4 N (SD-MN-1) | AX103: MONTROSE | AY103: Colman 10.6 N (SD-MY-11) | AZ103: Porcupine South Dakota (RAWS) | BA103: MT RUSHMORE NATL MEM | BB103: LEMMON | BD103: SUMMIT 1 W | BE103: Forestburg 0.1 NE (SD-SB-2) | BF103: Turton 0.0 NNE (SD-SP-6) | BG103: Fort Pierre 0.5 SE (SD-ST-6) | BH103: Agar 15.1 WNW (SD-SL-23) | BI103: Olsonville 4.5 SE (SD-TD-1) | BJ103: Colome 4.6 WSW (SD-TP-30) | BK103: MARION | BL103: SIOUX CITY WSO AP | BM103: SELBY | BN103: Yankton 2.8 ESE (SD-YN-9) | BO103: DUPREE 5 NNE | CA103: 1991
B104: =IF(B$98>2,INDEX(INDIRECT(B$97),3,3),"") ->  | C104: WESSINGTON 2 SE | D104: MARTIN (1934-2014) | E104: Springfield 7.6 WNW (SD-BH-12) | F104: Brookings 0.2 SSW (SD-BK-7) | G104: Aberdeen 1.5 SSW (SD-BR-11) | H104: Chamberlain 7.5 NNE (SD-BL-13) | J104: Newell 2.6 ENE (SD-BT-15) | K104: Java 11.5 NNE (SD-CP-9) | L104: Wagner 0.8 NW (SD-CM-14) | O104: Watertown 2.4 E (SD-CD-32) | P104: Grand River South Dakota (RAWS) | Q104: Hermosa 0.3 ENE (SD-CS-17) | R104: Mitchell 1.0 SE (SD-DV-27) | S104: WEBSTER WATER DEPT | U104: Timber Lake 6.6 E (SD-DW-4) | V104: Corsica 0.1 SSE (SD-DG-11) | W104: ROSCOE | X104: OELRICHS | Y104: ONAKA (1911-2014) | Z104: LaBolt 0.1 WSW (SD-GT-9) | AA104: Burke 10.5 SSE (SD-GY-18) | AB104: Midland 1.9 E (SD-HK-23) | AC104: Lake Norden 4.3 ENE (SD-HM-8) | AD104: Huron South Dakota (RAWS) | AE104: Alexandria 6.4 N (SD-HN-8) | AF104: Buffalo 14.5 NW (SD-HR-20) | AG104: Pierre 1.3 S (SD-HG-10) | AH104: =IF(AH$98>2,INDEX(INDIRECT(AH$97),3,3),"") -> Parkston 0.1 NW (SD-HT-7) | AI104: Highmore 12.4 N (SD-HY-1) | AJ104: Kadoka 2.8 WNW (SD-JK-1) | AM104: De Smet 0.2 SSE (SD-KY-5) | AN104: Madison 5.0 SE (SD-LK-10) | AO104: Lead 5.5 SSW (SD-LW-6) | AP104: Lennox 3.3 NE (SD-LN-12) | AQ104: Kennebec 8.4 SSW (SD-LY-27) | AR104: Lake City 4.1 SE (SD-MR-13) | AS104: Montrose 5.8 NW (SD-MC-1) | AT104: Wetonka 3.5 NE (SD-MP-7) | AU104: FORT MEADE | AV104: Norris 2.0 SSW (SD-ML-3) | AW104: Howard 5.3 W (SD-MN-11) | AX104: SIOUX FALLS WSFO | BA104: PACTOLA RANGER STN | BB104: Bison 24.1 SW (SD-PK-6) | BD104: VICTOR 4 NNE | BE104: Woonsocket 0.2 WSW (SD-SB-3) | BF104: ASHTON (1924-2017) | BG104: FORT PIERRE 17 WSW (1954-2018) | BH104: Harrold 13.5 NNW (SD-SL-10) | BI104: Magpie Creek South Dakota (RAWS) | BJ104: Dallas 13.2 SSW (SD-TP-13) | BK104: Hurley 0.2 S (SD-TR-9) | BL104: Elk Point 5.6 NNE (SD-UN-2) | BO104: GLAD VALLEY 2 W | CA104: 1990
A105: =ADDRESS(100,MATCH(K95,A100:M100),1) -> $K$100 | B105: =IF(B$98>3,INDEX(INDIRECT(B$97),4,3),"") ->  | C105: Huron 1.1 NNE (SD-BD-24) | F105: Brookings 0.5 E (SD-BK-35) | G105: Aberdeen 1.5 SW (SD-BR-38) | H105: Chamberlain 7.5 SSW (SD-BL-10) | J105: Newell 6.5 ENE (SD-BT-10) | L105: Lake Andes South Dakota (RAWS) | O105: Watertown 7.5 NNE (SD-CD-5) | Q105: Hermosa 1.0 NW (SD-CS-28) | R105: Mitchell 3.4 SSE (SD-DV-24) | S105: Grenville 6.6 ENE (SD-DY-16) | U105: Bear Creek South Dakota (RAWS) | V105: Dimock 10.2 W (SD-DG-1) | W105: Ipswich 9.8 ESE (SD-ED-9) | X105: ORAL | Z105: Milbank 0.9 NNW (SD-GT-4) | AA105: Burke 4.2 SW (SD-GY-15) | AB105: Philip 12.4 WNW (SD-HK-26) | AC105: BRYANT (1911-2016) | AF105: Camp Crook 16.4 NNE (SD-HR-24) | AG105: Pierre 2.5 NNE (SD-HG-12) | AH105: =IF(AH$98>3,INDEX(INDIRECT(AH$97),4,3),"") -> Parkston 6.6 S (SD-HT-2) | AI105: Highmore 19.1 NNW (SD-HY-2) | AJ105: KADOKA (1909-2006) | AM105: Oldham 0.9 E (SD-KY-9) | AO105: Spearfish 0.1 WSW (SD-LW-15) | AP105: Sioux Falls 3.6 SSE (SD-LN-32) | AQ105: Presho 11.6 NNE (SD-LY-6) | AR105: Marshall Co. South Dakota (RAWS) | AS105: Parker 7.2 N (SD-MC-13) | AT105: Sand Lake South Dakota (RAWS) | AU105: MAURINE 10 SW | AV105: White River 12.7 ENE (SD-ML-14) | AX105: Brandon 0.4 NNE (SD-MH-106) | BA105: RAPID CITY | BB105: Faith 20.5 NW (SD-PK-28) | BD105: WILMOT | BF105: CONDE (1951-2007) | BH105: Harrold 5.2 N (SD-SL-19) | BI105: MISSION (1966-2012) | BJ105: Hamill 1.7 SW (SD-TP-7) | BK105: Parker 6.8 WSW (SD-TR-2) | BL105: Jefferson 1.1 E (SD-UN-12) | BO105: EAGLE BUTTE (1911-2017) | CA105: 1989
B106: =IF(B$98>4,INDEX(INDIRECT(B$97),5,3),"") ->  | C106: Huron 1.3 S (SD-BD-20) | F106: Brookings 1.0 S (SD-BK-43) | G106: Aberdeen 7.5 SE (SD-BR-23) | H106: Pukwana 1.9 S (SD-BL-11) | J106: Indian Butte South Dakota (RAWS) | L106: WAGNER (1916-2010) | O106: Watertown 7.6 ENE (SD-CD-1) | Q106: Hermosa 10.3 ESE (SD-CS-27) | R106: Mitchell 6.2 S (SD-DV-25) | S106: Webster 7.8 SSW (SD-DY-10) | V106: ARMOUR (1896-2008) | W106: Mina 2.2 NE (SD-ED-14) | X106: Edgemont 0.4 W (SD-FR-21) | Z106: Milbank 3.9 SSW (SD-GT-1) | AA106: Dallas 8.8 S (SD-GY-1) | AB106: Philip 18.0 N (SD-HK-19) | AF106: ANTELOPE RANGE STATION (1951-2007) | AG106: BLUNT (1913-2010) | AH106: =IF(AH$98>4,INDEX(INDIRECT(AH$97),5,3),"") ->  | AI106: Highmore 21.3 N (SD-HY-6) | AJ106: LONG VALLEY (1927-2012) | AM106: ARLINGTON 1 W (1928-2011) | AO106: Spearfish 2.8 WNW (SD-LW-26) | AP106: Sioux Falls 6 SW (SD-LN-1) | AQ106: Presho 13.8 NW (SD-LY-5) | AT106: LEOLA (1899-2008) | AU106: Box Elder 8.0 NNE (SD-MD-1) | AV106: White River 17.1 NW (SD-ML-7) | AX106: Crooks 0.7 WSW (SD-MH-89) | BA106: WASTA | BB106: Meadow 10 SE (SD-PK-10) | BD106: Sisseton 10.4 ENE (SD-RB-4) | BF106: MELLETTE 4 W (1893-2016) | BJ106: Ideal 1.4 NE (SD-TP-25) | BL106: Jefferson 2.1 WNW (SD-UN-11) | CA106: 1988
A107: Choose County | B107: =IF(B$98>5,INDEX(INDIRECT(B$97),6,3),"") ->  | C107: Huron 6.8 NNE (SD-BD-7) | F107: Brookings 1.4 SW (SD-BK-3) | Q107: Hot Springs 5.2 NW (SD-CS-22) | R107: Mitchell 7.3 S (SD-DV-28) | S107: Webster 9.8 NNE (SD-DY-17) | W107: Roscoe 6.1 W (SD-ED-6) | X107: Edgemont 14.2 NW (SD-FR-24) | Z107: Strandburg 2.5 NW (SD-GT-6) | AA107: Gregory 8.7 N (SD-GY-3) | AB107: Philip 20.7 NW (SD-HK-5) | AF107: REDIG 11 NE (1914-2011) | AG107: HARROLD 12 SSW (1963-2021) | AH107: =IF(AH$98>5,INDEX(INDIRECT(AH$97),6,3),"") ->  | AI107: Holabird 8.5 N (SD-HY-8) | AO107: Spearfish 6.7 NNW (SD-LW-24) | AP107: Tea 1.1 NNW (SD-LN-26) | AQ107: Presho 8.6 SW (SD-LY-17) | AU107: Elm Springs 4.1 NNW | AV107: CEDAR BUTTE (1918-2016) | AX107: Garretson 1.7 WSW (SD-MH-91) | BA107: Box Elder 1.6 NE (SD-PN-50) | BB107: Shadehill South Dakota (RAWS) | BD107: Sisseton 3.8 W (SD-RB-1) | BF107: REDFIELD (1949-2010) | BL107: Loess Hills TNC Broken Iowa (RAWS) | CA107: 1987
A108: Aurora | B108: =IF(B$98>6,INDEX(INDIRECT(B$97),7,3),"") ->  | C108: Huron South Dakota (RAWS) | F108: Brookings 1.6 S (SD-BK-57) | Q108: Custer South Dakota (RAWS) | W108: Roscoe 6.2 NE (SD-ED-16) | X108: Edgemont 2.2 ENE (SD-FR-20) | AA108: Herrick 4.5 NW (SD-GY-10) | AB108: KIRLEY 6 N (1970-2019) | AH108: =IF(AH$98>6,INDEX(INDIRECT(AH$97),7,3),"") ->  | AI108: HIGHMORE 23 N (1952-2011) | AO108: Whitewood 4.2 NNW (SD-LW-1) | AP108: HAWARDEN (1926-2019) | AQ108: Reliance 4.2 ENE (SD-LY-26) | AU108: Faith 36.3 W (SD-MD-9) | AX108: Garretson 6.9 W (SD-MH-56) | BA108: Hill City 4.4 SSW (SD-PN-62) | CA108: 1986
A109: Beadle | B109: =IF(B$98>7,INDEX(INDIRECT(B$97),8,3),"") ->  | F109: Brookings 6.5 NNW (SD-BK-56) | Q109: Custer State Park South Dakota (RAWS) | W109: Roscoe 9.7 SE (SD-ED-12) | X109: Hot Springs 0.4 NW (SD-FR-34) | AB109: MIDLAND (1895-2012) | AH109: =IF(AH$98>7,INDEX(INDIRECT(AH$97),8,3),"") ->  | AI109: STEPHAN (1903-2014) | AO109: Nemo South Dakota (RAWS) | AQ109: Vivian 5.1 SSW (SD-LY-16) | AU109: Piedmont 4.6 E (SD-MD-32) | AX109: Hartford 6.4 S (SD-MH-8) | BA109: Rapid City 0.3 SSW (SD-PN-74) | CA109: 1985
A110: Bennett | B110: =IF(B$98>8,INDEX(INDIRECT(B$97),9,3),"") ->  | F110: Bruce 0.2 SSW (SD-BK-37) | Q110: WICA-Elk Mountain South Dakota (RAWS) | X110: Hot Springs 4.2 W (SD-FR-30) | AH110: =IF(AH$98>8,INDEX(INDIRECT(AH$97),9,3),"") ->  | AO110: North Rapid Creek (SNOTEL) | AQ110: Fort Pierre South Dakota (RAWS) | AU110: Rapid City 6.2 NNE (SD-MD-36) | AX110: Renner 4.1 NW (SD-MH-71) | BA110: Rapid City 2.1 NW (SD-PN-65) | CA110: 1984
A111: Bon Homme | B111: =IF(B$98>9,INDEX(INDIRECT(B$97),10,3),"") ->  | F111: Bruce 4.1 NE (SD-BK-9) | Q111: HERMOSA 3 SSW (1906-2012) | X111: Red Canyon South Dakota (RAWS) | AH111: =IF(AH$98>9,INDEX(INDIRECT(AH$97),10,3),"") ->  | AU111: Tilford 0.1 N (SD-MD-31) | AX111: Sioux Falls 3.4 ESE (SD-MH-20) | BA111: Rapid City 3.4 WNW (SD-PN-2) | CA111: 1983
A112: Brookings | B112: =IF(B$98>10,INDEX(INDIRECT(B$97),11,3),"") ->  | X112: ARDMORE 1 NW (1908-2013) | AH112: =IF(AH$98>10,INDEX(INDIRECT(AH$97),11,3),"") ->  | AU112: Union Center 10.5 NW (SD-MD-38) | AX112: Sioux Falls 5.0 SE ARPT (SD-MH-1) | BA112: Rapid City 3.5 NE (SD-PN-38) | CA112: 1982
A113: Brown | B113: =IF(B$98>11,INDEX(INDIRECT(B$97),12,3),"") ->  | X113: BUFFALO GAP (1951-2005) | AH113: =IF(AH$98>11,INDEX(INDIRECT(AH$97),12,3),"") ->  | AU113: RED OWL (1951-2019) | BA113: Rapid City 3.9 S (SD-PN-43) | CA113: 1981
A114: Brule | B114: =IF(B$98>12,INDEX(INDIRECT(B$97),13,3),"") ->  | AH114: =IF(AH$98>12,INDEX(INDIRECT(AH$97),13,3),"") ->  | BA114: Rapid City 4.9 ESE (SD-PN-1) | CA114: 1980
A115: Buffalo | B115: =IF(B$98>13,INDEX(INDIRECT(B$97),14,3),"") ->  | AH115: =IF(AH$98>13,INDEX(INDIRECT(AH$97),14,3),"") ->  | BA115: Rapid City 6.9 W (SD-PN-40) | CA115: 1979
A116: Butte | B116: =IF(B$98>14,INDEX(INDIRECT(B$97),15,3),"") ->  | AH116: =IF(AH$98>14,INDEX(INDIRECT(AH$97),15,3),"") ->  | BA116: Rapid City 8.4 W (SD-PN-63) | CA116: 1978
A117: Campbell | BA117: =IF(BA$98>15,INDEX(INDIRECT(BA$97),16,3),"") -> Rapid City 9.6 WNW (SD-PN-56) | CA117: 1977
A118: Charles Mix | BA118: =IF(BA$98>16,INDEX(INDIRECT(BA$97),17,3),"") -> Wall 9.4 NW (SD-PN-48) | CA118: 1976
A119: Clark | BA119: =IF(BA$98>17,INDEX(INDIRECT(BA$97),18,3),"") -> Wasta 21.6 SSW (SD-PN-19) | CA119: 1975
A120: Clay | BA120: =IF(BA$98>18,INDEX(INDIRECT(BA$97),19,3),"") -> Baker Park South Dakota (RAWS) | CA120: 1974
A121: Codington | BA121: =IF(BA$98>19,INDEX(INDIRECT(BA$97),20,3),"") -> Mt. Rushmore South Dakota (RAWS) | CA121: 1973
A122: Corson | BA122: =IF(BA$98>20,INDEX(INDIRECT(BA$97),21,3),"") -> Pinnacles South Dakota (RAWS) | CA122: 1972
A123: Custer | BA123: =IF(BA$98>21,INDEX(INDIRECT(BA$97),22,3),"") -> Rapid City West South Dakota (RAWS) | CA123: 1971
A124: Davison | BA124: =IF(BA$98>22,INDEX(INDIRECT(BA$97),23,3),"") -> Blind Park (SNOTEL) | CA124: 1970
A125: Day | CA125: 1969
A126: Deuel | CA126: 1968
A127: Dewey | CA127: 1967
A128: Douglas | CA128: 1966
A129: Edmunds | CA129: 1965
A130: Fall River | CA130: 1964
A131: Faulk | CA131: 1963
A132: Grant | CA132: 1962
A133: Gregory | CA133: 1961
A134: Haakon | CA134: 1960
A135: Hamlin | CA135: 1959
A136: Hand | CA136: 1958
A137: Hanson | CA137: =IF(CA136-1>1899,CA136-1,"") -> 1957
A138: Harding | CA138: 1956
A139: Hughes | CA139: 1955
A140: Hutchinson | CA140: 1954
A141: Hyde | CA141: 1953
A142: Jackson | CA142: 1952
A143: Jerauld | CA143: 1951
A144: Jones | CA144: 1950
A145: Kingsbury | CA145: 1949
A146: Lake | CA146: 1948
A147: Lawrence | CA147: 1947
A148: Lincoln | CA148: 1946
A149: Lyman | CA149: 1945
A150: Marshall | CA150: 1944
A151: McCook | CA151: 1943
A152: McPherson | CA152: 1942
A153: Meade | CA153: 1941
A154: Mellette | CA154: 1940
A155: Miner | CA155: 1939
A156: Minnehaha | CA156: 1938
A157: Moody | CA157: 1937
A158: Oglala Lakota | CA158: 1936
A159: Pennington | CA159: 1935
A160: Perkins | CA160: 1934
A161: Potter | CA161: 1933
A162: Roberts | CA162: 1932
A163: Sanborn | CA163: 1931
A164: Spink | CA164: 1930
A165: Stanley | CA165: 1929
A166: Sully | CA166: 1928
A167: Todd | CA167: 1927
A168: Tripp | CA168: 1926
A169: Turner | CA169: 1925
A170: Union | CA170: 1924
A171: Walworth | CA171: 1923
A172: Yankton | CA172: 1922
A173: Ziebach | CA173: 1921
CA174: 1920
CA175: 1919
CA176: 1918
CA177: 1917
CA178: 1916
CA179: 1915
CA180: 1914
CA181: 1913
CA182: 1912
CA183: 1911
CA184: 1910
CA185: 1909
CA186: 1908
CA187: 1907
CA188: 1906
CA189: 1905
CA190: 1904
CA191: 1903
CA192: 1902
CA193: 1901
A250: S.D.Drought
H1576: 2
C2024: 1

Sheet Local % Precip
A1: 0.8257611472
Z2: Cur.Yr. | AA2: =Decision!K8 -> 2023
Z3: Soil moisture Wt. legend
Z4: Previous Year | AA4: 0.25 | AC4: Current Year | AE4: 0.75 | AF4: Precip Cap <20" | AG4: 2.3 | AH4: PC>20-Below | AI4: 2.3 | AJ4: PC>20-Above | AK4: 2.8 | AL4: Precip Cap Used | AN4: =IF(AM24<20,AG4,IF(ABS(VLOOKUP(W.Stations!$F$21,MasterReferenceTable!$C$2:$G$388,5,FALSE))>101,AG4,IF(AN26="Below",AI4,AK4))) ->  | AP4: .
Z5: Critical Period Legend <20"
Z6: Month | AA6: 1 | AB6: 2 | AC6: 3 | AD6: 4 | AE6: 5 | AF6: 6 | AG6: 7 | AH6: 8 | AI6: 9 | AJ6: 10 | AK6: 11 | AL6: 12
Z7: Spring Factor | AA7: 0 | AB7: 0 | AC7: 0.05 | AD7: 0.05 | AE7: 0.15 | AF7: 0.15 | AG7: 0.075 | AH7: 0.05 | AI7: 0.05 | AJ7: 0 | AK7: 0 | AL7: 0
C8: Please Verify Local Precipitation data. Changes can be entered in the Precipitation Adjustment Table.** | Z8: Fall Factor | AA8: 0.0625 | AB8: 0.125 | AC8: 0.25 | AD8: 0.25 | AE8: 0.25 | AF8: 0.1875 | AG8: 0.125 | AH8: 0.0625 | AI8: 0.125 | AJ8: 0.1875 | AK8: 0.125 | AL8: 0.0625
Z9: Critical Period Legend >20", Below
Z10: Month | AA10: 1 | AB10: 2 | AC10: 3 | AD10: 4 | AE10: 5 | AF10: 6 | AG10: 7 | AH10: 8 | AI10: 9 | AJ10: 10 | AK10: 11 | AL10: 12
C11: **Values that report as a 0.00 may not be accurate or data may be missing. Consider adjusting in the Precipitation Adjustment Table. | Z11: Spring Factor | AA11: 0 | AB11: 0 | AC11: 0.05 | AD11: 0.1 | AE11: 0.2 | AF11: 0.2 | AG11: 0.075 | AH11: 0.05 | AI11: 0.05 | AJ11: 0 | AK11: 0 | AL11: 0
C12: Historic and short-term precipitation values for | K12: =IF('SD Drought Tool'!L13="Choose County","",'SD Drought Tool'!L13) ->  | M12: County * | Z12: Fall Factor
Z13: Critical Period Legend >20", Above
Z14: Month | AA14: 1 | AB14: 2 | AC14: 3 | AD14: 4 | AE14: 5 | AF14: 6 | AG14: 7 | AH14: 8 | AI14: 9 | AJ14: 10 | AK14: 11 | AL14: 12 | AP14: today
D15: =Decision!O5 -> 2021-03-01 | E15: =Decision!P5 -> 2021-04-01 | F15: =Decision!Q5 -> 2021-05-01 | G15: =Decision!R5 -> 2021-06-01 | H15: =Decision!S5 -> 2021-07-01 | I15: =Decision!T5 -> 2021-08-01 | J15: =Decision!U5 -> 2021-09-01 | K15: =Decision!V5 -> 2021-10-01 | L15: =Decision!W5 -> 2021-11-01 | M15: =Decision!X5 -> 2021-12-01 | N15: =Decision!Y5 -> 2022-01-01 | O15: =Decision!Z5 -> 2022-02-01 | P15: Sum | Z15: Spring Factor | AA15: 0 | AB15: 0 | AC15: 0.125 | AD15: 0.25 | AE15: 0.5 | AF15: 0.5 | AG15: 0.25 | AH15: 0.125 | AI15: 0.125 | AJ15: 0 | AK15: 0 | AL15: 0 | AO15: DAY | AP15: =W.Stations!F27 -> 1
C16: Hist.-Ave. | D16: =IF(W.Stations!$K$14="Good",AA24,IF(D25="","",D25)) ->  | E16: =IF(W.Stations!$K$14="Good",AB24,IF(E25="","",E25)) ->  | F16: =IF(W.Stations!$K$14="Good",AC24,IF(F25="","",F25)) ->  | G16: =IF(W.Stations!$K$14="Good",AD24,IF(G25="","",G25)) ->  | H16: =IF(W.Stations!$K$14="Good",AE24,IF(H25="","",H25)) ->  | I16: =IF(W.Stations!$K$14="Good",AF24,IF(I25="","",I25)) ->  | J16: =IF(W.Stations!$K$14="Good",AG24,IF(J25="","",J25)) ->  | K16: =IF(W.Stations!$K$14="Good",AH24,IF(K25="","",K25)) ->  | L16: =IF(W.Stations!$K$14="Good",AI24,IF(L25="","",L25)) ->  | M16: =IF(W.Stations!$K$14="Good",AJ24,IF(M25="","",M25)) ->  | N16: =IF(W.Stations!$K$14="Good",AK24,IF(N25="","",N25)) ->  | O16: =IF(W.Stations!$K$14="Good",HistoricData!AA13,IF(O25="","",O25)) ->  | P16: =IF(W.Stations!$K$14="BAD","",AM24) ->  | Z16: Fall Factor | AA16: 0.05 | AB16: 0.1 | AC16: 0.2 | AD16: 0.2 | AE16: 0.17 | AF16: 0.15 | AG16: 0.1 | AH16: 0.05 | AI16: 0.1 | AJ16: 0.15 | AK16: 0.1 | AL16: 0.05 | AO16: MONTH | AP16: =W.Stations!E27 -> 2
C17: =Decision!V2 -> 2021/2022 | D17: =IF(W.Stations!$K$14="Good",AA25,IF(D26="","",D26)) -> 0 | E17: =IF(W.Stations!$K$14="Good",AB25,IF(E26="","",E26)) -> 0 | F17: =IF(W.Stations!$K$14="Good",AC25,IF(F26="","",F26)) -> 0 | G17: =IF(W.Stations!$K$14="Good",AD25,IF(G26="","",G26)) -> 0 | H17: =IF(W.Stations!$K$14="Good",AE25,IF(H26="","",H26)) -> 0 | I17: =IF(W.Stations!$K$14="Good",AF25,IF(I26="","",I26)) -> 0 | J17: =IF(W.Stations!$K$14="Good",AG25,IF(J26="","",J26)) -> 0 | K17: =IF(W.Stations!$K$14="Good",AH25,IF(K26="","",K26)) -> 0 | L17: =IF(W.Stations!$K$14="Good",AI25,IF(L26="","",L26)) -> 0 | M17: =IF(W.Stations!$K$14="Good",AJ25,IF(M26="","",M26)) -> 0 | N17: =IF(W.Stations!$K$14="Good",AK25,IF(N26="","",N26)) -> 0 | O17: =IF(W.Stations!$K$14="Good",AL25,IF(O26="","",O26)) -> 0 | P17: =IF(W.Stations!$K$14="BAD","",SUM(D17:O17)) -> 0 | Z17: Critical Period Factors Used | AP17: =VLOOKUP(AP16,AO24:IV35,2,FALSE) -> 28
C18: =Decision!V12 -> 2022/2023 | D18: =IF(W.Stations!$K$14="Good",AA28,IF(D27="","",D27)) -> 0 | E18: =IF(W.Stations!$K$14="Good",AB28,IF(E27="","",E27)) -> 0 | F18: =IF(W.Stations!$K$14="Good",AC28,IF(F27="","",F27)) -> 0 | G18: =IF(W.Stations!$K$14="Good",AD28,IF(G27="","",G27)) -> 0 | H18: =IF(W.Stations!$K$14="Good",AE28,IF(H27="","",H27)) -> 0 | I18: =IF(W.Stations!$K$14="Good",AF28,IF(I27="","",I27)) -> 0 | J18: =IF(W.Stations!$K$14="Good",AG28,IF(J27="","",J27)) -> 0 | K18: =IF(W.Stations!$K$14="Good",AH28,IF(K27="","",K27)) -> 0 | L18: =IF(W.Stations!$K$14="Good",AI28,IF(L27="","",L27)) -> 0 | M18: =IF(W.Stations!$K$14="Good",AJ28,IF(M27="","",M27)) -> 0 | N18: =IF(W.Stations!$K$14="Good",AK28,IF(N27="","",N27)) -> 0 | O18: =IF(W.Stations!$K$14="Good",AL28,IF(O27="","",O27)) -> 0 | P18: =IF(W.Stations!$K$14="BAD","",SUM(D18:O18)) -> 0 | Z18: Month | AA18: 1 | AB18: 2 | AC18: 3 | AD18: 4 | AE18: 5 | AF18: 6 | AG18: 7 | AH18: 8 | AI18: 9 | AJ18: 10 | AK18: 11 | AL18: 12 | AO18: prorated hist | AP18: =AP15/AP17 -> 0.03571428571
Z19: Spring Factor | AA19: =IF($AM$24<20,AA7,IF(ABS(VLOOKUP(W.Stations!$F$21,MasterReferenceTable!$C$2:$G$388,5,FALSE))>101,AA7,IF($AN$26="Below",AA11,AA15))) ->  | AB19: =IF($AM$24<20,AB7,IF(ABS(VLOOKUP(W.Stations!$F$21,MasterReferenceTable!$C$2:$G$388,5,FALSE))>101,AB7,IF($AN$26="Below",AB11,AB15))) ->  | AC19: =IF($AM$24<20,AC7,IF(ABS(VLOOKUP(W.Stations!$F$21,MasterReferenceTable!$C$2:$G$388,5,FALSE))>101,AC7,IF($AN$26="Below",AC11,AC15))) ->  | AD19: =IF($AM$24<20,AD7,IF(ABS(VLOOKUP(W.Stations!$F$21,MasterReferenceTable!$C$2:$G$388,5,FALSE))>101,AD7,IF($AN$26="Below",AD11,AD15))) ->  | AE19: =IF($AM$24<20,AE7,IF(ABS(VLOOKUP(W.Stations!$F$21,MasterReferenceTable!$C$2:$G$388,5,FALSE))>101,AE7,IF($AN$26="Below",AE11,AE15))) ->  | AF19: =IF($AM$24<20,AF7,IF(ABS(VLOOKUP(W.Stations!$F$21,MasterReferenceTable!$C$2:$G$388,5,FALSE))>101,AF7,IF($AN$26="Below",AF11,AF15))) ->  | AG19: =IF($AM$24<20,AG7,IF(ABS(VLOOKUP(W.Stations!$F$21,MasterReferenceTable!$C$2:$G$388,5,FALSE))>101,AG7,IF($AN$26="Below",AG11,AG15))) ->  | AH19: =IF($AM$24<20,AH7,IF(ABS(VLOOKUP(W.Stations!$F$21,MasterReferenceTable!$C$2:$G$388,5,FALSE))>101,AH7,IF($AN$26="Below",AH11,AH15))) ->  | AI19: =IF($AM$24<20,AI7,IF(ABS(VLOOKUP(W.Stations!$F$21,MasterReferenceTable!$C$2:$G$388,5,FALSE))>101,AI7,IF($AN$26="Below",AI11,AI15))) ->  | AJ19: =IF($AM$24<20,AJ7,IF(ABS(VLOOKUP(W.Stations!$F$21,MasterReferenceTable!$C$2:$G$388,5,FALSE))>101,AJ7,IF($AN$26="Below",AJ11,AJ15))) ->  | AK19: =IF($AM$24<20,AK7,IF(ABS(VLOOKUP(W.Stations!$F$21,MasterReferenceTable!$C$2:$G$388,5,FALSE))>101,AK7,IF($AN$26="Below",AK11,AK15))) ->  | AL19: =IF($AM$24<20,AL7,IF(ABS(VLOOKUP(W.Stations!$F$21,MasterReferenceTable!$C$2:$G$388,5,FALSE))>101,AL7,IF($AN$26="Below",AL11,AL15))) -> 
Z20: Fall Factor | AA20: =IF($AM$24<20,AA8,IF(ABS(VLOOKUP(W.Stations!$F$21,MasterReferenceTable!$C$2:$G$388,5,FALSE))>101,AA8,IF($AN$26="Below",AA12,AA16))) ->  | AB20: =IF($AM$24<20,AB8,IF(ABS(VLOOKUP(W.Stations!$F$21,MasterReferenceTable!$C$2:$G$388,5,FALSE))>101,AB8,IF($AN$26="Below",AB12,AB16))) ->  | AC20: =IF($AM$24<20,AC8,IF(ABS(VLOOKUP(W.Stations!$F$21,MasterReferenceTable!$C$2:$G$388,5,FALSE))>101,AC8,IF($AN$26="Below",AC12,AC16))) ->  | AD20: =IF($AM$24<20,AD8,IF(ABS(VLOOKUP(W.Stations!$F$21,MasterReferenceTable!$C$2:$G$388,5,FALSE))>101,AD8,IF($AN$26="Below",AD12,AD16))) ->  | AE20: =IF($AM$24<20,AE8,IF(ABS(VLOOKUP(W.Stations!$F$21,MasterReferenceTable!$C$2:$G$388,5,FALSE))>101,AE8,IF($AN$26="Below",AE12,AE16))) ->  | AF20: =IF($AM$24<20,AF8,IF(ABS(VLOOKUP(W.Stations!$F$21,MasterReferenceTable!$C$2:$G$388,5,FALSE))>101,AF8,IF($AN$26="Below",AF12,AF16))) ->  | AG20: =IF($AM$24<20,AG8,IF(ABS(VLOOKUP(W.Stations!$F$21,MasterReferenceTable!$C$2:$G$388,5,FALSE))>101,AG8,IF($AN$26="Below",AG12,AG16))) ->  | AH20: =IF($AM$24<20,AH8,IF(ABS(VLOOKUP(W.Stations!$F$21,MasterReferenceTable!$C$2:$G$388,5,FALSE))>101,AH8,IF($AN$26="Below",AH12,AH16))) ->  | AI20: =IF($AM$24<20,AI8,IF(ABS(VLOOKUP(W.Stations!$F$21,MasterReferenceTable!$C$2:$G$388,5,FALSE))>101,AI8,IF($AN$26="Below",AI12,AI16))) ->  | AJ20: =IF($AM$24<20,AJ8,IF(ABS(VLOOKUP(W.Stations!$F$21,MasterReferenceTable!$C$2:$G$388,5,FALSE))>101,AJ8,IF($AN$26="Below",AJ12,AJ16))) ->  | AK20: =IF($AM$24<20,AK8,IF(ABS(VLOOKUP(W.Stations!$F$21,MasterReferenceTable!$C$2:$G$388,5,FALSE))>101,AK8,IF($AN$26="Below",AK12,AK16))) ->  | AL20: =IF($AM$24<20,AL8,IF(ABS(VLOOKUP(W.Stations!$F$21,MasterReferenceTable!$C$2:$G$388,5,FALSE))>101,AL8,IF($AN$26="Below",AL12,AL16))) -> 
C21: Enter alternative or custom precipitation values here. Values entered overwrite automatic precipitation values. | Z21: Cole Method
G23: Precipitation Adjustment Table | Z23: Month | AA23: =Decision!O4 -> 3 | AB23: =Decision!P4 -> 4 | AC23: =Decision!Q4 -> 5 | AD23: =Decision!R4 -> 6 | AE23: =Decision!S4 -> 7 | AF23: =Decision!T4 -> 8 | AG23: =Decision!U4 -> 9 | AH23: =Decision!V4 -> 10 | AI23: =Decision!W4 -> 11 | AJ23: =Decision!X4 -> 12 | AK23: =Decision!Y4 -> 1 | AL23: =Decision!Z4 -> 2 | AM23: SUM/Ave | AN23: Last Mo. Act. Hist
D24: =D15 -> 2021-03-01 | E24: 2021-04-01 | F24: 2021-05-01 | G24: 2021-06-01 | H24: 2021-07-01 | I24: 2021-08-01 | J24: 2021-09-01 | K24: 2021-10-01 | L24: 2021-11-01 | M24: 2021-12-01 | N24: 2022-01-01 | O24: 2022-02-01 | Z24: Historic P. | AA24: =HistoricData!P13 ->  | AB24: =HistoricData!Q13 ->  | AC24: =HistoricData!R13 ->  | AD24: =HistoricData!S13 ->  | AE24: =HistoricData!T13 ->  | AF24: =HistoricData!U13 ->  | AG24: =HistoricData!V13 ->  | AH24: =HistoricData!W13 ->  | AI24: =HistoricData!X13 ->  | AJ24: =HistoricData!Y13 ->  | AK24: =HistoricData!Z13 ->  | AL24: =HistoricData!AA13*AP18 ->  | AM24: =SUM(AA24:AK24,HistoricData!AA13) ->  | AN24: =HistoricData!AA13 ->  | AO24: 1 | AP24: 31
C25: Historic | Z25: Prev Yr. P. | AA25: =IF(D26="",Decision!O36,D26) -> 0 | AB25: =IF(E26="",Decision!P36,E26) -> 0 | AC25: =IF(F26="",Decision!Q36,F26) -> 0 | AD25: =IF(G26="",Decision!R36,G26) -> 0 | AE25: =IF(H26="",Decision!S36,H26) -> 0 | AF25: =IF(I26="",Decision!T36,I26) -> 0 | AG25: =IF(J26="",Decision!U36,J26) -> 0 | AH25: =IF(K26="",Decision!V36,K26) -> 0 | AI25: =IF(L26="",Decision!W36,L26) -> 0 | AJ25: =IF(M26="",Decision!X36,M26) -> 0 | AK25: =IF(N26="",Decision!Y36,N26) -> 0 | AL25: =IF(O26="",Decision!Z36,O26) -> 0 | AO25: 2 | AP25: 28
C26: =C17 -> 2021/2022 | Z26: Precip Cap | AA26: =IF(AA25>$AN$4*AA24,$AN$4*AA24,AA25) ->  | AB26: =IF(AB25>$AN$4*AB24,$AN$4*AB24,AB25) ->  | AL26: =IF(AL25>$AN$4*AN24,$AN$4*AN24,AL25) ->  | AN26: =IF(SUM(AA28:AL28)>SUM(AA24:AL24),"Above","Below") ->  | AO26: 3 | AP26: 31
C27: =C18 -> 2022/2023 | Z27: Adjusted Precip | AA27: =AA26*$AA$4 ->  | AB27: =AB26*$AA$4 ->  | AM27: =SUM(AA27:AL27) ->  | AO27: 4 | AP27: 30
Z28: Current Yr. P. | AA28: =IF(D27="",Decision!O53,D27) -> 0 | AB28: =IF(E27="",Decision!P53,E27) -> 0 | AC28: =IF(F27="",Decision!Q53,F27) -> 0 | AD28: =IF(G27="",Decision!R53,G27) -> 0 | AE28: =IF(H27="",Decision!S53,H27) -> 0 | AF28: =IF(I27="",Decision!T53,I27) -> 0 | AG28: =IF(J27="",Decision!U53,J27) -> 0 | AH28: =IF(K27="",Decision!V53,K27) -> 0 | AI28: =IF(L27="",Decision!W53,L27) -> 0 | AJ28: =IF(M27="",Decision!X53,M27) -> 0 | AK28: =IF(N27="",Decision!Y53,N27) -> 0 | AL28: =IF(O27="",Decision!Z53,O27) -> 0 | AO28: 5 | AP28: 31
Z29: Precip Cap | AA29: =IF(AA28>$AN$4*AA24,$AN$4*AA24,AA28) ->  | AL29: =IF(AL28>$AN$4*AN24,$AN$4*AN24,AL28) ->  | AO29: 6 | AP29: 30
Z30: Adjusted Precip | AA30: =AA29*$AE$4 ->  | AL30: =AL29*$AE$4 ->  | AM30: =SUM(AA30:AL30) ->  | AO30: 7 | AP30: 31
C31: References | Z31: Cole Method 2 year weighted % of normal | AM31: =SUM((AM30+AM27)/AM24) ->  | AO31: 8 | AP31: 31
C32: https://digitalcommons.unl.edu/extensionhist/1815/ | J32: Drought Management on Range and Pastureland | Z32: Current Month | AA32: =AL23 -> 2 | AB32: Spring Factor | AD32: =HLOOKUP(AA32,$AA$18:$AL$19,2,FALSE) ->  | AE32: Fall Factor | AG32: =HLOOKUP(AA32,$AA$18:$AL$20,3,FALSE) ->  | AH32: Two-Year Factor | AJ32: =1-AG32-AD32 ->  | AK32: 2-Yr Weighted % | AM32: =AM31*AJ32 ->  | AO32: 9 | AP32: 30
C33: https://www.rcc-acis.org/ | J33: Applied Climate Information System | AO33: 10 | AP33: 31
C34: https://www.cocorahs.org/ | J34: Community Collaborative Rain, Hail, and Snow network (CoCoRahs) | Z34: Weighted Value for Current Month Critical Periods | AO34: 11 | AP34: 30
C35: https://wrcc.dri.edu/ | J35: Western Regional Climate Center - USDA Forest Service RAWS | AO35: 12 | AP35: 31
C36: https://www.wcc.nrcs.usda.gov/ | J36: USDA NRCS National Water and Climate Center | Z36: Month | AA36: Spring 3,4,5,6 | AB36: Fall 9&10 | AD36: Two-Year Weighted Percent of Normal | AJ36: =AM32 -> 
C37: https://www.weather.gov/ffc/outlooks | J37: NOAA National Weather Service 30-day & 90-day Outlooks | Z37: 1 | AA37: =IF(AA32=1,(SUM(AB29:AE29)/SUM(AB24:AE24))*AD32,0) -> 0 | AB37: =IF(AA32=1,(SUM(AH29:AI29)/SUM(AH24:AI24))*AG32,0) -> 0
C38: https://sdgrazingexchange.com/ | J38: South Dakota Soil Health Coalition's Grazing Exchange | Z38: 2 | AA38: =IF(AA32=2,(SUM(AA29:AD29)/SUM(AA24:AD24))*AD32,0) ->  | AB38: =IF(AA32=2,(SUM(AG29:AH29)/SUM(AG24:AH24))*AG32,0) ->  | AJ38: +
C39: https://drought.unl.edu/ranchplan/Monitor.aspx | J39: Ranch Drought Monitoring Dashboard - Nat'l Drought Mitigation Center | Z39: 3 | AA39: =IF(AA32=3,(AL29/AL24)*AD32,0) -> 0 | AB39: =IF(AA32=3,(SUM(AF29:AG29)/SUM(AF24:AG24))*AG32,0) -> 0
C40: https://www.drought.gov/documents/managing-drought-risk-ranch-planning-guide-great-plains-ranchers | J40: Managing Drought Risk on the Ranch - Nat'l Drought Mitigation Center | Z40: 4 | AA40: =IF(AA32=4,(SUM(AK29:AL29)/SUM(AK24:AL24))*AD32,0) -> 0 | AB40: =IF(AA32=4,(SUM(AE29:AF29)/SUM(AE24:AF24))*AG32,0) -> 0 | AD40: Spring Critical Period Weighted Value | AJ40: =AA49 -> 
J41: Kruse,R.E. 2002. Beef Cattle Management Decisions Relating | Z41: 5 | AA41: =IF(AA32=5,(SUM(AJ29:AL29)/SUM(AJ24:AL24))*AD32,0) -> 0 | AB41: =IF(AA32=5,(SUM(AD29:AE29)/SUM(AD24:AE24))*AG32,0) -> 0
J42: to Drought In The Northern Great Plains. | Z42: 6 | AA42: =IF(AA32=6,(SUM(AI29:AL29)/SUM(AI24:AL24))*AD32,0) -> 0 | AB42: =IF(AA32=6,(SUM(AC29:AD29)/SUM(AC24:AD24))*AG32,0) -> 0 | AJ42: +
Z43: 7 | AA43: =IF(AA32=7,(SUM(AH29:AK29)/SUM(AH24:AK24))*AD32,0) -> 0 | AB43: =IF(AA32=7,(SUM(AB29:AC29)/SUM(AB24:AC24))*AG32,0) -> 0
Z44: 8 | AA44: =IF(AA32=8,(SUM(AG29:AJ29)/SUM(AG24:AJ24))*AD32,0) -> 0 | AB44: =IF(AA32=8,(SUM(AA29:AB29)/SUM(AA24:AB24))*AG32,0) -> 0 | AD44: Fall Critical Period Weighted Value | AJ44: =AB49 -> 
Z45: 9 | AA45: =IF(AA32=9,(SUM(AF29:AI29)/SUM(AF24:AI24))*AD32,0) -> 0 | AB45: =IF(AA32=9,(AL29/AL24)*AG32,0) -> 0
Z46: 10 | AA46: =IF(AA32=10,(SUM(AE29:AH29)/SUM(AE24:AH24))*AD32,0) -> 0 | AB46: =IF(AA32=10,(SUM(AK29:AL29)/SUM(AK24:AL24))*AG32,0) -> 0 | AJ46: =
Z47: 11 | AA47: =IF(AA32=11,(SUM(AD29:AG29)/SUM(AD24:AG24))*AD32,0) -> 0 | AB47: =IF(AA32=11,(SUM(AJ29:AK29)/SUM(AJ24:AK24))*AG32,0) -> 0
Z48: 12 | AA48: =IF(AA32=12,(SUM(AC29:AF29)/SUM(AC24:AF24))*AD32,0) -> 0 | AB48: =IF(AA32=12,(SUM(AI29:AJ29)/SUM(AI24:AJ24))*AG32,0) -> 0 | AD48: Current Percent of Normal Production Calculated | AJ48: =SUM(AJ36,AJ40,AJ44) ->  | AM48: =AJ48 -> 
Z49: CritPerValues | AA49: =MAX(AA37:AA48) ->  | AB49: =MAX(AB37:AB48) ->  | AM49: =AL60 -> 
B51: Local % Precip'!A65536 | Z51: Percent of Normal Production Prediction for July 1
P52: =VLOOKUP(W.Stations!D11,MasterReferenceTable!A2:Q405,17,FALSE) ->  | Z52: Month | AA52: 7 | AB52: 8 | AC52: 9 | AD52: 10 | AE52: 11 | AF52: 12 | AG52: 1 | AH52: 2 | AI52: 3 | AJ52: 4 | AK52: 5 | AL52: 6 | AM52: Sum/Ave.
B53: Edit Values Here - No blanks | P53: Month 1 | R53: Month 2 | T53: Month 3 | U53: Other Months | Z53: Historic | AA53: =HLOOKUP(AA52,$AA$23:$AL$24,2,FALSE) ->  | AB53: =HLOOKUP(AB52,$AA$23:$AL$24,2,FALSE) ->  | AM53: =SUM(AA53:AL53) -> 
C54: 30-day | D54: 90-day | I54: Legend | P54: =IF(AA32=12,1,AA32+1) -> 3 | R54: =IF(AA32=12,2,AA32+2) -> 4 | T54: =IF(AA32=12,3,AA32+3) -> 5 | Z54: "Previous" Yr. | AA54: =HLOOKUP(AA52,$AA$23:$AL$26,4,FALSE) ->  | AB54: =HLOOKUP(AB52,$AA$23:$AL$26,4,FALSE) ->  | AC54: =HLOOKUP(AC52,$AA$23:$AL$26,4,FALSE) ->  | AD54: =HLOOKUP(AD52,$AA$23:$AL$26,4,FALSE) ->  | AE54: =HLOOKUP(AE52,$AA$23:$AL$26,4,FALSE) ->  | AF54: =IF(OR($AA$32=11),HLOOKUP(AF52,$AA$23:$AL$29,7,FALSE),HLOOKUP(AF52,$AA$23:$AL$29,4,FALSE)) ->  | AG54: =IF(OR($AA$32=11,$AA$32=12),HLOOKUP(AG52,$AA$23:$AL$29,7,FALSE),HLOOKUP(AG52,$AA$23:$AL$29,4,FALSE)) ->  | AH54: =IF(OR($AA$32=11,$AA$32=12,$AA$32=1),HLOOKUP(AH52,$AA$23:$AL$29,7,FALSE),HLOOKUP(AH52,$AA$23:$AL$29,4,FALSE)) ->  | AI54: =IF(OR($AA$32=11,$AA$32=12,$AA$32=1,$AA$32=2),HLOOKUP(AI52,$AA$23:$AL$29,7,FALSE),HLOOKUP(AI52,$AA$23:$AL$29,4,FALSE)) ->  | AJ54: =IF(OR($AA$32=11,$AA$32=12,$AA$32=1,$AA$32=2,$AA$32=3),HLOOKUP(AJ52,$AA$23:$AL$29,7,FALSE),HLOOKUP(AJ52,$AA$23:$AL$29,4,FALSE)) ->  | AK54: =IF(OR($AA$32=11,$AA$32=12,$AA$32=1,$AA$32=2,$AA$32=3,$AA$32=4),HLOOKUP(AK52,$AA$23:$AL$29,7,FALSE),HLOOKUP(AK52,$AA$23:$AL$29,4,FALSE)) ->  | AL54: =IF(OR($AA$32=11,$AA$32=12,$AA$32=1,$AA$32=2,$AA$32=3,$AA$32=4,$AA$32=5),HLOOKUP(AL52,$AA$23:$AL$29,7,FALSE),HLOOKUP(AL52,$AA$23:$AL$29,4,FALSE)) ->  | AM54: =SUM(AA54:AL54)*$AA$4 -> 
B55: Northwest | J55: 1 | K55: 1.3 | M55: Adams | N55: =E65 -> 1 | O55: =F65 -> 1 | P55: =IF(ISERROR($P$52),"",VLOOKUP($P$52,$M$56:$O$131,2,FALSE)) ->  | R55: =IF(ISERROR($P$52),"",VLOOKUP($P$52,$M$56:$O$131,3,FALSE)) ->  | T55: =IF(ISERROR($P$52),"",VLOOKUP($P$52,$M$56:$O$131,3,FALSE)) ->  | U55: =IF($Z$55="Above normal",1.25,IF($Z$55="Below normal",0.75,1)) -> 1 | Z55: ='Drought Status'!L11 -> Normal | AA55: =IF(AA52=$P$54,$P$55,IF(AA52=$R$54,$R$55,IF(AA52=$T$54,$T$55,$U$55))) -> 1 | AB55: =IF(AB52=$P$54,$P$55,IF(AB52=$R$54,$R$55,IF(AB52=$T$54,$T$55,$U$55))) -> 1 | AC55: 1 | AD55: 1 | AE55: 1 | AF55: 1 | AG55: 1 | AH55: 1 | AL55: 1
B56: Harding | C56: 7 | D56: 7 | E56: =IF($Z$55="Above normal",1.25,IF($Z$55="Below normal",0.75,VLOOKUP(C56,$J$55:$K$67,2,FALSE))) -> 1 | F56: =IF($Z$55="Above normal",1.25,IF($Z$55="Below normal",0.75,VLOOKUP(D56,$J$55:$K$67,2,FALSE))) -> 1 | J56: 2 | K56: 1.25 | M56: Aurora | N56: =E122 -> 1 | O56: =F122 -> 1 | Z56: Adjustment | AF56: =IF($AA$32=11,AF55,1) -> 1 | AG56: =IF(OR($AA$32=11,$AA$32=12),AG55,1) -> 1 | AH56: =IF(OR($AA$32=11,$AA$32=12,$AA$32=1),AH55,1) -> 1 | AI56: =IF(OR($AA$32=11,$AA$32=12,$AA$32=1,$AA$32=2),AI55,1) ->  | AJ56: =IF(OR($AA$32=11,$AA$32=12,$AA$32=1,$AA$32=2,$AA$32=3),AJ55,1) ->  | AK56: =IF(OR($AA$32=11,$AA$32=12,$AA$32=1,$AA$32=2,$AA$32=3,$AA$32=4),AK55,1) ->  | AL56: =IF(OR($AA$32=11,$AA$32=12,$AA$32=1,$AA$32=2,$AA$32=3,$AA$32=4,$AA$32=5),AL55,1) -> 1
B57: Perkins | C57: 7 | D57: 7 | E57: =IF($Z$55="Above normal",1.25,IF($Z$55="Below normal",0.75,VLOOKUP(C57,$J$55:$K$67,2,FALSE))) -> 1 | F57: =IF($Z$55="Above normal",1.25,IF($Z$55="Below normal",0.75,VLOOKUP(D57,$J$55:$K$67,2,FALSE))) -> 1 | J57: 3 | K57: 1.2 | M57: Beadle | N57: =E110 -> 1 | O57: =F110 -> 1 | Z57: "Current" Yr. | AA57: =HLOOKUP(AA52,$AA$23:$AL$29,7,FALSE) ->  | AB57: =HLOOKUP(AB52,$AA$23:$AL$29,7,FALSE) ->  | AC57: =HLOOKUP(AC52,$AA$23:$AL$29,7,FALSE) ->  | AD57: =HLOOKUP(AD52,$AA$23:$AL$29,7,FALSE) ->  | AE57: =HLOOKUP(AE52,$AA$23:$AL$29,7,FALSE) ->  | AF57: =IF($AA$32=11,AF53,HLOOKUP(AF52,$AA$23:$AL$29,7,FALSE))*AF56 ->  | AG57: =IF(OR($AA$32=11,$AA$32=12),AG53,HLOOKUP(AG52,$AA$23:$AL$29,7,FALSE))*AG56 ->  | AH57: =IF(OR($AA$32=11,$AA$32=12,$AA$32=1),AH53,HLOOKUP(AH52,$AA$23:$AL$29,7,FALSE))*AH56 ->  | AI57: =IF(OR($AA$32=11,$AA$32=12,$AA$32=1,$AA$32=2),AI53,HLOOKUP(AI52,$AA$23:$AL$29,7,FALSE))*AI56 ->  | AJ57: =IF(OR($AA$32=11,$AA$32=12,$AA$32=1,$AA$32=2,$AA$32=3),AJ53,HLOOKUP(AJ52,$AA$23:$AL$29,7,FALSE))*AJ56 ->  | AK57: =IF(OR($AA$32=11,$AA$32=12,$AA$32=1,$AA$32=2,$AA$32=3,$AA$32=4),AK53,HLOOKUP(AK52,$AA$23:$AL$29,7,FALSE))*AK56 ->  | AL57: =IF(OR($AA$32=11,$AA$32=12,$AA$32=1,$AA$32=2,$AA$32=3,$AA$32=4,$AA$32=5),AL53,HLOOKUP(AL52,$AA$23:$AL$29,7,FALSE))*AL56 ->  | AM57: =SUM(AA57:AL57)*$AE$4 -> 
B58: Corson | C58: 7 | D58: 7 | E58: 1 | F58: 1 | J58: 4 | K58: 1.15 | M58: Bennett | N58: =E80 -> 1 | O58: =F80 -> 1 | Z58: Cole Method 2 year weighted % of normal | AM58: =SUM((AM54+AM57)/AM53) -> 
B59: Ziebach | C59: 7 | D59: 7 | E59: 1 | F59: 1 | J59: 5 | K59: 1.1 | M59: Bon Homme | N59: =E132 -> 1 | O59: =F132 -> 1 | Z59: Current Month | AA59: 6 | AB59: Spring Factor | AD59: =HLOOKUP(AA59,$AA$18:$AL$19,2,FALSE) ->  | AE59: Fall Factor | AG59: =HLOOKUP(AA59,$AA$18:$AL$20,3,FALSE) ->  | AH59: Two-Year Factor | AJ59: =1-AG59-AD59 ->  | AK59: 2-Yr Weighted % | AM59: =AM58*AJ59 -> 
B60: Dewey | C60: 7 | D60: 7 | E60: 1 | F60: 1 | J60: 6 | K60: 1.05 | M60: Bowman | N60: =E66 -> 1 | O60: =F66 -> 1 | Z60: Spring Weighted Value | AB60: =(SUM(AI57:AL57)/SUM(AI53:AL53))*AD59 ->  | AC60: Fall Weighted Value | AE60: =(SUM(AC57:AD57)/SUM(AC53:AD53))*AG59 ->  | AF60: Percent of Normal Peak Production Prediction | AL60: =IF('Drought Status'!J17=0,"",SUM(AM59,AB60,AE60)) -> 
B61: Butte | C61: 7 | D61: 7 | E61: 1 | F61: 1 | J61: 7 | K61: 1 | M61: Brookings | N61: =E113 -> 1 | O61: =F113 -> 1
B62: Meade | C62: 7 | D62: 7 | E62: 1 | F62: 1 | J62: 8 | K62: 0.95 | M62: Brown | N62: =E93 -> 1 | O62: =F93 -> 1
B63: Haakon | C63: 7 | D63: 7 | E63: 1 | F63: 1 | J63: 9 | K63: 0.9 | M63: Brule | N63: =E121 -> 1 | O63: =F121 -> 1
B64: Stanley | C64: 7 | D64: 7 | E64: 1 | F64: 1 | J64: 10 | K64: 0.85 | M64: Buffalo | N64: =E115 -> 1 | O64: =F115 -> 1
B65: AdamsND | C65: 7 | D65: 7 | E65: 1 | F65: 1 | J65: 11 | K65: 0.8 | M65: Butte | N65: =E61 -> 1 | O65: =F61 -> 1 | AK65: precip adjustment%
B66: BowmanND | C66: 7 | D66: 7 | E66: 1 | F66: 1 | J66: 12 | K66: 0.75 | M66: Campbell | N66: =E91 -> 1 | O66: =F91 -> 1 | AK66: 0
B67: CarterMT | C67: 7 | D67: 7 | E67: 1 | F67: 1 | J67: 13 | K67: 0.7 | M67: Carter | N67: =E67 -> 1 | O67: =F67 -> 1 | Z67: Ralph Cole Overlap 2-year weighted % of normal
B68: FallonMT | C68: 7 | D68: 7 | E68: 1 | F68: 1 | M68: Charles Mix | N68: =E127 -> 1 | O68: =F127 -> 1 | Z68: Month | AA68: =AA23 -> 3 | AB68: 4 | AC68: 5 | AD68: 6 | AE68: 7 | AF68: 8 | AG68: 9 | AH68: 10 | AI68: 11 | AJ68: 12 | AK68: 1 | AL68: 2 | AM68: =AA23 -> 3 | AN68: 4 | AO68: 5
B69: PowdRivMT | C69: 7 | D69: 7 | E69: 1 | F69: 1 | M69: Clark | N69: =E103 -> 1 | O69: =F103 -> 1 | Z69: Historic | AA69: =AA24 ->  | AL69: =AN24 -> 
B70: Southwest | M70: Clay | N70: =E134 -> 1 | O70: =F134 -> 1 | Z70: Previous prec | AA70: =AA26 ->  | AB70: =AB26 ->  | AC70: =AC26 ->  | AD70: =AD26 ->  | AM70: =AA29 ->  | AN70: =AB29 ->  | AO70: =AC29 -> 
B71: Lawrence | C71: 7 | D71: 7 | E71: =IF($Z$55="Above normal",1.25,IF($Z$55="Below normal",0.75,VLOOKUP(C71,$J$55:$K$67,2,FALSE))) -> 1 | F71: =IF($Z$55="Above normal",1.25,IF($Z$55="Below normal",0.75,VLOOKUP(D71,$J$55:$K$67,2,FALSE))) -> 1 | M71: Codington | N71: =E104 -> 1 | O71: =F104 -> 1 | Z71: Month | AA71: =AJ23 -> 12 | AB71: =AK23 -> 1 | AC71: =AL23 -> 2 | AD71: =AA23 -> 3 | AE71: 4 | AF71: 5 | AG71: =AD23 -> 6 | AH71: 7 | AI71: 8 | AJ71: 9 | AK71: 10 | AL71: 11 | AM71: 12 | AN71: 1 | AO71: 2
B72: Pennington | C72: 7 | D72: 7 | E72: 1 | F72: 1 | M72: Corson | N72: =E58 -> 1 | O72: =F58 -> 1 | Z72: Historic | AA72: =AJ24 ->  | AB72: =AK24 ->  | AC72: =AN24 ->  | AG72: =AD24 ->  | AO72: =AL24 -> 
B73: Jackson | C73: 7 | D73: 7 | E73: 1 | F73: 1 | M73: Crook | N73: =E84 -> 1 | O73: =F84 -> 1 | Z73: Current prec | AA73: =AJ26 ->  | AB73: =AK26 ->  | AC73: =AL26 ->  | AD73: =AA29 ->  | AE73: =AB29 ->  | AF73: =AC29 ->  | AG73: =AD29 -> 
B74: Jones | C74: 7 | D74: 7 | E74: 1 | F74: 1 | M74: Custer | N74: =E77 -> 1 | O74: =F77 -> 1 | Z74: Previous overlap % of ave: | AB74: =SUM(AA70:AO70)/SUM(AA69:AO69) ->  | AC74: X Pr.Fact | AD74: =AB74*AA4 ->  | AE74: Current overlap % of ave.: | AG74: =SUM(AA73:AO73)/SUM(AA72:AO72) ->  | AH74: X Current Fact. | AI74: =AG74*AE4 ->  | AJ74: Sum fctrd aves. | AK74: =AD74+AI74 ->  | AL74: 2-year weight: | AM74: =AJ32 ->  | AN74: Result: | AO74: =AK74*AM74 -> 
B75: Mellette | C75: 7 | D75: 7 | E75: 1 | F75: 1 | M75: Davison | N75: =E123 -> 1 | O75: =F123 -> 1
B76: Lyman | C76: 7 | D76: 7 | E76: 1 | F76: 1 | M76: Dawes | N76: =E85 -> 1 | O76: =F85 -> 1
B77: Custer | C77: 7 | D77: 7 | E77: 1 | F77: 1 | M77: Day | N77: =E98 -> 1 | O77: =F98 -> 1
B78: Fall River | C78: 7 | D78: 7 | E78: 1 | F78: 1 | M78: Deuel | N78: =E105 -> 1 | O78: =F105 -> 1
B79: Oglala Lakota | C79: 7 | D79: 7 | E79: 1 | F79: 1 | M79: Dewey | N79: =E60 -> 1 | O79: =F60 -> 1 | AD79: WeatherLink data from Decision page in order to do conditional formatting
B80: Bennett | C80: 7 | D80: 7 | E80: 1 | F80: 1 | M80: Douglas | N80: =E128 -> 1 | O80: =F128 -> 1 | AD80: =Decision!O24 ->  | AE80: =Decision!P24 ->  | AF80: =Decision!Q24 ->  | AG80: =Decision!R24 ->  | AH80: =Decision!S24 ->  | AI80: =Decision!T24 ->  | AJ80: =Decision!U24 ->  | AK80: =Decision!V24 ->  | AL80: =Decision!W24 ->  | AM80: =Decision!X24 ->  | AN80: =Decision!Y24 ->  | AO80: =Decision!Z24 -> 
B81: Todd | C81: 7 | D81: 7 | E81: 1 | F81: 1 | M81: Edmunds | N81: =E97 -> 1 | O81: =F97 -> 1 | AD81: =Decision!O41 ->  | AE81: =Decision!P41 ->  | AF81: =Decision!Q41 ->  | AG81: =Decision!R41 ->  | AH81: =Decision!S41 ->  | AI81: =Decision!T41 ->  | AJ81: =Decision!U41 ->  | AK81: =Decision!V41 ->  | AL81: =Decision!W41 ->  | AM81: =Decision!X41 ->  | AN81: =Decision!Y41 ->  | AO81: =Decision!Z41 -> 
B82: Tripp | C82: 7 | D82: 7 | E82: 1 | F82: 1 | M82: Fall River | N82: =E78 -> 1 | O82: =F78 -> 1
B83: Gregory | C83: 7 | D83: 7 | E83: 1 | F83: 1 | M83: Fallon | N83: =E68 -> 1 | O83: =F68 -> 1
B84: CrookWY | C84: 7 | D84: 7 | E84: 1 | F84: 1 | M84: Faulk | N84: =E101 -> 1 | O84: =F101 -> 1
B85: DawesNE | C85: 7 | D85: 7 | E85: 1 | F85: 1 | M85: Grant | N85: =E99 -> 1 | O85: =F99 -> 1
B86: NiobraraWY | C86: 7 | D86: 7 | E86: 1 | F86: 1 | M86: Gregory | N86: =E83 -> 1 | O86: =F83 -> 1
B87: SheridanNE | C87: 7 | D87: 7 | E87: 1 | F87: 1 | M87: Haakon | N87: =E63 -> 1 | O87: =F63 -> 1
B88: SiouxNE | C88: 7 | D88: 7 | E88: 1 | F88: 1 | M88: Hamlin | N88: =E112 -> 1 | O88: =F112 -> 1 | AA88: (=) IF (cell) = CURRENT YEAR | AE88: (=) IF (cell) = CURRENT YEAR
B89: WestonWY | C89: 7 | D89: 7 | E89: 1 | F89: 1 | M89: Hand | N89: =E109 -> 1 | O89: =F109 -> 1
B90: Northeast | M90: Hanson | N90: =E124 -> 1 | O90: =F124 -> 1 | AA90: AND | AE90: AND
B91: Campbell | C91: 7 | D91: 7 | E91: =IF($Z$55="Above normal",1.25,IF($Z$55="Below normal",0.75,VLOOKUP(C91,$J$55:$K$67,2,FALSE))) -> 1 | F91: =IF($Z$55="Above normal",1.25,IF($Z$55="Below normal",0.75,VLOOKUP(D91,$J$55:$K$67,2,FALSE))) -> 1 | M91: Harding | N91: =E56 -> 1 | O91: =F56 -> 1
B92: McPherson | C92: 7 | D92: 7 | E92: 1 | F92: 1 | M92: Hughes | N92: =E107 -> 1 | O92: =F107 -> 1 | AA92: IF (cell) = 3(Mar) | AE92: IF (cell) = 4(Apr)
B93: Brown | C93: 7 | D93: 7 | E93: 1 | F93: 1 | M93: Hutchinson | N93: =E129 -> 1 | O93: =F129 -> 1
B94: Marshall | C94: 7 | D94: 7 | E94: 1 | F94: 1 | M94: Hyde | N94: =E108 -> 1 | O94: =F108 -> 1 | AA94: THEN | AE94: THEN
B95: Roberts | C95: 7 | D95: 7 | E95: 1 | F95: 1 | M95: Jackson | N95: =E73 -> 1 | O95: =F73 -> 1
B96: Walworth | C96: 7 | D96: 7 | E96: 1 | F96: 1 | M96: Jerauld | N96: =E116 -> 1 | O96: =F116 -> 1 | AA96: Weight that month .9LT, .1SM, SUM | AE96: Weight Previous month .9LT, .1SM, SUM
B97: Edmunds | C97: 7 | D97: 7 | E97: 1 | F97: 1 | M97: Jones | N97: =E74 -> 1 | O97: =F74 -> 1 | AF97: Curr Month | AG97: .85LT, .15SM, SUM
B98: Day | C98: 7 | D98: 7 | E98: 1 | F98: 1 | M98: Kingsbury | N98: =E111 -> 1 | O98: =F111 -> 1
B99: Grant | C99: 7 | D99: 7 | E99: 1 | F99: 1 | M99: Lake | N99: =E119 -> 1 | O99: =F119 -> 1 | AA99: =IF(SUM(AA28:AL28)<AM24,"Below","Above") ->  | AB99: =IF(AM24<17,"14-17",IF(AM24<20,"17-20","20-23")) ->  | AC99: =CONCATENATE(AA99," ",AB99) ->  | AE99: Current Month | AF99: =Decision!Z4 -> 2
B100: Potter | C100: 7 | D100: 7 | E100: 1 | F100: 1 | M100: Lawrence | N100: =E71 -> 1 | O100: =F71 -> 1 | AA100: Hayland Spring Factor Legend:
B101: Faulk | C101: 7 | D101: 7 | E101: 1 | F101: 1 | M101: Lincoln | N101: =E131 -> 1 | O101: =F131 -> 1 | AA101: 1 | AB101: 2 | AC101: 3 | AD101: 4 | AE101: 5 | AF101: 6 | AG101: 7 | AH101: 8 | AI101: 9 | AJ101: 10 | AK101: 11 | AL101: 12 | AM101: 1 or 2 yr | AN101: Cap
B102: Spink | C102: 7 | D102: 7 | E102: 1 | F102: 1 | M102: Lyman | N102: =E76 -> 1 | O102: =F76 -> 1 | Z102: Below 20-23 | AA102: 0 | AB102: 0 | AC102: 0.025 | AD102: 0.04 | AE102: 0.06 | AF102: 0.075 | AG102: 0.1 | AH102: 0.09 | AI102: 0.075 | AJ102: 0.05 | AK102: 0.025 | AL102: 0 | AM102: 1 | AN102: 2.12
B103: Clark | C103: 7 | D103: 7 | E103: 1 | F103: 1 | M103: Marshall | N103: =E94 -> 1 | O103: =F94 -> 1 | Z103: Below 17-20 | AA103: 0 | AB103: 0 | AC103: 0.015 | AD103: 0.035 | AE103: 0.05 | AF103: 0.075 | AG103: 0.87 | AH103: 0.08 | AI103: 0.06 | AJ103: 0.04 | AK103: 0.02 | AL103: 0 | AM103: 1 | AN103: 1
B104: Codington | C104: 7 | D104: 7 | E104: 1 | F104: 1 | M104: McCook | N104: =E125 -> 1 | O104: =F125 -> 1 | Z104: Below 14-17 | AA104: 0.7 | AB104: 0.75 | AC104: 0.8 | AD104: 0.85 | AE104: 0.9 | AF104: 0.95 | AG104: 1 | AH104: 0.95 | AI104: 0.9 | AJ104: 0.85 | AK104: 0.8 | AL104: 0.75 | AM104: 2 | AN104: 1
B105: Deuel | C105: 7 | D105: 7 | E105: 1 | F105: 1 | M105: McPherson | N105: =E92 -> 1 | O105: =F92 -> 1 | Z105: Above 20-23 | AA105: 0 | AB105: 0 | AC105: 0 | AD105: 0.01 | AE105: 0.02 | AF105: 0.03 | AG105: 0.03 | AH105: 0.03 | AI105: 0.02 | AJ105: 0.01 | AK105: 0 | AL105: 0 | AM105: 2 | AN105: 6
B106: Sully | C106: 7 | D106: 7 | E106: 1 | F106: 1 | M106: Meade | N106: =E62 -> 1 | O106: =F62 -> 1 | Z106: Above 17-20 | AA106: 0 | AB106: 0 | AC106: 0 | AD106: 0 | AE106: 0 | AF106: 0 | AG106: 0 | AH106: 0 | AI106: 0 | AJ106: 0 | AK106: 0 | AL106: 0 | AM106: 1 | AN106: 2.05
B107: Hughes | C107: 7 | D107: 7 | E107: 1 | F107: 1 | M107: Mellette | N107: =E75 -> 1 | O107: =F75 -> 1 | Z107: Above 14-17 | AA107: 0 | AB107: 0 | AC107: 0 | AD107: 0 | AE107: 0 | AF107: 0 | AG107: 0 | AH107: 0 | AI107: 0 | AJ107: 0 | AK107: 0 | AL107: 0 | AM107: 2 | AN107: 6
B108: Hyde | C108: 7 | D108: 7 | E108: 1 | F108: 1 | M108: Miner | N108: =E118 -> 1 | O108: =F118 -> 1
B109: Hand | C109: 7 | D109: 7 | E109: 1 | F109: 1 | M109: Minnehaha | N109: =E126 -> 1 | O109: =F126 -> 1 | AA109: Selected Spring and other Factors:
B110: Beadle | C110: 7 | D110: 7 | E110: 1 | F110: 1 | M110: Moody | N110: =E120 -> 1 | O110: =F120 -> 1 | AA110: 1 | AB110: 2 | AC110: 3 | AD110: 4 | AE110: 5 | AF110: 6 | AG110: 7 | AH110: 8 | AI110: 9 | AJ110: 10 | AK110: 11 | AL110: 12 | AM110: 1 or 2 yr | AN110: Cap
B111: Kingsbury | C111: 7 | D111: 7 | E111: 1 | F111: 1 | M111: Niobrara | N111: =E86 -> 1 | O111: =F86 -> 1 | Z111: Spring Factor | AA111: =VLOOKUP($AC$99,$Z102:AN107,2,FALSE) ->  | AB111: =VLOOKUP($AC$99,$Z102:AO107,3,FALSE) ->  | AC111: =VLOOKUP($AC$99,$Z102:AP107,4,FALSE) ->  | AD111: =VLOOKUP($AC$99,$Z102:AQ107,5,FALSE) ->  | AE111: =VLOOKUP($AC$99,$Z102:AR107,6,FALSE) ->  | AF111: =VLOOKUP($AC$99,$Z102:AS107,7,FALSE) ->  | AG111: =VLOOKUP($AC$99,$Z102:AT107,8,FALSE) ->  | AH111: =VLOOKUP($AC$99,$Z102:AU107,9,FALSE) ->  | AI111: =VLOOKUP($AC$99,$Z102:AV107,10,FALSE) ->  | AJ111: =VLOOKUP($AC$99,$Z102:AW107,11,FALSE) ->  | AK111: =VLOOKUP($AC$99,$Z102:AX107,12,FALSE) ->  | AL111: =VLOOKUP($AC$99,$Z102:AY107,13,FALSE) ->  | AM111: =VLOOKUP($AC$99,$Z102:AZ107,14,FALSE) ->  | AN111: =VLOOKUP($AC$99,$Z102:BA107,15,FALSE) -> 
B112: Hamlin | C112: 7 | D112: 7 | E112: 1 | F112: 1 | M112: Oglala Lakota | N112: =E79 -> 1 | O112: =F79 -> 1 | Z112: Historic | AA112: =HLOOKUP(AA110,$AA$23:$AL$28,2,FALSE) ->  | AB112: =HLOOKUP(AB110,$AA$23:$AL$28,2,FALSE) -> 
B113: Brookings | C113: 7 | D113: 7 | E113: 1 | F113: 1 | M113: Pennington | N113: =E72 -> 1 | O113: =F72 -> 1 | Z113: Previous | AA113: =HLOOKUP(AA110,$AA$23:$AL$28,3,FALSE) -> 0 | AB113: =HLOOKUP(AB110,$AA$23:$AL$28,3,FALSE) -> 0 | AC113: 0 | AD113: 0 | AE113: 0 | AF113: 0 | AG113: 0 | AH113: 0 | AI113: 0 | AJ113: 0 | AK113: 0 | AL113: 0
B114: Southeast | M114: Perkins | N114: =E57 -> 1 | O114: =F57 -> 1 | Z114: Previous-Cap | AA114: =IF(AA113>$AN$111*AA112,$AN$111*AA112,AA113) ->  | AB114: =IF(AB113>$AN$111*AB112,$AN$111*AB112,AB113) -> 
B115: Buffalo | C115: 7 | D115: 7 | E115: =IF($Z$55="Above normal",1.25,IF($Z$55="Below normal",0.75,VLOOKUP(C115,$J$55:$K$67,2,FALSE))) -> 1 | F115: =IF($Z$55="Above normal",1.25,IF($Z$55="Below normal",0.75,VLOOKUP(D115,$J$55:$K$67,2,FALSE))) -> 1 | M115: Powder River | N115: =E69 -> 1 | O115: =F69 -> 1 | Z115: Current | AA115: =HLOOKUP(AA110,$AA$23:$AL$28,6,FALSE) -> 0 | AB115: =HLOOKUP(AB110,$AA$23:$AL$28,6,FALSE) -> 0 | AC115: 0 | AD115: 0 | AE115: 0 | AF115: 0 | AG115: 0 | AH115: 0 | AI115: 0 | AJ115: 0 | AK115: 0 | AL115: 0
B116: Jerauld | C116: 7 | D116: 7 | E116: 1 | F116: 1 | M116: Potter | N116: =E100 -> 1 | O116: =F100 -> 1 | Z116: Current-Cap | AA116: =IF(AA115>$AN$111*AA112,$AN$111*AA112,AA115) ->  | AB116: =IF(AB115>$AN$111*AB112,$AN$111*AB112,AB115) -> 
B117: Sanborn | C117: 7 | D117: 7 | E117: 1 | F117: 1 | M117: Roberts | N117: =E95 -> 1 | O117: =F95 -> 1
B118: Miner | C118: 7 | D118: 7 | E118: 1 | F118: 1 | M118: Sanborn | N118: =E117 -> 1 | O118: =F117 -> 1 | AA118: Spring | AB118: LT Ave. | AC118: 1-yr | AD118: 2-yr | AF118: Hayland %
B119: Lake | C119: 7 | D119: 7 | E119: 1 | F119: 1 | M119: Sheridan | N119: =E87 -> 1 | O119: =F87 -> 1 | AA119: =IF(AF99>2,AC116,AC114) ->  | AB119: =SUM(AA114:AL114)/SUM(AA112:AL112) ->  | AC119: =AB120 ->  | AD119: =(AB119*0.25)+(AB120*0.75) ->  | AE119: Spring factor | AF119: =HLOOKUP(AF99,AA110:AL111,2,FALSE) -> 
B120: Moody | C120: 7 | D120: 7 | E120: 1 | F120: 1 | M120: Sioux | N120: =E88 -> 1 | O120: =F88 -> 1 | AA120: =IF(AF99>3,AD116,AD114) ->  | AB120: =SUM(AA116:AL116)/SUM(AA112:AL112) ->  | AE120: LT Ave. | AF120: =IF(AM111=1,AC119,AD119) -> 
B121: Brule | C121: 7 | D121: 7 | E121: 1 | F121: 1 | M121: Spink | N121: =E102 -> 1 | O121: =F102 -> 1 | AA121: =IF(AF99>4,AE116,AE114) ->  | AE121: LT Ave. wtd | AF121: =(1-AF119)*AF120 -> 
B122: Aurora | C122: 7 | D122: 7 | E122: 1 | F122: 1 | M122: Stanley | N122: =E64 -> 1 | O122: =F64 -> 1 | AA122: =IF(AF99>5,AF116,AF114) ->  | AE122: Hayland % | AF122: =(AF119*AA123)+AF121 -> 
B123: Davison | C123: 7 | D123: 7 | E123: 1 | F123: 1 | M123: Sully | N123: =E106 -> 1 | O123: =F106 -> 1 | AA123: =SUM(AA119:AA122)/SUM(AC112:AF112) -> 
B124: Hanson | C124: 7 | D124: 7 | E124: 1 | F124: 1 | M124: Todd | N124: =E81 -> 1 | O124: =F81 -> 1
B125: McCook | C125: 7 | D125: 7 | E125: 1 | F125: 1 | M125: Tripp | N125: =E82 -> 1 | O125: =F82 -> 1
B126: Minnehaha | C126: 7 | D126: 7 | E126: 1 | F126: 1 | M126: Turner | N126: =E130 -> 1 | O126: =F130 -> 1
B127: Charles Mix | C127: 7 | D127: 7 | E127: 1 | F127: 1 | M127: Union | N127: =E135 -> 1 | O127: =F135 -> 1
B128: Douglas | C128: 7 | D128: 7 | E128: 1 | F128: 1 | M128: Walworth | N128: =E96 -> 1 | O128: =F96 -> 1
B129: Hutchinson | C129: 7 | D129: 7 | E129: 1 | F129: 1 | M129: Weston | N129: =E89 -> 1 | O129: =F89 -> 1
B130: Turner | C130: 7 | D130: 7 | E130: 1 | F130: 1 | M130: Yankton | N130: =E133 -> 1 | O130: =F133 -> 1
B131: Lincoln | C131: 7 | D131: 7 | E131: 1 | F131: 1 | M131: Ziebach | N131: =E59 -> 1 | O131: =F59 -> 1
B132: Bon Homme | C132: 7 | D132: 7 | E132: 1 | F132: 1
B133: Yankton | C133: 7 | D133: 7 | E133: 1 | F133: 1
B134: Clay | C134: 7 | D134: 7 | E134: 1 | F134: 1
B135: Union | C135: 7 | D135: 7 | E135: 1 | F135: 1

Sheet Drought Status
T2: FALSE | V2: =IF(ISNA(J17),0,IF(J17=0,0,IF(J17>0.93,1,IF(J17>0.84,2,3)))) -> 0
T3: This is the future prediction of the July 1 or peak production if future conditions are
V4: =IF(V2=1,"Phase 1 normal",IF(V2=2,"Phase 2 Risk", IF(V2=3, "Phase 3 Drought",""))) -> 
T5: =IF(L11="Normal","normal.",IF(L11="Above normal","above normal.",IF(L11="Below normal","below normal.",""))) -> normal.
F7: =IF(ISNA(J17),0,IF(J17=0,"",IF(J17<0.83,"Precipitation is significantly reduced. Forage resources may be damaged even with livestock reduction. Potential for soil erosion to occur. Implement appropriate management decisions immediately.",IF(J17<0.93,"Precipitation is limiting and forages are likely stressed. Risk of forage resource degradation is possible without management adjustments.","Precipitation is not likely to be limiting, maintain current management.")))) -> 0 | T7: =CONCATENATE(T3,T5) -> This is the future prediction of the July 1 or peak production if future conditions are normal.
T8: During the months of November - May, a pediction of peak production will be shown here ---->
E11: Select future conditions for the July 1 peak production prediction: | L11: Normal
D13: Drought Status | Y13: Above normal
D14: Drought status as of | F14: =CONCATENATE(W.Stations!E27,"/",W.Stations!F27,"/",W.Stations!G27) -> 2/1/2023 | Y14: Normal
D15: County Selection | F15: =IF('SD Drought Tool'!L13="Choose County","",'SD Drought Tool'!L13) ->  | Y15: Below normal
D16: Weather Station | F16: =IF('SD Drought Tool'!L15="Choose Station","",IF(W.Stations!H17="Yes","",W.Stations!D11)) -> 
D17: This value represents a current status of estimated soil moisture conditions and potential production. | J17: =IF(W.Stations!H17="Yes",CountyAverage!D25,'Local % Precip'!AJ48) ->  | S17: J17= | T17: =IF(W.Stations!H17="Yes",CountyAverage!D23,'Local % Precip'!AJ48)
S18: J19= | T18: =IF(OR('Local % Precip'!AA32 = 6,'Local % Precip'!AA32 = 7,'Local % Precip'!AA32 =8, 'Local % Precip'!AA32 = 9, 'Local % Precip'!AA32 = 10),"",IF(W.Stations!H17="Yes",CountyAverage!E23,'Local % Precip'!AL60))
D19: =IF(OR('Local % Precip'!AA32 = 6,'Local % Precip'!AA32 = 7,'Local % Precip'!AA32 =8, 'Local % Precip'!AA32 = 9, 'Local % Precip'!AA32 = 10),T8,'Drought Status'!T7) -> This is the future prediction of the July 1 or peak production if future conditions are normal. | J19: =IF(OR('Local % Precip'!AA32 = 6,'Local % Precip'!AA32 = 7,'Local % Precip'!AA32 =8, 'Local % Precip'!AA32 = 9, 'Local % Precip'!AA32 = 10),"",IF(W.Stations!H17="Yes",CountyAverage!E25,'Local % Precip'!AL60)) -> 
D21: Hayland - this value represents the current status of the potential peak production of hayland. | J21: =IF(OR('Local % Precip'!AA32 = 10,'Local % Precip'!AA32 =11,'Local % Precip'!AA32 = 12,'Local % Precip'!AA32 = 1),"",'Local % Precip'!AF122) -> 
C40: =IF(W.Stations!$G$22="ACIS",D93,IF(W.Stations!$G$22="CCR",D94,IF(W.Stations!$G$22="RAWS",D95,IF(W.Stations!$G$22="MESO",D96,IF(W.Stations!$G$22="SNOTEL",D97,D98))))) -> *Precipitation values are for the last 12 months compared to a 50+ year historic average. | K40: =IF(W.Stations!$G$22="ACIS",D99,IF(W.Stations!$G$22="CCR",D100,IF(W.Stations!$G$22="RAWS",D101,IF(W.Stations!$G$22="MESO",D102,IF(W.Stations!$G$22="SNOTEL",D103,D104))))) -> ** Temperature values are for the historic average and the last 12 months.
D47: Current Year | E47: ='Local % Precip'!C18 -> 2022/2023
D48: Month | E48: ='Local % Precip'!D15 -> 44256 | F48: ='Local % Precip'!E15 -> 44287 | G48: ='Local % Precip'!F15 -> 44317 | H48: ='Local % Precip'!G15 -> 44348 | I48: ='Local % Precip'!H15 -> 44378 | J48: ='Local % Precip'!I15 -> 44409 | K48: ='Local % Precip'!J15 -> 44440 | L48: ='Local % Precip'!K15 -> 44470 | M48: ='Local % Precip'!L15 -> 44501 | N48: ='Local % Precip'!M15 -> 44531 | O48: ='Local % Precip'!N15 -> 44562 | P48: ='Local % Precip'!O15 -> 44593
D49: Historic | E49: =IF($J$17=0,"",'Local % Precip'!AA24) ->  | F49: =IF($J$17=0,"",'Local % Precip'!AB24) ->  | G49: =IF($J$17=0,"",'Local % Precip'!AC24) ->  | H49: =IF($J$17=0,"",'Local % Precip'!AD24) ->  | I49: =IF($J$17=0,"",'Local % Precip'!AE24) ->  | J49: =IF($J$17=0,"",'Local % Precip'!AF24) ->  | K49: =IF($J$17=0,"",'Local % Precip'!AG24) ->  | L49: =IF($J$17=0,"",'Local % Precip'!AH24) ->  | M49: =IF($J$17=0,"",'Local % Precip'!AI24) ->  | N49: =IF($J$17=0,"",'Local % Precip'!AJ24) ->  | O49: =IF($J$17=0,"",'Local % Precip'!AK24) ->  | P49: =IF($J$17=0,"",'Local % Precip'!AN24) -> 
D50: Current Year | E50: =IF($J$17=0,"",'Local % Precip'!AA28) ->  | F50: =IF($J$17=0,"",'Local % Precip'!AB28) ->  | G50: =IF($J$17=0,"",'Local % Precip'!AC28) ->  | H50: =IF($J$17=0,"",'Local % Precip'!AD28) ->  | I50: =IF($J$17=0,"",'Local % Precip'!AE28) ->  | J50: =IF($J$17=0,"",'Local % Precip'!AF28) ->  | K50: =IF($J$17=0,"",'Local % Precip'!AG28) ->  | L50: =IF($J$17=0,"",'Local % Precip'!AH28) ->  | M50: =IF($J$17=0,"",'Local % Precip'!AI28) ->  | N50: =IF($J$17=0,"",'Local % Precip'!AJ28) ->  | O50: =IF($J$17=0,"",'Local % Precip'!AK28) ->  | P50: =IF($J$17=0,"",'Local % Precip'!AL28) -> 
D51: Month | E51: =E48 -> 44256 | F51: =F48 -> 44287 | G51: 44317 | H51: 44348 | I51: 44378 | J51: 44409 | K51: 44440 | L51: 44470 | M51: 44501 | N51: 44531 | O51: 44562 | P51: 44593
D52: historic | E52: =IF($J$17=0,"",HistoricData!P14) ->  | F52: =IF($J$17=0,"",HistoricData!Q14) ->  | G52: =IF($J$17=0,"",HistoricData!R14) ->  | H52: =IF($J$17=0,"",HistoricData!S14) ->  | I52: =IF($J$17=0,"",HistoricData!T14) ->  | J52: =IF($J$17=0,"",HistoricData!U14) ->  | K52: =IF($J$17=0,"",HistoricData!V14) ->  | L52: =IF($J$17=0,"",HistoricData!W14) ->  | M52: =IF($J$17=0,"",HistoricData!X14) ->  | N52: =IF($J$17=0,"",HistoricData!Y14) ->  | O52: =IF($J$17=0,"",HistoricData!Z14) ->  | P52: =IF($J$17=0,"",HistoricData!AA14) -> 
D53: Current Year | E53: =IF(ISERROR(E89),0,E89) -> 0 | F53: =IF(ISERROR(F89),0,F89) -> 0 | G53: 0 | H53: 0 | I53: 0 | J53: 0 | K53: 0 | L53: 0 | M53: 0 | N53: 0 | O53: 0 | P53: 0
E77: =E48 -> 2021-03-01 | F77: 2021-04-01 | G77: 2021-05-01 | H77: 2021-06-01 | I77: 2021-07-01 | J77: 2021-08-01 | K77: 2021-09-01 | L77: 2021-10-01 | M77: 2021-11-01 | N77: 2021-12-01 | O77: 2022-01-01 | P77: =P48 -> 2022-02-01
E78: =MONTH(E77) -> 3 | F78: =MONTH(F77) -> 4 | G78: 5 | H78: 6 | I78: 7 | J78: 8 | K78: 9 | L78: 10 | M78: 11 | N78: 12 | O78: 1 | P78: 2
E79: =YEAR(E77) -> 2021 | F79: =YEAR(F77) -> 2021 | G79: 2021 | H79: 2021 | I79: 2021 | J79: 2021 | K79: 2021 | L79: 2021 | M79: 2021 | N79: 2021 | O79: 2022 | P79: 2022
E80: =E79+1 -> 2022 | F80: 2022 | G80: 2022 | H80: 2022 | I80: 2022 | J80: 2022 | K80: 2022 | L80: 2022 | M80: 2022 | N80: 2022 | O80: 2023 | P80: =P79+1 -> 2023
E81: =CONCATENATE(E78,"/",E80) -> 3/2022 | F81: =CONCATENATE(F78,"/",F80) -> 4/2022 | G81: 5/2022 | H81: 6/2022 | I81: 7/2022 | J81: 8/2022 | K81: 9/2022 | L81: 10/2022 | M81: 11/2022 | N81: 12/2022 | O81: 1/2023 | P81: 2/2023
E83: =ISERROR(WeatherLink!S6) -> FALSE | F83: =ISERROR(WeatherLink!T6) -> FALSE | G83: =ISERROR(WeatherLink!U6) -> FALSE | H83: =ISERROR(WeatherLink!V6) -> FALSE | I83: =ISERROR(WeatherLink!W6) -> FALSE | J83: =ISERROR(WeatherLink!X6) -> FALSE | K83: =ISERROR(WeatherLink!Y6) -> FALSE | L83: =ISERROR(WeatherLink!Z6) -> FALSE | M83: =ISERROR(WeatherLink!AA6) -> FALSE | N83: =ISERROR(WeatherLink!AB6) -> FALSE | O83: =ISERROR(WeatherLink!AC6) -> FALSE | P83: =ISERROR(WeatherLink!AD6) -> FALSE
E84: =IF(WeatherLink!S6<>"",TRUE,0) -> 0 | F84: =IF(WeatherLink!T6<>"",TRUE,0) -> 0 | G84: =IF(WeatherLink!U6<>"",TRUE,0) -> 0 | H84: =IF(WeatherLink!V6<>"",TRUE,0) -> 0 | I84: =IF(WeatherLink!W6<>"",TRUE,0) -> 0 | J84: =IF(WeatherLink!X6<>"",TRUE,0) -> 0 | K84: =IF(WeatherLink!Y6<>"",TRUE,0) -> 0 | L84: =IF(WeatherLink!Z6<>"",TRUE,0) -> 0 | M84: =IF(WeatherLink!AA6<>"",TRUE,0) -> 0 | N84: =IF(WeatherLink!AB6<>"",TRUE,0) -> 0 | O84: =IF(WeatherLink!AC6<>"",TRUE,0) -> 0 | P84: =IF(WeatherLink!AD6<>"",TRUE,0) -> 0
D86: WeatherLink | E86: =IF('SD Drought Tool'!$L$15=WlConfig!$C$2,WeatherLink!S6,"") ->  | F86: =IF('SD Drought Tool'!$L$15=WlConfig!$C$2,WeatherLink!T6,"") ->  | G86: =IF('SD Drought Tool'!$L$15=WlConfig!$C$2,WeatherLink!U6,"") ->  | H86: =IF('SD Drought Tool'!$L$15=WlConfig!$C$2,WeatherLink!V6,"") ->  | I86: =IF('SD Drought Tool'!$L$15=WlConfig!$C$2,WeatherLink!W6,"") ->  | J86: =IF('SD Drought Tool'!$L$15=WlConfig!$C$2,WeatherLink!X6,"") ->  | K86: =IF('SD Drought Tool'!$L$15=WlConfig!$C$2,WeatherLink!Y6,"") ->  | L86: =IF('SD Drought Tool'!$L$15=WlConfig!$C$2,WeatherLink!Z6,"") ->  | M86: =IF('SD Drought Tool'!$L$15=WlConfig!$C$2,WeatherLink!AA6,"") ->  | N86: =IF('SD Drought Tool'!$L$15=WlConfig!$C$2,WeatherLink!AB6,"") ->  | O86: =IF('SD Drought Tool'!$L$15=WlConfig!$C$2,WeatherLink!AC6,"") ->  | P86: =IF('SD Drought Tool'!$L$15=WlConfig!$C$2,WeatherLink!AD6,"") -> 
D87: ACIS | E87: =IF(ISERROR(VLOOKUP(WeatherLink!S5,ACISTemp!$D$8:$I$1807,6,FALSE)),"",VLOOKUP(WeatherLink!S5,ACISTemp!$D$8:$I$1807,6,FALSE)) ->  | F87: =IF(ISERROR(VLOOKUP(WeatherLink!T5,ACISTemp!$D$8:$I$1807,6,FALSE)),"",VLOOKUP(WeatherLink!T5,ACISTemp!$D$8:$I$1807,6,FALSE)) ->  | G87: =IF(ISERROR(VLOOKUP(WeatherLink!U5,ACISTemp!$D$8:$I$1807,6,FALSE)),"",VLOOKUP(WeatherLink!U5,ACISTemp!$D$8:$I$1807,6,FALSE)) ->  | H87: =IF(ISERROR(VLOOKUP(WeatherLink!V5,ACISTemp!$D$8:$I$1807,6,FALSE)),"",VLOOKUP(WeatherLink!V5,ACISTemp!$D$8:$I$1807,6,FALSE)) ->  | I87: =IF(ISERROR(VLOOKUP(WeatherLink!W5,ACISTemp!$D$8:$I$1807,6,FALSE)),"",VLOOKUP(WeatherLink!W5,ACISTemp!$D$8:$I$1807,6,FALSE)) ->  | J87: =IF(ISERROR(VLOOKUP(WeatherLink!X5,ACISTemp!$D$8:$I$1807,6,FALSE)),"",VLOOKUP(WeatherLink!X5,ACISTemp!$D$8:$I$1807,6,FALSE)) ->  | K87: =IF(ISERROR(VLOOKUP(WeatherLink!Y5,ACISTemp!$D$8:$I$1807,6,FALSE)),"",VLOOKUP(WeatherLink!Y5,ACISTemp!$D$8:$I$1807,6,FALSE)) ->  | L87: =IF(ISERROR(VLOOKUP(WeatherLink!Z5,ACISTemp!$D$8:$I$1807,6,FALSE)),"",VLOOKUP(WeatherLink!Z5,ACISTemp!$D$8:$I$1807,6,FALSE)) ->  | M87: =IF(ISERROR(VLOOKUP(WeatherLink!AA5,ACISTemp!$D$8:$I$1807,6,FALSE)),"",VLOOKUP(WeatherLink!AA5,ACISTemp!$D$8:$I$1807,6,FALSE)) ->  | N87: =IF(ISERROR(VLOOKUP(WeatherLink!AB5,ACISTemp!$D$8:$I$1807,6,FALSE)),"",VLOOKUP(WeatherLink!AB5,ACISTemp!$D$8:$I$1807,6,FALSE)) ->  | O87: =IF(ISERROR(VLOOKUP(WeatherLink!AC5,ACISTemp!$D$8:$I$1807,6,FALSE)),"",VLOOKUP(WeatherLink!AC5,ACISTemp!$D$8:$I$1807,6,FALSE)) ->  | P87: =IF(ISERROR(VLOOKUP(WeatherLink!AD5,ACISTemp!$D$8:$I$1807,6,FALSE)),"",VLOOKUP(WeatherLink!AD5,ACISTemp!$D$8:$I$1807,6,FALSE)) -> 
D88: WW | E88: =VLOOKUP(E81,weatherwarehouse!$HP$22:$HR$57,3,FALSE) ->  | F88: =VLOOKUP(F81,weatherwarehouse!$HP$22:$HR$57,3,FALSE) ->  | G88: =VLOOKUP(G81,weatherwarehouse!$HP$22:$HR$57,3,FALSE) ->  | H88: =VLOOKUP(H81,weatherwarehouse!$HP$22:$HR$57,3,FALSE) ->  | I88: =VLOOKUP(I81,weatherwarehouse!$HP$22:$HR$57,3,FALSE) ->  | J88: =VLOOKUP(J81,weatherwarehouse!$HP$22:$HR$57,3,FALSE) ->  | K88: =VLOOKUP(K81,weatherwarehouse!$HP$22:$HR$57,3,FALSE) ->  | L88: =VLOOKUP(L81,weatherwarehouse!$HP$22:$HR$57,3,FALSE) ->  | M88: =VLOOKUP(M81,weatherwarehouse!$HP$22:$HR$57,3,FALSE) ->  | N88: =VLOOKUP(N81,weatherwarehouse!$HP$22:$HR$57,3,FALSE) ->  | O88: =VLOOKUP(O81,weatherwarehouse!$HP$22:$HR$57,3,FALSE) ->  | P88: =VLOOKUP(P81,weatherwarehouse!$HP$22:$HR$57,3,FALSE) -> 
E89: =IF(AND(ISNUMBER(E86),E86>0),E86,IF(AND(ISNUMBER(E87),E87>0),E87,IF(AND(ISNUMBER(E88),E88>0),E88,""))) ->  | F89: =IF(AND(ISNUMBER(F86),F86>0),F86,IF(AND(ISNUMBER(F87),F87>0),F87,IF(AND(ISNUMBER(F88),F88>0),F88,""))) -> 
D93: *Precipitation values are determined for the last 12 months using data from the Applied Climate Information System compared to a 50+ year historic average.
D94: *Precipitation values are determined for the last 12 months using data from the Community Collaborative Rain, Hail & Snow Network (CoCoRahs) compared to a 50+ year historic average.
D95: *Precipitation values are determined for the last 12 months using data from the USDA Forest Service Remote Automated Weather Stations (RAWS) compared to a 50+ year historic average.
D96: *Precipitation values are determined for the last 12 months using data from South Dakota State University Mesonet stations compared to a 50+ year historic average.
D97: *Precipitation values are determined for the last 12 months using data from USDA NRCS SNOTEL sites compared to a 30+ year historic average.
D98: *Precipitation values are for the last 12 months compared to a 50+ year historic average.
D99: ** Temperature values are from the Applied Climate Information System for the historic average and the last 12 months. Temperature can influence the productive capability of forages.
D100: ** Temperature values are from the Applied Climate Information System for the historic average and the last 12 months. Temperature can influence the productive capability of forages.
D101: ** Temperature values are from the Applied Climate Information System for the historic average and the last 12 months. Temperature can influence the productive capability of forages.
D102: ** Temperature values are from the South Dakota State University Mesonet for the historic average and the last 12 months. Temperature can influence the productive capability of forages.
D103: ** Temperature values are from USDA NRCS SNOTEL for the historic average and the last 12 months. Temperature can influence the productive capability of forages.
D104: ** Temperature values are for the historic average and the last 12 months.

Sheet Summary
F5: Name | M5: Today: | N5: =NOW() -> 2023-02-01T15:21:28.220
F7: Location
D9: =CONCATENATE("Drought Status: ",'Drought Status'!V4) -> Drought Status:
D11: Current Status (Percent of normal Production) | K11: ='Drought Status'!J17 -> 
D12: Projected Status (Percent Peak Production) | K12: ='Drought Status'!J19 -> 
D13: Suggested Percent of Normal Stocking | K13: =IF(K11>0.94,"No Adjustment",IF(SuggAdjSrate!$A$3<0,0,SuggAdjSrate!$A$3)) -> 
C15: ='Drought Status'!F7 -> 0
C19: % Norm Production | E19: ='Drought Status'!J17 ->  | F19: Date | G19: ='Drought Status'!F14 -> 2/1/2023 | H19: County | I19: ='Local % Precip'!K12 ->  | K19: Precip station | M19: ='Drought Status'!F16 -> 
C20: Month | D20: ='Local % Precip'!D15 -> 2021-03-01 | E20: ='Local % Precip'!E15 -> 2021-04-01 | F20: ='Local % Precip'!F15 -> 2021-05-01 | G20: ='Local % Precip'!G15 -> 2021-06-01 | H20: ='Local % Precip'!H15 -> 2021-07-01 | I20: ='Local % Precip'!I15 -> 2021-08-01 | J20: ='Local % Precip'!J15 -> 2021-09-01 | K20: ='Local % Precip'!K15 -> 2021-10-01 | L20: ='Local % Precip'!L15 -> 2021-11-01 | M20: ='Local % Precip'!M15 -> 2021-12-01 | N20: ='Local % Precip'!N15 -> 2022-01-01 | O20: ='Local % Precip'!O15 -> 2022-02-01
C21: Hist.-Ave. | D21: ='Local % Precip'!D16 ->  | E21: ='Local % Precip'!E16 ->  | F21: ='Local % Precip'!F16 ->  | G21: ='Local % Precip'!G16 ->  | H21: ='Local % Precip'!H16 ->  | I21: ='Local % Precip'!I16 ->  | J21: ='Local % Precip'!J16 ->  | K21: ='Local % Precip'!K16 ->  | L21: ='Local % Precip'!L16 ->  | M21: ='Local % Precip'!M16 ->  | N21: ='Local % Precip'!N16 ->  | O21: ='Local % Precip'!O16 -> 
C22: ='Local % Precip'!C17 -> 2021/2022 | D22: ='Local % Precip'!D17 -> 0 | E22: ='Local % Precip'!E17 -> 0 | F22: ='Local % Precip'!F17 -> 0 | G22: ='Local % Precip'!G17 -> 0 | H22: ='Local % Precip'!H17 -> 0 | I22: ='Local % Precip'!I17 -> 0 | J22: ='Local % Precip'!J17 -> 0 | K22: ='Local % Precip'!K17 -> 0 | L22: ='Local % Precip'!L17 -> 0 | M22: ='Local % Precip'!M17 -> 0 | N22: ='Local % Precip'!N17 -> 0 | O22: ='Local % Precip'!O17 -> 0
C23: ='Local % Precip'!C18 -> 2022/2023 | D23: ='Local % Precip'!D18 -> 0 | E23: ='Local % Precip'!E18 -> 0 | F23: ='Local % Precip'!F18 -> 0 | G23: ='Local % Precip'!G18 -> 0 | H23: ='Local % Precip'!H18 -> 0 | I23: ='Local % Precip'!I18 -> 0 | J23: ='Local % Precip'!J18 -> 0 | K23: ='Local % Precip'!K18 -> 0 | L23: ='Local % Precip'!L18 -> 0 | M23: ='Local % Precip'!M18 -> 0 | N23: ='Local % Precip'!N18 -> 0 | O23: ='Local % Precip'!O18 -> 0
M62: =G19 -> 2/1/2023
G64: Drought Contingency Plan
C66: In the event of Drought Conditions, initiating a plan of action will alleviate stress on grazinglands, preventing a loss of production, vigor, and diversity in subsequent years. Create a customized drought contingency plan for your operation. The NRCS example drought contingency plan recommendations are also provided below.
C71: Phase 1 Normal Status
C72: Observe field conditions, forage growth rates, observable plant stress etc.
C74: Observations:
C82: Phase 2 Risk Status
C83: Take risk management actions to relieve plant stress
C85: Early culling/weaning of livestock:
C89: Alternative feed/forages:
C93: Herd consolidation
C96: Other:
C101: Phase 3 Drought Status
C102: Take Drought management actions to relieve plant stress
C104: Early culling/weaning of livestock:
C108: Alternative feed/forages:
C112: Herd consolidation
C115: Other:
C120: Example/ Recommendations | G120: Page 1
C121: Drought Contingency Plan Guidance
C123: Review the information provided in the summary from the SD Drought Tool. Consider the percent of normal production, potential peak production, and the suggested percent of normal stocking rate numbers, and begin to develop a plan to adjust with these conditions in mind. Also, it is important to consider a marketing strategy that utilizes all possible marketing sources, price protection, and contracting possibilities in order to obtain flexibility in implementing this contingency plan. The SD Drought Tool summary shows the current drought status, either Normal, Risk, or Drought. The corresponding descriptions below describe some conditions related to each status and possible steps that can be taken to manage for each level. It is imperative that the drought conditions be assessed early, and that planned adjustments start at the first sign of reaching each level of drought, if not before. For example, if you are at the “low” end of the Risk range, and have been for awhile, you may want to consider implementing some of the pre-determined actions for the Drought status level.
C138: Drought Status: Normal | X138: resources
C140: This relates to normal or above normal conditions when little or no adjustment is needed. If the current percent of normal is below 100%, watch for plants to begin showing signs of moisture stress and/or stock dams may be lower than expected for the time of year. This corresponds to approximately 95 percent of average precipitation, or when the critical spring period (April – June) is below average (or a combination of these). Typical actions include continuing observations relative to precipitation, production, and stock water levels. In the event of impending drought conditions, progressively cull early and remove 10 percent of the total herd during the first month of grazing (this can include animals you would likely cull later in the year). If conditions are rapidly deteriorating early in the growing season (April and May), forage production is likely to be reduced for the growing year.
C150: Drought Status: Risk
C151: Implement the pre-determined actions when precipitation is limiting, plants are showing moisture stress, and stock dams are lower than expected for the time of year. This relates to approximately 85 to 95 percent of normal production, the critical spring period is below average, or a combination of these two factors. When the drought status is at the Risk level, actions should be implemented immediately. This can include alternative management options (i.e., early weaning, herd consolidation, relocating animals, etc.) or cull early and remove 10 to 25 percent of the total herd (this can include animals you would likely cull later in the year) from grazing pasture or range as regrowth dictates (i.e., little or no regrowth in a 30-day recovery period for pastures in rotation). Routinely monitor conditions such as soil moisture and plant growth on a weekly basis.
C177: Example/ Recommendations | G177: Page 2
C179: Drought Status: Drought
C180: Implement pre-determined actions when forages are suppressed and forage production is reduced due to drought conditions. Stock dams are likely to be below normal levels and other indications of drought are obvious. The percent of normal production is less than 85 percent of normal, and the critical spring period is typically well-below average, or a combination of these factors. These conditions require immediate management actions to protect animal and forage resources, and to manage to prevent economic losses. Overutilization during drought periods can set back forage resources for future growing seasons, lower diversity, increase potential invasive species, decrease soil moisture, decrease potential production, and increase erosion on grazing lands. Recommended actions to be taken are: 1) measure remaining forage in all pastures, 2) combine remaining herds into one herd, and 3) allocate remaining forage in each pasture to the one herd. Graze each pasture the length of time it takes to utilize the remaining grazeable forage while keeping adequate cover for erosion control and plant health (adequate cover is considered to be roughly a minimum of 1,000 pounds of air-dry vegetative matter per acre).
C198: Early culling and removal of 20 to 50 percent (or possibly more depending on conditions) of the total herd will alleviate grazing stress on forages in drought. Early weaning of calves is an additional strategy that may be implemented. Consider removing the remaining livestock from grazing pasture and range. If replacing the entire supply of forage requirements with feed, do not feed animals out on the range. Monitor grazing lands frequently and ensure animals have access to dependable water.
C237: Summary!A65536

Sheet W.Stations
A1: SD Counties | B1: Assignment | D1: Co. Select | G1: Today | J1: W.S. Select | AH1: Julian | AI1: Month | AJ1: Day
A2: Choose County | D2: Co Number | G2: =NOW() -> 2023-02-01T15:21:28.220 | J2: StaNumber | P2: month | Q2: name | AH2: 1 | AI2: 1 | AJ2: 1
A3: Aurora | B3: 2 | D3: 1 | G3: Last yr | J3: =I3-1 -> -1 | P3: 1 | Q3: January | AH3: 2 | AI3: 1 | AJ3: 2
A4: Beadle | B4: 3 | G4: =DATE(G25,E25,DAY(G2)) -> 2021-03-01 | P4: 2 | Q4: February | AH4: 3 | AI4: 1 | AJ4: 3
A5: Bennett | B5: 4 | P5: 3 | Q5: March | AH5: 4 | AI5: 1 | AJ5: 4
A6: Bon Homme | B6: 5 | D6: Opening page selection | E6: Duplicate? | F6: Station # | G6: Start date | H6: End Date | J6: State | P6: 4 | Q6: April | AH6: 5 | AI6: 1 | AJ6: 5
A7: Brookings | B7: 6 | D7: ='SD Drought Tool'!L15 -> Choose Station | E7: =VLOOKUP(D7,MasterReferenceTable!$A$2:$Z$388,21,FALSE) ->  | F7: =VLOOKUP(D7,MasterReferenceTable!$A$2:$Z$388,3,FALSE) ->  | G7: =IF(E7="Yes",VLOOKUP(D7,MasterReferenceTable!$A$2:$Z$388,25,FALSE),"") ->  | H7: =IF(E7="Yes",VLOOKUP(D7,MasterReferenceTable!$A$2:$Z$388,26,FALSE),"") ->  | I7: =VLOOKUP(D7,MasterReferenceTable!$A$2:$Z$388,22,FALSE) ->  | J7: =IF(I7="","",UPPER(LEFT(I7,2))) ->  | P7: 5 | Q7: May | AH7: 6 | AI7: 1 | AJ7: 6
A8: Brown | B8: 7 | D8: =VLOOKUP(I7,MasterReferenceTable!$C$2:$Z$388,6,FALSE) ->  | M8: SD Drought Tool'!A1 | P8: 6 | Q8: June | AH8: 7 | AI8: 1 | AJ8: 7
A9: Brule | B9: 8 | D9: Final selection | F9: User selected mid-date: | G9: =K27-365 -> 2022-02-01 | P9: 7 | Q9: July | AH9: 8 | AI9: 1 | AJ9: 8
A10: Buffalo | B10: 9 | D10: =IF(E7="No",1,IF(G9>H7,2,1)) ->  | P10: 8 | Q10: August | AH10: 9 | AI10: 1 | AJ10: 9
A11: Butte | B11: 10 | D11: =IF(D10=1,D7,D8) ->  | P11: 9 | Q11: September | AH11: 10 | AI11: 1 | AJ11: 10
A12: Campbell | B12: 11 | P12: 10 | Q12: October | AH12: 11 | AI12: 1 | AJ12: 11
A13: Charles Mix | B13: 12 | K13: Status | L13: Connected | P13: 11 | Q13: November | AH13: 12 | AI13: 1 | AJ13: 12
A14: Clark | B14: 13 | K14: =IF(ISERROR(D21),"BAD","GOOD") -> GOOD | P14: 12 | Q14: December | AH14: 13 | AI14: 1 | AJ14: 13
A15: Clay | B15: 14 | AH15: 14 | AI15: 1 | AJ15: 14
A16: Codington | B16: 15 | G16: CoAve | H16: County Average Yes/No | AH16: 15 | AI16: 1 | AJ16: 15
A17: Corson | B17: 16 | G17: =IF('SD Drought Tool'!L15="County Average","Yes","No") -> No | H17: No | K17: Provides check and balance for Jan dates rolling back 2 years. Need to reconsider alternative calculation. | AH17: 16 | AI17: 1 | AJ17: 16
A18: Custer | B18: 17 | G18: Statewide Counter | H18: BlackHills Counter | I18: CountyAverage Counter | AH18: 17 | AI18: 1 | AJ18: 17
A19: Davison | B19: 18 | G19: =VLOOKUP(F21,StatewideDataTable!$A$2:$H$329,8,FALSE) ->  | H19: =VLOOKUP(F21,BlackHillsList!C2:T77,18,FALSE) ->  | I19: =VLOOKUP(D11,CountyAverage!$C$2:$F$24,4,FALSE) ->  | P19: Click this button only if | AH19: 18 | AI19: 1 | AJ19: 18
A20: Day | B20: 19 | D20: Station | E20: StaSymbol | F20: Symbol | G20: Max day | H20: Day | I20: Month | J20: Year | K20: ='SD Drought Tool'!M11 -> Now | L20: ='SD Drought Tool'!L11 -> Now | M20: ='SD Drought Tool'!N11 -> Now | P20: you have some time. | AH20: 19 | AI20: 1 | AJ20: 19
A21: Deuel | B21: 20 | D21: =J3 -> -1 | E21: =VLOOKUP(D11,MasterReferenceTable!$A$2:$E$388,5,FALSE) ->  | F21: =VLOOKUP(D11,MasterReferenceTable!$A$2:$E$388,3,FALSE) ->  | G21: =DAY(M27) -> 2 | H21: =IF(K21=1,DAY(G2),K20) -> 1 | I21: =IF(L21=1,MONTH(G2),L20) -> 2 | J21: =IF(M21=1,YEAR(G2),M20) -> 2023 | K21: =IF('SD Drought Tool'!M11="Now",1,"") -> 1 | L21: =IF('SD Drought Tool'!L11="Now",1,"") -> 1 | M21: =IF('SD Drought Tool'!N11="Now",1,"") -> 1 | AH21: 20 | AI21: 1 | AJ21: 20
A22: Dewey | B22: 21 | E22: =VLOOKUP(D11,MasterReferenceTable!$A$2:$S$388,19,FALSE) ->  | F22: =VLOOKUP(F21,MasterReferenceTable!$C$1:$P$388,8,FALSE) ->  | G22: =IF(ISERROR(VLOOKUP(F21,MasterReferenceTable!$C$2:$R$388,16,FALSE)),"Null",VLOOKUP(F21,MasterReferenceTable!$C$2:$R$388,16,FALSE)) -> Null | AH22: 21 | AI22: 1 | AJ22: 21
A23: Douglas | B23: 22 | D23: txtfrom= | F23: =IF(H21<=G21,H21,G21) -> 1 | AH23: 22 | AI23: 1 | AJ23: 22
A24: Edmunds | B24: 23 | E24: Month | F24: Day | G24: year | L24: zip: | AH24: 23 | AI24: 1 | AJ24: 23
A25: Fall River | B25: 24 | D25: Previous date | E25: =IF(I21=12,1,I21+1) -> 3 | F25: 1 | G25: =IF(I21=12,G27-1,G27-2) -> 2021 | L25: =VLOOKUP(F21,MasterReferenceTable!$C$2:$D$388,2,FALSE) ->  | AH25: 24 | AI25: 1 | AJ25: 24
A26: Faulk | B26: 25 | E26: %2F | G26: &txtto= | K26: Curr. Date | L26: -2 years | M26: +1 day | P26: Click this button only if | AH26: 25 | AI26: 1 | AJ26: 25
A27: Grant | B27: 26 | D27: Current date | E27: =I21 -> 2 | F27: =H21 -> 1 | G27: =J21 -> 2023 | K27: =CONCATENATE(E27,"/",F27,"/",G27) -> 2/1/2023 | L27: =EDATE(K27,-24) -> 2021-02-01 | M27: =L27+1 -> 2021-02-02 | P27: you have a lot of time. | AH27: 26 | AI27: 1 | AJ27: 26
A28: Gregory | B28: 27 | D28: &station= | AH28: 27 | AI28: 1 | AJ28: 27
A29: Haakon | B29: 28 | E29: =$E$21 ->  | K29: Plus one month: | AH29: 28 | AI29: 1 | AJ29: 28
A30: Hamlin | B30: 29 | D30: &Submit=Get+Data | K30: =K27+30 -> 2023-03-03 | AH30: 29 | AI30: 1 | AJ30: 29
A31: Hand | B31: 30 | AH31: 30 | AI31: 1 | AJ31: 30
A32: Hanson | B32: 31 | D32: =CONCATENATE(D23,E25,E26,F25,E26,G25,G26,E27,E26,F27,E26,G27,D28,E29,D30) ->  | AH32: 31 | AI32: 1 | AJ32: 31
A33: Harding | B33: 32 | AH33: 32 | AI33: 2 | AJ33: 1
A34: Hughes | B34: 33 | AH34: 33 | AI34: 2 | AJ34: 2
A35: Hutchinson | B35: 34 | D35: Weather Warehouse1 | F35: Weather Warehouse2 | H35: Weather Warehouse3 | J35: Weather Warehouse4 | L35: Weather Warehouse5 | N35: Weather Warehouse6 | P35: Weather Warehouse7 | R35: Weather Warehouse8 | T35: Weather Warehouse9 | V35: Weather Warehouse10 | X35: Weather Warehouse11 | Z35: Weather Warehouse12 | AH35: 34 | AI35: 2 | AJ35: 3
A36: Hyde | B36: 35 | D36: base: | E36: https://weather-warehouse.com/WeatherHistory/PastWeatherData_ | F36: base: | G36: https://weather-warehouse.com/WeatherHistory/PastWeatherData_ | H36: base: | I36: https://weather-warehouse.com/WeatherHistory/PastWeatherData_ | J36: base: | K36: https://weather-warehouse.com/WeatherHistory/PastWeatherData_ | L36: base: | M36: https://weather-warehouse.com/WeatherHistory/PastWeatherData_ | N36: base: | O36: https://weather-warehouse.com/WeatherHistory/PastWeatherData_ | P36: base: | Q36: https://weather-warehouse.com/WeatherHistory/PastWeatherData_ | R36: base: | S36: https://weather-warehouse.com/WeatherHistory/PastWeatherData_ | T36: base: | U36: https://weather-warehouse.com/WeatherHistory/PastWeatherData_ | V36: base: | W36: https://weather-warehouse.com/WeatherHistory/PastWeatherData_ | X36: base: | Y36: https://weather-warehouse.com/WeatherHistory/PastWeatherData_ | Z36: base: | AA36: https://weather-warehouse.com/WeatherHistory/PastWeatherData_ | AH36: 35 | AI36: 2 | AJ36: 4
A37: Jackson | B37: 36 | D37: Station: | E37: =VLOOKUP($F$21,$F$71:$P$463,3,FALSE) ->  | F37: Station: | G37: =VLOOKUP($F$21,$F$71:$P$463,3,FALSE) ->  | H37: Station: | I37: =VLOOKUP($F$21,$F$71:$P$463,3,FALSE) ->  | J37: Station: | K37: =VLOOKUP($F$21,$F$71:$P$463,3,FALSE) ->  | L37: Station: | M37: =VLOOKUP($F$21,$F$71:$P$463,3,FALSE) ->  | N37: Station: | O37: =VLOOKUP($F$21,$F$71:$P$463,3,FALSE) ->  | P37: Station: | Q37: =VLOOKUP($F$21,$F$71:$P$463,3,FALSE) ->  | R37: Station: | S37: =VLOOKUP($F$21,$F$71:$P$463,3,FALSE) ->  | T37: Station: | U37: =VLOOKUP($F$21,$F$71:$P$463,3,FALSE) ->  | V37: Station: | W37: =VLOOKUP($F$21,$F$71:$P$463,3,FALSE) ->  | X37: Station: | Y37: =VLOOKUP($F$21,$F$71:$P$463,3,FALSE) ->  | Z37: Station: | AA37: =VLOOKUP($F$21,$F$71:$P$463,3,FALSE) ->  | AH37: 36 | AI37: 2 | AJ37: 5
A38: Jerauld | B38: 37 | D38: Town: | E38: =VLOOKUP($F$21,$F$71:$P$463,4,FALSE) ->  | F38: Town: | G38: =VLOOKUP($F$21,$F$71:$P$463,4,FALSE) ->  | H38: Town: | I38: =VLOOKUP($F$21,$F$71:$P$463,4,FALSE) ->  | J38: Town: | K38: =VLOOKUP($F$21,$F$71:$P$463,4,FALSE) ->  | L38: Town: | M38: =VLOOKUP($F$21,$F$71:$P$463,4,FALSE) ->  | N38: Town: | O38: =VLOOKUP($F$21,$F$71:$P$463,4,FALSE) ->  | P38: Town: | Q38: =VLOOKUP($F$21,$F$71:$P$463,4,FALSE) ->  | R38: Town: | S38: =VLOOKUP($F$21,$F$71:$P$463,4,FALSE) ->  | T38: Town: | U38: =VLOOKUP($F$21,$F$71:$P$463,4,FALSE) ->  | V38: Town: | W38: =VLOOKUP($F$21,$F$71:$P$463,4,FALSE) ->  | X38: Town: | Y38: =VLOOKUP($F$21,$F$71:$P$463,4,FALSE) ->  | Z38: Town: | AA38: =VLOOKUP($F$21,$F$71:$P$463,4,FALSE) ->  | AH38: 37 | AI38: 2 | AJ38: 6
A39: Jones | B39: 38 | D39: State: | E39: =CONCATENATE("_",$F$22,"_") ->  | F39: State: | G39: =CONCATENATE("_",$F$22,"_") ->  | H39: State: | I39: =CONCATENATE("_",$F$22,"_") ->  | J39: State: | K39: =CONCATENATE("_",$F$22,"_") ->  | L39: State: | M39: =CONCATENATE("_",$F$22,"_") ->  | N39: State: | O39: =CONCATENATE("_",$F$22,"_") ->  | P39: State: | Q39: =CONCATENATE("_",$F$22,"_") ->  | R39: State: | S39: =CONCATENATE("_",$F$22,"_") ->  | T39: State: | U39: =CONCATENATE("_",$F$22,"_") ->  | V39: State: | W39: =CONCATENATE("_",$F$22,"_") ->  | X39: State: | Y39: =CONCATENATE("_",$F$22,"_") ->  | Z39: State: | AA39: =CONCATENATE("_",$F$22,"_") ->  | AH39: 38 | AI39: 2 | AJ39: 7
A40: Kingsbury | B40: 39 | D40: Month # | E40: =$E$27 -> 2 | F40: Month # | G40: =IF(E40=12,1,E40+1) -> 3 | H40: Month # | I40: =IF(G40=12,1,G40+1) -> 4 | J40: Month # | K40: =IF(I40=12,1,I40+1) -> 5 | L40: Month # | M40: =IF(K40=12,1,K40+1) -> 6 | N40: Month # | O40: =IF(M40=12,1,M40+1) -> 7 | P40: Month # | Q40: =IF(O40=12,1,O40+1) -> 8 | R40: Month # | S40: =IF(Q40=12,1,Q40+1) -> 9 | T40: Month # | U40: =IF(S40=12,1,S40+1) -> 10 | V40: Month # | W40: =IF(U40=12,1,U40+1) -> 11 | X40: Month # | Y40: =IF(W40=12,1,W40+1) -> 12 | Z40: Month # | AA40: =IF(Y40=12,1,Y40+1) -> 1 | AH40: 39 | AI40: 2 | AJ40: 8
A41: Lake | B41: 40 | D41: Month: | E41: =VLOOKUP(E40,$P$2:$Q$14,2,FALSE) -> February | F41: Month: | G41: =VLOOKUP(G40,$P$2:$Q$14,2,FALSE) -> March | H41: Month: | I41: =VLOOKUP(I40,$P$2:$Q$14,2,FALSE) -> April | J41: Month: | K41: =VLOOKUP(K40,$P$2:$Q$14,2,FALSE) -> May | L41: Month: | M41: =VLOOKUP(M40,$P$2:$Q$14,2,FALSE) -> June | N41: Month: | O41: =VLOOKUP(O40,$P$2:$Q$14,2,FALSE) -> July | P41: Month: | Q41: =VLOOKUP(Q40,$P$2:$Q$14,2,FALSE) -> August | R41: Month: | S41: =VLOOKUP(S40,$P$2:$Q$14,2,FALSE) -> September | T41: Month: | U41: =VLOOKUP(U40,$P$2:$Q$14,2,FALSE) -> October | V41: Month: | W41: =VLOOKUP(W40,$P$2:$Q$14,2,FALSE) -> November | X41: Month: | Y41: =VLOOKUP(Y40,$P$2:$Q$14,2,FALSE) -> December | Z41: Month: | AA41: =VLOOKUP(AA40,$P$2:$Q$14,2,FALSE) -> January | AH41: 40 | AI41: 2 | AJ41: 9
A42: Lawrence | B42: 41 | D42: Last: | E42: .html | F42: Last: | G42: .html | H42: Last: | I42: .html | J42: Last: | K42: .html | L42: Last: | M42: .html | N42: Last: | O42: .html | P42: Last: | Q42: .html | R42: Last: | S42: .html | T42: Last: | U42: .html | V42: Last: | W42: .html | X42: Last: | Y42: .html | Z42: Last: | AA42: .html | AH42: 41 | AI42: 2 | AJ42: 10
A43: Lincoln | B43: 42 | D43: =CONCATENATE(E37,"_",E38,E39,E41,E42) ->  | F43: =CONCATENATE(G37,"_",G38,G39,G41,G42) ->  | H43: =CONCATENATE(I37,"_",I38,I39,I41,I42) ->  | J43: =CONCATENATE(K37,"_",K38,K39,K41,K42) ->  | L43: =CONCATENATE(M37,"_",M38,M39,M41,M42) ->  | N43: =CONCATENATE(O37,"_",O38,O39,O41,O42) ->  | P43: =CONCATENATE(Q37,"_",Q38,Q39,Q41,Q42) ->  | R43: =CONCATENATE(S37,"_",S38,S39,S41,S42) ->  | T43: =CONCATENATE(U37,"_",U38,U39,U41,U42) ->  | V43: =CONCATENATE(W37,"_",W38,W39,W41,W42) ->  | X43: =CONCATENATE(Y37,"_",Y38,Y39,Y41,Y42) ->  | Z43: =CONCATENATE(AA37,"_",AA38,AA39,AA41,AA42) ->  | AH43: 42 | AI43: 2 | AJ43: 11
A44: Lyman | B44: 43 | AH44: 43 | AI44: 2 | AJ44: 12
A45: Marshall | B45: 44 | D45: cocorahs 1 | F45: cocorahs 2 | H45: cocorahs 3 | J45: cocorahs 4 | L45: cocorahs 5 | N45: cocorahs 6 | AH45: 44 | AI45: 2 | AJ45: 13
A46: McCook | B46: 45 | D46: data: | E46: 6 | F46: data: | G46: 7 | H46: data: | I46: 8 | J46: data: | K46: 9 | L46: data: | M46: 10 | N46: data: | O46: 11 | AH46: 45 | AI46: 2 | AJ46: 14
A47: McPherson | B47: 46 | D47: Base: | E47: https://www.cocorahs.org/ViewData/StationPrecipSummary.aspx?station= | F47: Base: | G47: https://www.cocorahs.org/ViewData/StationPrecipSummary.aspx?station= | H47: Base: | I47: https://www.cocorahs.org/ViewData/StationPrecipSummary.aspx?station= | J47: Base: | K47: https://www.cocorahs.org/ViewData/StationPrecipSummary.aspx?station= | L47: Base: | M47: https://www.cocorahs.org/ViewData/StationPrecipSummary.aspx?station= | N47: Base: | O47: https://www.cocorahs.org/ViewData/StationPrecipSummary.aspx?station= | AH47: 46 | AI47: 2 | AJ47: 15
A48: Meade | B48: 47 | D48: Station: | E48: =VLOOKUP($F$21,$F$71:$P$463,E46,FALSE) ->  | F48: Station: | G48: =VLOOKUP($F$21,$F$71:$P$463,G46,FALSE) ->  | H48: Station: | I48: =VLOOKUP($F$21,$F$71:$P$463,I46,FALSE) ->  | J48: Station: | K48: =VLOOKUP($F$21,$F$71:$P$463,K46,FALSE) ->  | L48: Station: | M48: =VLOOKUP($F$21,$F$71:$P$463,M46,FALSE) ->  | N48: Station: | O48: =VLOOKUP($F$21,$F$71:$P$463,O46,FALSE) ->  | AH48: 47 | AI48: 2 | AJ48: 16
A49: Mellette | B49: 48 | D49: next: | E49: &startdate= | F49: next: | G49: &startdate= | H49: next: | I49: &startdate= | J49: next: | K49: &startdate= | L49: next: | M49: &startdate= | N49: next: | O49: &startdate= | AH49: 48 | AI49: 2 | AJ49: 17
A50: Miner | B50: 49 | D50: Start: | E50: =CONCATENATE($E$25,"/",$F$25,"/",$G$25) -> 3/1/2021 | F50: Start: | G50: =CONCATENATE($E$25,"/",$F$25,"/",$G$25) -> 3/1/2021 | H50: Start: | I50: =CONCATENATE($E$25,"/",$F$25,"/",$G$25) -> 3/1/2021 | J50: Start: | K50: =CONCATENATE($E$25,"/",$F$25,"/",$G$25) -> 3/1/2021 | L50: Start: | M50: =CONCATENATE($E$25,"/",$F$25,"/",$G$25) -> 3/1/2021 | N50: Start: | O50: =CONCATENATE($E$25,"/",$F$25,"/",$G$25) -> 3/1/2021 | AH50: 49 | AI50: 2 | AJ50: 18
A51: Minnehaha | B51: 50 | D51: Next: | E51: &enddate= | F51: Next: | G51: &enddate= | H51: Next: | I51: &enddate= | J51: Next: | K51: &enddate= | L51: Next: | M51: &enddate= | N51: Next: | O51: &enddate= | AH51: 50 | AI51: 2 | AJ51: 19
A52: Moody | B52: 51 | D52: End | E52: =CONCATENATE($E$27,"/",$F$27,"/",$G$27) -> 2/1/2023 | F52: End | G52: =CONCATENATE($E$27,"/",$F$27,"/",$G$27) -> 2/1/2023 | H52: End | I52: =CONCATENATE($E$27,"/",$F$27,"/",$G$27) -> 2/1/2023 | J52: End | K52: =CONCATENATE($E$27,"/",$F$27,"/",$G$27) -> 2/1/2023 | L52: End | M52: =CONCATENATE($E$27,"/",$F$27,"/",$G$27) -> 2/1/2023 | N52: End | O52: =CONCATENATE($E$27,"/",$F$27,"/",$G$27) -> 2/1/2023 | AH52: 51 | AI52: 2 | AJ52: 20
A53: Oglala Lakota | B53: 52 | D53: =IF(E48=0,CONCATENATE($D$56,E49,E50,E51,E52),CONCATENATE(E48,E49,E50,E51,E52)) ->  | F53: =IF(G48=0,CONCATENATE($D$56,G49,G50,G51,G52),CONCATENATE(G48,G49,G50,G51,G52)) ->  | H53: =IF(I48=0,CONCATENATE($D$56,I49,I50,I51,I52),CONCATENATE(I48,I49,I50,I51,I52)) ->  | J53: =IF(K48=0,CONCATENATE($D$56,K49,K50,K51,K52),CONCATENATE(K48,K49,K50,K51,K52)) ->  | L53: =IF(M48=0,CONCATENATE($D$56,M49,M50,M51,M52),CONCATENATE(M48,M49,M50,M51,M52)) ->  | N53: =IF(O48=0,CONCATENATE($D$56,O49,O50,O51,O52),CONCATENATE(O48,O49,O50,O51,O52)) ->  | AH53: 52 | AI53: 2 | AJ53: 21
A54: Pennington | B54: 53 | AH54: 53 | AI54: 2 | AJ54: 22
A55: Perkins | B55: 54 | D55: Dummy Station | AH55: 54 | AI55: 2 | AJ55: 23
A56: Potter | B56: 55 | D56: WY-NB-9 | AH56: 55 | AI56: 2 | AJ56: 24
A57: Roberts | B57: 56 | D57: cocorahs 1 - single run | AH57: 56 | AI57: 2 | AJ57: 25
A58: Sanborn | B58: 57 | D58: data: | E58: 1 | AH58: 57 | AI58: 2 | AJ58: 26
A59: Spink | B59: 58 | D59: Base: | E59: https://www.cocorahs.org/ViewData/StationPrecipSummary.aspx?station= | AH59: 58 | AI59: 2 | AJ59: 27
A60: Stanley | B60: 59 | D60: Station: | E60: =VLOOKUP($F$21,$F$71:$P$463,E58,FALSE) ->  | AH60: 59 | AI60: 2 | AJ60: 28
A61: Sully | B61: 60 | D61: next: | E61: &startdate= | AH61: 60 | AI61: 3 | AJ61: 1
A62: Todd | B62: 61 | D62: Start: | E62: =CONCATENATE($E$25,"/",$F$25,"/",$G$25) -> 3/1/2021 | AH62: 61 | AI62: 3 | AJ62: 2
A63: Tripp | B63: 62 | D63: Next: | E63: &enddate= | AH63: 62 | AI63: 3 | AJ63: 3
A64: Turner | B64: 63 | D64: End | E64: =CONCATENATE($E$27,"/",$F$27,"/",$G$27) -> 2/1/2023 | AH64: 63 | AI64: 3 | AJ64: 4
A65: Union | B65: 64 | D65: =IF(E60=0,CONCATENATE($D$56,E61,E62,E63,E64),CONCATENATE(E60,E61,E62,E63,E64)) ->  | AH65: 64 | AI65: 3 | AJ65: 5
A66: Walworth | B66: 65 | D66: MAKE SURE WEATHER STATION NAME MATCHES MASTER REFERENCE TABLE | AH66: 65
A67: Yankton | B67: 66 | D67: ↓ | AH67: 66
A68: Ziebach | B68: 67 | AH68: 67
AH69: 68
AH70: 69
A71: Co Number | B71: County | C71: Station # | D71: Choose Weather Station | E71: StaSymbol | F71: Symbol | G71: ZIP CODE | H71: WW Name | I71: WW City | J71: WW State | K71: CCR1 | L71: CCR2 | M71: CCR3 | N71: CCR4 | O71: CCR5 | P71: CCR6 | AH71: 70
G72: =IFERROR(VLOOKUP(F72,$I$71:$L$601,2,FALSE),"") ->  | AH72: 71
A73: 2 | B73: Aurora | C73: 1 | D73: WHITE LAKE | E73: =IF(F73="","",VLOOKUP(F73,MasterReferenceTable!$C$1:$Q$388,3,FALSE)) -> WITS2 | F73: 399232 | G73: =IF(F73="","",VLOOKUP(F73,MasterReferenceTable!$C$2:$Q$388,2,FALSE)) -> 57383 | H73: =IF(F73="","",VLOOKUP(F73,MasterReferenceTable!$C$2:$Q$388,6,FALSE)) -> WHITE LAKE | I73: =IF(F73="","",VLOOKUP(F73,MasterReferenceTable!$C$2:$Q$388,7,FALSE)) -> WhiteLake | J73: =IF(F73="","",VLOOKUP(F73,MasterReferenceTable!$C$2:$Q$388,8,FALSE)) -> SD | K73: =IFERROR(VLOOKUP($F73,MasterReferenceTable!$C$2:$Q$388,9,FALSE),"") -> SD-JR-8 | L73: =IFERROR(VLOOKUP($F73,MasterReferenceTable!$C$2:$Q$388,10,FALSE),"") -> SD-AR-8 | M73: =IFERROR(VLOOKUP($F73,MasterReferenceTable!$C$2:$Q$388,11,FALSE),"") -> SD-BL-11 | N73: =IFERROR(VLOOKUP($F73,MasterReferenceTable!$C$2:$Q$388,12,FALSE),"") -> SD-DG-11 | O73: =IFERROR(VLOOKUP($F73,MasterReferenceTable!$C$2:$Q$388,13,FALSE),"") -> SD-DG-2 | P73: =IFERROR(VLOOKUP($F73,MasterReferenceTable!$C$2:$Q$388,14,FALSE),"") -> SD-DV-31 | AH73: 72
A74: 2 | B74: Aurora | C74: 2 | D74: =H74 -> Stickney 3.8 SW (SD-AR-8) | E74: =IF(F74="","",VLOOKUP(F74,MasterReferenceTable!$C$1:$Q$388,3,FALSE)) -> WITS2 | F74: SD-AR-8 | G74: =IF(F74="","",VLOOKUP(F74,MasterReferenceTable!$C$2:$Q$388,2,FALSE)) -> 57375 | H74: =IF(F74="","",VLOOKUP(F74,MasterReferenceTable!$C$2:$Q$388,6,FALSE)) -> Stickney 3.8 SW (SD-AR-8) | I74: =IF(F74="","",VLOOKUP(F74,MasterReferenceTable!$C$2:$Q$388,7,FALSE)) -> Stickney | J74: =IF(F74="","",VLOOKUP(F74,MasterReferenceTable!$C$2:$Q$388,8,FALSE)) -> SD | K74: =IFERROR(VLOOKUP($F74,MasterReferenceTable!$C$2:$Q$388,9,FALSE),"") -> SD-DG-11 | L74: =IFERROR(VLOOKUP($F74,MasterReferenceTable!$C$2:$Q$388,10,FALSE),"") -> SD-DG-2 | M74: =IFERROR(VLOOKUP($F74,MasterReferenceTable!$C$2:$Q$388,11,FALSE),"") -> SD-DG-1 | N74: =IFERROR(VLOOKUP($F74,MasterReferenceTable!$C$2:$Q$388,12,FALSE),"") -> SD-JR-8 | O74: =IFERROR(VLOOKUP($F74,MasterReferenceTable!$C$2:$Q$388,13,FALSE),"") -> SD-DV-28 | P74: =IFERROR(VLOOKUP($F74,MasterReferenceTable!$C$2:$Q$388,14,FALSE),"") -> SD-DV-25 | AH74: 73
A75: 3 | B75: Beadle | C75: 1 | D75: HURON WB AIRPORT | E75: =IF(F75="","",VLOOKUP(F75,MasterReferenceTable!$C$1:$Q$388,3,FALSE)) -> HON | F75: 394127 | G75: =IF(F75="","",VLOOKUP(F75,MasterReferenceTable!$C$2:$Q$388,2,FALSE)) -> 57350 | H75: =IF(F75="","",VLOOKUP(F75,MasterReferenceTable!$C$2:$Q$388,6,FALSE)) -> HURON WB AIRPORT | I75: =IF(F75="","",VLOOKUP(F75,MasterReferenceTable!$C$2:$Q$388,7,FALSE)) -> Huron | J75: =IF(F75="","",VLOOKUP(F75,MasterReferenceTable!$C$2:$Q$388,8,FALSE)) -> SD | K75: =IFERROR(VLOOKUP($F75,MasterReferenceTable!$C$2:$Q$388,9,FALSE),"") -> SD-BD-24 | L75: =IFERROR(VLOOKUP($F75,MasterReferenceTable!$C$2:$Q$388,10,FALSE),"") -> SD-BD-20 | M75: =IFERROR(VLOOKUP($F75,MasterReferenceTable!$C$2:$Q$388,11,FALSE),"") -> SD-BD-7 | N75: =IFERROR(VLOOKUP($F75,MasterReferenceTable!$C$2:$Q$388,12,FALSE),"") -> SD-SB-2 | O75: =IFERROR(VLOOKUP($F75,MasterReferenceTable!$C$2:$Q$388,13,FALSE),"") -> SD-SB-3 | P75: =IFERROR(VLOOKUP($F75,MasterReferenceTable!$C$2:$Q$388,14,FALSE),"") -> SD-KY-5 | AH75: 74
A76: 3 | B76: Beadle | C76: 2 | D76: IROQUOIS | E76: =IF(F76="","",VLOOKUP(F76,MasterReferenceTable!$C$1:$Q$388,3,FALSE)) -> HON | F76: 394254 | G76: =IF(F76="","",VLOOKUP(F76,MasterReferenceTable!$C$2:$Q$388,2,FALSE)) -> 57353 | H76: =IF(F76="","",VLOOKUP(F76,MasterReferenceTable!$C$2:$Q$388,6,FALSE)) -> IROQUOIS | I76: =IF(F76="","",VLOOKUP(F76,MasterReferenceTable!$C$2:$Q$388,7,FALSE)) -> Iroquois | J76: =IF(F76="","",VLOOKUP(F76,MasterReferenceTable!$C$2:$Q$388,8,FALSE)) -> SD | K76: =IFERROR(VLOOKUP($F76,MasterReferenceTable!$C$2:$Q$388,9,FALSE),"") -> SD-KY-5 | L76: =IFERROR(VLOOKUP($F76,MasterReferenceTable!$C$2:$Q$388,10,FALSE),"") -> SD-BD-24 | M76: =IFERROR(VLOOKUP($F76,MasterReferenceTable!$C$2:$Q$388,11,FALSE),"") -> SD-BD-20 | N76: =IFERROR(VLOOKUP($F76,MasterReferenceTable!$C$2:$Q$388,12,FALSE),"") -> SD-BD-7 | O76: =IFERROR(VLOOKUP($F76,MasterReferenceTable!$C$2:$Q$388,13,FALSE),"") -> SD-MN-1 | P76: =IFERROR(VLOOKUP($F76,MasterReferenceTable!$C$2:$Q$388,14,FALSE),"") -> SD-MN-11 | AH76: 75
A77: 3 | B77: Beadle | C77: 3 | D77: WESSINGTON 2 SE | E77: =IF(F77="","",VLOOKUP(F77,MasterReferenceTable!$C$1:$Q$388,3,FALSE)) -> WSPS2 | F77: 399064 | G77: =IF(F77="","",VLOOKUP(F77,MasterReferenceTable!$C$2:$Q$388,2,FALSE)) -> 57381 | H77: =IF(F77="","",VLOOKUP(F77,MasterReferenceTable!$C$2:$Q$388,6,FALSE)) -> WESSINGTON 2 SE | I77: =IF(F77="","",VLOOKUP(F77,MasterReferenceTable!$C$2:$Q$388,7,FALSE)) -> Wessington | J77: =IF(F77="","",VLOOKUP(F77,MasterReferenceTable!$C$2:$Q$388,8,FALSE)) -> SD | K77: =IFERROR(VLOOKUP($F77,MasterReferenceTable!$C$2:$Q$388,9,FALSE),"") -> SD-HD-12 | L77: =IFERROR(VLOOKUP($F77,MasterReferenceTable!$C$2:$Q$388,10,FALSE),"") -> SD-SP-1 | M77: =IFERROR(VLOOKUP($F77,MasterReferenceTable!$C$2:$Q$388,11,FALSE),"") -> SD-BD-24 | N77: =IFERROR(VLOOKUP($F77,MasterReferenceTable!$C$2:$Q$388,12,FALSE),"") -> SD-JR-8 | O77: =IFERROR(VLOOKUP($F77,MasterReferenceTable!$C$2:$Q$388,13,FALSE),"") -> SD-BD-20 | P77: =IFERROR(VLOOKUP($F77,MasterReferenceTable!$C$2:$Q$388,14,FALSE),"") -> SD-BD-7 | AH77: 76
A78: 3 | B78: Beadle | C78: 4 | D78: =H78 -> Huron 1.1 NNE (SD-BD-24) | E78: =IF(F78="","",VLOOKUP(F78,MasterReferenceTable!$C$1:$Q$388,3,FALSE)) -> HON | F78: SD-BD-24 | G78: =IF(F78="","",VLOOKUP(F78,MasterReferenceTable!$C$2:$Q$388,2,FALSE)) -> 57350 | H78: =IF(F78="","",VLOOKUP(F78,MasterReferenceTable!$C$2:$Q$388,6,FALSE)) -> Huron 1.1 NNE (SD-BD-24) | I78: =IF(F78="","",VLOOKUP(F78,MasterReferenceTable!$C$2:$Q$388,7,FALSE)) -> Huron | J78: =IF(F78="","",VLOOKUP(F78,MasterReferenceTable!$C$2:$Q$388,8,FALSE)) -> SD | K78: =IFERROR(VLOOKUP($F78,MasterReferenceTable!$C$2:$Q$388,9,FALSE),"") -> SD-BD-20 | L78: =IFERROR(VLOOKUP($F78,MasterReferenceTable!$C$2:$Q$388,10,FALSE),"") -> SD-BD-7 | M78: =IFERROR(VLOOKUP($F78,MasterReferenceTable!$C$2:$Q$388,11,FALSE),"") -> SD-SB-3 | N78: =IFERROR(VLOOKUP($F78,MasterReferenceTable!$C$2:$Q$388,12,FALSE),"") -> SD-SB-2 | O78: =IFERROR(VLOOKUP($F78,MasterReferenceTable!$C$2:$Q$388,13,FALSE),"") -> SD-SP-1 | P78: =IFERROR(VLOOKUP($F78,MasterReferenceTable!$C$2:$Q$388,14,FALSE),"") -> SD-KY-5 | AH78: 77
A79: 3 | B79: Beadle | C79: 5 | D79: Huron 1.3 S (SD-BD-20) | E79: =IF(F79="","",VLOOKUP(F79,MasterReferenceTable!$C$1:$Q$388,3,FALSE)) -> HON | F79: SD-BD-20 | G79: =IF(F79="","",VLOOKUP(F79,MasterReferenceTable!$C$2:$Q$388,2,FALSE)) -> 57350 | H79: =IF(F79="","",VLOOKUP(F79,MasterReferenceTable!$C$2:$Q$388,6,FALSE)) -> Huron 1.3 S (SD-BD-20) | I79: =IF(F79="","",VLOOKUP(F79,MasterReferenceTable!$C$2:$Q$388,7,FALSE)) -> Huron | J79: =IF(F79="","",VLOOKUP(F79,MasterReferenceTable!$C$2:$Q$388,8,FALSE)) -> SD | K79: =IFERROR(VLOOKUP($F79,MasterReferenceTable!$C$2:$Q$388,9,FALSE),"") -> SD-BD-24 | L79: =IFERROR(VLOOKUP($F79,MasterReferenceTable!$C$2:$Q$388,10,FALSE),"") -> SD-BD-7 | M79: =IFERROR(VLOOKUP($F79,MasterReferenceTable!$C$2:$Q$388,11,FALSE),"") -> SD-SB-3 | N79: =IFERROR(VLOOKUP($F79,MasterReferenceTable!$C$2:$Q$388,12,FALSE),"") -> SD-SB-2 | O79: =IFERROR(VLOOKUP($F79,MasterReferenceTable!$C$2:$Q$388,13,FALSE),"") -> SD-SP-1 | P79: =IFERROR(VLOOKUP($F79,MasterReferenceTable!$C$2:$Q$388,14,FALSE),"") -> SD-KY-5 | AH79: 78
A80: 3 | B80: Beadle | C80: 6 | D80: Huron 6.8 NNE (SD-BD-7) | E80: =IF(F80="","",VLOOKUP(F80,MasterReferenceTable!$C$1:$Q$388,3,FALSE)) -> HON | F80: SD-BD-7 | G80: =IF(F80="","",VLOOKUP(F80,MasterReferenceTable!$C$2:$Q$388,2,FALSE)) -> 57350 | H80: =IF(F80="","",VLOOKUP(F80,MasterReferenceTable!$C$2:$Q$388,6,FALSE)) -> Huron 6.8 NNE (SD-BD-7) | I80: =IF(F80="","",VLOOKUP(F80,MasterReferenceTable!$C$2:$Q$388,7,FALSE)) -> Huron | J80: =IF(F80="","",VLOOKUP(F80,MasterReferenceTable!$C$2:$Q$388,8,FALSE)) -> SD | K80: =IFERROR(VLOOKUP($F80,MasterReferenceTable!$C$2:$Q$388,9,FALSE),"") -> SD-BD-24 | L80: =IFERROR(VLOOKUP($F80,MasterReferenceTable!$C$2:$Q$388,10,FALSE),"") -> SD-BD-20 | M80: =IFERROR(VLOOKUP($F80,MasterReferenceTable!$C$2:$Q$388,11,FALSE),"") -> SD-SB-2 | N80: =IFERROR(VLOOKUP($F80,MasterReferenceTable!$C$2:$Q$388,12,FALSE),"") -> SD-SB-3 | O80: =IFERROR(VLOOKUP($F80,MasterReferenceTable!$C$2:$Q$388,13,FALSE),"") -> SD-SP-1 | P80: =IFERROR(VLOOKUP($F80,MasterReferenceTable!$C$2:$Q$388,14,FALSE),"") -> SD-SP-6 | AH80: 79
A81: 3 | B81: Beadle | C81: 7 | D81: Huron South Dakota (RAWS) | E81: =IF(F81="","",VLOOKUP(F81,MasterReferenceTable!$C$1:$Q$388,3,FALSE)) -> USR0000SHUR | F81: sdSHUR | G81: =IF(F81="","",VLOOKUP(F81,MasterReferenceTable!$C$2:$Q$388,2,FALSE)) -> 57382 | H81: =IF(F81="","",VLOOKUP(F81,MasterReferenceTable!$C$2:$Q$388,6,FALSE)) -> Huron South Dakota (RAWS) | I81: =IF(F81="","",VLOOKUP(F81,MasterReferenceTable!$C$2:$Q$388,7,FALSE)) -> WessingtonSprings | J81: =IF(F81="","",VLOOKUP(F81,MasterReferenceTable!$C$2:$Q$388,8,FALSE)) -> SD | K81: =IFERROR(VLOOKUP($F81,MasterReferenceTable!$C$2:$Q$388,9,FALSE),"") -> SD-JR-8 | L81: =IFERROR(VLOOKUP($F81,MasterReferenceTable!$C$2:$Q$388,10,FALSE),"") -> SD-HD-12 | M81: =IFERROR(VLOOKUP($F81,MasterReferenceTable!$C$2:$Q$388,11,FALSE),"") -> SD-BD-20 | N81: =IFERROR(VLOOKUP($F81,MasterReferenceTable!$C$2:$Q$388,12,FALSE),"") -> SD-SP-1 | O81: =IFERROR(VLOOKUP($F81,MasterReferenceTable!$C$2:$Q$388,13,FALSE),"") -> SD-SB-3 | P81: =IFERROR(VLOOKUP($F81,MasterReferenceTable!$C$2:$Q$388,14,FALSE),"") -> SD-BD-24 | AH81: 80
A82: 4 | B82: Bennett | C82: 1 | D82: Batesland 7.4 NNE (SD-BN-2) | E82: =IF(F82="","",VLOOKUP(F82,MasterReferenceTable!$C$1:$Q$388,3,FALSE)) -> MRTS2 | F82: SD-BN-2 | G82: =IF(F82="","",VLOOKUP(F82,MasterReferenceTable!$C$2:$Q$388,2,FALSE)) -> 57716 | H82: =IF(F82="","",VLOOKUP(F82,MasterReferenceTable!$C$2:$Q$388,6,FALSE)) -> Batesland 7.4 NNE (SD-BN-2) | I82: =IF(F82="","",VLOOKUP(F82,MasterReferenceTable!$C$2:$Q$388,7,FALSE)) -> Batesland | J82: =IF(F82="","",VLOOKUP(F82,MasterReferenceTable!$C$2:$Q$388,8,FALSE)) -> SD | K82: =IFERROR(VLOOKUP($F82,MasterReferenceTable!$C$2:$Q$388,9,FALSE),"") -> SD-BN-17 | L82: =IFERROR(VLOOKUP($F82,MasterReferenceTable!$C$2:$Q$388,10,FALSE),"") -> sher023 | M82: =IFERROR(VLOOKUP($F82,MasterReferenceTable!$C$2:$Q$388,11,FALSE),"") -> sher032 | N82: =IFERROR(VLOOKUP($F82,MasterReferenceTable!$C$2:$Q$388,12,FALSE),"") -> 0 | O82: =IFERROR(VLOOKUP($F82,MasterReferenceTable!$C$2:$Q$388,13,FALSE),"") -> 0 | P82: =IFERROR(VLOOKUP($F82,MasterReferenceTable!$C$2:$Q$388,14,FALSE),"") -> 0 | AH82: 81
A83: 4 | B83: Bennett | C83: 2 | D83: Martin 14.1 ENE (SD-BN-17) | E83: =IF(F83="","",VLOOKUP(F83,MasterReferenceTable!$C$1:$Q$388,3,FALSE)) -> MRTS2 | F83: SD-BN-17 | G83: =IF(F83="","",VLOOKUP(F83,MasterReferenceTable!$C$2:$Q$388,2,FALSE)) -> 57551 | H83: =IF(F83="","",VLOOKUP(F83,MasterReferenceTable!$C$2:$Q$388,6,FALSE)) -> Martin 14.1 ENE (SD-BN-17) | I83: =IF(F83="","",VLOOKUP(F83,MasterReferenceTable!$C$2:$Q$388,7,FALSE)) -> Martin | J83: =IF(F83="","",VLOOKUP(F83,MasterReferenceTable!$C$2:$Q$388,8,FALSE)) -> SD | K83: =IFERROR(VLOOKUP($F83,MasterReferenceTable!$C$2:$Q$388,9,FALSE),"") -> SD-ML-3 | L83: =IFERROR(VLOOKUP($F83,MasterReferenceTable!$C$2:$Q$388,10,FALSE),"") -> SD-BN-2 | M83: =IFERROR(VLOOKUP($F83,MasterReferenceTable!$C$2:$Q$388,11,FALSE),"") -> SD-JK-1 | N83: =IFERROR(VLOOKUP($F83,MasterReferenceTable!$C$2:$Q$388,12,FALSE),"") -> SD-ML-11 | O83: =IFERROR(VLOOKUP($F83,MasterReferenceTable!$C$2:$Q$388,13,FALSE),"") -> SD-ML-7 | P83: =IFERROR(VLOOKUP($F83,MasterReferenceTable!$C$2:$Q$388,14,FALSE),"") -> 0 | AH83: 82
A84: 4 | B84: Bennett | C84: 3 | D84: MARTIN (1934-2014) | E84: =IF(F84="","",VLOOKUP(F84,MasterReferenceTable!$C$1:$Q$388,3,FALSE)) -> MRTS2 | F84: 395281 | G84: =IF(F84="","",VLOOKUP(F84,MasterReferenceTable!$C$2:$Q$388,2,FALSE)) -> 57551 | H84: =IF(F84="","",VLOOKUP(F84,MasterReferenceTable!$C$2:$Q$388,6,FALSE)) -> MARTIN (1934-2014) | I84: =IF(F84="","",VLOOKUP(F84,MasterReferenceTable!$C$2:$Q$388,7,FALSE)) -> Martin | J84: =IF(F84="","",VLOOKUP(F84,MasterReferenceTable!$C$2:$Q$388,8,FALSE)) -> SD | K84: =IFERROR(VLOOKUP($F84,MasterReferenceTable!$C$2:$Q$388,9,FALSE),"") -> SD-BN-2 | L84: =IFERROR(VLOOKUP($F84,MasterReferenceTable!$C$2:$Q$388,10,FALSE),"") -> SD-BN-17 | M84: =IFERROR(VLOOKUP($F84,MasterReferenceTable!$C$2:$Q$388,11,FALSE),"") -> SD-ML-3 | N84: =IFERROR(VLOOKUP($F84,MasterReferenceTable!$C$2:$Q$388,12,FALSE),"") -> SD-JK-1 | O84: =IFERROR(VLOOKUP($F84,MasterReferenceTable!$C$2:$Q$388,13,FALSE),"") -> 0 | P84: =IFERROR(VLOOKUP($F84,MasterReferenceTable!$C$2:$Q$388,14,FALSE),"") -> 0 | AH84: 83
A85: 5 | B85: Bon Homme | C85: 1 | D85: TYNDALL | E85: =IF(F85="","",VLOOKUP(F85,MasterReferenceTable!$C$1:$Q$388,3,FALSE)) -> TYNS2 | F85: 398472 | G85: =IF(F85="","",VLOOKUP(F85,MasterReferenceTable!$C$2:$Q$388,2,FALSE)) -> 57066 | H85: =IF(F85="","",VLOOKUP(F85,MasterReferenceTable!$C$2:$Q$388,6,FALSE)) -> TYNDALL | I85: =IF(F85="","",VLOOKUP(F85,MasterReferenceTable!$C$2:$Q$388,7,FALSE)) -> Tyndall | J85: =IF(F85="","",VLOOKUP(F85,MasterReferenceTable!$C$2:$Q$388,8,FALSE)) -> SD | K85: =IFERROR(VLOOKUP($F85,MasterReferenceTable!$C$2:$Q$388,9,FALSE),"") -> SD-BH-15 | L85: =IFERROR(VLOOKUP($F85,MasterReferenceTable!$C$2:$Q$388,10,FALSE),"") -> SD-BH-12 | M85: =IFERROR(VLOOKUP($F85,MasterReferenceTable!$C$2:$Q$388,11,FALSE),"") -> SD-HT-2 | N85: =IFERROR(VLOOKUP($F85,MasterReferenceTable!$C$2:$Q$388,12,FALSE),"") -> SD-HT-7 | O85: =IFERROR(VLOOKUP($F85,MasterReferenceTable!$C$2:$Q$388,13,FALSE),"") -> SD-CM-14 | P85: =IFERROR(VLOOKUP($F85,MasterReferenceTable!$C$2:$Q$388,14,FALSE),"") -> SD-YN-9 | AH85: 84
A86: 5 | B86: Bon Homme | C86: 2 | D86: Avon 7.5 NE (SD-BH-15) | E86: =IF(F86="","",VLOOKUP(F86,MasterReferenceTable!$C$1:$Q$388,3,FALSE)) -> TYNS2 | F86: SD-BH-15 | G86: =IF(F86="","",VLOOKUP(F86,MasterReferenceTable!$C$2:$Q$388,2,FALSE)) -> 57315 | H86: =IF(F86="","",VLOOKUP(F86,MasterReferenceTable!$C$2:$Q$388,6,FALSE)) -> Avon 7.5 NE (SD-BH-15) | I86: =IF(F86="","",VLOOKUP(F86,MasterReferenceTable!$C$2:$Q$388,7,FALSE)) -> Tyndall | J86: =IF(F86="","",VLOOKUP(F86,MasterReferenceTable!$C$2:$Q$388,8,FALSE)) -> SD | K86: =IFERROR(VLOOKUP($F86,MasterReferenceTable!$C$2:$Q$388,9,FALSE),"") -> SD-HT-2 | L86: =IFERROR(VLOOKUP($F86,MasterReferenceTable!$C$2:$Q$388,10,FALSE),"") -> SD-BH-12 | M86: =IFERROR(VLOOKUP($F86,MasterReferenceTable!$C$2:$Q$388,11,FALSE),"") -> SD-HT-7 | N86: =IFERROR(VLOOKUP($F86,MasterReferenceTable!$C$2:$Q$388,12,FALSE),"") -> SD-CM-14 | O86: =IFERROR(VLOOKUP($F86,MasterReferenceTable!$C$2:$Q$388,13,FALSE),"") -> SD-DV-28 | P86: =IFERROR(VLOOKUP($F86,MasterReferenceTable!$C$2:$Q$388,14,FALSE),"") -> SD-DV-25 | AH86: 85
A87: 5 | B87: Bon Homme | C87: 3 | D87: Springfield 7.6 WNW (SD-BH-12) | E87: =IF(F87="","",VLOOKUP(F87,MasterReferenceTable!$C$1:$Q$388,3,FALSE)) -> TYNS2 | F87: SD-BH-12 | G87: =IF(F87="","",VLOOKUP(F87,MasterReferenceTable!$C$2:$Q$388,2,FALSE)) -> 57062 | H87: =IF(F87="","",VLOOKUP(F87,MasterReferenceTable!$C$2:$Q$388,6,FALSE)) -> Springfield 7.6 WNW (SD-BH-12) | I87: =IF(F87="","",VLOOKUP(F87,MasterReferenceTable!$C$2:$Q$388,7,FALSE)) -> Springfield | J87: =IF(F87="","",VLOOKUP(F87,MasterReferenceTable!$C$2:$Q$388,8,FALSE)) -> SD | K87: =IFERROR(VLOOKUP($F87,MasterReferenceTable!$C$2:$Q$388,9,FALSE),"") -> SD-BH-15 | L87: =IFERROR(VLOOKUP($F87,MasterReferenceTable!$C$2:$Q$388,10,FALSE),"") -> SD-HT-2 | M87: =IFERROR(VLOOKUP($F87,MasterReferenceTable!$C$2:$Q$388,11,FALSE),"") -> SD-CM-14 | N87: =IFERROR(VLOOKUP($F87,MasterReferenceTable!$C$2:$Q$388,12,FALSE),"") -> SD-HT-7 | O87: =IFERROR(VLOOKUP($F87,MasterReferenceTable!$C$2:$Q$388,13,FALSE),"") -> SD-YN-9 | P87: =IFERROR(VLOOKUP($F87,MasterReferenceTable!$C$2:$Q$388,14,FALSE),"") -> SD-DV-28 | AH87: 86
A88: 6 | B88: Brookings | C88: 1 | D88: BROOKINGS 2 NE | E88: =IF(F88="","",VLOOKUP(F88,MasterReferenceTable!$C$1:$Q$388,3,FALSE)) -> BROS2 | F88: 391076 | G88: =IF(F88="","",VLOOKUP(F88,MasterReferenceTable!$C$2:$Q$388,2,FALSE)) -> 57007 | H88: =IF(F88="","",VLOOKUP(F88,MasterReferenceTable!$C$2:$Q$388,6,FALSE)) -> BROOKINGS 2 NE | I88: =IF(F88="","",VLOOKUP(F88,MasterReferenceTable!$C$2:$Q$388,7,FALSE)) -> Brookings | J88: =IF(F88="","",VLOOKUP(F88,MasterReferenceTable!$C$2:$Q$388,8,FALSE)) -> SD | K88: =IFERROR(VLOOKUP($F88,MasterReferenceTable!$C$2:$Q$388,9,FALSE),"") -> SD-BK-7 | L88: =IFERROR(VLOOKUP($F88,MasterReferenceTable!$C$2:$Q$388,10,FALSE),"") -> SD-BK-35 | M88: =IFERROR(VLOOKUP($F88,MasterReferenceTable!$C$2:$Q$388,11,FALSE),"") -> SD-BK-43 | N88: =IFERROR(VLOOKUP($F88,MasterReferenceTable!$C$2:$Q$388,12,FALSE),"") -> SD-BK-57 | O88: =IFERROR(VLOOKUP($F88,MasterReferenceTable!$C$2:$Q$388,13,FALSE),"") -> SD-BK-3 | P88: =IFERROR(VLOOKUP($F88,MasterReferenceTable!$C$2:$Q$388,14,FALSE),"") -> SD-BK-56 | AH88: 87
A89: 6 | B89: Brookings | C89: 2 | D89: =H89 -> Astoria 2.2 SSE (SD-BK-2) | E89: =IF(F89="","",VLOOKUP(F89,MasterReferenceTable!$C$1:$Q$388,3,FALSE)) -> BROS2 | F89: SD-BK-2 | G89: =IF(F89="","",VLOOKUP(F89,MasterReferenceTable!$C$2:$Q$388,2,FALSE)) -> 57213 | H89: =IF(F89="","",VLOOKUP(F89,MasterReferenceTable!$C$2:$Q$388,6,FALSE)) -> Astoria 2.2 SSE (SD-BK-2) | I89: =IF(F89="","",VLOOKUP(F89,MasterReferenceTable!$C$2:$Q$388,7,FALSE)) -> Astoria | J89: =IF(F89="","",VLOOKUP(F89,MasterReferenceTable!$C$2:$Q$388,8,FALSE)) -> SD | K89: =IFERROR(VLOOKUP($F89,MasterReferenceTable!$C$2:$Q$388,9,FALSE),"") -> SD-DL-7 | L89: =IFERROR(VLOOKUP($F89,MasterReferenceTable!$C$2:$Q$388,10,FALSE),"") -> SD-BK-9 | M89: =IFERROR(VLOOKUP($F89,MasterReferenceTable!$C$2:$Q$388,11,FALSE),"") -> SD-BK-56 | N89: =IFERROR(VLOOKUP($F89,MasterReferenceTable!$C$2:$Q$388,12,FALSE),"") -> SD-BK-37 | O89: =IFERROR(VLOOKUP($F89,MasterReferenceTable!$C$2:$Q$388,13,FALSE),"") -> SD-BK-35 | P89: =IFERROR(VLOOKUP($F89,MasterReferenceTable!$C$2:$Q$388,14,FALSE),"") -> SD-BK-7 | AH89: 88
A90: 6 | B90: Brookings | C90: 3 | D90: Brookings 0.2 SSW (SD-BK-7) | E90: =IF(F90="","",VLOOKUP(F90,MasterReferenceTable!$C$1:$Q$388,3,FALSE)) -> BROS2 | F90: SD-BK-7 | G90: =IF(F90="","",VLOOKUP(F90,MasterReferenceTable!$C$2:$Q$388,2,FALSE)) -> 57007 | H90: =IF(F90="","",VLOOKUP(F90,MasterReferenceTable!$C$2:$Q$388,6,FALSE)) -> Brookings 0.2 SSW (SD-BK-7) | I90: =IF(F90="","",VLOOKUP(F90,MasterReferenceTable!$C$2:$Q$388,7,FALSE)) -> Brookings | J90: =IF(F90="","",VLOOKUP(F90,MasterReferenceTable!$C$2:$Q$388,8,FALSE)) -> SD | K90: =IFERROR(VLOOKUP($F90,MasterReferenceTable!$C$2:$Q$388,9,FALSE),"") -> SD-BK-43 | L90: =IFERROR(VLOOKUP($F90,MasterReferenceTable!$C$2:$Q$388,10,FALSE),"") -> SD-BK-35 | M90: =IFERROR(VLOOKUP($F90,MasterReferenceTable!$C$2:$Q$388,11,FALSE),"") -> SD-BK-57 | N90: =IFERROR(VLOOKUP($F90,MasterReferenceTable!$C$2:$Q$388,12,FALSE),"") -> SD-BK-3 | O90: =IFERROR(VLOOKUP($F90,MasterReferenceTable!$C$2:$Q$388,13,FALSE),"") -> SD-BK-56 | P90: =IFERROR(VLOOKUP($F90,MasterReferenceTable!$C$2:$Q$388,14,FALSE),"") -> SD-MY-11 | AH90: 89
A91: 6 | B91: Brookings | C91: 4 | D91: Brookings 0.5 E (SD-BK-35) | E91: =IF(F91="","",VLOOKUP(F91,MasterReferenceTable!$C$1:$Q$388,3,FALSE)) -> BROS2 | F91: SD-BK-35 | G91: =IF(F91="","",VLOOKUP(F91,MasterReferenceTable!$C$2:$Q$388,2,FALSE)) -> 57007 | H91: =IF(F91="","",VLOOKUP(F91,MasterReferenceTable!$C$2:$Q$388,6,FALSE)) -> Brookings 0.5 E (SD-BK-35) | I91: =IF(F91="","",VLOOKUP(F91,MasterReferenceTable!$C$2:$Q$388,7,FALSE)) -> Brookings | J91: =IF(F91="","",VLOOKUP(F91,MasterReferenceTable!$C$2:$Q$388,8,FALSE)) -> SD | K91: =IFERROR(VLOOKUP($F91,MasterReferenceTable!$C$2:$Q$388,9,FALSE),"") -> SD-BK-43 | L91: =IFERROR(VLOOKUP($F91,MasterReferenceTable!$C$2:$Q$388,10,FALSE),"") -> SD-BK-35 | M91: =IFERROR(VLOOKUP($F91,MasterReferenceTable!$C$2:$Q$388,11,FALSE),"") -> SD-BK-57 | N91: =IFERROR(VLOOKUP($F91,MasterReferenceTable!$C$2:$Q$388,12,FALSE),"") -> SD-BK-3 | O91: =IFERROR(VLOOKUP($F91,MasterReferenceTable!$C$2:$Q$388,13,FALSE),"") -> SD-BK-56 | P91: =IFERROR(VLOOKUP($F91,MasterReferenceTable!$C$2:$Q$388,14,FALSE),"") -> SD-MY-11 | AH91: 90
A92: 6 | B92: Brookings | C92: 5 | D92: =H92 -> Brookings 1.0 S (SD-BK-43) | E92: =IF(F92="","",VLOOKUP(F92,MasterReferenceTable!$C$1:$Q$388,3,FALSE)) -> BROS2 | F92: SD-BK-43 | G92: =IF(F92="","",VLOOKUP(F92,MasterReferenceTable!$C$2:$Q$388,2,FALSE)) -> 57007 | H92: =IF(F92="","",VLOOKUP(F92,MasterReferenceTable!$C$2:$Q$388,6,FALSE)) -> Brookings 1.0 S (SD-BK-43) | I92: =IF(F92="","",VLOOKUP(F92,MasterReferenceTable!$C$2:$Q$388,7,FALSE)) -> Brookings | J92: =IF(F92="","",VLOOKUP(F92,MasterReferenceTable!$C$2:$Q$388,8,FALSE)) -> SD | K92: =IFERROR(VLOOKUP($F92,MasterReferenceTable!$C$2:$Q$388,9,FALSE),"") -> SD-BK-43 | L92: =IFERROR(VLOOKUP($F92,MasterReferenceTable!$C$2:$Q$388,10,FALSE),"") -> SD-BK-35 | M92: =IFERROR(VLOOKUP($F92,MasterReferenceTable!$C$2:$Q$388,11,FALSE),"") -> SD-BK-57 | N92: =IFERROR(VLOOKUP($F92,MasterReferenceTable!$C$2:$Q$388,12,FALSE),"") -> SD-BK-3 | O92: =IFERROR(VLOOKUP($F92,MasterReferenceTable!$C$2:$Q$388,13,FALSE),"") -> SD-BK-56 | P92: =IFERROR(VLOOKUP($F92,MasterReferenceTable!$C$2:$Q$388,14,FALSE),"") -> SD-MY-11 | AH92: 91
A93: 6 | B93: Brookings | C93: 6 | D93: Brookings 1.4 SW (SD-BK-3) | E93: =IF(F93="","",VLOOKUP(F93,MasterReferenceTable!$C$1:$Q$388,3,FALSE)) -> BROS2 | F93: SD-BK-3 | G93: =IF(F93="","",VLOOKUP(F93,MasterReferenceTable!$C$2:$Q$388,2,FALSE)) -> 57007 | H93: =IF(F93="","",VLOOKUP(F93,MasterReferenceTable!$C$2:$Q$388,6,FALSE)) -> Brookings 1.4 SW (SD-BK-3) | I93: =IF(F93="","",VLOOKUP(F93,MasterReferenceTable!$C$2:$Q$388,7,FALSE)) -> Brookings | J93: =IF(F93="","",VLOOKUP(F93,MasterReferenceTable!$C$2:$Q$388,8,FALSE)) -> SD | K93: =IFERROR(VLOOKUP($F93,MasterReferenceTable!$C$2:$Q$388,9,FALSE),"") -> SD-BK-43 | L93: =IFERROR(VLOOKUP($F93,MasterReferenceTable!$C$2:$Q$388,10,FALSE),"") -> SD-BK-35 | M93: =IFERROR(VLOOKUP($F93,MasterReferenceTable!$C$2:$Q$388,11,FALSE),"") -> SD-BK-57 | N93: =IFERROR(VLOOKUP($F93,MasterReferenceTable!$C$2:$Q$388,12,FALSE),"") -> SD-BK-3 | O93: =IFERROR(VLOOKUP($F93,MasterReferenceTable!$C$2:$Q$388,13,FALSE),"") -> SD-BK-56 | P93: =IFERROR(VLOOKUP($F93,MasterReferenceTable!$C$2:$Q$388,14,FALSE),"") -> SD-MY-11 | AH93: 92
A94: 6 | B94: Brookings | C94: 7 | D94: Brookings 1.6 S (SD-BK-57) | E94: =IF(F94="","",VLOOKUP(F94,MasterReferenceTable!$C$1:$Q$388,3,FALSE)) -> BROS2 | F94: SD-BK-57 | G94: =IF(F94="","",VLOOKUP(F94,MasterReferenceTable!$C$2:$Q$388,2,FALSE)) -> 57007 | H94: =IF(F94="","",VLOOKUP(F94,MasterReferenceTable!$C$2:$Q$388,6,FALSE)) -> Brookings 1.6 S (SD-BK-57) | I94: =IF(F94="","",VLOOKUP(F94,MasterReferenceTable!$C$2:$Q$388,7,FALSE)) -> Brookings | J94: =IF(F94="","",VLOOKUP(F94,MasterReferenceTable!$C$2:$Q$388,8,FALSE)) -> SD | K94: =IFERROR(VLOOKUP($F94,MasterReferenceTable!$C$2:$Q$388,9,FALSE),"") -> SD-BK-43 | L94: =IFERROR(VLOOKUP($F94,MasterReferenceTable!$C$2:$Q$388,10,FALSE),"") -> SD-BK-35 | M94: =IFERROR(VLOOKUP($F94,MasterReferenceTable!$C$2:$Q$388,11,FALSE),"") -> SD-BK-57 | N94: =IFERROR(VLOOKUP($F94,MasterReferenceTable!$C$2:$Q$388,12,FALSE),"") -> SD-BK-3 | O94: =IFERROR(VLOOKUP($F94,MasterReferenceTable!$C$2:$Q$388,13,FALSE),"") -> SD-BK-56 | P94: =IFERROR(VLOOKUP($F94,MasterReferenceTable!$C$2:$Q$388,14,FALSE),"") -> SD-MY-11 | AH94: 93
A95: 6 | B95: Brookings | C95: 8 | D95: Brookings 6.5 NNW (SD-BK-56) | E95: =IF(F95="","",VLOOKUP(F95,MasterReferenceTable!$C$1:$Q$388,3,FALSE)) -> BROS2 | F95: SD-BK-56 | G95: =IF(F95="","",VLOOKUP(F95,MasterReferenceTable!$C$2:$Q$388,2,FALSE)) -> 57007 | H95: =IF(F95="","",VLOOKUP(F95,MasterReferenceTable!$C$2:$Q$388,6,FALSE)) -> Brookings 6.5 NNW (SD-BK-56) | I95: =IF(F95="","",VLOOKUP(F95,MasterReferenceTable!$C$2:$Q$388,7,FALSE)) -> Brookings | J95: =IF(F95="","",VLOOKUP(F95,MasterReferenceTable!$C$2:$Q$388,8,FALSE)) -> SD | K95: =IFERROR(VLOOKUP($F95,MasterReferenceTable!$C$2:$Q$388,9,FALSE),"") -> SD-BK-9 | L95: =IFERROR(VLOOKUP($F95,MasterReferenceTable!$C$2:$Q$388,10,FALSE),"") -> SD-BK-37 | M95: =IFERROR(VLOOKUP($F95,MasterReferenceTable!$C$2:$Q$388,11,FALSE),"") -> SD-BK-3 | N95: =IFERROR(VLOOKUP($F95,MasterReferenceTable!$C$2:$Q$388,12,FALSE),"") -> SD-BK-7 | O95: =IFERROR(VLOOKUP($F95,MasterReferenceTable!$C$2:$Q$388,13,FALSE),"") -> SD-BK-35 | P95: =IFERROR(VLOOKUP($F95,MasterReferenceTable!$C$2:$Q$388,14,FALSE),"") -> SD-BK-43 | AH95: 94
A96: 6 | B96: Brookings | C96: 9 | D96: Bruce 0.2 SSW (SD-BK-37) | E96: =IF(F96="","",VLOOKUP(F96,MasterReferenceTable!$C$1:$Q$388,3,FALSE)) -> BROS2 | F96: SD-BK-37 | G96: =IF(F96="","",VLOOKUP(F96,MasterReferenceTable!$C$2:$Q$388,2,FALSE)) -> 57220 | H96: =IF(F96="","",VLOOKUP(F96,MasterReferenceTable!$C$2:$Q$388,6,FALSE)) -> Bruce 0.2 SSW (SD-BK-37) | I96: =IF(F96="","",VLOOKUP(F96,MasterReferenceTable!$C$2:$Q$388,7,FALSE)) -> Brookings | J96: =IF(F96="","",VLOOKUP(F96,MasterReferenceTable!$C$2:$Q$388,8,FALSE)) -> SD | K96: =IFERROR(VLOOKUP($F96,MasterReferenceTable!$C$2:$Q$388,9,FALSE),"") -> SD-BK-56 | L96: =IFERROR(VLOOKUP($F96,MasterReferenceTable!$C$2:$Q$388,10,FALSE),"") -> SD-BK-9 | M96: =IFERROR(VLOOKUP($F96,MasterReferenceTable!$C$2:$Q$388,11,FALSE),"") -> SD-BK-3 | N96: =IFERROR(VLOOKUP($F96,MasterReferenceTable!$C$2:$Q$388,12,FALSE),"") -> SD-BK-7 | O96: =IFERROR(VLOOKUP($F96,MasterReferenceTable!$C$2:$Q$388,13,FALSE),"") -> SD-BK-35 | P96: =IFERROR(VLOOKUP($F96,MasterReferenceTable!$C$2:$Q$388,14,FALSE),"") -> SD-BK-43 | AH96: 95
A97: 6 | B97: Brookings | C97: 10 | D97: Bruce 4.1 NE (SD-BK-9) | E97: =IF(F97="","",VLOOKUP(F97,MasterReferenceTable!$C$1:$Q$388,3,FALSE)) -> BROS2 | F97: SD-BK-9 | G97: =IF(F97="","",VLOOKUP(F97,MasterReferenceTable!$C$2:$Q$388,2,FALSE)) -> 57220 | H97: =IF(F97="","",VLOOKUP(F97,MasterReferenceTable!$C$2:$Q$388,6,FALSE)) -> Bruce 4.1 NE (SD-BK-9) | I97: =IF(F97="","",VLOOKUP(F97,MasterReferenceTable!$C$2:$Q$388,7,FALSE)) -> Bruce | J97: =IF(F97="","",VLOOKUP(F97,MasterReferenceTable!$C$2:$Q$388,8,FALSE)) -> SD | K97: =IFERROR(VLOOKUP($F97,MasterReferenceTable!$C$2:$Q$388,9,FALSE),"") -> SD-BK-56 | L97: =IFERROR(VLOOKUP($F97,MasterReferenceTable!$C$2:$Q$388,10,FALSE),"") -> SD-BK-37 | M97: =IFERROR(VLOOKUP($F97,MasterReferenceTable!$C$2:$Q$388,11,FALSE),"") -> SD-BK-3 | N97: =IFERROR(VLOOKUP($F97,MasterReferenceTable!$C$2:$Q$388,12,FALSE),"") -> SD-BK-7 | O97: =IFERROR(VLOOKUP($F97,MasterReferenceTable!$C$2:$Q$388,13,FALSE),"") -> SD-BK-35 | P97: =IFERROR(VLOOKUP($F97,MasterReferenceTable!$C$2:$Q$388,14,FALSE),"") -> SD-BK-43 | AH97: 96
A98: 7 | B98: Brown | C98: 1 | D98: ABERDEEN WSO AP | E98: =IF(F98="","",VLOOKUP(F98,MasterReferenceTable!$C$1:$Q$388,3,FALSE)) -> ABR | F98: 390020 | G98: =IF(F98="","",VLOOKUP(F98,MasterReferenceTable!$C$2:$Q$388,2,FALSE)) -> 57401 | H98: =IF(F98="","",VLOOKUP(F98,MasterReferenceTable!$C$2:$Q$388,6,FALSE)) -> ABERDEEN WSO AP | I98: =IF(F98="","",VLOOKUP(F98,MasterReferenceTable!$C$2:$Q$388,7,FALSE)) -> Aberdeen | J98: =IF(F98="","",VLOOKUP(F98,MasterReferenceTable!$C$2:$Q$388,8,FALSE)) -> SD | K98: =IFERROR(VLOOKUP($F98,MasterReferenceTable!$C$2:$Q$388,9,FALSE),"") -> SD-BR-38 | L98: =IFERROR(VLOOKUP($F98,MasterReferenceTable!$C$2:$Q$388,10,FALSE),"") -> SD-BR-11 | M98: =IFERROR(VLOOKUP($F98,MasterReferenceTable!$C$2:$Q$388,11,FALSE),"") -> SD-ED-14 | N98: =IFERROR(VLOOKUP($F98,MasterReferenceTable!$C$2:$Q$388,12,FALSE),"") -> SD-BR-23 | O98: =IFERROR(VLOOKUP($F98,MasterReferenceTable!$C$2:$Q$388,13,FALSE),"") -> SD-MP-7 | P98: =IFERROR(VLOOKUP($F98,MasterReferenceTable!$C$2:$Q$388,14,FALSE),"") -> SD-ED-9 | AH98: 97
A99: 7 | B99: Brown | C99: 2 | D99: COLUMBIA 8 N | E99: =IF(F99="","",VLOOKUP(F99,MasterReferenceTable!$C$1:$Q$388,3,FALSE)) -> CBAS2 | F99: 391873 | G99: =IF(F99="","",VLOOKUP(F99,MasterReferenceTable!$C$2:$Q$388,2,FALSE)) -> 57433 | H99: =IF(F99="","",VLOOKUP(F99,MasterReferenceTable!$C$2:$Q$388,6,FALSE)) -> COLUMBIA 8 N | I99: =IF(F99="","",VLOOKUP(F99,MasterReferenceTable!$C$2:$Q$388,7,FALSE)) -> Columbia | J99: =IF(F99="","",VLOOKUP(F99,MasterReferenceTable!$C$2:$Q$388,8,FALSE)) -> SD | K99: =IFERROR(VLOOKUP($F99,MasterReferenceTable!$C$2:$Q$388,9,FALSE),"") -> SD-BR-23 | L99: =IFERROR(VLOOKUP($F99,MasterReferenceTable!$C$2:$Q$388,10,FALSE),"") -> SD-BR-11 | M99: =IFERROR(VLOOKUP($F99,MasterReferenceTable!$C$2:$Q$388,11,FALSE),"") -> SD-BR-38 | N99: =IFERROR(VLOOKUP($F99,MasterReferenceTable!$C$2:$Q$388,12,FALSE),"") -> SD-MP-7 | O99: =IFERROR(VLOOKUP($F99,MasterReferenceTable!$C$2:$Q$388,13,FALSE),"") -> SD-ED-14 | P99: =IFERROR(VLOOKUP($F99,MasterReferenceTable!$C$2:$Q$388,14,FALSE),"") -> SD-MR-12 | AH99: 98
A100: 7 | B100: Brown | C100: 3 | D100: Aberdeen 1.5 SSW (SD-BR-11) | E100: =IF(F100="","",VLOOKUP(F100,MasterReferenceTable!$C$1:$Q$388,3,FALSE)) -> ABR | F100: SD-BR-11 | G100: =IF(F100="","",VLOOKUP(F100,MasterReferenceTable!$C$2:$Q$388,2,FALSE)) -> 57401 | H100: =IF(F100="","",VLOOKUP(F100,MasterReferenceTable!$C$2:$Q$388,6,FALSE)) -> Aberdeen 1.5 SSW (SD-BR-11) | I100: =IF(F100="","",VLOOKUP(F100,MasterReferenceTable!$C$2:$Q$388,7,FALSE)) -> Aberdeen | J100: =IF(F100="","",VLOOKUP(F100,MasterReferenceTable!$C$2:$Q$388,8,FALSE)) -> SD | K100: =IFERROR(VLOOKUP($F100,MasterReferenceTable!$C$2:$Q$388,9,FALSE),"") -> SD-BR-38 | L100: =IFERROR(VLOOKUP($F100,MasterReferenceTable!$C$2:$Q$388,10,FALSE),"") -> SD-BR-23 | M100: =IFERROR(VLOOKUP($F100,MasterReferenceTable!$C$2:$Q$388,11,FALSE),"") -> SD-ED-14 | N100: =IFERROR(VLOOKUP($F100,MasterReferenceTable!$C$2:$Q$388,12,FALSE),"") -> SD-ED-9 | O100: =IFERROR(VLOOKUP($F100,MasterReferenceTable!$C$2:$Q$388,13,FALSE),"") -> SD-MP-7 | P100: =IFERROR(VLOOKUP($F100,MasterReferenceTable!$C$2:$Q$388,14,FALSE),"") -> SD-FK-6 | AH100: 99
A101: 7 | B101: Brown | C101: 4 | D101: Aberdeen 1.5 SW (SD-BR-38) | E101: =IF(F101="","",VLOOKUP(F101,MasterReferenceTable!$C$1:$Q$388,3,FALSE)) -> ABR | F101: SD-BR-38 | G101: =IF(F101="","",VLOOKUP(F101,MasterReferenceTable!$C$2:$Q$388,2,FALSE)) -> 57401 | H101: =IF(F101="","",VLOOKUP(F101,MasterReferenceTable!$C$2:$Q$388,6,FALSE)) -> Aberdeen 1.5 SW (SD-BR-38) | I101: =IF(F101="","",VLOOKUP(F101,MasterReferenceTable!$C$2:$Q$388,7,FALSE)) -> Aberdeen | J101: =IF(F101="","",VLOOKUP(F101,MasterReferenceTable!$C$2:$Q$388,8,FALSE)) -> SD | K101: =IFERROR(VLOOKUP($F101,MasterReferenceTable!$C$2:$Q$388,9,FALSE),"") -> SD-BR-11 | L101: =IFERROR(VLOOKUP($F101,MasterReferenceTable!$C$2:$Q$388,10,FALSE),"") -> SD-BR-23 | M101: =IFERROR(VLOOKUP($F101,MasterReferenceTable!$C$2:$Q$388,11,FALSE),"") -> SD-ED-14 | N101: =IFERROR(VLOOKUP($F101,MasterReferenceTable!$C$2:$Q$388,12,FALSE),"") -> SD-MP-7 | O101: =IFERROR(VLOOKUP($F101,MasterReferenceTable!$C$2:$Q$388,13,FALSE),"") -> SD-ED-9 | P101: =IFERROR(VLOOKUP($F101,MasterReferenceTable!$C$2:$Q$388,14,FALSE),"") -> SD-FK-6 | AH101: 100
A102: 7 | B102: Brown | C102: 5 | D102: Aberdeen 7.5 SE (SD-BR-23) | E102: =IF(F102="","",VLOOKUP(F102,MasterReferenceTable!$C$1:$Q$388,3,FALSE)) -> ABR | F102: SD-BR-23 | G102: =IF(F102="","",VLOOKUP(F102,MasterReferenceTable!$C$2:$Q$388,2,FALSE)) -> 57401 | H102: =IF(F102="","",VLOOKUP(F102,MasterReferenceTable!$C$2:$Q$388,6,FALSE)) -> Aberdeen 7.5 SE (SD-BR-23) | I102: =IF(F102="","",VLOOKUP(F102,MasterReferenceTable!$C$2:$Q$388,7,FALSE)) -> Aberdeen | J102: =IF(F102="","",VLOOKUP(F102,MasterReferenceTable!$C$2:$Q$388,8,FALSE)) -> SD | K102: =IFERROR(VLOOKUP($F102,MasterReferenceTable!$C$2:$Q$388,9,FALSE),"") -> SD-BR-11 | L102: =IFERROR(VLOOKUP($F102,MasterReferenceTable!$C$2:$Q$388,10,FALSE),"") -> SD-BR-38 | M102: =IFERROR(VLOOKUP($F102,MasterReferenceTable!$C$2:$Q$388,11,FALSE),"") -> SD-ED-14 | N102: =IFERROR(VLOOKUP($F102,MasterReferenceTable!$C$2:$Q$388,12,FALSE),"") -> SD-ED-9 | O102: =IFERROR(VLOOKUP($F102,MasterReferenceTable!$C$2:$Q$388,13,FALSE),"") -> SD-SP-6 | P102: =IFERROR(VLOOKUP($F102,MasterReferenceTable!$C$2:$Q$388,14,FALSE),"") -> SD-MP-7 | AH102: 101
A103: 8 | B103: Brule | C103: 1 | D103: CHAMBERLAIN 5 S | E103: =IF(F103="","",VLOOKUP(F103,MasterReferenceTable!$C$1:$Q$388,3,FALSE)) -> CBRS2 | F103: 391621 | G103: =IF(F103="","",VLOOKUP(F103,MasterReferenceTable!$C$2:$Q$388,2,FALSE)) -> 57325 | H103: =IF(F103="","",VLOOKUP(F103,MasterReferenceTable!$C$2:$Q$388,6,FALSE)) -> CHAMBERLAIN 5 S | I103: =IF(F103="","",VLOOKUP(F103,MasterReferenceTable!$C$2:$Q$388,7,FALSE)) -> Chamberlain | J103: =IF(F103="","",VLOOKUP(F103,MasterReferenceTable!$C$2:$Q$388,8,FALSE)) -> SD | K103: =IFERROR(VLOOKUP($F103,MasterReferenceTable!$C$2:$Q$388,9,FALSE),"") -> SD-BL-11 | L103: =IFERROR(VLOOKUP($F103,MasterReferenceTable!$C$2:$Q$388,10,FALSE),"") -> SD-BL-1 | M103: =IFERROR(VLOOKUP($F103,MasterReferenceTable!$C$2:$Q$388,11,FALSE),"") -> SD-BL-10 | N103: =IFERROR(VLOOKUP($F103,MasterReferenceTable!$C$2:$Q$388,12,FALSE),"") -> SD-BL-13 | O103: =IFERROR(VLOOKUP($F103,MasterReferenceTable!$C$2:$Q$388,13,FALSE),"") -> SD-LY-26 | P103: =IFERROR(VLOOKUP($F103,MasterReferenceTable!$C$2:$Q$388,14,FALSE),"") -> SD-GY-3 | AH103: 102
A104: 8 | B104: Brule | C104: 2 | D104: Chamberlain 0.3 W (SD-BL-1) | E104: =IF(F104="","",VLOOKUP(F104,MasterReferenceTable!$C$1:$Q$388,3,FALSE)) -> CBRS2 | F104: SD-BL-1 | G104: =IF(F104="","",VLOOKUP(F104,MasterReferenceTable!$C$2:$Q$388,2,FALSE)) -> 57325 | H104: =IF(F104="","",VLOOKUP(F104,MasterReferenceTable!$C$2:$Q$388,6,FALSE)) -> Chamberlain 0.3 W (SD-BL-1) | I104: =IF(F104="","",VLOOKUP(F104,MasterReferenceTable!$C$2:$Q$388,7,FALSE)) -> Chamberlain | J104: =IF(F104="","",VLOOKUP(F104,MasterReferenceTable!$C$2:$Q$388,8,FALSE)) -> SD | K104: =IFERROR(VLOOKUP($F104,MasterReferenceTable!$C$2:$Q$388,9,FALSE),"") -> SD-BL-10 | L104: =IFERROR(VLOOKUP($F104,MasterReferenceTable!$C$2:$Q$388,10,FALSE),"") -> SD-BL-13 | M104: =IFERROR(VLOOKUP($F104,MasterReferenceTable!$C$2:$Q$388,11,FALSE),"") -> SD-BL-11 | N104: =IFERROR(VLOOKUP($F104,MasterReferenceTable!$C$2:$Q$388,12,FALSE),"") -> SD-LY-26 | O104: =IFERROR(VLOOKUP($F104,MasterReferenceTable!$C$2:$Q$388,13,FALSE),"") -> SD-GY-3 | P104: =IFERROR(VLOOKUP($F104,MasterReferenceTable!$C$2:$Q$388,14,FALSE),"") -> SD-TP-7 | AH104: 103
A105: 8 | B105: Brule | C105: 3 | D105: =H105 -> Chamberlain 7.5 NNE (SD-BL-13) | E105: =IF(F105="","",VLOOKUP(F105,MasterReferenceTable!$C$1:$Q$388,3,FALSE)) -> CBRS2 | F105: SD-BL-13 | G105: =IF(F105="","",VLOOKUP(F105,MasterReferenceTable!$C$2:$Q$388,2,FALSE)) -> 57325 | H105: =IF(F105="","",VLOOKUP(F105,MasterReferenceTable!$C$2:$Q$388,6,FALSE)) -> Chamberlain 7.5 NNE (SD-BL-13) | I105: =IF(F105="","",VLOOKUP(F105,MasterReferenceTable!$C$2:$Q$388,7,FALSE)) -> Chamberlain | J105: =IF(F105="","",VLOOKUP(F105,MasterReferenceTable!$C$2:$Q$388,8,FALSE)) -> SD | K105: =IFERROR(VLOOKUP($F105,MasterReferenceTable!$C$2:$Q$388,9,FALSE),"") -> SD-BL-1 | L105: =IFERROR(VLOOKUP($F105,MasterReferenceTable!$C$2:$Q$388,10,FALSE),"") -> SD-BL-11 | M105: =IFERROR(VLOOKUP($F105,MasterReferenceTable!$C$2:$Q$388,11,FALSE),"") -> SD-LY-26 | N105: =IFERROR(VLOOKUP($F105,MasterReferenceTable!$C$2:$Q$388,12,FALSE),"") -> SD-BL-10 | O105: =IFERROR(VLOOKUP($F105,MasterReferenceTable!$C$2:$Q$388,13,FALSE),"") -> SD-LY-2 | P105: =IFERROR(VLOOKUP($F105,MasterReferenceTable!$C$2:$Q$388,14,FALSE),"") -> SD-JR-8 | AH105: 104
A106: 8 | B106: Brule | C106: 4 | D106: Chamberlain 7.5 SSW (SD-BL-10) | E106: =IF(F106="","",VLOOKUP(F106,MasterReferenceTable!$C$1:$Q$388,3,FALSE)) -> CBRS2 | F106: SD-BL-10 | G106: =IF(F106="","",VLOOKUP(F106,MasterReferenceTable!$C$2:$Q$388,2,FALSE)) -> 57325 | H106: =IF(F106="","",VLOOKUP(F106,MasterReferenceTable!$C$2:$Q$388,6,FALSE)) -> Chamberlain 7.5 SSW (SD-BL-10) | I106: =IF(F106="","",VLOOKUP(F106,MasterReferenceTable!$C$2:$Q$388,7,FALSE)) -> Chamberlain | J106: =IF(F106="","",VLOOKUP(F106,MasterReferenceTable!$C$2:$Q$388,8,FALSE)) -> SD | K106: =IFERROR(VLOOKUP($F106,MasterReferenceTable!$C$2:$Q$388,9,FALSE),"") -> SD-BL-1 | L106: =IFERROR(VLOOKUP($F106,MasterReferenceTable!$C$2:$Q$388,10,FALSE),"") -> SD-BL-11 | M106: =IFERROR(VLOOKUP($F106,MasterReferenceTable!$C$2:$Q$388,11,FALSE),"") -> SD-BL-13 | N106: =IFERROR(VLOOKUP($F106,MasterReferenceTable!$C$2:$Q$388,12,FALSE),"") -> SD-LY-26 | O106: =IFERROR(VLOOKUP($F106,MasterReferenceTable!$C$2:$Q$388,13,FALSE),"") -> SD-GY-3 | P106: =IFERROR(VLOOKUP($F106,MasterReferenceTable!$C$2:$Q$388,14,FALSE),"") -> SD-TP-7 | AH106: 105
A107: 8 | B107: Brule | C107: 5 | D107: Pukwana 1.9 S (SD-BL-11) | E107: =IF(F107="","",VLOOKUP(F107,MasterReferenceTable!$C$1:$Q$388,3,FALSE)) -> CBRS2 | F107: SD-BL-11 | G107: =IF(F107="","",VLOOKUP(F107,MasterReferenceTable!$C$2:$Q$388,2,FALSE)) -> 57370 | H107: =IF(F107="","",VLOOKUP(F107,MasterReferenceTable!$C$2:$Q$388,6,FALSE)) -> Pukwana 1.9 S (SD-BL-11) | I107: =IF(F107="","",VLOOKUP(F107,MasterReferenceTable!$C$2:$Q$388,7,FALSE)) -> Pukwana | J107: =IF(F107="","",VLOOKUP(F107,MasterReferenceTable!$C$2:$Q$388,8,FALSE)) -> SD | K107: =IFERROR(VLOOKUP($F107,MasterReferenceTable!$C$2:$Q$388,9,FALSE),"") -> SD-BL-1 | L107: =IFERROR(VLOOKUP($F107,MasterReferenceTable!$C$2:$Q$388,10,FALSE),"") -> SD-BL-13 | M107: =IFERROR(VLOOKUP($F107,MasterReferenceTable!$C$2:$Q$388,11,FALSE),"") -> SD-BL-10 | N107: =IFERROR(VLOOKUP($F107,MasterReferenceTable!$C$2:$Q$388,12,FALSE),"") -> SD-LY-26 | O107: =IFERROR(VLOOKUP($F107,MasterReferenceTable!$C$2:$Q$388,13,FALSE),"") -> SD-GY-3 | P107: =IFERROR(VLOOKUP($F107,MasterReferenceTable!$C$2:$Q$388,14,FALSE),"") -> SD-GY-10 | AH107: 106
A108: 9 | B108: Buffalo | C108: 1 | D108: GANN VALLEY | E108: =IF(F108="","",VLOOKUP(F108,MasterReferenceTable!$C$1:$Q$388,3,FALSE)) -> GANS2 | F108: 393217 | G108: =IF(F108="","",VLOOKUP(F108,MasterReferenceTable!$C$2:$Q$388,2,FALSE)) -> 57341 | H108: =IF(F108="","",VLOOKUP(F108,MasterReferenceTable!$C$2:$Q$388,6,FALSE)) -> GANN VALLEY | I108: =IF(F108="","",VLOOKUP(F108,MasterReferenceTable!$C$2:$Q$388,7,FALSE)) -> Gann Valley | J108: =IF(F108="","",VLOOKUP(F108,MasterReferenceTable!$C$2:$Q$388,8,FALSE)) -> SD | K108: =IFERROR(VLOOKUP($F108,MasterReferenceTable!$C$2:$Q$388,9,FALSE),"") -> SD-BL-13 | L108: =IFERROR(VLOOKUP($F108,MasterReferenceTable!$C$2:$Q$388,10,FALSE),"") -> SD-BL-11 | M108: =IFERROR(VLOOKUP($F108,MasterReferenceTable!$C$2:$Q$388,11,FALSE),"") -> SD-BL-1 | N108: =IFERROR(VLOOKUP($F108,MasterReferenceTable!$C$2:$Q$388,12,FALSE),"") -> SD-HD-12 | O108: =IFERROR(VLOOKUP($F108,MasterReferenceTable!$C$2:$Q$388,13,FALSE),"") -> SD-JR-8 | P108: =IFERROR(VLOOKUP($F108,MasterReferenceTable!$C$2:$Q$388,14,FALSE),"") -> SD-LY-26 | AH108: 107
E109: =IF(F109="","",VLOOKUP(F109,MasterReferenceTable!$C$1:$Q$388,3,FALSE)) ->  | G109: =IF(F109="","",VLOOKUP(F109,MasterReferenceTable!$C$2:$Q$388,2,FALSE)) ->  | H109: =IF(F109="","",VLOOKUP(F109,MasterReferenceTable!$C$2:$Q$388,6,FALSE)) ->  | I109: =IF(F109="","",VLOOKUP(F109,MasterReferenceTable!$C$2:$Q$388,7,FALSE)) ->  | J109: =IF(F109="","",VLOOKUP(F109,MasterReferenceTable!$C$2:$Q$388,8,FALSE)) ->  | K109: =IFERROR(VLOOKUP($F109,MasterReferenceTable!$C$2:$Q$388,9,FALSE),"") ->  | L109: =IFERROR(VLOOKUP($F109,MasterReferenceTable!$C$2:$Q$388,10,FALSE),"") ->  | M109: =IFERROR(VLOOKUP($F109,MasterReferenceTable!$C$2:$Q$388,11,FALSE),"") ->  | N109: =IFERROR(VLOOKUP($F109,MasterReferenceTable!$C$2:$Q$388,12,FALSE),"") ->  | O109: =IFERROR(VLOOKUP($F109,MasterReferenceTable!$C$2:$Q$388,13,FALSE),"") ->  | P109: =IFERROR(VLOOKUP($F109,MasterReferenceTable!$C$2:$Q$388,14,FALSE),"") ->  | AH109: 108
A110: 10 | B110: Butte | C110: 1 | D110: BELLE FOURCHE | E110: =IF(F110="","",VLOOKUP(F110,MasterReferenceTable!$C$1:$Q$388,3,FALSE)) -> BELS2 | F110: 390559 | G110: =IF(F110="","",VLOOKUP(F110,MasterReferenceTable!$C$2:$Q$388,2,FALSE)) -> 57717 | H110: =IF(F110="","",VLOOKUP(F110,MasterReferenceTable!$C$2:$Q$388,6,FALSE)) -> BELLE FOURCHE | I110: =IF(F110="","",VLOOKUP(F110,MasterReferenceTable!$C$2:$Q$388,7,FALSE)) -> SaintOnge | J110: =IF(F110="","",VLOOKUP(F110,MasterReferenceTable!$C$2:$Q$388,8,FALSE)) -> SD | K110: =IFERROR(VLOOKUP($F110,MasterReferenceTable!$C$2:$Q$388,9,FALSE),"") -> SD-LW-1 | L110: =IFERROR(VLOOKUP($F110,MasterReferenceTable!$C$2:$Q$388,10,FALSE),"") -> SD-LW-24 | M110: =IFERROR(VLOOKUP($F110,MasterReferenceTable!$C$2:$Q$388,11,FALSE),"") -> SD-BT-15 | N110: =IFERROR(VLOOKUP($F110,MasterReferenceTable!$C$2:$Q$388,12,FALSE),"") -> SD-LW-26 | O110: =IFERROR(VLOOKUP($F110,MasterReferenceTable!$C$2:$Q$388,13,FALSE),"") -> SD-BT-10 | P110: =IFERROR(VLOOKUP($F110,MasterReferenceTable!$C$2:$Q$388,14,FALSE),"") -> WY-CK-18 | AH110: 109
A111: 10 | B111: Butte | C111: 2 | D111: NEWELL | E111: =IF(F111="","",VLOOKUP(F111,MasterReferenceTable!$C$1:$Q$388,3,FALSE)) -> NWLS2 | F111: 396054 | G111: =IF(F111="","",VLOOKUP(F111,MasterReferenceTable!$C$2:$Q$388,2,FALSE)) -> 57760 | H111: =IF(F111="","",VLOOKUP(F111,MasterReferenceTable!$C$2:$Q$388,6,FALSE)) -> NEWELL | I111: =IF(F111="","",VLOOKUP(F111,MasterReferenceTable!$C$2:$Q$388,7,FALSE)) -> Nisland | J111: =IF(F111="","",VLOOKUP(F111,MasterReferenceTable!$C$2:$Q$388,8,FALSE)) -> SD | K111: =IFERROR(VLOOKUP($F111,MasterReferenceTable!$C$2:$Q$388,9,FALSE),"") -> SD-BT-10 | L111: =IFERROR(VLOOKUP($F111,MasterReferenceTable!$C$2:$Q$388,10,FALSE),"") -> SD-BT-15 | M111: =IFERROR(VLOOKUP($F111,MasterReferenceTable!$C$2:$Q$388,11,FALSE),"") -> SD-MD-9 | N111: =IFERROR(VLOOKUP($F111,MasterReferenceTable!$C$2:$Q$388,12,FALSE),"") -> SD-MD-38 | O111: =IFERROR(VLOOKUP($F111,MasterReferenceTable!$C$2:$Q$388,13,FALSE),"") -> SD-MD-32 | P111: =IFERROR(VLOOKUP($F111,MasterReferenceTable!$C$2:$Q$388,14,FALSE),"") -> SD-PK-6 | AH111: 110
A112: 10 | B112: Butte | C112: 3 | D112: Newell 2.6 ENE (SD-BT-15) | E112: =IF(F112="","",VLOOKUP(F112,MasterReferenceTable!$C$1:$Q$388,3,FALSE)) -> NWLS2 | F112: SD-BT-15 | G112: =IF(F112="","",VLOOKUP(F112,MasterReferenceTable!$C$2:$Q$388,2,FALSE)) -> 57760 | H112: =IF(F112="","",VLOOKUP(F112,MasterReferenceTable!$C$2:$Q$388,6,FALSE)) -> Newell 2.6 ENE (SD-BT-15) | I112: =IF(F112="","",VLOOKUP(F112,MasterReferenceTable!$C$2:$Q$388,7,FALSE)) -> Newell | J112: =IF(F112="","",VLOOKUP(F112,MasterReferenceTable!$C$2:$Q$388,8,FALSE)) -> SD | K112: =IFERROR(VLOOKUP($F112,MasterReferenceTable!$C$2:$Q$388,9,FALSE),"") -> SD-BT-10 | L112: =IFERROR(VLOOKUP($F112,MasterReferenceTable!$C$2:$Q$388,10,FALSE),"") -> SD-MD-31 | M112: =IFERROR(VLOOKUP($F112,MasterReferenceTable!$C$2:$Q$388,11,FALSE),"") -> SD-LW-1 | N112: =IFERROR(VLOOKUP($F112,MasterReferenceTable!$C$2:$Q$388,12,FALSE),"") -> SD-MD-32 | O112: =IFERROR(VLOOKUP($F112,MasterReferenceTable!$C$2:$Q$388,13,FALSE),"") -> SD-MD-38 | P112: =IFERROR(VLOOKUP($F112,MasterReferenceTable!$C$2:$Q$388,14,FALSE),"") -> SD-PN-56 | AH112: 111
A113: 10 | B113: Butte | C113: 4 | D113: Newell 6.5 ENE (SD-BT-10) | E113: =IF(F113="","",VLOOKUP(F113,MasterReferenceTable!$C$1:$Q$388,3,FALSE)) -> NWLS2 | F113: SD-BT-10 | G113: =IF(F113="","",VLOOKUP(F113,MasterReferenceTable!$C$2:$Q$388,2,FALSE)) -> 57760 | H113: =IF(F113="","",VLOOKUP(F113,MasterReferenceTable!$C$2:$Q$388,6,FALSE)) -> Newell 6.5 ENE (SD-BT-10) | I113: =IF(F113="","",VLOOKUP(F113,MasterReferenceTable!$C$2:$Q$388,7,FALSE)) -> Newell | J113: =IF(F113="","",VLOOKUP(F113,MasterReferenceTable!$C$2:$Q$388,8,FALSE)) -> SD | K113: =IFERROR(VLOOKUP($F113,MasterReferenceTable!$C$2:$Q$388,9,FALSE),"") -> SD-BT-15 | L113: =IFERROR(VLOOKUP($F113,MasterReferenceTable!$C$2:$Q$388,10,FALSE),"") -> SD-MD-32 | M113: =IFERROR(VLOOKUP($F113,MasterReferenceTable!$C$2:$Q$388,11,FALSE),"") -> SD-MD-38 | N113: =IFERROR(VLOOKUP($F113,MasterReferenceTable!$C$2:$Q$388,12,FALSE),"") -> SD-MD-31 | O113: =IFERROR(VLOOKUP($F113,MasterReferenceTable!$C$2:$Q$388,13,FALSE),"") -> SD-LW-1 | P113: =IFERROR(VLOOKUP($F113,MasterReferenceTable!$C$2:$Q$388,14,FALSE),"") -> SD-PN-2 | AH113: 112
A114: 10 | B114: Butte | C114: 5 | D114: Indian Butte South Dakota (RAWS) | E114: =IF(F114="","",VLOOKUP(F114,MasterReferenceTable!$C$1:$Q$388,3,FALSE)) -> USR0000SIND | F114: sdSIND | G114: =IF(F114="","",VLOOKUP(F114,MasterReferenceTable!$C$2:$Q$388,2,FALSE)) -> 57717 | H114: =IF(F114="","",VLOOKUP(F114,MasterReferenceTable!$C$2:$Q$388,6,FALSE)) -> Indian Butte South Dakota (RAWS) | I114: =IF(F114="","",VLOOKUP(F114,MasterReferenceTable!$C$2:$Q$388,7,FALSE)) -> BelleFourche | J114: =IF(F114="","",VLOOKUP(F114,MasterReferenceTable!$C$2:$Q$388,8,FALSE)) -> SD | K114: =IFERROR(VLOOKUP($F114,MasterReferenceTable!$C$2:$Q$388,9,FALSE),"") -> SD-LW-24 | L114: =IFERROR(VLOOKUP($F114,MasterReferenceTable!$C$2:$Q$388,10,FALSE),"") -> SD-LW-26 | M114: =IFERROR(VLOOKUP($F114,MasterReferenceTable!$C$2:$Q$388,11,FALSE),"") -> SD-HR-24 | N114: =IFERROR(VLOOKUP($F114,MasterReferenceTable!$C$2:$Q$388,12,FALSE),"") -> SD-HR-20 | O114: =IFERROR(VLOOKUP($F114,MasterReferenceTable!$C$2:$Q$388,13,FALSE),"") -> SD-LW-15 | P114: =IFERROR(VLOOKUP($F114,MasterReferenceTable!$C$2:$Q$388,14,FALSE),"") -> 0 | AH114: 113
A115: 11 | B115: Campbell | C115: 1 | D115: POLLOCK | E115: =IF(F115="","",VLOOKUP(F115,MasterReferenceTable!$C$1:$Q$388,3,FALSE)) -> POLS2 | F115: 396712 | G115: =IF(F115="","",VLOOKUP(F115,MasterReferenceTable!$C$2:$Q$388,2,FALSE)) -> 57648 | H115: =IF(F115="","",VLOOKUP(F115,MasterReferenceTable!$C$2:$Q$388,6,FALSE)) -> POLLOCK | I115: =IF(F115="","",VLOOKUP(F115,MasterReferenceTable!$C$2:$Q$388,7,FALSE)) -> Pollock | J115: =IF(F115="","",VLOOKUP(F115,MasterReferenceTable!$C$2:$Q$388,8,FALSE)) -> SD | K115: =IFERROR(VLOOKUP($F115,MasterReferenceTable!$C$2:$Q$388,9,FALSE),"") -> SD-CP-6 | L115: =IFERROR(VLOOKUP($F115,MasterReferenceTable!$C$2:$Q$388,10,FALSE),"") -> SD-CP-9 | M115: =IFERROR(VLOOKUP($F115,MasterReferenceTable!$C$2:$Q$388,11,FALSE),"") -> SD-MP-3 | N115: =IFERROR(VLOOKUP($F115,MasterReferenceTable!$C$2:$Q$388,12,FALSE),"") -> 0 | O115: =IFERROR(VLOOKUP($F115,MasterReferenceTable!$C$2:$Q$388,13,FALSE),"") -> 0 | P115: =IFERROR(VLOOKUP($F115,MasterReferenceTable!$C$2:$Q$388,14,FALSE),"") -> 0 | AH115: 114
A116: 11 | B116: Campbell | C116: 2 | D116: Herreid 3.6 ESE (SD-CP-6) | E116: =IF(F116="","",VLOOKUP(F116,MasterReferenceTable!$C$1:$Q$388,3,FALSE)) -> POLS2 | F116: SD-CP-6 | G116: =IF(F116="","",VLOOKUP(F116,MasterReferenceTable!$C$2:$Q$388,2,FALSE)) -> 57632 | H116: =IF(F116="","",VLOOKUP(F116,MasterReferenceTable!$C$2:$Q$388,6,FALSE)) -> Herreid 3.6 ESE (SD-CP-6) | I116: =IF(F116="","",VLOOKUP(F116,MasterReferenceTable!$C$2:$Q$388,7,FALSE)) -> Herreid | J116: =IF(F116="","",VLOOKUP(F116,MasterReferenceTable!$C$2:$Q$388,8,FALSE)) -> SD | K116: =IFERROR(VLOOKUP($F116,MasterReferenceTable!$C$2:$Q$388,9,FALSE),"") -> SD-CP-9 | L116: =IFERROR(VLOOKUP($F116,MasterReferenceTable!$C$2:$Q$388,10,FALSE),"") -> SD-MP-3 | M116: =IFERROR(VLOOKUP($F116,MasterReferenceTable!$C$2:$Q$388,11,FALSE),"") -> SD-ED-6 | N116: =IFERROR(VLOOKUP($F116,MasterReferenceTable!$C$2:$Q$388,12,FALSE),"") -> 0 | O116: =IFERROR(VLOOKUP($F116,MasterReferenceTable!$C$2:$Q$388,13,FALSE),"") -> 0 | P116: =IFERROR(VLOOKUP($F116,MasterReferenceTable!$C$2:$Q$388,14,FALSE),"") -> 0 | AH116: 115
A117: 11 | B117: Campbell | C117: 3 | D117: Java 11.5 NNE (SD-CP-9) | E117: =IF(F117="","",VLOOKUP(F117,MasterReferenceTable!$C$1:$Q$388,3,FALSE)) -> POLS2 | F117: SD-CP-9 | G117: =IF(F117="","",VLOOKUP(F117,MasterReferenceTable!$C$2:$Q$388,2,FALSE)) -> 57452 | H117: =IF(F117="","",VLOOKUP(F117,MasterReferenceTable!$C$2:$Q$388,6,FALSE)) -> Java 11.5 NNE (SD-CP-9) | I117: =IF(F117="","",VLOOKUP(F117,MasterReferenceTable!$C$2:$Q$388,7,FALSE)) -> Java | J117: =IF(F117="","",VLOOKUP(F117,MasterReferenceTable!$C$2:$Q$388,8,FALSE)) -> SD | K117: =IFERROR(VLOOKUP($F117,MasterReferenceTable!$C$2:$Q$388,9,FALSE),"") -> SD-MP-3 | L117: =IFERROR(VLOOKUP($F117,MasterReferenceTable!$C$2:$Q$388,10,FALSE),"") -> SD-CP-6 | M117: =IFERROR(VLOOKUP($F117,MasterReferenceTable!$C$2:$Q$388,11,FALSE),"") -> SD-ED-6 | N117: =IFERROR(VLOOKUP($F117,MasterReferenceTable!$C$2:$Q$388,12,FALSE),"") -> SD-ED-16 | O117: =IFERROR(VLOOKUP($F117,MasterReferenceTable!$C$2:$Q$388,13,FALSE),"") -> 0 | P117: =IFERROR(VLOOKUP($F117,MasterReferenceTable!$C$2:$Q$388,14,FALSE),"") -> 0 | AH117: 116
A118: 12 | B118: Charles Mix | C118: 1 | D118: ACADEMY 2 NE | E118: =IF(F118="","",VLOOKUP(F118,MasterReferenceTable!$C$1:$Q$388,3,FALSE)) -> ACYS2 | F118: 390043 | G118: =IF(F118="","",VLOOKUP(F118,MasterReferenceTable!$C$2:$Q$388,2,FALSE)) -> 57369 | H118: =IF(F118="","",VLOOKUP(F118,MasterReferenceTable!$C$2:$Q$388,6,FALSE)) -> ACADEMY 2 NE | I118: =IF(F118="","",VLOOKUP(F118,MasterReferenceTable!$C$2:$Q$388,7,FALSE)) -> Platte | J118: =IF(F118="","",VLOOKUP(F118,MasterReferenceTable!$C$2:$Q$388,8,FALSE)) -> SD | K118: =IFERROR(VLOOKUP($F118,MasterReferenceTable!$C$2:$Q$388,9,FALSE),"") -> SD-GY-21 | L118: =IFERROR(VLOOKUP($F118,MasterReferenceTable!$C$2:$Q$388,10,FALSE),"") -> SD-GY-3 | M118: =IFERROR(VLOOKUP($F118,MasterReferenceTable!$C$2:$Q$388,11,FALSE),"") -> SD-GY-10 | N118: =IFERROR(VLOOKUP($F118,MasterReferenceTable!$C$2:$Q$388,12,FALSE),"") -> SD-BL-11 | O118: =IFERROR(VLOOKUP($F118,MasterReferenceTable!$C$2:$Q$388,13,FALSE),"") -> SD-GY-18 | P118: =IFERROR(VLOOKUP($F118,MasterReferenceTable!$C$2:$Q$388,14,FALSE),"") -> SD-GY-15 | AH118: 117
A119: 12 | B119: Charles Mix | C119: 2 | D119: PICKSTOWN | E119: =IF(F119="","",VLOOKUP(F119,MasterReferenceTable!$C$1:$Q$388,3,FALSE)) -> PKSS2 | F119: 396574 | G119: =IF(F119="","",VLOOKUP(F119,MasterReferenceTable!$C$2:$Q$388,2,FALSE)) -> 57367 | H119: =IF(F119="","",VLOOKUP(F119,MasterReferenceTable!$C$2:$Q$388,6,FALSE)) -> PICKSTOWN | I119: =IF(F119="","",VLOOKUP(F119,MasterReferenceTable!$C$2:$Q$388,7,FALSE)) -> Pickstown | J119: =IF(F119="","",VLOOKUP(F119,MasterReferenceTable!$C$2:$Q$388,8,FALSE)) -> SD | K119: =IFERROR(VLOOKUP($F119,MasterReferenceTable!$C$2:$Q$388,9,FALSE),"") -> SD-CM-14 | L119: =IFERROR(VLOOKUP($F119,MasterReferenceTable!$C$2:$Q$388,10,FALSE),"") -> SD-DG-2 | M119: =IFERROR(VLOOKUP($F119,MasterReferenceTable!$C$2:$Q$388,11,FALSE),"") -> SD-GY-21 | N119: =IFERROR(VLOOKUP($F119,MasterReferenceTable!$C$2:$Q$388,12,FALSE),"") -> SD-DG-11 | O119: =IFERROR(VLOOKUP($F119,MasterReferenceTable!$C$2:$Q$388,13,FALSE),"") -> SD-AR-8 | P119: =IFERROR(VLOOKUP($F119,MasterReferenceTable!$C$2:$Q$388,14,FALSE),"") -> SD-BH-15 | AH119: 118
A120: 12 | B120: Charles Mix | C120: 3 | D120: Wagner 0.8 NW (SD-CM-14) | E120: =IF(F120="","",VLOOKUP(F120,MasterReferenceTable!$C$1:$Q$388,3,FALSE)) -> PKSS2 | F120: SD-CM-14 | G120: =IF(F120="","",VLOOKUP(F120,MasterReferenceTable!$C$2:$Q$388,2,FALSE)) -> 57380 | H120: =IF(F120="","",VLOOKUP(F120,MasterReferenceTable!$C$2:$Q$388,6,FALSE)) -> Wagner 0.8 NW (SD-CM-14) | I120: =IF(F120="","",VLOOKUP(F120,MasterReferenceTable!$C$2:$Q$388,7,FALSE)) -> Wagner | J120: =IF(F120="","",VLOOKUP(F120,MasterReferenceTable!$C$2:$Q$388,8,FALSE)) -> SD | K120: =IFERROR(VLOOKUP($F120,MasterReferenceTable!$C$2:$Q$388,9,FALSE),"") -> SD-BH-15 | L120: =IFERROR(VLOOKUP($F120,MasterReferenceTable!$C$2:$Q$388,10,FALSE),"") -> SD-DG-2 | M120: =IFERROR(VLOOKUP($F120,MasterReferenceTable!$C$2:$Q$388,11,FALSE),"") -> SD-DG-11 | N120: =IFERROR(VLOOKUP($F120,MasterReferenceTable!$C$2:$Q$388,12,FALSE),"") -> SD-BH-12 | O120: =IFERROR(VLOOKUP($F120,MasterReferenceTable!$C$2:$Q$388,13,FALSE),"") -> SD-DG-1 | P120: =IFERROR(VLOOKUP($F120,MasterReferenceTable!$C$2:$Q$388,14,FALSE),"") -> SD-HT-2 | AH120: 119
A121: 12 | B121: Charles Mix | C121: 4 | D121: Lake Andes South Dakota (RAWS) | E121: =IF(F121="","",VLOOKUP(F121,MasterReferenceTable!$C$1:$Q$388,3,FALSE)) -> USR0000SLAN | F121: sdSLAN | G121: =IF(F121="","",VLOOKUP(F121,MasterReferenceTable!$C$2:$Q$388,2,FALSE)) -> 57342 | H121: =IF(F121="","",VLOOKUP(F121,MasterReferenceTable!$C$2:$Q$388,6,FALSE)) -> Lake Andes South Dakota (RAWS) | I121: =IF(F121="","",VLOOKUP(F121,MasterReferenceTable!$C$2:$Q$388,7,FALSE)) -> Geddes | J121: =IF(F121="","",VLOOKUP(F121,MasterReferenceTable!$C$2:$Q$388,8,FALSE)) -> SD | K121: =IFERROR(VLOOKUP($F121,MasterReferenceTable!$C$2:$Q$388,9,FALSE),"") -> SD-GY-21 | L121: =IFERROR(VLOOKUP($F121,MasterReferenceTable!$C$2:$Q$388,10,FALSE),"") -> SD-DG-2 | M121: =IFERROR(VLOOKUP($F121,MasterReferenceTable!$C$2:$Q$388,11,FALSE),"") -> SD-DG-11 | N121: =IFERROR(VLOOKUP($F121,MasterReferenceTable!$C$2:$Q$388,12,FALSE),"") -> SD-AR-8 | O121: =IFERROR(VLOOKUP($F121,MasterReferenceTable!$C$2:$Q$388,13,FALSE),"") -> SD-GY-10 | P121: =IFERROR(VLOOKUP($F121,MasterReferenceTable!$C$2:$Q$388,14,FALSE),"") -> SD-CM-14 | AH121: 120
A122: 12 | B122: Charles Mix | C122: 5 | D122: WAGNER (1916-2010) | E122: =IF(F122="","",VLOOKUP(F122,MasterReferenceTable!$C$1:$Q$388,3,FALSE)) -> WAGS2 | F122: 398767 | G122: =IF(F122="","",VLOOKUP(F122,MasterReferenceTable!$C$2:$Q$388,2,FALSE)) -> 57380 | H122: =IF(F122="","",VLOOKUP(F122,MasterReferenceTable!$C$2:$Q$388,6,FALSE)) -> WAGNER (1916-2010) | I122: =IF(F122="","",VLOOKUP(F122,MasterReferenceTable!$C$2:$Q$388,7,FALSE)) -> Wagner | J122: =IF(F122="","",VLOOKUP(F122,MasterReferenceTable!$C$2:$Q$388,8,FALSE)) -> SD | K122: =IFERROR(VLOOKUP($F122,MasterReferenceTable!$C$2:$Q$388,9,FALSE),"") -> SD-CM-14 | L122: =IFERROR(VLOOKUP($F122,MasterReferenceTable!$C$2:$Q$388,10,FALSE),"") -> SD-BH-15 | M122: =IFERROR(VLOOKUP($F122,MasterReferenceTable!$C$2:$Q$388,11,FALSE),"") -> SD-DG-2 | N122: =IFERROR(VLOOKUP($F122,MasterReferenceTable!$C$2:$Q$388,12,FALSE),"") -> SD-BH-12 | O122: =IFERROR(VLOOKUP($F122,MasterReferenceTable!$C$2:$Q$388,13,FALSE),"") -> SD-DG-11 | P122: =IFERROR(VLOOKUP($F122,MasterReferenceTable!$C$2:$Q$388,14,FALSE),"") -> SD-DG-1 | AH122: 121
A123: 13 | B123: Clark | C123: 1 | D123: CLARK | E123: =IF(F123="","",VLOOKUP(F123,MasterReferenceTable!$C$1:$Q$388,3,FALSE)) -> CLAS2 | F123: 391739 | G123: =IF(F123="","",VLOOKUP(F123,MasterReferenceTable!$C$2:$Q$388,2,FALSE)) -> 57225 | H123: =IF(F123="","",VLOOKUP(F123,MasterReferenceTable!$C$2:$Q$388,6,FALSE)) -> CLARK | I123: =IF(F123="","",VLOOKUP(F123,MasterReferenceTable!$C$2:$Q$388,7,FALSE)) -> Clark | J123: =IF(F123="","",VLOOKUP(F123,MasterReferenceTable!$C$2:$Q$388,8,FALSE)) -> SD | K123: =IFERROR(VLOOKUP($F123,MasterReferenceTable!$C$2:$Q$388,9,FALSE),"") -> SD-DY-10 | L123: =IFERROR(VLOOKUP($F123,MasterReferenceTable!$C$2:$Q$388,10,FALSE),"") -> SD-SP-6 | M123: =IFERROR(VLOOKUP($F123,MasterReferenceTable!$C$2:$Q$388,11,FALSE),"") -> SD-CD-30 | N123: =IFERROR(VLOOKUP($F123,MasterReferenceTable!$C$2:$Q$388,12,FALSE),"") -> SD-CD-32 | O123: =IFERROR(VLOOKUP($F123,MasterReferenceTable!$C$2:$Q$388,13,FALSE),"") -> SD-KY-5 | P123: =IFERROR(VLOOKUP($F123,MasterReferenceTable!$C$2:$Q$388,14,FALSE),"") -> SD-HM-1 | AH123: 122
A124: 13 | B124: Clark | C124: 2 | D124: RAYMOND 3 NE (1931-2015) | E124: =IF(F124="","",VLOOKUP(F124,MasterReferenceTable!$C$1:$Q$388,3,FALSE)) -> RAYS2 | F124: 397007 | G124: =IF(F124="","",VLOOKUP(F124,MasterReferenceTable!$C$2:$Q$388,2,FALSE)) -> 57258 | H124: =IF(F124="","",VLOOKUP(F124,MasterReferenceTable!$C$2:$Q$388,6,FALSE)) -> RAYMOND 3 NE (1931-2015) | I124: =IF(F124="","",VLOOKUP(F124,MasterReferenceTable!$C$2:$Q$388,7,FALSE)) -> Raymond | J124: =IF(F124="","",VLOOKUP(F124,MasterReferenceTable!$C$2:$Q$388,8,FALSE)) -> SD | K124: =IFERROR(VLOOKUP($F124,MasterReferenceTable!$C$2:$Q$388,9,FALSE),"") -> SD-SP-6 | L124: =IFERROR(VLOOKUP($F124,MasterReferenceTable!$C$2:$Q$388,10,FALSE),"") -> SD-DY-10 | M124: =IFERROR(VLOOKUP($F124,MasterReferenceTable!$C$2:$Q$388,11,FALSE),"") -> SD-BD-7 | N124: =IFERROR(VLOOKUP($F124,MasterReferenceTable!$C$2:$Q$388,12,FALSE),"") -> SD-CD-32 | O124: =IFERROR(VLOOKUP($F124,MasterReferenceTable!$C$2:$Q$388,13,FALSE),"") -> 0 | P124: =IFERROR(VLOOKUP($F124,MasterReferenceTable!$C$2:$Q$388,14,FALSE),"") -> 0 | AH124: 123
A125: 14 | B125: Clay | C125: 1 | D125: VERMILLION 2 SE | E125: =IF(F125="","",VLOOKUP(F125,MasterReferenceTable!$C$1:$Q$388,3,FALSE)) -> VRMS2 | F125: 398622 | G125: =IF(F125="","",VLOOKUP(F125,MasterReferenceTable!$C$2:$Q$388,2,FALSE)) -> 57069 | H125: =IF(F125="","",VLOOKUP(F125,MasterReferenceTable!$C$2:$Q$388,6,FALSE)) -> VERMILLION 2 SE | I125: =IF(F125="","",VLOOKUP(F125,MasterReferenceTable!$C$2:$Q$388,7,FALSE)) -> Burbank | J125: =IF(F125="","",VLOOKUP(F125,MasterReferenceTable!$C$2:$Q$388,8,FALSE)) -> SD | K125: =IFERROR(VLOOKUP($F125,MasterReferenceTable!$C$2:$Q$388,9,FALSE),"") -> SD-CY-10 | L125: =IFERROR(VLOOKUP($F125,MasterReferenceTable!$C$2:$Q$388,10,FALSE),"") -> SD-YN-9 | M125: =IFERROR(VLOOKUP($F125,MasterReferenceTable!$C$2:$Q$388,11,FALSE),"") -> SD-UN-2 | N125: =IFERROR(VLOOKUP($F125,MasterReferenceTable!$C$2:$Q$388,12,FALSE),"") -> SD-TR-9 | O125: =IFERROR(VLOOKUP($F125,MasterReferenceTable!$C$2:$Q$388,13,FALSE),"") -> SD-UN-11 | P125: =IFERROR(VLOOKUP($F125,MasterReferenceTable!$C$2:$Q$388,14,FALSE),"") -> SD-UN-12 | AH125: 124
A126: 14 | B126: Clay | C126: 2 | D126: Vermillion 1.4 SE (SD-CY-10) | E126: =IF(F126="","",VLOOKUP(F126,MasterReferenceTable!$C$1:$Q$388,3,FALSE)) -> VRMS2 | F126: SD-CY-10 | G126: =IF(F126="","",VLOOKUP(F126,MasterReferenceTable!$C$2:$Q$388,2,FALSE)) -> 57069 | H126: =IF(F126="","",VLOOKUP(F126,MasterReferenceTable!$C$2:$Q$388,6,FALSE)) -> Vermillion 1.4 SE (SD-CY-10) | I126: =IF(F126="","",VLOOKUP(F126,MasterReferenceTable!$C$2:$Q$388,7,FALSE)) -> Vermillion | J126: =IF(F126="","",VLOOKUP(F126,MasterReferenceTable!$C$2:$Q$388,8,FALSE)) -> SD | K126: =IFERROR(VLOOKUP($F126,MasterReferenceTable!$C$2:$Q$388,9,FALSE),"") -> SD-UN-2 | L126: =IFERROR(VLOOKUP($F126,MasterReferenceTable!$C$2:$Q$388,10,FALSE),"") -> SD-UN-11 | M126: =IFERROR(VLOOKUP($F126,MasterReferenceTable!$C$2:$Q$388,11,FALSE),"") -> SD-UN-12 | N126: =IFERROR(VLOOKUP($F126,MasterReferenceTable!$C$2:$Q$388,12,FALSE),"") -> SD-YN-9 | O126: =IFERROR(VLOOKUP($F126,MasterReferenceTable!$C$2:$Q$388,13,FALSE),"") -> SD-LN-12 | P126: =IFERROR(VLOOKUP($F126,MasterReferenceTable!$C$2:$Q$388,14,FALSE),"") -> SD-TR-9 | AH126: 125
A127: 15 | B127: Codington | C127: 1 | D127: WATERTOWN FAA AP | E127: =IF(F127="","",VLOOKUP(F127,MasterReferenceTable!$C$1:$Q$388,3,FALSE)) -> ATY | F127: 398932 | G127: =IF(F127="","",VLOOKUP(F127,MasterReferenceTable!$C$2:$Q$388,2,FALSE)) -> 57201 | H127: =IF(F127="","",VLOOKUP(F127,MasterReferenceTable!$C$2:$Q$388,6,FALSE)) -> WATERTOWN FAA AP | I127: =IF(F127="","",VLOOKUP(F127,MasterReferenceTable!$C$2:$Q$388,7,FALSE)) -> Watertown | J127: =IF(F127="","",VLOOKUP(F127,MasterReferenceTable!$C$2:$Q$388,8,FALSE)) -> SD | K127: =IFERROR(VLOOKUP($F127,MasterReferenceTable!$C$2:$Q$388,9,FALSE),"") -> SD-CD-32 | L127: =IFERROR(VLOOKUP($F127,MasterReferenceTable!$C$2:$Q$388,10,FALSE),"") -> SD-CD-30 | M127: =IFERROR(VLOOKUP($F127,MasterReferenceTable!$C$2:$Q$388,11,FALSE),"") -> SD-CD-5 | N127: =IFERROR(VLOOKUP($F127,MasterReferenceTable!$C$2:$Q$388,12,FALSE),"") -> SD-CD-1 | O127: =IFERROR(VLOOKUP($F127,MasterReferenceTable!$C$2:$Q$388,13,FALSE),"") -> SD-HM-8 | P127: =IFERROR(VLOOKUP($F127,MasterReferenceTable!$C$2:$Q$388,14,FALSE),"") -> SD-HM-1 | AH127: 126
A128: 15 | B128: Codington | C128: 2 | D128: Watertown 2.3 E (SD-CD-30) | E128: =IF(F128="","",VLOOKUP(F128,MasterReferenceTable!$C$1:$Q$388,3,FALSE)) -> ATY | F128: SD-CD-30 | G128: =IF(F128="","",VLOOKUP(F128,MasterReferenceTable!$C$2:$Q$388,2,FALSE)) -> 57201 | H128: =IF(F128="","",VLOOKUP(F128,MasterReferenceTable!$C$2:$Q$388,6,FALSE)) -> Watertown 2.3 E (SD-CD-30) | I128: =IF(F128="","",VLOOKUP(F128,MasterReferenceTable!$C$2:$Q$388,7,FALSE)) -> Watertown | J128: =IF(F128="","",VLOOKUP(F128,MasterReferenceTable!$C$2:$Q$388,8,FALSE)) -> SD | K128: =IFERROR(VLOOKUP($F128,MasterReferenceTable!$C$2:$Q$388,9,FALSE),"") -> SD-CD-32 | L128: =IFERROR(VLOOKUP($F128,MasterReferenceTable!$C$2:$Q$388,10,FALSE),"") -> SD-CD-5 | M128: =IFERROR(VLOOKUP($F128,MasterReferenceTable!$C$2:$Q$388,11,FALSE),"") -> SD-CD-1 | N128: =IFERROR(VLOOKUP($F128,MasterReferenceTable!$C$2:$Q$388,12,FALSE),"") -> SD-HM-8 | O128: =IFERROR(VLOOKUP($F128,MasterReferenceTable!$C$2:$Q$388,13,FALSE),"") -> SD-HM-1 | P128: =IFERROR(VLOOKUP($F128,MasterReferenceTable!$C$2:$Q$388,14,FALSE),"") -> SD-GT-6 | AH128: 127
A129: 15 | B129: Codington | C129: 3 | D129: Watertown 2.4 E (SD-CD-32) | E129: =IF(F129="","",VLOOKUP(F129,MasterReferenceTable!$C$1:$Q$388,3,FALSE)) -> ATY | F129: SD-CD-32 | G129: =IF(F129="","",VLOOKUP(F129,MasterReferenceTable!$C$2:$Q$388,2,FALSE)) -> 57201 | H129: =IF(F129="","",VLOOKUP(F129,MasterReferenceTable!$C$2:$Q$388,6,FALSE)) -> Watertown 2.4 E (SD-CD-32) | I129: =IF(F129="","",VLOOKUP(F129,MasterReferenceTable!$C$2:$Q$388,7,FALSE)) -> Watertown | J129: =IF(F129="","",VLOOKUP(F129,MasterReferenceTable!$C$2:$Q$388,8,FALSE)) -> SD | K129: =IFERROR(VLOOKUP($F129,MasterReferenceTable!$C$2:$Q$388,9,FALSE),"") -> SD-CD-30 | L129: =IFERROR(VLOOKUP($F129,MasterReferenceTable!$C$2:$Q$388,10,FALSE),"") -> SD-CD-5 | M129: =IFERROR(VLOOKUP($F129,MasterReferenceTable!$C$2:$Q$388,11,FALSE),"") -> SD-CD-1 | N129: =IFERROR(VLOOKUP($F129,MasterReferenceTable!$C$2:$Q$388,12,FALSE),"") -> SD-HM-8 | O129: =IFERROR(VLOOKUP($F129,MasterReferenceTable!$C$2:$Q$388,13,FALSE),"") -> SD-HM-1 | P129: =IFERROR(VLOOKUP($F129,MasterReferenceTable!$C$2:$Q$388,14,FALSE),"") -> SD-GT-6 | AH129: 128
A130: 15 | B130: Codington | C130: 4 | D130: Watertown 7.5 NNE (SD-CD-5) | E130: =IF(F130="","",VLOOKUP(F130,MasterReferenceTable!$C$1:$Q$388,3,FALSE)) -> ATY | F130: SD-CD-5 | G130: =IF(F130="","",VLOOKUP(F130,MasterReferenceTable!$C$2:$Q$388,2,FALSE)) -> 57201 | H130: =IF(F130="","",VLOOKUP(F130,MasterReferenceTable!$C$2:$Q$388,6,FALSE)) -> Watertown 7.5 NNE (SD-CD-5) | I130: =IF(F130="","",VLOOKUP(F130,MasterReferenceTable!$C$2:$Q$388,7,FALSE)) -> Watertown | J130: =IF(F130="","",VLOOKUP(F130,MasterReferenceTable!$C$2:$Q$388,8,FALSE)) -> SD | K130: =IFERROR(VLOOKUP($F130,MasterReferenceTable!$C$2:$Q$388,9,FALSE),"") -> SD-CD-1 | L130: =IFERROR(VLOOKUP($F130,MasterReferenceTable!$C$2:$Q$388,10,FALSE),"") -> SD-CD-32 | M130: =IFERROR(VLOOKUP($F130,MasterReferenceTable!$C$2:$Q$388,11,FALSE),"") -> SD-CD-30 | N130: =IFERROR(VLOOKUP($F130,MasterReferenceTable!$C$2:$Q$388,12,FALSE),"") -> SD-GT-6 | O130: =IFERROR(VLOOKUP($F130,MasterReferenceTable!$C$2:$Q$388,13,FALSE),"") -> SD-HM-8 | P130: =IFERROR(VLOOKUP($F130,MasterReferenceTable!$C$2:$Q$388,14,FALSE),"") -> SD-GT-9 | AH130: 129
A131: 15 | B131: Codington | C131: 5 | D131: Watertown 7.6 ENE (SD-CD-1) | E131: =IF(F131="","",VLOOKUP(F131,MasterReferenceTable!$C$1:$Q$388,3,FALSE)) -> ATY | F131: SD-CD-1 | G131: =IF(F131="","",VLOOKUP(F131,MasterReferenceTable!$C$2:$Q$388,2,FALSE)) -> 57201 | H131: =IF(F131="","",VLOOKUP(F131,MasterReferenceTable!$C$2:$Q$388,6,FALSE)) -> Watertown 7.6 ENE (SD-CD-1) | I131: =IF(F131="","",VLOOKUP(F131,MasterReferenceTable!$C$2:$Q$388,7,FALSE)) -> Watertown | J131: =IF(F131="","",VLOOKUP(F131,MasterReferenceTable!$C$2:$Q$388,8,FALSE)) -> SD | K131: =IFERROR(VLOOKUP($F131,MasterReferenceTable!$C$2:$Q$388,9,FALSE),"") -> SD-CD-5 | L131: =IFERROR(VLOOKUP($F131,MasterReferenceTable!$C$2:$Q$388,10,FALSE),"") -> SD-CD-32 | M131: =IFERROR(VLOOKUP($F131,MasterReferenceTable!$C$2:$Q$388,11,FALSE),"") -> SD-CD-30 | N131: =IFERROR(VLOOKUP($F131,MasterReferenceTable!$C$2:$Q$388,12,FALSE),"") -> SD-GT-6 | O131: =IFERROR(VLOOKUP($F131,MasterReferenceTable!$C$2:$Q$388,13,FALSE),"") -> SD-GT-9 | P131: =IFERROR(VLOOKUP($F131,MasterReferenceTable!$C$2:$Q$388,14,FALSE),"") -> SD-HM-8 | AH131: 130
A132: 16 | B132: Corson | C132: 1 | D132: MC INTOSH 6 SE | E132: =IF(F132="","",VLOOKUP(F132,MasterReferenceTable!$C$1:$Q$388,3,FALSE)) -> MCIS2 | F132: 395381 | G132: =IF(F132="","",VLOOKUP(F132,MasterReferenceTable!$C$2:$Q$388,2,FALSE)) -> 57641 | H132: =IF(F132="","",VLOOKUP(F132,MasterReferenceTable!$C$2:$Q$388,6,FALSE)) -> MC INTOSH 6 SE | I132: =IF(F132="","",VLOOKUP(F132,MasterReferenceTable!$C$2:$Q$388,7,FALSE)) -> Walker | J132: =IF(F132="","",VLOOKUP(F132,MasterReferenceTable!$C$2:$Q$388,8,FALSE)) -> SD | K132: =IFERROR(VLOOKUP($F132,MasterReferenceTable!$C$2:$Q$388,9,FALSE),"") -> SD-PK-10 | L132: =IFERROR(VLOOKUP($F132,MasterReferenceTable!$C$2:$Q$388,10,FALSE),"") -> SD-DW-4 | M132: =IFERROR(VLOOKUP($F132,MasterReferenceTable!$C$2:$Q$388,11,FALSE),"") -> SD-DW-5 | N132: =IFERROR(VLOOKUP($F132,MasterReferenceTable!$C$2:$Q$388,12,FALSE),"") -> 0 | O132: =IFERROR(VLOOKUP($F132,MasterReferenceTable!$C$2:$Q$388,13,FALSE),"") -> 0 | P132: =IFERROR(VLOOKUP($F132,MasterReferenceTable!$C$2:$Q$388,14,FALSE),"") -> 0 | AH132: 131
A133: 16 | B133: Corson | C133: 2 | D133: MC LAUGHLIN | E133: =IF(F133="","",VLOOKUP(F133,MasterReferenceTable!$C$1:$Q$388,3,FALSE)) -> MCGS2 | F133: 395406 | G133: =IF(F133="","",VLOOKUP(F133,MasterReferenceTable!$C$2:$Q$388,2,FALSE)) -> 57642 | H133: =IF(F133="","",VLOOKUP(F133,MasterReferenceTable!$C$2:$Q$388,6,FALSE)) -> MC LAUGHLIN | I133: =IF(F133="","",VLOOKUP(F133,MasterReferenceTable!$C$2:$Q$388,7,FALSE)) -> LittleEagle | J133: =IF(F133="","",VLOOKUP(F133,MasterReferenceTable!$C$2:$Q$388,8,FALSE)) -> SD | K133: =IFERROR(VLOOKUP($F133,MasterReferenceTable!$C$2:$Q$388,9,FALSE),"") -> SD-DW-4 | L133: =IFERROR(VLOOKUP($F133,MasterReferenceTable!$C$2:$Q$388,10,FALSE),"") -> SD-DW-5 | M133: =IFERROR(VLOOKUP($F133,MasterReferenceTable!$C$2:$Q$388,11,FALSE),"") -> SD-CP-6 | N133: =IFERROR(VLOOKUP($F133,MasterReferenceTable!$C$2:$Q$388,12,FALSE),"") -> 0 | O133: =IFERROR(VLOOKUP($F133,MasterReferenceTable!$C$2:$Q$388,13,FALSE),"") -> 0 | P133: =IFERROR(VLOOKUP($F133,MasterReferenceTable!$C$2:$Q$388,14,FALSE),"") -> 0 | AH133: 132
A134: 16 | B134: Corson | C134: 3 | D134: Grand River South Dakota (RAWS) | E134: =IF(F134="","",VLOOKUP(F134,MasterReferenceTable!$C$1:$Q$388,3,FALSE)) -> USR0000SGRR | F134: sdSGRR | G134: =IF(F134="","",VLOOKUP(F134,MasterReferenceTable!$C$2:$Q$388,2,FALSE)) -> 57656 | H134: =IF(F134="","",VLOOKUP(F134,MasterReferenceTable!$C$2:$Q$388,6,FALSE)) -> Grand River South Dakota (RAWS) | I134: =IF(F134="","",VLOOKUP(F134,MasterReferenceTable!$C$2:$Q$388,7,FALSE)) -> TimberLake | J134: =IF(F134="","",VLOOKUP(F134,MasterReferenceTable!$C$2:$Q$388,8,FALSE)) -> SD | K134: =IFERROR(VLOOKUP($F134,MasterReferenceTable!$C$2:$Q$388,9,FALSE),"") -> SD-DW-4 | L134: =IFERROR(VLOOKUP($F134,MasterReferenceTable!$C$2:$Q$388,10,FALSE),"") -> SD-DW-5 | M134: =IFERROR(VLOOKUP($F134,MasterReferenceTable!$C$2:$Q$388,11,FALSE),"") -> SD-PK-10 | N134: =IFERROR(VLOOKUP($F134,MasterReferenceTable!$C$2:$Q$388,12,FALSE),"") -> 0 | O134: =IFERROR(VLOOKUP($F134,MasterReferenceTable!$C$2:$Q$388,13,FALSE),"") -> 0 | P134: =IFERROR(VLOOKUP($F134,MasterReferenceTable!$C$2:$Q$388,14,FALSE),"") -> 0 | AH134: 133
A135: 17 | B135: Custer | C135: 1 | D135: CUSTER | E135: =IF(F135="","",VLOOKUP(F135,MasterReferenceTable!$C$1:$Q$388,3,FALSE)) -> CUSS2 | F135: 392087 | G135: =IF(F135="","",VLOOKUP(F135,MasterReferenceTable!$C$2:$Q$388,2,FALSE)) -> 57730 | H135: =IF(F135="","",VLOOKUP(F135,MasterReferenceTable!$C$2:$Q$388,6,FALSE)) -> CUSTER | I135: =IF(F135="","",VLOOKUP(F135,MasterReferenceTable!$C$2:$Q$388,7,FALSE)) -> Custer | J135: =IF(F135="","",VLOOKUP(F135,MasterReferenceTable!$C$2:$Q$388,8,FALSE)) -> SD | K135: =IFERROR(VLOOKUP($F135,MasterReferenceTable!$C$2:$Q$388,9,FALSE),"") -> SD-PN-62 | L135: =IFERROR(VLOOKUP($F135,MasterReferenceTable!$C$2:$Q$388,10,FALSE),"") -> SD-CS-22 | M135: =IFERROR(VLOOKUP($F135,MasterReferenceTable!$C$2:$Q$388,11,FALSE),"") -> SD-FR-30 | N135: =IFERROR(VLOOKUP($F135,MasterReferenceTable!$C$2:$Q$388,12,FALSE),"") -> SD-FR-24 | O135: =IFERROR(VLOOKUP($F135,MasterReferenceTable!$C$2:$Q$388,13,FALSE),"") -> WY-WS-24 | P135: =IFERROR(VLOOKUP($F135,MasterReferenceTable!$C$2:$Q$388,14,FALSE),"") -> WY-WS-5 | AH135: 134
A136: 17 | B136: Custer | C136: 2 | D136: Custer 10.2 E (SD-CS-1) | E136: =IF(F136="","",VLOOKUP(F136,MasterReferenceTable!$C$1:$Q$388,3,FALSE)) -> CUSS2 | F136: SD-CS-1 | G136: =IF(F136="","",VLOOKUP(F136,MasterReferenceTable!$C$2:$Q$388,2,FALSE)) -> 57730 | H136: =IF(F136="","",VLOOKUP(F136,MasterReferenceTable!$C$2:$Q$388,6,FALSE)) -> Custer 10.2 E (SD-CS-1) | I136: =IF(F136="","",VLOOKUP(F136,MasterReferenceTable!$C$2:$Q$388,7,FALSE)) -> Custer | J136: =IF(F136="","",VLOOKUP(F136,MasterReferenceTable!$C$2:$Q$388,8,FALSE)) -> SD | K136: =IFERROR(VLOOKUP($F136,MasterReferenceTable!$C$2:$Q$388,9,FALSE),"") -> SD-CS-17 | L136: =IFERROR(VLOOKUP($F136,MasterReferenceTable!$C$2:$Q$388,10,FALSE),"") -> SD-PN-62 | M136: =IFERROR(VLOOKUP($F136,MasterReferenceTable!$C$2:$Q$388,11,FALSE),"") -> SD-PN-63 | N136: =IFERROR(VLOOKUP($F136,MasterReferenceTable!$C$2:$Q$388,12,FALSE),"") -> SD-PN-40 | O136: =IFERROR(VLOOKUP($F136,MasterReferenceTable!$C$2:$Q$388,13,FALSE),"") -> SD-PN-56 | P136: =IFERROR(VLOOKUP($F136,MasterReferenceTable!$C$2:$Q$388,14,FALSE),"") -> SD-PN-43 | AH136: 135
A137: 17 | B137: Custer | C137: 3 | D137: Hermosa 0.3 ENE (SD-CS-17) | E137: =IF(F137="","",VLOOKUP(F137,MasterReferenceTable!$C$1:$Q$388,3,FALSE)) -> HMAS2 | F137: SD-CS-17 | G137: =IF(F137="","",VLOOKUP(F137,MasterReferenceTable!$C$2:$Q$388,2,FALSE)) -> 57744 | H137: =IF(F137="","",VLOOKUP(F137,MasterReferenceTable!$C$2:$Q$388,6,FALSE)) -> Hermosa 0.3 ENE (SD-CS-17) | I137: =IF(F137="","",VLOOKUP(F137,MasterReferenceTable!$C$2:$Q$388,7,FALSE)) -> Hermosa | J137: =IF(F137="","",VLOOKUP(F137,MasterReferenceTable!$C$2:$Q$388,8,FALSE)) -> SD | K137: =IFERROR(VLOOKUP($F137,MasterReferenceTable!$C$2:$Q$388,9,FALSE),"") -> SD-CS-28 | L137: =IFERROR(VLOOKUP($F137,MasterReferenceTable!$C$2:$Q$388,10,FALSE),"") -> SD-PN-43 | M137: =IFERROR(VLOOKUP($F137,MasterReferenceTable!$C$2:$Q$388,11,FALSE),"") -> SD-CS-27 | N137: =IFERROR(VLOOKUP($F137,MasterReferenceTable!$C$2:$Q$388,12,FALSE),"") -> SD-PN-1 | O137: =IFERROR(VLOOKUP($F137,MasterReferenceTable!$C$2:$Q$388,13,FALSE),"") -> SD-PN-74 | P137: =IFERROR(VLOOKUP($F137,MasterReferenceTable!$C$2:$Q$388,14,FALSE),"") -> SD-PN-38 | AH137: 136
A138: 17 | B138: Custer | C138: 4 | D138: Hermosa 1.0 NW (SD-CS-28) | E138: =IF(F138="","",VLOOKUP(F138,MasterReferenceTable!$C$1:$Q$388,3,FALSE)) -> HMAS2 | F138: SD-CS-28 | G138: =IF(F138="","",VLOOKUP(F138,MasterReferenceTable!$C$2:$Q$388,2,FALSE)) -> 57744 | H138: =IF(F138="","",VLOOKUP(F138,MasterReferenceTable!$C$2:$Q$388,6,FALSE)) -> Hermosa 1.0 NW (SD-CS-28) | I138: =IF(F138="","",VLOOKUP(F138,MasterReferenceTable!$C$2:$Q$388,7,FALSE)) -> Hermosa | J138: =IF(F138="","",VLOOKUP(F138,MasterReferenceTable!$C$2:$Q$388,8,FALSE)) -> SD | K138: =IFERROR(VLOOKUP($F138,MasterReferenceTable!$C$2:$Q$388,9,FALSE),"") -> SD-CS-17 | L138: =IFERROR(VLOOKUP($F138,MasterReferenceTable!$C$2:$Q$388,10,FALSE),"") -> SD-PN-43 | M138: =IFERROR(VLOOKUP($F138,MasterReferenceTable!$C$2:$Q$388,11,FALSE),"") -> SD-PN-74 | N138: =IFERROR(VLOOKUP($F138,MasterReferenceTable!$C$2:$Q$388,12,FALSE),"") -> SD-PN-38 | O138: =IFERROR(VLOOKUP($F138,MasterReferenceTable!$C$2:$Q$388,13,FALSE),"") -> SD-CS-27 | P138: =IFERROR(VLOOKUP($F138,MasterReferenceTable!$C$2:$Q$388,14,FALSE),"") -> SD-PN-1 | AH138: 137
A139: 17 | B139: Custer | C139: 5 | D139: Hermosa 10.3 ESE (SD-CS-27) | E139: =IF(F139="","",VLOOKUP(F139,MasterReferenceTable!$C$1:$Q$388,3,FALSE)) -> HMAS2 | F139: SD-CS-27 | G139: =IF(F139="","",VLOOKUP(F139,MasterReferenceTable!$C$2:$Q$388,2,FALSE)) -> 57744 | H139: =IF(F139="","",VLOOKUP(F139,MasterReferenceTable!$C$2:$Q$388,6,FALSE)) -> Hermosa 10.3 ESE (SD-CS-27) | I139: =IF(F139="","",VLOOKUP(F139,MasterReferenceTable!$C$2:$Q$388,7,FALSE)) -> Hermosa | J139: =IF(F139="","",VLOOKUP(F139,MasterReferenceTable!$C$2:$Q$388,8,FALSE)) -> SD | K139: =IFERROR(VLOOKUP($F139,MasterReferenceTable!$C$2:$Q$388,9,FALSE),"") -> SD-CS-17 | L139: =IFERROR(VLOOKUP($F139,MasterReferenceTable!$C$2:$Q$388,10,FALSE),"") -> SD-CS-28 | M139: =IFERROR(VLOOKUP($F139,MasterReferenceTable!$C$2:$Q$388,11,FALSE),"") -> SD-PN-1 | N139: =IFERROR(VLOOKUP($F139,MasterReferenceTable!$C$2:$Q$388,12,FALSE),"") -> SD-PN-19 | O139: =IFERROR(VLOOKUP($F139,MasterReferenceTable!$C$2:$Q$388,13,FALSE),"") -> SD-PN-50 | P139: =IFERROR(VLOOKUP($F139,MasterReferenceTable!$C$2:$Q$388,14,FALSE),"") -> SD-PN-43 | AH139: 138
A140: 17 | B140: Custer | C140: 6 | D140: Hot Springs 5.2 NW (SD-CS-22) | E140: =IF(F140="","",VLOOKUP(F140,MasterReferenceTable!$C$1:$Q$388,3,FALSE)) -> HOSS2 | F140: SD-CS-22 | G140: =IF(F140="","",VLOOKUP(F140,MasterReferenceTable!$C$2:$Q$388,2,FALSE)) -> 57747 | H140: =IF(F140="","",VLOOKUP(F140,MasterReferenceTable!$C$2:$Q$388,6,FALSE)) -> Hot Springs 5.2 NW (SD-CS-22) | I140: =IF(F140="","",VLOOKUP(F140,MasterReferenceTable!$C$2:$Q$388,7,FALSE)) -> Hot Springs | J140: =IF(F140="","",VLOOKUP(F140,MasterReferenceTable!$C$2:$Q$388,8,FALSE)) -> SD | K140: =IFERROR(VLOOKUP($F140,MasterReferenceTable!$C$2:$Q$388,9,FALSE),"") -> SD-FR-30 | L140: =IFERROR(VLOOKUP($F140,MasterReferenceTable!$C$2:$Q$388,10,FALSE),"") -> SD-FR-34 | M140: =IFERROR(VLOOKUP($F140,MasterReferenceTable!$C$2:$Q$388,11,FALSE),"") -> SD-PN-62 | N140: =IFERROR(VLOOKUP($F140,MasterReferenceTable!$C$2:$Q$388,12,FALSE),"") -> SD-FR-20 | O140: =IFERROR(VLOOKUP($F140,MasterReferenceTable!$C$2:$Q$388,13,FALSE),"") -> SD-FR-21 | P140: =IFERROR(VLOOKUP($F140,MasterReferenceTable!$C$2:$Q$388,14,FALSE),"") -> SD-FR-24 | AH140: 139
A141: 17 | B141: Custer | C141: 7 | D141: Custer South Dakota (RAWS) | E141: =IF(F141="","",VLOOKUP(F141,MasterReferenceTable!$C$1:$Q$388,3,FALSE)) -> USR0000SCUS | F141: sdSCUS | G141: =IF(F141="","",VLOOKUP(F141,MasterReferenceTable!$C$2:$Q$388,2,FALSE)) -> 57730 | H141: =IF(F141="","",VLOOKUP(F141,MasterReferenceTable!$C$2:$Q$388,6,FALSE)) -> Custer South Dakota (RAWS) | I141: =IF(F141="","",VLOOKUP(F141,MasterReferenceTable!$C$2:$Q$388,7,FALSE)) -> Custer | J141: =IF(F141="","",VLOOKUP(F141,MasterReferenceTable!$C$2:$Q$388,8,FALSE)) -> SD | K141: =IFERROR(VLOOKUP($F141,MasterReferenceTable!$C$2:$Q$388,9,FALSE),"") -> SD-PN-62 | L141: =IFERROR(VLOOKUP($F141,MasterReferenceTable!$C$2:$Q$388,10,FALSE),"") -> SD-CS-22 | M141: =IFERROR(VLOOKUP($F141,MasterReferenceTable!$C$2:$Q$388,11,FALSE),"") -> SD-FR-30 | N141: =IFERROR(VLOOKUP($F141,MasterReferenceTable!$C$2:$Q$388,12,FALSE),"") -> SD-FR-34 | O141: =IFERROR(VLOOKUP($F141,MasterReferenceTable!$C$2:$Q$388,13,FALSE),"") -> SD-CS-28 | P141: =IFERROR(VLOOKUP($F141,MasterReferenceTable!$C$2:$Q$388,14,FALSE),"") -> SD-CS-17 | AH141: 140
A142: 17 | B142: Custer | C142: 8 | D142: Custer State Park South Dakota (RAWS) | E142: =IF(F142="","",VLOOKUP(F142,MasterReferenceTable!$C$1:$Q$388,3,FALSE)) -> USR0000SCSP | F142: sdSCSP | G142: =IF(F142="","",VLOOKUP(F142,MasterReferenceTable!$C$2:$Q$388,2,FALSE)) -> 57744 | H142: =IF(F142="","",VLOOKUP(F142,MasterReferenceTable!$C$2:$Q$388,6,FALSE)) -> Custer State Park South Dakota (RAWS) | I142: =IF(F142="","",VLOOKUP(F142,MasterReferenceTable!$C$2:$Q$388,7,FALSE)) -> Hermosa | J142: =IF(F142="","",VLOOKUP(F142,MasterReferenceTable!$C$2:$Q$388,8,FALSE)) -> SD | K142: =IFERROR(VLOOKUP($F142,MasterReferenceTable!$C$2:$Q$388,9,FALSE),"") -> SD-CS-28 | L142: =IFERROR(VLOOKUP($F142,MasterReferenceTable!$C$2:$Q$388,10,FALSE),"") -> SD-CS-17 | M142: =IFERROR(VLOOKUP($F142,MasterReferenceTable!$C$2:$Q$388,11,FALSE),"") -> SD-PN-40 | N142: =IFERROR(VLOOKUP($F142,MasterReferenceTable!$C$2:$Q$388,12,FALSE),"") -> SD-PN-62 | O142: =IFERROR(VLOOKUP($F142,MasterReferenceTable!$C$2:$Q$388,13,FALSE),"") -> SD-PN-63 | P142: =IFERROR(VLOOKUP($F142,MasterReferenceTable!$C$2:$Q$388,14,FALSE),"") -> SD-PN-43 | AH142: 141
A143: 17 | B143: Custer | C143: 9 | D143: WICA-Elk Mountain South Dakota (RAWS) | E143: =IF(F143="","",VLOOKUP(F143,MasterReferenceTable!$C$1:$Q$388,3,FALSE)) -> USR0000SELK | F143: sdSELK | G143: =IF(F143="","",VLOOKUP(F143,MasterReferenceTable!$C$2:$Q$388,2,FALSE)) -> 57773 | H143: =IF(F143="","",VLOOKUP(F143,MasterReferenceTable!$C$2:$Q$388,6,FALSE)) -> WICA-Elk Mountain South Dakota (RAWS) | I143: =IF(F143="","",VLOOKUP(F143,MasterReferenceTable!$C$2:$Q$388,7,FALSE)) -> HotSprings | J143: =IF(F143="","",VLOOKUP(F143,MasterReferenceTable!$C$2:$Q$388,8,FALSE)) -> SD | K143: =IFERROR(VLOOKUP($F143,MasterReferenceTable!$C$2:$Q$388,9,FALSE),"") -> SD-CS-22 | L143: =IFERROR(VLOOKUP($F143,MasterReferenceTable!$C$2:$Q$388,10,FALSE),"") -> SD-FR-34 | M143: =IFERROR(VLOOKUP($F143,MasterReferenceTable!$C$2:$Q$388,11,FALSE),"") -> SD-FR-30 | N143: =IFERROR(VLOOKUP($F143,MasterReferenceTable!$C$2:$Q$388,12,FALSE),"") -> SD-PN-62 | O143: =IFERROR(VLOOKUP($F143,MasterReferenceTable!$C$2:$Q$388,13,FALSE),"") -> SD-FR-20 | P143: =IFERROR(VLOOKUP($F143,MasterReferenceTable!$C$2:$Q$388,14,FALSE),"") -> SD-CS-28 | AH143: 142
A144: 17 | B144: Custer | C144: 10 | D144: HERMOSA 3 SSW (1906-2012) | E144: =IF(F144="","",VLOOKUP(F144,MasterReferenceTable!$C$1:$Q$388,3,FALSE)) -> HMAS2 | F144: 393775 | G144: =IF(F144="","",VLOOKUP(F144,MasterReferenceTable!$C$2:$Q$388,2,FALSE)) -> 57744 | H144: =IF(F144="","",VLOOKUP(F144,MasterReferenceTable!$C$2:$Q$388,6,FALSE)) -> HERMOSA 3 SSW (1906-2012) | I144: =IF(F144="","",VLOOKUP(F144,MasterReferenceTable!$C$2:$Q$388,7,FALSE)) -> Hermosa | J144: =IF(F144="","",VLOOKUP(F144,MasterReferenceTable!$C$2:$Q$388,8,FALSE)) -> SD | K144: =IFERROR(VLOOKUP($F144,MasterReferenceTable!$C$2:$Q$388,9,FALSE),"") -> SD-CS-28 | L144: =IFERROR(VLOOKUP($F144,MasterReferenceTable!$C$2:$Q$388,10,FALSE),"") -> SD-CS-17 | M144: =IFERROR(VLOOKUP($F144,MasterReferenceTable!$C$2:$Q$388,11,FALSE),"") -> SD-CS-27 | N144: =IFERROR(VLOOKUP($F144,MasterReferenceTable!$C$2:$Q$388,12,FALSE),"") -> SD-PN-43 | O144: =IFERROR(VLOOKUP($F144,MasterReferenceTable!$C$2:$Q$388,13,FALSE),"") -> SD-PN-74 | P144: =IFERROR(VLOOKUP($F144,MasterReferenceTable!$C$2:$Q$388,14,FALSE),"") -> SD-PN-38 | AH144: 143
A145: 18 | B145: Davison | C145: 1 | D145: MITCHELL | E145: =IF(F145="","",VLOOKUP(F145,MasterReferenceTable!$C$1:$Q$388,3,FALSE)) -> MCLS2 | F145: 395670 | G145: =IF(F145="","",VLOOKUP(F145,MasterReferenceTable!$C$2:$Q$388,2,FALSE)) -> 57301 | H145: =IF(F145="","",VLOOKUP(F145,MasterReferenceTable!$C$2:$Q$388,6,FALSE)) -> MITCHELL | I145: =IF(F145="","",VLOOKUP(F145,MasterReferenceTable!$C$2:$Q$388,7,FALSE)) -> Mitchell | J145: =IF(F145="","",VLOOKUP(F145,MasterReferenceTable!$C$2:$Q$388,8,FALSE)) -> SD | K145: =IFERROR(VLOOKUP($F145,MasterReferenceTable!$C$2:$Q$388,9,FALSE),"") -> SD-DV-31 | L145: =IFERROR(VLOOKUP($F145,MasterReferenceTable!$C$2:$Q$388,10,FALSE),"") -> SD-DV-27 | M145: =IFERROR(VLOOKUP($F145,MasterReferenceTable!$C$2:$Q$388,11,FALSE),"") -> SD-DV-24 | N145: =IFERROR(VLOOKUP($F145,MasterReferenceTable!$C$2:$Q$388,12,FALSE),"") -> SD-DV-25 | O145: =IFERROR(VLOOKUP($F145,MasterReferenceTable!$C$2:$Q$388,13,FALSE),"") -> SD-DV-28 | P145: =IFERROR(VLOOKUP($F145,MasterReferenceTable!$C$2:$Q$388,14,FALSE),"") -> SD-HN-8 | AH145: 144
A146: 18 | B146: Davison | C146: 2 | D146: Mitchell 0.9 SSE (SD-DV-31) | E146: =IF(F146="","",VLOOKUP(F146,MasterReferenceTable!$C$1:$Q$388,3,FALSE)) -> MCLS2 | F146: SD-DV-31 | G146: =IF(F146="","",VLOOKUP(F146,MasterReferenceTable!$C$2:$Q$388,2,FALSE)) -> 57301 | H146: =IF(F146="","",VLOOKUP(F146,MasterReferenceTable!$C$2:$Q$388,6,FALSE)) -> Mitchell 0.9 SSE (SD-DV-31) | I146: =IF(F146="","",VLOOKUP(F146,MasterReferenceTable!$C$2:$Q$388,7,FALSE)) -> Mitchell | J146: =IF(F146="","",VLOOKUP(F146,MasterReferenceTable!$C$2:$Q$388,8,FALSE)) -> SD | K146: =IFERROR(VLOOKUP($F146,MasterReferenceTable!$C$2:$Q$388,9,FALSE),"") -> SD-DV-27 | L146: =IFERROR(VLOOKUP($F146,MasterReferenceTable!$C$2:$Q$388,10,FALSE),"") -> SD-DV-24 | M146: =IFERROR(VLOOKUP($F146,MasterReferenceTable!$C$2:$Q$388,11,FALSE),"") -> SD-DV-25 | N146: =IFERROR(VLOOKUP($F146,MasterReferenceTable!$C$2:$Q$388,12,FALSE),"") -> SD-DV-28 | O146: =IFERROR(VLOOKUP($F146,MasterReferenceTable!$C$2:$Q$388,13,FALSE),"") -> SD-HN-8 | P146: =IFERROR(VLOOKUP($F146,MasterReferenceTable!$C$2:$Q$388,14,FALSE),"") -> SD-HN-17 | AH146: 145
A147: 18 | B147: Davison | C147: 3 | D147: Mitchell 1.0 SE (SD-DV-27) | E147: =IF(F147="","",VLOOKUP(F147,MasterReferenceTable!$C$1:$Q$388,3,FALSE)) -> MCLS2 | F147: SD-DV-27 | G147: =IF(F147="","",VLOOKUP(F147,MasterReferenceTable!$C$2:$Q$388,2,FALSE)) -> 57301 | H147: =IF(F147="","",VLOOKUP(F147,MasterReferenceTable!$C$2:$Q$388,6,FALSE)) -> Mitchell 1.0 SE (SD-DV-27) | I147: =IF(F147="","",VLOOKUP(F147,MasterReferenceTable!$C$2:$Q$388,7,FALSE)) -> Mitchell | J147: =IF(F147="","",VLOOKUP(F147,MasterReferenceTable!$C$2:$Q$388,8,FALSE)) -> SD | K147: =IFERROR(VLOOKUP($F147,MasterReferenceTable!$C$2:$Q$388,9,FALSE),"") -> SD-DV-31 | L147: =IFERROR(VLOOKUP($F147,MasterReferenceTable!$C$2:$Q$388,10,FALSE),"") -> SD-DV-24 | M147: =IFERROR(VLOOKUP($F147,MasterReferenceTable!$C$2:$Q$388,11,FALSE),"") -> SD-DV-25 | N147: =IFERROR(VLOOKUP($F147,MasterReferenceTable!$C$2:$Q$388,12,FALSE),"") -> SD-DV-28 | O147: =IFERROR(VLOOKUP($F147,MasterReferenceTable!$C$2:$Q$388,13,FALSE),"") -> SD-HN-8 | P147: =IFERROR(VLOOKUP($F147,MasterReferenceTable!$C$2:$Q$388,14,FALSE),"") -> SD-HN-17 | AH147: 146
A148: 18 | B148: Davison | C148: 4 | D148: Mitchell 3.4 SSE (SD-DV-24) | E148: =IF(F148="","",VLOOKUP(F148,MasterReferenceTable!$C$1:$Q$388,3,FALSE)) -> MCLS2 | F148: SD-DV-24 | G148: =IF(F148="","",VLOOKUP(F148,MasterReferenceTable!$C$2:$Q$388,2,FALSE)) -> 57301 | H148: =IF(F148="","",VLOOKUP(F148,MasterReferenceTable!$C$2:$Q$388,6,FALSE)) -> Mitchell 3.4 SSE (SD-DV-24) | I148: =IF(F148="","",VLOOKUP(F148,MasterReferenceTable!$C$2:$Q$388,7,FALSE)) -> Mitchell | J148: =IF(F148="","",VLOOKUP(F148,MasterReferenceTable!$C$2:$Q$388,8,FALSE)) -> SD | K148: =IFERROR(VLOOKUP($F148,MasterReferenceTable!$C$2:$Q$388,9,FALSE),"") -> SD-DV-27 | L148: =IFERROR(VLOOKUP($F148,MasterReferenceTable!$C$2:$Q$388,10,FALSE),"") -> SD-DV-25 | M148: =IFERROR(VLOOKUP($F148,MasterReferenceTable!$C$2:$Q$388,11,FALSE),"") -> SD-DV-31 | N148: =IFERROR(VLOOKUP($F148,MasterReferenceTable!$C$2:$Q$388,12,FALSE),"") -> SD-DV-28 | O148: =IFERROR(VLOOKUP($F148,MasterReferenceTable!$C$2:$Q$388,13,FALSE),"") -> SD-HN-17 | P148: =IFERROR(VLOOKUP($F148,MasterReferenceTable!$C$2:$Q$388,14,FALSE),"") -> SD-HN-8 | AH148: 147
A149: 18 | B149: Davison | C149: 5 | D149: Mitchell 6.2 S (SD-DV-25) | E149: =IF(F149="","",VLOOKUP(F149,MasterReferenceTable!$C$1:$Q$388,3,FALSE)) -> MCLS2 | F149: SD-DV-25 | G149: =IF(F149="","",VLOOKUP(F149,MasterReferenceTable!$C$2:$Q$388,2,FALSE)) -> 57301 | H149: =IF(F149="","",VLOOKUP(F149,MasterReferenceTable!$C$2:$Q$388,6,FALSE)) -> Mitchell 6.2 S (SD-DV-25) | I149: =IF(F149="","",VLOOKUP(F149,MasterReferenceTable!$C$2:$Q$388,7,FALSE)) -> Mitchell | J149: =IF(F149="","",VLOOKUP(F149,MasterReferenceTable!$C$2:$Q$388,8,FALSE)) -> SD | K149: =IFERROR(VLOOKUP($F149,MasterReferenceTable!$C$2:$Q$388,9,FALSE),"") -> SD-DV-28 | L149: =IFERROR(VLOOKUP($F149,MasterReferenceTable!$C$2:$Q$388,10,FALSE),"") -> SD-DV-24 | M149: =IFERROR(VLOOKUP($F149,MasterReferenceTable!$C$2:$Q$388,11,FALSE),"") -> SD-DV-27 | N149: =IFERROR(VLOOKUP($F149,MasterReferenceTable!$C$2:$Q$388,12,FALSE),"") -> SD-DV-31 | O149: =IFERROR(VLOOKUP($F149,MasterReferenceTable!$C$2:$Q$388,13,FALSE),"") -> SD-HN-17 | P149: =IFERROR(VLOOKUP($F149,MasterReferenceTable!$C$2:$Q$388,14,FALSE),"") -> SD-HT-7 | AH149: 148
A150: 18 | B150: Davison | C150: 6 | D150: =H150 -> Mitchell 7.3 S (SD-DV-28) | E150: =IF(F150="","",VLOOKUP(F150,MasterReferenceTable!$C$1:$Q$388,3,FALSE)) -> MCLS2 | F150: SD-DV-28 | G150: =IF(F150="","",VLOOKUP(F150,MasterReferenceTable!$C$2:$Q$388,2,FALSE)) -> 57301 | H150: =IF(F150="","",VLOOKUP(F150,MasterReferenceTable!$C$2:$Q$388,6,FALSE)) -> Mitchell 7.3 S (SD-DV-28) | I150: =IF(F150="","",VLOOKUP(F150,MasterReferenceTable!$C$2:$Q$388,7,FALSE)) -> Mitchell | J150: =IF(F150="","",VLOOKUP(F150,MasterReferenceTable!$C$2:$Q$388,8,FALSE)) -> SD | K150: =IFERROR(VLOOKUP($F150,MasterReferenceTable!$C$2:$Q$388,9,FALSE),"") -> SD-DV-25 | L150: =IFERROR(VLOOKUP($F150,MasterReferenceTable!$C$2:$Q$388,10,FALSE),"") -> SD-DV-24 | M150: =IFERROR(VLOOKUP($F150,MasterReferenceTable!$C$2:$Q$388,11,FALSE),"") -> SD-DV-27 | N150: =IFERROR(VLOOKUP($F150,MasterReferenceTable!$C$2:$Q$388,12,FALSE),"") -> SD-DV-31 | O150: =IFERROR(VLOOKUP($F150,MasterReferenceTable!$C$2:$Q$388,13,FALSE),"") -> SD-HN-17 | P150: =IFERROR(VLOOKUP($F150,MasterReferenceTable!$C$2:$Q$388,14,FALSE),"") -> SD-HT-7 | AH150: 149
A151: 19 | B151: Day | C151: 1 | D151: ANDOVER | E151: =IF(F151="","",VLOOKUP(F151,MasterReferenceTable!$C$1:$Q$388,3,FALSE)) -> 390198 | F151: 390198 | G151: =IF(F151="","",VLOOKUP(F151,MasterReferenceTable!$C$2:$Q$388,2,FALSE)) -> 57422 | H151: =IF(F151="","",VLOOKUP(F151,MasterReferenceTable!$C$2:$Q$388,6,FALSE)) -> ANDOVER | I151: =IF(F151="","",VLOOKUP(F151,MasterReferenceTable!$C$2:$Q$388,7,FALSE)) -> Andover | J151: =IF(F151="","",VLOOKUP(F151,MasterReferenceTable!$C$2:$Q$388,8,FALSE)) -> SD | K151: =IFERROR(VLOOKUP($F151,MasterReferenceTable!$C$2:$Q$388,9,FALSE),"") -> SD-DV-24 | L151: =IFERROR(VLOOKUP($F151,MasterReferenceTable!$C$2:$Q$388,10,FALSE),"") -> SD-DV-25 | M151: =IFERROR(VLOOKUP($F151,MasterReferenceTable!$C$2:$Q$388,11,FALSE),"") -> SD-HN-17 | N151: =IFERROR(VLOOKUP($F151,MasterReferenceTable!$C$2:$Q$388,12,FALSE),"") -> SD-DV-28 | O151: =IFERROR(VLOOKUP($F151,MasterReferenceTable!$C$2:$Q$388,13,FALSE),"") -> SD-DV-27 | P151: =IFERROR(VLOOKUP($F151,MasterReferenceTable!$C$2:$Q$388,14,FALSE),"") -> SD-DV-31 | AH151: 150
A152: 19 | B152: Day | C152: 2 | D152: WAUBAY NATL WILDLIFE RE | E152: =IF(F152="","",VLOOKUP(F152,MasterReferenceTable!$C$1:$Q$388,3,FALSE)) -> WNRS2 | F152: 398980 | G152: =IF(F152="","",VLOOKUP(F152,MasterReferenceTable!$C$2:$Q$388,2,FALSE)) -> 57273 | H152: =IF(F152="","",VLOOKUP(F152,MasterReferenceTable!$C$2:$Q$388,6,FALSE)) -> WAUBAY NATL WILDLIFE RE | I152: =IF(F152="","",VLOOKUP(F152,MasterReferenceTable!$C$2:$Q$388,7,FALSE)) -> Waubay | J152: =IF(F152="","",VLOOKUP(F152,MasterReferenceTable!$C$2:$Q$388,8,FALSE)) -> SD | K152: =IFERROR(VLOOKUP($F152,MasterReferenceTable!$C$2:$Q$388,9,FALSE),"") -> SD-DY-16 | L152: =IFERROR(VLOOKUP($F152,MasterReferenceTable!$C$2:$Q$388,10,FALSE),"") -> SD-DY-17 | M152: =IFERROR(VLOOKUP($F152,MasterReferenceTable!$C$2:$Q$388,11,FALSE),"") -> SD-DY-10 | N152: =IFERROR(VLOOKUP($F152,MasterReferenceTable!$C$2:$Q$388,12,FALSE),"") -> SD-MR-13 | O152: =IFERROR(VLOOKUP($F152,MasterReferenceTable!$C$2:$Q$388,13,FALSE),"") -> SD-RB-1 | P152: =IFERROR(VLOOKUP($F152,MasterReferenceTable!$C$2:$Q$388,14,FALSE),"") -> SD-CD-5 | AH152: 151
A153: 19 | B153: Day | C153: 3 | D153: WEBSTER WATER DEPT | E153: =IF(F153="","",VLOOKUP(F153,MasterReferenceTable!$C$1:$Q$388,3,FALSE)) -> WBRS2 | F153: 399004 | G153: =IF(F153="","",VLOOKUP(F153,MasterReferenceTable!$C$2:$Q$388,2,FALSE)) -> 57274 | H153: =IF(F153="","",VLOOKUP(F153,MasterReferenceTable!$C$2:$Q$388,6,FALSE)) -> WEBSTER WATER DEPT | I153: =IF(F153="","",VLOOKUP(F153,MasterReferenceTable!$C$2:$Q$388,7,FALSE)) -> Webster | J153: =IF(F153="","",VLOOKUP(F153,MasterReferenceTable!$C$2:$Q$388,8,FALSE)) -> SD | K153: =IFERROR(VLOOKUP($F153,MasterReferenceTable!$C$2:$Q$388,9,FALSE),"") -> SD-DY-10 | L153: =IFERROR(VLOOKUP($F153,MasterReferenceTable!$C$2:$Q$388,10,FALSE),"") -> SD-DY-17 | M153: =IFERROR(VLOOKUP($F153,MasterReferenceTable!$C$2:$Q$388,11,FALSE),"") -> SD-DY-16 | N153: =IFERROR(VLOOKUP($F153,MasterReferenceTable!$C$2:$Q$388,12,FALSE),"") -> SD-MR-13 | O153: =IFERROR(VLOOKUP($F153,MasterReferenceTable!$C$2:$Q$388,13,FALSE),"") -> SD-MR-12 | P153: =IFERROR(VLOOKUP($F153,MasterReferenceTable!$C$2:$Q$388,14,FALSE),"") -> SD-RB-1 | AH153: 152
A154: 19 | B154: Day | C154: 4 | D154: =H154 -> Grenville 6.6 ENE (SD-DY-16) | E154: =IF(F154="","",VLOOKUP(F154,MasterReferenceTable!$C$1:$Q$388,3,FALSE)) -> WBRS2 | F154: SD-DY-16 | G154: =IF(F154="","",VLOOKUP(F154,MasterReferenceTable!$C$2:$Q$388,2,FALSE)) -> 57239 | H154: =IF(F154="","",VLOOKUP(F154,MasterReferenceTable!$C$2:$Q$388,6,FALSE)) -> Grenville 6.6 ENE (SD-DY-16) | I154: =IF(F154="","",VLOOKUP(F154,MasterReferenceTable!$C$2:$Q$388,7,FALSE)) -> Grenville | J154: =IF(F154="","",VLOOKUP(F154,MasterReferenceTable!$C$2:$Q$388,8,FALSE)) -> SD | K154: =IFERROR(VLOOKUP($F154,MasterReferenceTable!$C$2:$Q$388,9,FALSE),"") -> SD-DY-17 | L154: =IFERROR(VLOOKUP($F154,MasterReferenceTable!$C$2:$Q$388,10,FALSE),"") -> SD-MR-13 | M154: =IFERROR(VLOOKUP($F154,MasterReferenceTable!$C$2:$Q$388,11,FALSE),"") -> SD-RB-1 | N154: =IFERROR(VLOOKUP($F154,MasterReferenceTable!$C$2:$Q$388,12,FALSE),"") -> SD-DY-10 | O154: =IFERROR(VLOOKUP($F154,MasterReferenceTable!$C$2:$Q$388,13,FALSE),"") -> SD-RB-4 | P154: =IFERROR(VLOOKUP($F154,MasterReferenceTable!$C$2:$Q$388,14,FALSE),"") -> SD-CD-5 | AH154: 153
A155: 19 | B155: Day | C155: 5 | D155: Webster 7.8 SSW (SD-DY-10) | E155: =IF(F155="","",VLOOKUP(F155,MasterReferenceTable!$C$1:$Q$388,3,FALSE)) -> WBRS2 | F155: SD-DY-10 | G155: =IF(F155="","",VLOOKUP(F155,MasterReferenceTable!$C$2:$Q$388,2,FALSE)) -> 57274 | H155: =IF(F155="","",VLOOKUP(F155,MasterReferenceTable!$C$2:$Q$388,6,FALSE)) -> Webster 7.8 SSW (SD-DY-10) | I155: =IF(F155="","",VLOOKUP(F155,MasterReferenceTable!$C$2:$Q$388,7,FALSE)) -> Webster | J155: =IF(F155="","",VLOOKUP(F155,MasterReferenceTable!$C$2:$Q$388,8,FALSE)) -> SD | K155: =IFERROR(VLOOKUP($F155,MasterReferenceTable!$C$2:$Q$388,9,FALSE),"") -> SD-DY-17 | L155: =IFERROR(VLOOKUP($F155,MasterReferenceTable!$C$2:$Q$388,10,FALSE),"") -> SD-DY-16 | M155: =IFERROR(VLOOKUP($F155,MasterReferenceTable!$C$2:$Q$388,11,FALSE),"") -> SD-MR-13 | N155: =IFERROR(VLOOKUP($F155,MasterReferenceTable!$C$2:$Q$388,12,FALSE),"") -> SD-CD-5 | O155: =IFERROR(VLOOKUP($F155,MasterReferenceTable!$C$2:$Q$388,13,FALSE),"") -> SD-SP-6 | P155: =IFERROR(VLOOKUP($F155,MasterReferenceTable!$C$2:$Q$388,14,FALSE),"") -> SD-CD-32 | AH155: 154
A156: 19 | B156: Day | C156: 6 | D156: Webster 9.8 NNE (SD-DY-17) | E156: =IF(F156="","",VLOOKUP(F156,MasterReferenceTable!$C$1:$Q$388,3,FALSE)) -> WBRS2 | F156: SD-DY-17 | G156: =IF(F156="","",VLOOKUP(F156,MasterReferenceTable!$C$2:$Q$388,2,FALSE)) -> 57274 | H156: =IF(F156="","",VLOOKUP(F156,MasterReferenceTable!$C$2:$Q$388,6,FALSE)) -> Webster 9.8 NNE (SD-DY-17) | I156: =IF(F156="","",VLOOKUP(F156,MasterReferenceTable!$C$2:$Q$388,7,FALSE)) -> Webster | J156: =IF(F156="","",VLOOKUP(F156,MasterReferenceTable!$C$2:$Q$388,8,FALSE)) -> SD | K156: =IFERROR(VLOOKUP($F156,MasterReferenceTable!$C$2:$Q$388,9,FALSE),"") -> SD-DY-16 | L156: =IFERROR(VLOOKUP($F156,MasterReferenceTable!$C$2:$Q$388,10,FALSE),"") -> SD-MR-13 | M156: =IFERROR(VLOOKUP($F156,MasterReferenceTable!$C$2:$Q$388,11,FALSE),"") -> SD-DY-10 | N156: =IFERROR(VLOOKUP($F156,MasterReferenceTable!$C$2:$Q$388,12,FALSE),"") -> SD-RB-1 | O156: =IFERROR(VLOOKUP($F156,MasterReferenceTable!$C$2:$Q$388,13,FALSE),"") -> SD-MR-12 | P156: =IFERROR(VLOOKUP($F156,MasterReferenceTable!$C$2:$Q$388,14,FALSE),"") -> 0 | AH156: 155
A157: 20 | B157: Deuel | C157: 1 | D157: Gary 6.1 SW (SD-DL-7) | E157: =IF(F157="","",VLOOKUP(F157,MasterReferenceTable!$C$1:$Q$388,3,FALSE)) -> CLKS2 | F157: SD-DL-7 | G157: =IF(F157="","",VLOOKUP(F157,MasterReferenceTable!$C$2:$Q$388,2,FALSE)) -> 57237 | H157: =IF(F157="","",VLOOKUP(F157,MasterReferenceTable!$C$2:$Q$388,6,FALSE)) -> Gary 6.1 SW (SD-DL-7) | I157: =IF(F157="","",VLOOKUP(F157,MasterReferenceTable!$C$2:$Q$388,7,FALSE)) -> Gary | J157: =IF(F157="","",VLOOKUP(F157,MasterReferenceTable!$C$2:$Q$388,8,FALSE)) -> SD | K157: =IFERROR(VLOOKUP($F157,MasterReferenceTable!$C$2:$Q$388,9,FALSE),"") -> SD-BK-2 | L157: =IFERROR(VLOOKUP($F157,MasterReferenceTable!$C$2:$Q$388,10,FALSE),"") -> SD-GT-9 | M157: =IFERROR(VLOOKUP($F157,MasterReferenceTable!$C$2:$Q$388,11,FALSE),"") -> SD-BK-9 | N157: =IFERROR(VLOOKUP($F157,MasterReferenceTable!$C$2:$Q$388,12,FALSE),"") -> SD-GT-1 | O157: =IFERROR(VLOOKUP($F157,MasterReferenceTable!$C$2:$Q$388,13,FALSE),"") -> SD-GT-6 | P157: =IFERROR(VLOOKUP($F157,MasterReferenceTable!$C$2:$Q$388,14,FALSE),"") -> SD-GT-4 | AH157: 156
A158: 20 | B158: Deuel | C158: 2 | D158: CLEAR LAKE (1903-2019) | E158: =IF(F158="","",VLOOKUP(F158,MasterReferenceTable!$C$1:$Q$388,3,FALSE)) -> CLKS2 | F158: 391777 | G158: =IF(F158="","",VLOOKUP(F158,MasterReferenceTable!$C$2:$Q$388,2,FALSE)) -> 57226 | H158: =IF(F158="","",VLOOKUP(F158,MasterReferenceTable!$C$2:$Q$388,6,FALSE)) -> CLEAR LAKE (1903-2019) | I158: =IF(F158="","",VLOOKUP(F158,MasterReferenceTable!$C$2:$Q$388,7,FALSE)) -> ClearLake | J158: =IF(F158="","",VLOOKUP(F158,MasterReferenceTable!$C$2:$Q$388,8,FALSE)) -> SD | K158: =IFERROR(VLOOKUP($F158,MasterReferenceTable!$C$2:$Q$388,9,FALSE),"") -> SD-DL-7 | L158: =IFERROR(VLOOKUP($F158,MasterReferenceTable!$C$2:$Q$388,10,FALSE),"") -> SD-GT-6 | M158: =IFERROR(VLOOKUP($F158,MasterReferenceTable!$C$2:$Q$388,11,FALSE),"") -> SD-GT-9 | N158: =IFERROR(VLOOKUP($F158,MasterReferenceTable!$C$2:$Q$388,12,FALSE),"") -> SD-BK-9 | O158: =IFERROR(VLOOKUP($F158,MasterReferenceTable!$C$2:$Q$388,13,FALSE),"") -> SD-CD-1 | P158: =IFERROR(VLOOKUP($F158,MasterReferenceTable!$C$2:$Q$388,14,FALSE),"") -> SD-GT-1 | AH158: 157
E159: =IF(F159="","",VLOOKUP(F159,MasterReferenceTable!$C$1:$Q$388,3,FALSE)) ->  | G159: =IF(F159="","",VLOOKUP(F159,MasterReferenceTable!$C$2:$Q$388,2,FALSE)) ->  | H159: =IF(F159="","",VLOOKUP(F159,MasterReferenceTable!$C$2:$Q$388,6,FALSE)) ->  | I159: =IF(F159="","",VLOOKUP(F159,MasterReferenceTable!$C$2:$Q$388,7,FALSE)) ->  | J159: =IF(F159="","",VLOOKUP(F159,MasterReferenceTable!$C$2:$Q$388,8,FALSE)) ->  | K159: =IFERROR(VLOOKUP($F159,MasterReferenceTable!$C$2:$Q$388,9,FALSE),"") ->  | L159: =IFERROR(VLOOKUP($F159,MasterReferenceTable!$C$2:$Q$388,10,FALSE),"") ->  | M159: =IFERROR(VLOOKUP($F159,MasterReferenceTable!$C$2:$Q$388,11,FALSE),"") ->  | N159: =IFERROR(VLOOKUP($F159,MasterReferenceTable!$C$2:$Q$388,12,FALSE),"") ->  | O159: =IFERROR(VLOOKUP($F159,MasterReferenceTable!$C$2:$Q$388,13,FALSE),"") ->  | P159: =IFERROR(VLOOKUP($F159,MasterReferenceTable!$C$2:$Q$388,14,FALSE),"") ->  | AH159: 158
A160: 21 | B160: Dewey | C160: 1 | D160: TIMBER LAKE | E160: =IF(F160="","",VLOOKUP(F160,MasterReferenceTable!$C$1:$Q$388,3,FALSE)) -> TLKS2 | F160: 398307 | G160: =IF(F160="","",VLOOKUP(F160,MasterReferenceTable!$C$2:$Q$388,2,FALSE)) -> 57656 | H160: =IF(F160="","",VLOOKUP(F160,MasterReferenceTable!$C$2:$Q$388,6,FALSE)) -> TIMBER LAKE | I160: =IF(F160="","",VLOOKUP(F160,MasterReferenceTable!$C$2:$Q$388,7,FALSE)) -> TimberLake | J160: =IF(F160="","",VLOOKUP(F160,MasterReferenceTable!$C$2:$Q$388,8,FALSE)) -> SD | K160: =IFERROR(VLOOKUP($F160,MasterReferenceTable!$C$2:$Q$388,9,FALSE),"") -> SD-DW-4 | L160: =IFERROR(VLOOKUP($F160,MasterReferenceTable!$C$2:$Q$388,10,FALSE),"") -> SD-DW-5 | M160: =IFERROR(VLOOKUP($F160,MasterReferenceTable!$C$2:$Q$388,11,FALSE),"") -> SD-SL-23 | N160: =IFERROR(VLOOKUP($F160,MasterReferenceTable!$C$2:$Q$388,12,FALSE),"") -> 0 | O160: =IFERROR(VLOOKUP($F160,MasterReferenceTable!$C$2:$Q$388,13,FALSE),"") -> 0 | P160: =IFERROR(VLOOKUP($F160,MasterReferenceTable!$C$2:$Q$388,14,FALSE),"") -> 0 | AH160: 159
A161: 21 | B161: Dewey | C161: 2 | D161: North Eagle Butte 1.7 NNW (SD-DW-5) | E161: =IF(F161="","",VLOOKUP(F161,MasterReferenceTable!$C$1:$Q$388,3,FALSE)) -> DUPS2 | F161: SD-DW-5 | G161: =IF(F161="","",VLOOKUP(F161,MasterReferenceTable!$C$2:$Q$388,2,FALSE)) -> 57625 | H161: =IF(F161="","",VLOOKUP(F161,MasterReferenceTable!$C$2:$Q$388,6,FALSE)) -> North Eagle Butte 1.7 NNW (SD-DW-5) | I161: =IF(F161="","",VLOOKUP(F161,MasterReferenceTable!$C$2:$Q$388,7,FALSE)) -> EagleButte | J161: =IF(F161="","",VLOOKUP(F161,MasterReferenceTable!$C$2:$Q$388,8,FALSE)) -> SD | K161: =IFERROR(VLOOKUP($F161,MasterReferenceTable!$C$2:$Q$388,9,FALSE),"") -> SD-DW-4 | L161: =IFERROR(VLOOKUP($F161,MasterReferenceTable!$C$2:$Q$388,10,FALSE),"") -> SD-SL-23 | M161: =IFERROR(VLOOKUP($F161,MasterReferenceTable!$C$2:$Q$388,11,FALSE),"") -> SD-HK-23 | N161: =IFERROR(VLOOKUP($F161,MasterReferenceTable!$C$2:$Q$388,12,FALSE),"") -> 0 | O161: =IFERROR(VLOOKUP($F161,MasterReferenceTable!$C$2:$Q$388,13,FALSE),"") -> 0 | P161: =IFERROR(VLOOKUP($F161,MasterReferenceTable!$C$2:$Q$388,14,FALSE),"") -> 0 | AH161: 160
A162: 21 | B162: Dewey | C162: 3 | D162: Timber Lake 6.6 E (SD-DW-4) | E162: =IF(F162="","",VLOOKUP(F162,MasterReferenceTable!$C$1:$Q$388,3,FALSE)) -> TLKS2 | F162: SD-DW-4 | G162: =IF(F162="","",VLOOKUP(F162,MasterReferenceTable!$C$2:$Q$388,2,FALSE)) -> 57656 | H162: =IF(F162="","",VLOOKUP(F162,MasterReferenceTable!$C$2:$Q$388,6,FALSE)) -> Timber Lake 6.6 E (SD-DW-4) | I162: =IF(F162="","",VLOOKUP(F162,MasterReferenceTable!$C$2:$Q$388,7,FALSE)) -> Timber Lake | J162: =IF(F162="","",VLOOKUP(F162,MasterReferenceTable!$C$2:$Q$388,8,FALSE)) -> SD | K162: =IFERROR(VLOOKUP($F162,MasterReferenceTable!$C$2:$Q$388,9,FALSE),"") -> SD-DW-5 | L162: =IFERROR(VLOOKUP($F162,MasterReferenceTable!$C$2:$Q$388,10,FALSE),"") -> SD-SL-23 | M162: =IFERROR(VLOOKUP($F162,MasterReferenceTable!$C$2:$Q$388,11,FALSE),"") -> SD-PK-10 | N162: =IFERROR(VLOOKUP($F162,MasterReferenceTable!$C$2:$Q$388,12,FALSE),"") -> 0 | O162: =IFERROR(VLOOKUP($F162,MasterReferenceTable!$C$2:$Q$388,13,FALSE),"") -> 0 | P162: =IFERROR(VLOOKUP($F162,MasterReferenceTable!$C$2:$Q$388,14,FALSE),"") -> 0 | AH162: 161
A163: 21 | B163: Dewey | C163: 4 | D163: Bear Creek South Dakota (RAWS) | E163: =IF(F163="","",VLOOKUP(F163,MasterReferenceTable!$C$1:$Q$388,3,FALSE)) -> USR0000SBEA | F163: sdSBEA | G163: =IF(F163="","",VLOOKUP(F163,MasterReferenceTable!$C$2:$Q$388,2,FALSE)) -> 57636 | H163: =IF(F163="","",VLOOKUP(F163,MasterReferenceTable!$C$2:$Q$388,6,FALSE)) -> Bear Creek South Dakota (RAWS) | I163: =IF(F163="","",VLOOKUP(F163,MasterReferenceTable!$C$2:$Q$388,7,FALSE)) -> Lantry | J163: =IF(F163="","",VLOOKUP(F163,MasterReferenceTable!$C$2:$Q$388,8,FALSE)) -> SD | K163: =IFERROR(VLOOKUP($F163,MasterReferenceTable!$C$2:$Q$388,9,FALSE),"") -> SD-DW-5 | L163: =IFERROR(VLOOKUP($F163,MasterReferenceTable!$C$2:$Q$388,10,FALSE),"") -> SD-HK-19 | M163: =IFERROR(VLOOKUP($F163,MasterReferenceTable!$C$2:$Q$388,11,FALSE),"") -> SD-DW-4 | N163: =IFERROR(VLOOKUP($F163,MasterReferenceTable!$C$2:$Q$388,12,FALSE),"") -> 0 | O163: =IFERROR(VLOOKUP($F163,MasterReferenceTable!$C$2:$Q$388,13,FALSE),"") -> 0 | P163: =IFERROR(VLOOKUP($F163,MasterReferenceTable!$C$2:$Q$388,14,FALSE),"") -> 0 | AH163: 162
A164: 22 | B164: Douglas | C164: 1 | D164: PLATTE | E164: =IF(F164="","",VLOOKUP(F164,MasterReferenceTable!$C$1:$Q$388,3,FALSE)) -> PLTS2 | F164: 396669 | G164: =IF(F164="","",VLOOKUP(F164,MasterReferenceTable!$C$2:$Q$388,2,FALSE)) -> 57364 | H164: =IF(F164="","",VLOOKUP(F164,MasterReferenceTable!$C$2:$Q$388,6,FALSE)) -> PLATTE | I164: =IF(F164="","",VLOOKUP(F164,MasterReferenceTable!$C$2:$Q$388,7,FALSE)) -> Platte | J164: =IF(F164="","",VLOOKUP(F164,MasterReferenceTable!$C$2:$Q$388,8,FALSE)) -> SD | K164: =IFERROR(VLOOKUP($F164,MasterReferenceTable!$C$2:$Q$388,9,FALSE),"") -> SD-DG-11 | L164: =IFERROR(VLOOKUP($F164,MasterReferenceTable!$C$2:$Q$388,10,FALSE),"") -> SD-AR-8 | M164: =IFERROR(VLOOKUP($F164,MasterReferenceTable!$C$2:$Q$388,11,FALSE),"") -> SD-DG-2 | N164: =IFERROR(VLOOKUP($F164,MasterReferenceTable!$C$2:$Q$388,12,FALSE),"") -> SD-DG-1 | O164: =IFERROR(VLOOKUP($F164,MasterReferenceTable!$C$2:$Q$388,13,FALSE),"") -> SD-JR-8 | P164: =IFERROR(VLOOKUP($F164,MasterReferenceTable!$C$2:$Q$388,14,FALSE),"") -> SD-CM-14 | AH164: 163
A165: 22 | B165: Douglas | C165: 2 | D165: Armour 4.6 W (SD-DG-2) | E165: =IF(F165="","",VLOOKUP(F165,MasterReferenceTable!$C$1:$Q$388,3,FALSE)) -> PKSS2 | F165: SD-DG-2 | G165: =IF(F165="","",VLOOKUP(F165,MasterReferenceTable!$C$2:$Q$388,2,FALSE)) -> 57313 | H165: =IF(F165="","",VLOOKUP(F165,MasterReferenceTable!$C$2:$Q$388,6,FALSE)) -> Armour 4.6 W (SD-DG-2) | I165: =IF(F165="","",VLOOKUP(F165,MasterReferenceTable!$C$2:$Q$388,7,FALSE)) -> Armour | J165: =IF(F165="","",VLOOKUP(F165,MasterReferenceTable!$C$2:$Q$388,8,FALSE)) -> SD | K165: =IFERROR(VLOOKUP($F165,MasterReferenceTable!$C$2:$Q$388,9,FALSE),"") -> SD-DG-11 | L165: =IFERROR(VLOOKUP($F165,MasterReferenceTable!$C$2:$Q$388,10,FALSE),"") -> SD-AR-8 | M165: =IFERROR(VLOOKUP($F165,MasterReferenceTable!$C$2:$Q$388,11,FALSE),"") -> SD-CM-14 | N165: =IFERROR(VLOOKUP($F165,MasterReferenceTable!$C$2:$Q$388,12,FALSE),"") -> SD-DG-1 | O165: =IFERROR(VLOOKUP($F165,MasterReferenceTable!$C$2:$Q$388,13,FALSE),"") -> SD-HT-2 | P165: =IFERROR(VLOOKUP($F165,MasterReferenceTable!$C$2:$Q$388,14,FALSE),"") -> SD-HT-7 | AH165: 164
A166: 22 | B166: Douglas | C166: 3 | D166: Corsica 0.1 SSE (SD-DG-11) | E166: =IF(F166="","",VLOOKUP(F166,MasterReferenceTable!$C$1:$Q$388,3,FALSE)) -> PKSS2 | F166: SD-DG-11 | G166: =IF(F166="","",VLOOKUP(F166,MasterReferenceTable!$C$2:$Q$388,2,FALSE)) -> 57328 | H166: =IF(F166="","",VLOOKUP(F166,MasterReferenceTable!$C$2:$Q$388,6,FALSE)) -> Corsica 0.1 SSE (SD-DG-11) | I166: =IF(F166="","",VLOOKUP(F166,MasterReferenceTable!$C$2:$Q$388,7,FALSE)) -> Corsica | J166: =IF(F166="","",VLOOKUP(F166,MasterReferenceTable!$C$2:$Q$388,8,FALSE)) -> SD | K166: =IFERROR(VLOOKUP($F166,MasterReferenceTable!$C$2:$Q$388,9,FALSE),"") -> SD-DG-2 | L166: =IFERROR(VLOOKUP($F166,MasterReferenceTable!$C$2:$Q$388,10,FALSE),"") -> SD-AR-8 | M166: =IFERROR(VLOOKUP($F166,MasterReferenceTable!$C$2:$Q$388,11,FALSE),"") -> SD-DG-1 | N166: =IFERROR(VLOOKUP($F166,MasterReferenceTable!$C$2:$Q$388,12,FALSE),"") -> SD-CM-14 | O166: =IFERROR(VLOOKUP($F166,MasterReferenceTable!$C$2:$Q$388,13,FALSE),"") -> SD-HT-7 | P166: =IFERROR(VLOOKUP($F166,MasterReferenceTable!$C$2:$Q$388,14,FALSE),"") -> SD-HT-2 | AH166: 165
A167: 22 | B167: Douglas | C167: 4 | D167: Dimock 10.2 W (SD-DG-1) | E167: =IF(F167="","",VLOOKUP(F167,MasterReferenceTable!$C$1:$Q$388,3,FALSE)) -> ACYS2 | F167: SD-DG-1 | G167: =IF(F167="","",VLOOKUP(F167,MasterReferenceTable!$C$2:$Q$388,2,FALSE)) -> 57331 | H167: =IF(F167="","",VLOOKUP(F167,MasterReferenceTable!$C$2:$Q$388,6,FALSE)) -> Dimock 10.2 W (SD-DG-1) | I167: =IF(F167="","",VLOOKUP(F167,MasterReferenceTable!$C$2:$Q$388,7,FALSE)) -> Dimock | J167: =IF(F167="","",VLOOKUP(F167,MasterReferenceTable!$C$2:$Q$388,8,FALSE)) -> SD | K167: =IFERROR(VLOOKUP($F167,MasterReferenceTable!$C$2:$Q$388,9,FALSE),"") -> SD-DG-11 | L167: =IFERROR(VLOOKUP($F167,MasterReferenceTable!$C$2:$Q$388,10,FALSE),"") -> SD-HT-7 | M167: =IFERROR(VLOOKUP($F167,MasterReferenceTable!$C$2:$Q$388,11,FALSE),"") -> SD-DV-28 | N167: =IFERROR(VLOOKUP($F167,MasterReferenceTable!$C$2:$Q$388,12,FALSE),"") -> SD-DV-25 | O167: =IFERROR(VLOOKUP($F167,MasterReferenceTable!$C$2:$Q$388,13,FALSE),"") -> SD-AR-8 | P167: =IFERROR(VLOOKUP($F167,MasterReferenceTable!$C$2:$Q$388,14,FALSE),"") -> SD-DV-24 | AH167: 166
A168: 22 | B168: Douglas | C168: 5 | D168: ARMOUR (1896-2008) | E168: =IF(F168="","",VLOOKUP(F168,MasterReferenceTable!$C$1:$Q$388,3,FALSE)) -> ARMS2 | F168: 390296 | G168: =IF(F168="","",VLOOKUP(F168,MasterReferenceTable!$C$2:$Q$388,2,FALSE)) -> 57313 | H168: =IF(F168="","",VLOOKUP(F168,MasterReferenceTable!$C$2:$Q$388,6,FALSE)) -> ARMOUR (1896-2008) | I168: =IF(F168="","",VLOOKUP(F168,MasterReferenceTable!$C$2:$Q$388,7,FALSE)) -> Armour | J168: =IF(F168="","",VLOOKUP(F168,MasterReferenceTable!$C$2:$Q$388,8,FALSE)) -> SD | K168: =IFERROR(VLOOKUP($F168,MasterReferenceTable!$C$2:$Q$388,9,FALSE),"") -> SD-DG-2 | L168: =IFERROR(VLOOKUP($F168,MasterReferenceTable!$C$2:$Q$388,10,FALSE),"") -> SD-DG-11 | M168: =IFERROR(VLOOKUP($F168,MasterReferenceTable!$C$2:$Q$388,11,FALSE),"") -> SD-CM-14 | N168: =IFERROR(VLOOKUP($F168,MasterReferenceTable!$C$2:$Q$388,12,FALSE),"") -> SD-DG-1 | O168: =IFERROR(VLOOKUP($F168,MasterReferenceTable!$C$2:$Q$388,13,FALSE),"") -> SD-HT-2 | P168: =IFERROR(VLOOKUP($F168,MasterReferenceTable!$C$2:$Q$388,14,FALSE),"") -> SD-AR-8 | AH168: 167
A169: 23 | B169: Edmunds | C169: 1 | D169: BOWDLE | E169: =IF(F169="","",VLOOKUP(F169,MasterReferenceTable!$C$1:$Q$388,3,FALSE)) -> ROSS2 | F169: 390834 | G169: =IF(F169="","",VLOOKUP(F169,MasterReferenceTable!$C$2:$Q$388,2,FALSE)) -> 57428 | H169: =IF(F169="","",VLOOKUP(F169,MasterReferenceTable!$C$2:$Q$388,6,FALSE)) -> BOWDLE | I169: =IF(F169="","",VLOOKUP(F169,MasterReferenceTable!$C$2:$Q$388,7,FALSE)) -> Roscoe | J169: =IF(F169="","",VLOOKUP(F169,MasterReferenceTable!$C$2:$Q$388,8,FALSE)) -> SD | K169: =IFERROR(VLOOKUP($F169,MasterReferenceTable!$C$2:$Q$388,9,FALSE),"") -> SD-ED-6 | L169: =IFERROR(VLOOKUP($F169,MasterReferenceTable!$C$2:$Q$388,10,FALSE),"") -> SD-MP-3 | M169: =IFERROR(VLOOKUP($F169,MasterReferenceTable!$C$2:$Q$388,11,FALSE),"") -> SD-CP-9 | N169: =IFERROR(VLOOKUP($F169,MasterReferenceTable!$C$2:$Q$388,12,FALSE),"") -> SD-ED-16 | O169: =IFERROR(VLOOKUP($F169,MasterReferenceTable!$C$2:$Q$388,13,FALSE),"") -> SD-ED-12 | P169: =IFERROR(VLOOKUP($F169,MasterReferenceTable!$C$2:$Q$388,14,FALSE),"") -> SD-HY-2 | AH169: 168
A170: 23 | B170: Edmunds | C170: 2 | D170: IPSWICH | E170: =IF(F170="","",VLOOKUP(F170,MasterReferenceTable!$C$1:$Q$388,3,FALSE)) -> IPSS2 | F170: 394206 | G170: =IF(F170="","",VLOOKUP(F170,MasterReferenceTable!$C$2:$Q$388,2,FALSE)) -> 57451 | H170: =IF(F170="","",VLOOKUP(F170,MasterReferenceTable!$C$2:$Q$388,6,FALSE)) -> IPSWICH | I170: =IF(F170="","",VLOOKUP(F170,MasterReferenceTable!$C$2:$Q$388,7,FALSE)) -> Ipswich | J170: =IF(F170="","",VLOOKUP(F170,MasterReferenceTable!$C$2:$Q$388,8,FALSE)) -> SD | K170: =IFERROR(VLOOKUP($F170,MasterReferenceTable!$C$2:$Q$388,9,FALSE),"") -> SD-ED-9 | L170: =IFERROR(VLOOKUP($F170,MasterReferenceTable!$C$2:$Q$388,10,FALSE),"") -> SD-ED-14 | M170: =IFERROR(VLOOKUP($F170,MasterReferenceTable!$C$2:$Q$388,11,FALSE),"") -> SD-FK-6 | N170: =IFERROR(VLOOKUP($F170,MasterReferenceTable!$C$2:$Q$388,12,FALSE),"") -> SD-ED-12 | O170: =IFERROR(VLOOKUP($F170,MasterReferenceTable!$C$2:$Q$388,13,FALSE),"") -> SD-MP-7 | P170: =IFERROR(VLOOKUP($F170,MasterReferenceTable!$C$2:$Q$388,14,FALSE),"") -> SD-BR-38 | AH170: 169
A171: 23 | B171: Edmunds | C171: 3 | D171: ROSCOE | E171: =IF(F171="","",VLOOKUP(F171,MasterReferenceTable!$C$1:$Q$388,3,FALSE)) -> ROSS2 | F171: 397277 | G171: =IF(F171="","",VLOOKUP(F171,MasterReferenceTable!$C$2:$Q$388,2,FALSE)) -> 57471 | H171: =IF(F171="","",VLOOKUP(F171,MasterReferenceTable!$C$2:$Q$388,6,FALSE)) -> ROSCOE | I171: =IF(F171="","",VLOOKUP(F171,MasterReferenceTable!$C$2:$Q$388,7,FALSE)) -> Roscoe | J171: =IF(F171="","",VLOOKUP(F171,MasterReferenceTable!$C$2:$Q$388,8,FALSE)) -> SD | K171: =IFERROR(VLOOKUP($F171,MasterReferenceTable!$C$2:$Q$388,9,FALSE),"") -> SD-ED-6 | L171: =IFERROR(VLOOKUP($F171,MasterReferenceTable!$C$2:$Q$388,10,FALSE),"") -> SD-ED-16 | M171: =IFERROR(VLOOKUP($F171,MasterReferenceTable!$C$2:$Q$388,11,FALSE),"") -> SD-ED-12 | N171: =IFERROR(VLOOKUP($F171,MasterReferenceTable!$C$2:$Q$388,12,FALSE),"") -> SD-ED-9 | O171: =IFERROR(VLOOKUP($F171,MasterReferenceTable!$C$2:$Q$388,13,FALSE),"") -> SD-MP-3 | P171: =IFERROR(VLOOKUP($F171,MasterReferenceTable!$C$2:$Q$388,14,FALSE),"") -> SD-ED-14 | AH171: 170
A172: 23 | B172: Edmunds | C172: 4 | D172: Ipswich 9.8 ESE (SD-ED-9) | E172: =IF(F172="","",VLOOKUP(F172,MasterReferenceTable!$C$1:$Q$388,3,FALSE)) -> IPSS2 | F172: SD-ED-9 | G172: =IF(F172="","",VLOOKUP(F172,MasterReferenceTable!$C$2:$Q$388,2,FALSE)) -> 57451 | H172: =IF(F172="","",VLOOKUP(F172,MasterReferenceTable!$C$2:$Q$388,6,FALSE)) -> Ipswich 9.8 ESE (SD-ED-9) | I172: =IF(F172="","",VLOOKUP(F172,MasterReferenceTable!$C$2:$Q$388,7,FALSE)) -> Ipswich | J172: =IF(F172="","",VLOOKUP(F172,MasterReferenceTable!$C$2:$Q$388,8,FALSE)) -> SD | K172: =IFERROR(VLOOKUP($F172,MasterReferenceTable!$C$2:$Q$388,9,FALSE),"") -> SD-ED-14 | L172: =IFERROR(VLOOKUP($F172,MasterReferenceTable!$C$2:$Q$388,10,FALSE),"") -> SD-FK-6 | M172: =IFERROR(VLOOKUP($F172,MasterReferenceTable!$C$2:$Q$388,11,FALSE),"") -> SD-ED-12 | N172: =IFERROR(VLOOKUP($F172,MasterReferenceTable!$C$2:$Q$388,12,FALSE),"") -> SD-MP-7 | O172: =IFERROR(VLOOKUP($F172,MasterReferenceTable!$C$2:$Q$388,13,FALSE),"") -> SD-BR-38 | P172: =IFERROR(VLOOKUP($F172,MasterReferenceTable!$C$2:$Q$388,14,FALSE),"") -> SD-BR-11 | AH172: 171
A173: 23 | B173: Edmunds | C173: 5 | D173: Mina 2.2 NE (SD-ED-14) | E173: =IF(F173="","",VLOOKUP(F173,MasterReferenceTable!$C$1:$Q$388,3,FALSE)) -> IPSS2 | F173: SD-ED-14 | G173: =IF(F173="","",VLOOKUP(F173,MasterReferenceTable!$C$2:$Q$388,2,FALSE)) -> 57451 | H173: =IF(F173="","",VLOOKUP(F173,MasterReferenceTable!$C$2:$Q$388,6,FALSE)) -> Mina 2.2 NE (SD-ED-14) | I173: =IF(F173="","",VLOOKUP(F173,MasterReferenceTable!$C$2:$Q$388,7,FALSE)) -> Mina | J173: =IF(F173="","",VLOOKUP(F173,MasterReferenceTable!$C$2:$Q$388,8,FALSE)) -> SD | K173: =IFERROR(VLOOKUP($F173,MasterReferenceTable!$C$2:$Q$388,9,FALSE),"") -> SD-MP-7 | L173: =IFERROR(VLOOKUP($F173,MasterReferenceTable!$C$2:$Q$388,10,FALSE),"") -> SD-ED-9 | M173: =IFERROR(VLOOKUP($F173,MasterReferenceTable!$C$2:$Q$388,11,FALSE),"") -> SD-BR-38 | N173: =IFERROR(VLOOKUP($F173,MasterReferenceTable!$C$2:$Q$388,12,FALSE),"") -> SD-BR-11 | O173: =IFERROR(VLOOKUP($F173,MasterReferenceTable!$C$2:$Q$388,13,FALSE),"") -> SD-FK-6 | P173: =IFERROR(VLOOKUP($F173,MasterReferenceTable!$C$2:$Q$388,14,FALSE),"") -> SD-BR-23 | AH173: 172
A174: 23 | B174: Edmunds | C174: 6 | D174: Roscoe 6.1 W (SD-ED-6) | E174: =IF(F174="","",VLOOKUP(F174,MasterReferenceTable!$C$1:$Q$388,3,FALSE)) -> ROSS2 | F174: SD-ED-6 | G174: =IF(F174="","",VLOOKUP(F174,MasterReferenceTable!$C$2:$Q$388,2,FALSE)) -> 57471 | H174: =IF(F174="","",VLOOKUP(F174,MasterReferenceTable!$C$2:$Q$388,6,FALSE)) -> Roscoe 6.1 W (SD-ED-6) | I174: =IF(F174="","",VLOOKUP(F174,MasterReferenceTable!$C$2:$Q$388,7,FALSE)) -> Roscoe | J174: =IF(F174="","",VLOOKUP(F174,MasterReferenceTable!$C$2:$Q$388,8,FALSE)) -> SD | K174: =IFERROR(VLOOKUP($F174,MasterReferenceTable!$C$2:$Q$388,9,FALSE),"") -> SD-ED-16 | L174: =IFERROR(VLOOKUP($F174,MasterReferenceTable!$C$2:$Q$388,10,FALSE),"") -> SD-ED-12 | M174: =IFERROR(VLOOKUP($F174,MasterReferenceTable!$C$2:$Q$388,11,FALSE),"") -> SD-MP-3 | N174: =IFERROR(VLOOKUP($F174,MasterReferenceTable!$C$2:$Q$388,12,FALSE),"") -> SD-CP-9 | O174: =IFERROR(VLOOKUP($F174,MasterReferenceTable!$C$2:$Q$388,13,FALSE),"") -> SD-HY-6 | P174: =IFERROR(VLOOKUP($F174,MasterReferenceTable!$C$2:$Q$388,14,FALSE),"") -> SD-ED-9 | AH174: 173
A175: 23 | B175: Edmunds | C175: 7 | D175: Roscoe 6.2 NE (SD-ED-16) | E175: =IF(F175="","",VLOOKUP(F175,MasterReferenceTable!$C$1:$Q$388,3,FALSE)) -> ROSS2 | F175: SD-ED-16 | G175: =IF(F175="","",VLOOKUP(F175,MasterReferenceTable!$C$2:$Q$388,2,FALSE)) -> 57471 | H175: =IF(F175="","",VLOOKUP(F175,MasterReferenceTable!$C$2:$Q$388,6,FALSE)) -> Roscoe 6.2 NE (SD-ED-16) | I175: =IF(F175="","",VLOOKUP(F175,MasterReferenceTable!$C$2:$Q$388,7,FALSE)) -> Roscoe | J175: =IF(F175="","",VLOOKUP(F175,MasterReferenceTable!$C$2:$Q$388,8,FALSE)) -> SD | K175: =IFERROR(VLOOKUP($F175,MasterReferenceTable!$C$2:$Q$388,9,FALSE),"") -> SD-ED-12 | L175: =IFERROR(VLOOKUP($F175,MasterReferenceTable!$C$2:$Q$388,10,FALSE),"") -> SD-ED-6 | M175: =IFERROR(VLOOKUP($F175,MasterReferenceTable!$C$2:$Q$388,11,FALSE),"") -> SD-ED-9 | N175: =IFERROR(VLOOKUP($F175,MasterReferenceTable!$C$2:$Q$388,12,FALSE),"") -> SD-ED-14 | O175: =IFERROR(VLOOKUP($F175,MasterReferenceTable!$C$2:$Q$388,13,FALSE),"") -> SD-MP-3 | P175: =IFERROR(VLOOKUP($F175,MasterReferenceTable!$C$2:$Q$388,14,FALSE),"") -> SD-MP-7 | AH175: 174
A176: 23 | B176: Edmunds | C176: 8 | D176: Roscoe 9.7 SE (SD-ED-12) | E176: =IF(F176="","",VLOOKUP(F176,MasterReferenceTable!$C$1:$Q$388,3,FALSE)) -> ROSS2 | F176: SD-ED-12 | G176: =IF(F176="","",VLOOKUP(F176,MasterReferenceTable!$C$2:$Q$388,2,FALSE)) -> 57471 | H176: =IF(F176="","",VLOOKUP(F176,MasterReferenceTable!$C$2:$Q$388,6,FALSE)) -> Roscoe 9.7 SE (SD-ED-12) | I176: =IF(F176="","",VLOOKUP(F176,MasterReferenceTable!$C$2:$Q$388,7,FALSE)) -> Roscoe | J176: =IF(F176="","",VLOOKUP(F176,MasterReferenceTable!$C$2:$Q$388,8,FALSE)) -> SD | K176: =IFERROR(VLOOKUP($F176,MasterReferenceTable!$C$2:$Q$388,9,FALSE),"") -> SD-ED-16 | L176: =IFERROR(VLOOKUP($F176,MasterReferenceTable!$C$2:$Q$388,10,FALSE),"") -> SD-ED-9 | M176: =IFERROR(VLOOKUP($F176,MasterReferenceTable!$C$2:$Q$388,11,FALSE),"") -> SD-ED-6 | N176: =IFERROR(VLOOKUP($F176,MasterReferenceTable!$C$2:$Q$388,12,FALSE),"") -> SD-FK-6 | O176: =IFERROR(VLOOKUP($F176,MasterReferenceTable!$C$2:$Q$388,13,FALSE),"") -> SD-ED-14 | P176: =IFERROR(VLOOKUP($F176,MasterReferenceTable!$C$2:$Q$388,14,FALSE),"") -> SD-MP-7 | AH176: 175
A177: 24 | B177: Fall River | C177: 1 | D177: EDGEMONT | E177: =IF(F177="","",VLOOKUP(F177,MasterReferenceTable!$C$1:$Q$388,3,FALSE)) -> EMTS2 | F177: 392557 | G177: =IF(F177="","",VLOOKUP(F177,MasterReferenceTable!$C$2:$Q$388,2,FALSE)) -> 57735 | H177: =IF(F177="","",VLOOKUP(F177,MasterReferenceTable!$C$2:$Q$388,6,FALSE)) -> EDGEMONT | I177: =IF(F177="","",VLOOKUP(F177,MasterReferenceTable!$C$2:$Q$388,7,FALSE)) -> Edgemont | J177: =IF(F177="","",VLOOKUP(F177,MasterReferenceTable!$C$2:$Q$388,8,FALSE)) -> SD | K177: =IFERROR(VLOOKUP($F177,MasterReferenceTable!$C$2:$Q$388,9,FALSE),"") -> SD-FR-20 | L177: =IFERROR(VLOOKUP($F177,MasterReferenceTable!$C$2:$Q$388,10,FALSE),"") -> SD-FR-30 | M177: =IFERROR(VLOOKUP($F177,MasterReferenceTable!$C$2:$Q$388,11,FALSE),"") -> SD-FR-21 | N177: =IFERROR(VLOOKUP($F177,MasterReferenceTable!$C$2:$Q$388,12,FALSE),"") -> SD-FR-24 | O177: =IFERROR(VLOOKUP($F177,MasterReferenceTable!$C$2:$Q$388,13,FALSE),"") -> SD-PN-62 | P177: =IFERROR(VLOOKUP($F177,MasterReferenceTable!$C$2:$Q$388,14,FALSE),"") -> WY-WS-10 | AH177: 176
A178: 24 | B178: Fall River | C178: 2 | D178: HOT SPRINGS | E178: =IF(F178="","",VLOOKUP(F178,MasterReferenceTable!$C$1:$Q$388,3,FALSE)) -> HOSS2 | F178: 394007 | G178: =IF(F178="","",VLOOKUP(F178,MasterReferenceTable!$C$2:$Q$388,2,FALSE)) -> 57747 | H178: =IF(F178="","",VLOOKUP(F178,MasterReferenceTable!$C$2:$Q$388,6,FALSE)) -> HOT SPRINGS | I178: =IF(F178="","",VLOOKUP(F178,MasterReferenceTable!$C$2:$Q$388,7,FALSE)) -> HotSprings | J178: =IF(F178="","",VLOOKUP(F178,MasterReferenceTable!$C$2:$Q$388,8,FALSE)) -> SD | K178: =IFERROR(VLOOKUP($F178,MasterReferenceTable!$C$2:$Q$388,9,FALSE),"") -> SD-FR-34 | L178: =IFERROR(VLOOKUP($F178,MasterReferenceTable!$C$2:$Q$388,10,FALSE),"") -> SD-FR-30 | M178: =IFERROR(VLOOKUP($F178,MasterReferenceTable!$C$2:$Q$388,11,FALSE),"") -> SD-CS-22 | N178: =IFERROR(VLOOKUP($F178,MasterReferenceTable!$C$2:$Q$388,12,FALSE),"") -> SD-FR-20 | O178: =IFERROR(VLOOKUP($F178,MasterReferenceTable!$C$2:$Q$388,13,FALSE),"") -> SD-FR-21 | P178: =IFERROR(VLOOKUP($F178,MasterReferenceTable!$C$2:$Q$388,14,FALSE),"") -> SD-PN-62 | AH178: 177
A179: 24 | B179: Fall River | C179: 3 | D179: OELRICHS | E179: =IF(F179="","",VLOOKUP(F179,MasterReferenceTable!$C$1:$Q$388,3,FALSE)) -> OELS2 | F179: 396212 | G179: =IF(F179="","",VLOOKUP(F179,MasterReferenceTable!$C$2:$Q$388,2,FALSE)) -> 57782 | H179: =IF(F179="","",VLOOKUP(F179,MasterReferenceTable!$C$2:$Q$388,6,FALSE)) -> OELRICHS | I179: =IF(F179="","",VLOOKUP(F179,MasterReferenceTable!$C$2:$Q$388,7,FALSE)) -> Oelrichs | J179: =IF(F179="","",VLOOKUP(F179,MasterReferenceTable!$C$2:$Q$388,8,FALSE)) -> SD | K179: =IFERROR(VLOOKUP($F179,MasterReferenceTable!$C$2:$Q$388,9,FALSE),"") -> SD-FR-34 | L179: =IFERROR(VLOOKUP($F179,MasterReferenceTable!$C$2:$Q$388,10,FALSE),"") -> SD-CS-17 | M179: =IFERROR(VLOOKUP($F179,MasterReferenceTable!$C$2:$Q$388,11,FALSE),"") -> SD-CS-28 | N179: =IFERROR(VLOOKUP($F179,MasterReferenceTable!$C$2:$Q$388,12,FALSE),"") -> SD-FR-20 | O179: =IFERROR(VLOOKUP($F179,MasterReferenceTable!$C$2:$Q$388,13,FALSE),"") -> SD-FR-21 | P179: =IFERROR(VLOOKUP($F179,MasterReferenceTable!$C$2:$Q$388,14,FALSE),"") -> SD-CS-27 | AH179: 178
A180: 24 | B180: Fall River | C180: 4 | D180: ORAL | E180: =IF(F180="","",VLOOKUP(F180,MasterReferenceTable!$C$1:$Q$388,3,FALSE)) -> ORLS2 | F180: 396304 | G180: =IF(F180="","",VLOOKUP(F180,MasterReferenceTable!$C$2:$Q$388,2,FALSE)) -> 57766 | H180: =IF(F180="","",VLOOKUP(F180,MasterReferenceTable!$C$2:$Q$388,6,FALSE)) -> ORAL | I180: =IF(F180="","",VLOOKUP(F180,MasterReferenceTable!$C$2:$Q$388,7,FALSE)) -> Oral | J180: =IF(F180="","",VLOOKUP(F180,MasterReferenceTable!$C$2:$Q$388,8,FALSE)) -> SD | K180: =IFERROR(VLOOKUP($F180,MasterReferenceTable!$C$2:$Q$388,9,FALSE),"") -> SD-FR-34 | L180: =IFERROR(VLOOKUP($F180,MasterReferenceTable!$C$2:$Q$388,10,FALSE),"") -> SD-FR-30 | M180: =IFERROR(VLOOKUP($F180,MasterReferenceTable!$C$2:$Q$388,11,FALSE),"") -> SD-CS-22 | N180: =IFERROR(VLOOKUP($F180,MasterReferenceTable!$C$2:$Q$388,12,FALSE),"") -> SD-CS-28 | O180: =IFERROR(VLOOKUP($F180,MasterReferenceTable!$C$2:$Q$388,13,FALSE),"") -> SD-CS-17 | P180: =IFERROR(VLOOKUP($F180,MasterReferenceTable!$C$2:$Q$388,14,FALSE),"") -> SD-FR-20 | AH180: 179
A181: 24 | B181: Fall River | C181: 5 | D181: Edgemont 0.4 W (SD-FR-21) | E181: =IF(F181="","",VLOOKUP(F181,MasterReferenceTable!$C$1:$Q$388,3,FALSE)) -> EMTS2 | F181: SD-FR-21 | G181: =IF(F181="","",VLOOKUP(F181,MasterReferenceTable!$C$2:$Q$388,2,FALSE)) -> 57735 | H181: =IF(F181="","",VLOOKUP(F181,MasterReferenceTable!$C$2:$Q$388,6,FALSE)) -> Edgemont 0.4 W (SD-FR-21) | I181: =IF(F181="","",VLOOKUP(F181,MasterReferenceTable!$C$2:$Q$388,7,FALSE)) -> Edgemont | J181: =IF(F181="","",VLOOKUP(F181,MasterReferenceTable!$C$2:$Q$388,8,FALSE)) -> SD | K181: =IFERROR(VLOOKUP($F181,MasterReferenceTable!$C$2:$Q$388,9,FALSE),"") -> SD-FR-20 | L181: =IFERROR(VLOOKUP($F181,MasterReferenceTable!$C$2:$Q$388,10,FALSE),"") -> SD-FR-24 | M181: =IFERROR(VLOOKUP($F181,MasterReferenceTable!$C$2:$Q$388,11,FALSE),"") -> SD-FR-30 | N181: =IFERROR(VLOOKUP($F181,MasterReferenceTable!$C$2:$Q$388,12,FALSE),"") -> SD-FR-34 | O181: =IFERROR(VLOOKUP($F181,MasterReferenceTable!$C$2:$Q$388,13,FALSE),"") -> SD-CS-22 | P181: =IFERROR(VLOOKUP($F181,MasterReferenceTable!$C$2:$Q$388,14,FALSE),"") -> WY-WS-10 | AH181: 180
A182: 24 | B182: Fall River | C182: 6 | D182: Edgemont 14.2 NW (SD-FR-24) | E182: =IF(F182="","",VLOOKUP(F182,MasterReferenceTable!$C$1:$Q$388,3,FALSE)) -> EMTS2 | F182: SD-FR-24 | G182: =IF(F182="","",VLOOKUP(F182,MasterReferenceTable!$C$2:$Q$388,2,FALSE)) -> 57735 | H182: =IF(F182="","",VLOOKUP(F182,MasterReferenceTable!$C$2:$Q$388,6,FALSE)) -> Edgemont 14.2 NW (SD-FR-24) | I182: =IF(F182="","",VLOOKUP(F182,MasterReferenceTable!$C$2:$Q$388,7,FALSE)) -> Edgemont | J182: =IF(F182="","",VLOOKUP(F182,MasterReferenceTable!$C$2:$Q$388,8,FALSE)) -> SD | K182: =IFERROR(VLOOKUP($F182,MasterReferenceTable!$C$2:$Q$388,9,FALSE),"") -> SD-FR-21 | L182: =IFERROR(VLOOKUP($F182,MasterReferenceTable!$C$2:$Q$388,10,FALSE),"") -> SD-FR-20 | M182: =IFERROR(VLOOKUP($F182,MasterReferenceTable!$C$2:$Q$388,11,FALSE),"") -> WY-WS-10 | N182: =IFERROR(VLOOKUP($F182,MasterReferenceTable!$C$2:$Q$388,12,FALSE),"") -> SD-FR-30 | O182: =IFERROR(VLOOKUP($F182,MasterReferenceTable!$C$2:$Q$388,13,FALSE),"") -> SD-CS-22 | P182: =IFERROR(VLOOKUP($F182,MasterReferenceTable!$C$2:$Q$388,14,FALSE),"") -> WY-WS-24 | AH182: 181
A183: 24 | B183: Fall River | C183: 7 | D183: Edgemont 2.2 ENE (SD-FR-20) | E183: =IF(F183="","",VLOOKUP(F183,MasterReferenceTable!$C$1:$Q$388,3,FALSE)) -> EMTS2 | F183: SD-FR-20 | G183: =IF(F183="","",VLOOKUP(F183,MasterReferenceTable!$C$2:$Q$388,2,FALSE)) -> 57735 | H183: =IF(F183="","",VLOOKUP(F183,MasterReferenceTable!$C$2:$Q$388,6,FALSE)) -> Edgemont 2.2 ENE (SD-FR-20) | I183: =IF(F183="","",VLOOKUP(F183,MasterReferenceTable!$C$2:$Q$388,7,FALSE)) -> Edgemont | J183: =IF(F183="","",VLOOKUP(F183,MasterReferenceTable!$C$2:$Q$388,8,FALSE)) -> SD | K183: =IFERROR(VLOOKUP($F183,MasterReferenceTable!$C$2:$Q$388,9,FALSE),"") -> SD-FR-21 | L183: =IFERROR(VLOOKUP($F183,MasterReferenceTable!$C$2:$Q$388,10,FALSE),"") -> SD-FR-30 | M183: =IFERROR(VLOOKUP($F183,MasterReferenceTable!$C$2:$Q$388,11,FALSE),"") -> SD-FR-24 | N183: =IFERROR(VLOOKUP($F183,MasterReferenceTable!$C$2:$Q$388,12,FALSE),"") -> SD-FR-34 | O183: =IFERROR(VLOOKUP($F183,MasterReferenceTable!$C$2:$Q$388,13,FALSE),"") -> SD-CS-22 | P183: =IFERROR(VLOOKUP($F183,MasterReferenceTable!$C$2:$Q$388,14,FALSE),"") -> SD-PN-62 | AH183: 182
A184: 24 | B184: Fall River | C184: 8 | D184: Hot Springs 0.4 NW (SD-FR-34) | E184: =IF(F184="","",VLOOKUP(F184,MasterReferenceTable!$C$1:$Q$388,3,FALSE)) -> HOSS2 | F184: SD-FR-34 | G184: =IF(F184="","",VLOOKUP(F184,MasterReferenceTable!$C$2:$Q$388,2,FALSE)) -> 57747 | H184: =IF(F184="","",VLOOKUP(F184,MasterReferenceTable!$C$2:$Q$388,6,FALSE)) -> Hot Springs 0.4 NW (SD-FR-34) | I184: =IF(F184="","",VLOOKUP(F184,MasterReferenceTable!$C$2:$Q$388,7,FALSE)) -> Hot Springs | J184: =IF(F184="","",VLOOKUP(F184,MasterReferenceTable!$C$2:$Q$388,8,FALSE)) -> SD | K184: =IFERROR(VLOOKUP($F184,MasterReferenceTable!$C$2:$Q$388,9,FALSE),"") -> SD-FR-30 | L184: =IFERROR(VLOOKUP($F184,MasterReferenceTable!$C$2:$Q$388,10,FALSE),"") -> SD-CS-22 | M184: =IFERROR(VLOOKUP($F184,MasterReferenceTable!$C$2:$Q$388,11,FALSE),"") -> SD-FR-20 | N184: =IFERROR(VLOOKUP($F184,MasterReferenceTable!$C$2:$Q$388,12,FALSE),"") -> SD-FR-21 | O184: =IFERROR(VLOOKUP($F184,MasterReferenceTable!$C$2:$Q$388,13,FALSE),"") -> SD-PN-62 | P184: =IFERROR(VLOOKUP($F184,MasterReferenceTable!$C$2:$Q$388,14,FALSE),"") -> SD-FR-24 | AH184: 183
A185: 24 | B185: Fall River | C185: 9 | D185: Hot Springs 4.2 W (SD-FR-30) | E185: =IF(F185="","",VLOOKUP(F185,MasterReferenceTable!$C$1:$Q$388,3,FALSE)) -> HOSS2 | F185: SD-FR-30 | G185: =IF(F185="","",VLOOKUP(F185,MasterReferenceTable!$C$2:$Q$388,2,FALSE)) -> 57747 | H185: =IF(F185="","",VLOOKUP(F185,MasterReferenceTable!$C$2:$Q$388,6,FALSE)) -> Hot Springs 4.2 W (SD-FR-30) | I185: =IF(F185="","",VLOOKUP(F185,MasterReferenceTable!$C$2:$Q$388,7,FALSE)) -> Hot Springs | J185: =IF(F185="","",VLOOKUP(F185,MasterReferenceTable!$C$2:$Q$388,8,FALSE)) -> SD | K185: =IFERROR(VLOOKUP($F185,MasterReferenceTable!$C$2:$Q$388,9,FALSE),"") -> SD-CS-22 | L185: =IFERROR(VLOOKUP($F185,MasterReferenceTable!$C$2:$Q$388,10,FALSE),"") -> SD-FR-34 | M185: =IFERROR(VLOOKUP($F185,MasterReferenceTable!$C$2:$Q$388,11,FALSE),"") -> SD-FR-20 | N185: =IFERROR(VLOOKUP($F185,MasterReferenceTable!$C$2:$Q$388,12,FALSE),"") -> SD-FR-21 | O185: =IFERROR(VLOOKUP($F185,MasterReferenceTable!$C$2:$Q$388,13,FALSE),"") -> SD-PN-62 | P185: =IFERROR(VLOOKUP($F185,MasterReferenceTable!$C$2:$Q$388,14,FALSE),"") -> SD-FR-24 | AH185: 184
A186: 24 | B186: Fall River | C186: 10 | D186: Red Canyon South Dakota (RAWS) | E186: =IF(F186="","",VLOOKUP(F186,MasterReferenceTable!$C$1:$Q$388,3,FALSE)) -> USR0000SRED | F186: sdSRED | G186: =IF(F186="","",VLOOKUP(F186,MasterReferenceTable!$C$2:$Q$388,2,FALSE)) -> 57747 | H186: =IF(F186="","",VLOOKUP(F186,MasterReferenceTable!$C$2:$Q$388,6,FALSE)) -> Red Canyon South Dakota (RAWS) | I186: =IF(F186="","",VLOOKUP(F186,MasterReferenceTable!$C$2:$Q$388,7,FALSE)) -> HotSprings | J186: =IF(F186="","",VLOOKUP(F186,MasterReferenceTable!$C$2:$Q$388,8,FALSE)) -> SD | K186: =IFERROR(VLOOKUP($F186,MasterReferenceTable!$C$2:$Q$388,9,FALSE),"") -> SD-FR-20 | L186: =IFERROR(VLOOKUP($F186,MasterReferenceTable!$C$2:$Q$388,10,FALSE),"") -> SD-FR-21 | M186: =IFERROR(VLOOKUP($F186,MasterReferenceTable!$C$2:$Q$388,11,FALSE),"") -> SD-FR-30 | N186: =IFERROR(VLOOKUP($F186,MasterReferenceTable!$C$2:$Q$388,12,FALSE),"") -> SD-FR-34 | O186: =IFERROR(VLOOKUP($F186,MasterReferenceTable!$C$2:$Q$388,13,FALSE),"") -> SD-FR-24 | P186: =IFERROR(VLOOKUP($F186,MasterReferenceTable!$C$2:$Q$388,14,FALSE),"") -> SD-CS-22 | AH186: 185
A187: 24 | B187: Fall River | C187: 11 | D187: ARDMORE 1 NW (1908-2013) | E187: =IF(F187="","",VLOOKUP(F187,MasterReferenceTable!$C$1:$Q$388,3,FALSE)) -> ARDS2 | F187: 390236 | G187: =IF(F187="","",VLOOKUP(F187,MasterReferenceTable!$C$2:$Q$388,2,FALSE)) -> 57763 | H187: =IF(F187="","",VLOOKUP(F187,MasterReferenceTable!$C$2:$Q$388,6,FALSE)) -> ARDMORE 1 NW (1908-2013) | I187: =IF(F187="","",VLOOKUP(F187,MasterReferenceTable!$C$2:$Q$388,7,FALSE)) -> Ardmore | J187: =IF(F187="","",VLOOKUP(F187,MasterReferenceTable!$C$2:$Q$388,8,FALSE)) -> SD | K187: =IFERROR(VLOOKUP($F187,MasterReferenceTable!$C$2:$Q$388,9,FALSE),"") -> SD-FR-20 | L187: =IFERROR(VLOOKUP($F187,MasterReferenceTable!$C$2:$Q$388,10,FALSE),"") -> SD-FR-21 | M187: =IFERROR(VLOOKUP($F187,MasterReferenceTable!$C$2:$Q$388,11,FALSE),"") -> SD-FR-30 | N187: =IFERROR(VLOOKUP($F187,MasterReferenceTable!$C$2:$Q$388,12,FALSE),"") -> SD-FR-34 | O187: =IFERROR(VLOOKUP($F187,MasterReferenceTable!$C$2:$Q$388,13,FALSE),"") -> SD-CS-22 | P187: =IFERROR(VLOOKUP($F187,MasterReferenceTable!$C$2:$Q$388,14,FALSE),"") -> SD-FR-24 | AH187: 186
A188: 24 | B188: Fall River | C188: 12 | D188: BUFFALO GAP (1951-2005) | E188: =IF(F188="","",VLOOKUP(F188,MasterReferenceTable!$C$1:$Q$388,3,FALSE)) -> BFPS2 | F188: 391124 | G188: =IF(F188="","",VLOOKUP(F188,MasterReferenceTable!$C$2:$Q$388,2,FALSE)) -> 57722 | H188: =IF(F188="","",VLOOKUP(F188,MasterReferenceTable!$C$2:$Q$388,6,FALSE)) -> BUFFALO GAP (1951-2005) | I188: =IF(F188="","",VLOOKUP(F188,MasterReferenceTable!$C$2:$Q$388,7,FALSE)) -> Buffalo Gap | J188: =IF(F188="","",VLOOKUP(F188,MasterReferenceTable!$C$2:$Q$388,8,FALSE)) -> SD | K188: =IFERROR(VLOOKUP($F188,MasterReferenceTable!$C$2:$Q$388,9,FALSE),"") -> SD-CS-28 | L188: =IFERROR(VLOOKUP($F188,MasterReferenceTable!$C$2:$Q$388,10,FALSE),"") -> SD-CS-17 | M188: =IFERROR(VLOOKUP($F188,MasterReferenceTable!$C$2:$Q$388,11,FALSE),"") -> SD-PN-43 | N188: =IFERROR(VLOOKUP($F188,MasterReferenceTable!$C$2:$Q$388,12,FALSE),"") -> SD-CS-27 | O188: =IFERROR(VLOOKUP($F188,MasterReferenceTable!$C$2:$Q$388,13,FALSE),"") -> SD-FR-20 | P188: =IFERROR(VLOOKUP($F188,MasterReferenceTable!$C$2:$Q$388,14,FALSE),"") -> SD-PN-74 | AH188: 187
A189: 25 | B189: Faulk | C189: 1 | D189: FAULKTON 1 NW | E189: =IF(F189="","",VLOOKUP(F189,MasterReferenceTable!$C$1:$Q$388,3,FALSE)) -> FAUS2 | F189: 392927 | G189: =IF(F189="","",VLOOKUP(F189,MasterReferenceTable!$C$2:$Q$388,2,FALSE)) -> 57438 | H189: =IF(F189="","",VLOOKUP(F189,MasterReferenceTable!$C$2:$Q$388,6,FALSE)) -> FAULKTON 1 NW | I189: =IF(F189="","",VLOOKUP(F189,MasterReferenceTable!$C$2:$Q$388,7,FALSE)) -> Faulkton | J189: =IF(F189="","",VLOOKUP(F189,MasterReferenceTable!$C$2:$Q$388,8,FALSE)) -> SD | K189: =IFERROR(VLOOKUP($F189,MasterReferenceTable!$C$2:$Q$388,9,FALSE),"") -> SD-ED-12 | L189: =IFERROR(VLOOKUP($F189,MasterReferenceTable!$C$2:$Q$388,10,FALSE),"") -> SD-FK-6 | M189: =IFERROR(VLOOKUP($F189,MasterReferenceTable!$C$2:$Q$388,11,FALSE),"") -> SD-ED-16 | N189: =IFERROR(VLOOKUP($F189,MasterReferenceTable!$C$2:$Q$388,12,FALSE),"") -> SD-ED-9 | O189: =IFERROR(VLOOKUP($F189,MasterReferenceTable!$C$2:$Q$388,13,FALSE),"") -> SD-HY-6 | P189: =IFERROR(VLOOKUP($F189,MasterReferenceTable!$C$2:$Q$388,14,FALSE),"") -> SD-HY-1 | AH189: 188
A190: 25 | B190: Faulk | C190: 2 | D190: Chelsea 3.8 W (SD-FK-6) | E190: =IF(F190="","",VLOOKUP(F190,MasterReferenceTable!$C$1:$Q$388,3,FALSE)) -> FAUS2 | F190: SD-FK-6 | G190: =IF(F190="","",VLOOKUP(F190,MasterReferenceTable!$C$2:$Q$388,2,FALSE)) -> 57465 | H190: =IF(F190="","",VLOOKUP(F190,MasterReferenceTable!$C$2:$Q$388,6,FALSE)) -> Chelsea 3.8 W (SD-FK-6) | I190: =IF(F190="","",VLOOKUP(F190,MasterReferenceTable!$C$2:$Q$388,7,FALSE)) -> Chelsea | J190: =IF(F190="","",VLOOKUP(F190,MasterReferenceTable!$C$2:$Q$388,8,FALSE)) -> SD | K190: =IFERROR(VLOOKUP($F190,MasterReferenceTable!$C$2:$Q$388,9,FALSE),"") -> SD-ED-9 | L190: =IFERROR(VLOOKUP($F190,MasterReferenceTable!$C$2:$Q$388,10,FALSE),"") -> SD-ED-14 | M190: =IFERROR(VLOOKUP($F190,MasterReferenceTable!$C$2:$Q$388,11,FALSE),"") -> SD-ED-12 | N190: =IFERROR(VLOOKUP($F190,MasterReferenceTable!$C$2:$Q$388,12,FALSE),"") -> SD-MP-7 | O190: =IFERROR(VLOOKUP($F190,MasterReferenceTable!$C$2:$Q$388,13,FALSE),"") -> SD-BR-38 | P190: =IFERROR(VLOOKUP($F190,MasterReferenceTable!$C$2:$Q$388,14,FALSE),"") -> SD-BR-11 | AH190: 189
A191: 25 | B191: Faulk | C191: 3 | D191: ONAKA (1911-2014) | E191: =IF(F191="","",VLOOKUP(F191,MasterReferenceTable!$C$1:$Q$388,3,FALSE)) -> ONKS2 | F191: 396282 | G191: =IF(F191="","",VLOOKUP(F191,MasterReferenceTable!$C$2:$Q$388,2,FALSE)) -> 57466 | H191: =IF(F191="","",VLOOKUP(F191,MasterReferenceTable!$C$2:$Q$388,6,FALSE)) -> ONAKA (1911-2014) | I191: =IF(F191="","",VLOOKUP(F191,MasterReferenceTable!$C$2:$Q$388,7,FALSE)) -> Onaka | J191: =IF(F191="","",VLOOKUP(F191,MasterReferenceTable!$C$2:$Q$388,8,FALSE)) -> SD | K191: =IFERROR(VLOOKUP($F191,MasterReferenceTable!$C$2:$Q$388,9,FALSE),"") -> SD-ED-6 | L191: =IFERROR(VLOOKUP($F191,MasterReferenceTable!$C$2:$Q$388,10,FALSE),"") -> SD-HY-6 | M191: =IFERROR(VLOOKUP($F191,MasterReferenceTable!$C$2:$Q$388,11,FALSE),"") -> SD-ED-12 | N191: =IFERROR(VLOOKUP($F191,MasterReferenceTable!$C$2:$Q$388,12,FALSE),"") -> SD-HY-2 | O191: =IFERROR(VLOOKUP($F191,MasterReferenceTable!$C$2:$Q$388,13,FALSE),"") -> SD-ED-16 | P191: =IFERROR(VLOOKUP($F191,MasterReferenceTable!$C$2:$Q$388,14,FALSE),"") -> SD-HY-1 | AH191: 190
A192: 26 | B192: Grant | C192: 1 | D192: BIG STONE CITY 2 NW | E192: =IF(F192="","",VLOOKUP(F192,MasterReferenceTable!$C$1:$Q$388,3,FALSE)) -> BSTS2 | F192: 390662 | G192: =IF(F192="","",VLOOKUP(F192,MasterReferenceTable!$C$2:$Q$388,2,FALSE)) -> 57216 | H192: =IF(F192="","",VLOOKUP(F192,MasterReferenceTable!$C$2:$Q$388,6,FALSE)) -> BIG STONE CITY 2 NW | I192: =IF(F192="","",VLOOKUP(F192,MasterReferenceTable!$C$2:$Q$388,7,FALSE)) -> BigStoneCity | J192: =IF(F192="","",VLOOKUP(F192,MasterReferenceTable!$C$2:$Q$388,8,FALSE)) -> SD | K192: =IFERROR(VLOOKUP($F192,MasterReferenceTable!$C$2:$Q$388,9,FALSE),"") -> SD-GT-8 | L192: =IFERROR(VLOOKUP($F192,MasterReferenceTable!$C$2:$Q$388,10,FALSE),"") -> SD-GT-4 | M192: =IFERROR(VLOOKUP($F192,MasterReferenceTable!$C$2:$Q$388,11,FALSE),"") -> SD-GT-1 | N192: =IFERROR(VLOOKUP($F192,MasterReferenceTable!$C$2:$Q$388,12,FALSE),"") -> SD-GT-9 | O192: =IFERROR(VLOOKUP($F192,MasterReferenceTable!$C$2:$Q$388,13,FALSE),"") -> SD-GT-6 | P192: =IFERROR(VLOOKUP($F192,MasterReferenceTable!$C$2:$Q$388,14,FALSE),"") -> SD-DL-7 | AH192: 191
A193: 26 | B193: Grant | C193: 2 | D193: Big Stone City 5.0 WNW (SD-GT-8) | E193: =IF(F193="","",VLOOKUP(F193,MasterReferenceTable!$C$1:$Q$388,3,FALSE)) -> BSTS2 | F193: SD-GT-8 | G193: =IF(F193="","",VLOOKUP(F193,MasterReferenceTable!$C$2:$Q$388,2,FALSE)) -> 57216 | H193: =IF(F193="","",VLOOKUP(F193,MasterReferenceTable!$C$2:$Q$388,6,FALSE)) -> Big Stone City 5.0 WNW (SD-GT-8) | I193: =IF(F193="","",VLOOKUP(F193,MasterReferenceTable!$C$2:$Q$388,7,FALSE)) -> BigStoneCity | J193: =IF(F193="","",VLOOKUP(F193,MasterReferenceTable!$C$2:$Q$388,8,FALSE)) -> SD | K193: =IFERROR(VLOOKUP($F193,MasterReferenceTable!$C$2:$Q$388,9,FALSE),"") -> SD-GT-4 | L193: =IFERROR(VLOOKUP($F193,MasterReferenceTable!$C$2:$Q$388,10,FALSE),"") -> SD-GT-1 | M193: =IFERROR(VLOOKUP($F193,MasterReferenceTable!$C$2:$Q$388,11,FALSE),"") -> SD-GT-9 | N193: =IFERROR(VLOOKUP($F193,MasterReferenceTable!$C$2:$Q$388,12,FALSE),"") -> SD-GT-6 | O193: =IFERROR(VLOOKUP($F193,MasterReferenceTable!$C$2:$Q$388,13,FALSE),"") -> SD-DL-7 | P193: =IFERROR(VLOOKUP($F193,MasterReferenceTable!$C$2:$Q$388,14,FALSE),"") -> SD-RB-4 | AH193: 192
A194: 26 | B194: Grant | C194: 3 | D194: LaBolt 0.1 WSW (SD-GT-9) | E194: =IF(F194="","",VLOOKUP(F194,MasterReferenceTable!$C$1:$Q$388,3,FALSE)) -> BSTS2 | F194: SD-GT-9 | G194: =IF(F194="","",VLOOKUP(F194,MasterReferenceTable!$C$2:$Q$388,2,FALSE)) -> 57246 | H194: =IF(F194="","",VLOOKUP(F194,MasterReferenceTable!$C$2:$Q$388,6,FALSE)) -> LaBolt 0.1 WSW (SD-GT-9) | I194: =IF(F194="","",VLOOKUP(F194,MasterReferenceTable!$C$2:$Q$388,7,FALSE)) -> LaBolt | J194: =IF(F194="","",VLOOKUP(F194,MasterReferenceTable!$C$2:$Q$388,8,FALSE)) -> SD | K194: =IFERROR(VLOOKUP($F194,MasterReferenceTable!$C$2:$Q$388,9,FALSE),"") -> SD-GT-1 | L194: =IFERROR(VLOOKUP($F194,MasterReferenceTable!$C$2:$Q$388,10,FALSE),"") -> SD-GT-6 | M194: =IFERROR(VLOOKUP($F194,MasterReferenceTable!$C$2:$Q$388,11,FALSE),"") -> SD-GT-4 | N194: =IFERROR(VLOOKUP($F194,MasterReferenceTable!$C$2:$Q$388,12,FALSE),"") -> SD-GT-8 | O194: =IFERROR(VLOOKUP($F194,MasterReferenceTable!$C$2:$Q$388,13,FALSE),"") -> SD-CD-1 | P194: =IFERROR(VLOOKUP($F194,MasterReferenceTable!$C$2:$Q$388,14,FALSE),"") -> SD-CD-5 | AH194: 193
A195: 26 | B195: Grant | C195: 4 | D195: Milbank 0.9 NNW (SD-GT-4) | E195: =IF(F195="","",VLOOKUP(F195,MasterReferenceTable!$C$1:$Q$388,3,FALSE)) -> BSTS2 | F195: SD-GT-4 | G195: =IF(F195="","",VLOOKUP(F195,MasterReferenceTable!$C$2:$Q$388,2,FALSE)) -> 57252 | H195: =IF(F195="","",VLOOKUP(F195,MasterReferenceTable!$C$2:$Q$388,6,FALSE)) -> Milbank 0.9 NNW (SD-GT-4) | I195: =IF(F195="","",VLOOKUP(F195,MasterReferenceTable!$C$2:$Q$388,7,FALSE)) -> Milbank | J195: =IF(F195="","",VLOOKUP(F195,MasterReferenceTable!$C$2:$Q$388,8,FALSE)) -> SD | K195: =IFERROR(VLOOKUP($F195,MasterReferenceTable!$C$2:$Q$388,9,FALSE),"") -> SD-GT-1 | L195: =IFERROR(VLOOKUP($F195,MasterReferenceTable!$C$2:$Q$388,10,FALSE),"") -> SD-GT-8 | M195: =IFERROR(VLOOKUP($F195,MasterReferenceTable!$C$2:$Q$388,11,FALSE),"") -> SD-GT-9 | N195: =IFERROR(VLOOKUP($F195,MasterReferenceTable!$C$2:$Q$388,12,FALSE),"") -> SD-GT-6 | O195: =IFERROR(VLOOKUP($F195,MasterReferenceTable!$C$2:$Q$388,13,FALSE),"") -> SD-DL-7 | P195: =IFERROR(VLOOKUP($F195,MasterReferenceTable!$C$2:$Q$388,14,FALSE),"") -> SD-CD-1 | AH195: 194
A196: 26 | B196: Grant | C196: 5 | D196: Milbank 3.9 SSW (SD-GT-1) | E196: =IF(F196="","",VLOOKUP(F196,MasterReferenceTable!$C$1:$Q$388,3,FALSE)) -> BSTS2 | F196: SD-GT-1 | G196: =IF(F196="","",VLOOKUP(F196,MasterReferenceTable!$C$2:$Q$388,2,FALSE)) -> 57252 | H196: =IF(F196="","",VLOOKUP(F196,MasterReferenceTable!$C$2:$Q$388,6,FALSE)) -> Milbank 3.9 SSW (SD-GT-1) | I196: =IF(F196="","",VLOOKUP(F196,MasterReferenceTable!$C$2:$Q$388,7,FALSE)) -> Milbank | J196: =IF(F196="","",VLOOKUP(F196,MasterReferenceTable!$C$2:$Q$388,8,FALSE)) -> SD | K196: =IFERROR(VLOOKUP($F196,MasterReferenceTable!$C$2:$Q$388,9,FALSE),"") -> SD-GT-4 | L196: =IFERROR(VLOOKUP($F196,MasterReferenceTable!$C$2:$Q$388,10,FALSE),"") -> SD-GT-9 | M196: =IFERROR(VLOOKUP($F196,MasterReferenceTable!$C$2:$Q$388,11,FALSE),"") -> SD-GT-8 | N196: =IFERROR(VLOOKUP($F196,MasterReferenceTable!$C$2:$Q$388,12,FALSE),"") -> SD-GT-6 | O196: =IFERROR(VLOOKUP($F196,MasterReferenceTable!$C$2:$Q$388,13,FALSE),"") -> SD-DL-7 | P196: =IFERROR(VLOOKUP($F196,MasterReferenceTable!$C$2:$Q$388,14,FALSE),"") -> SD-CD-1 | AH196: 195
A197: 26 | B197: Grant | C197: 6 | D197: Strandburg 2.5 NW (SD-GT-6) | E197: =IF(F197="","",VLOOKUP(F197,MasterReferenceTable!$C$1:$Q$388,3,FALSE)) -> ATY | F197: SD-GT-6 | G197: =IF(F197="","",VLOOKUP(F197,MasterReferenceTable!$C$2:$Q$388,2,FALSE)) -> 57265 | H197: =IF(F197="","",VLOOKUP(F197,MasterReferenceTable!$C$2:$Q$388,6,FALSE)) -> Strandburg 2.5 NW (SD-GT-6) | I197: =IF(F197="","",VLOOKUP(F197,MasterReferenceTable!$C$2:$Q$388,7,FALSE)) -> Strandburg | J197: =IF(F197="","",VLOOKUP(F197,MasterReferenceTable!$C$2:$Q$388,8,FALSE)) -> SD | K197: =IFERROR(VLOOKUP($F197,MasterReferenceTable!$C$2:$Q$388,9,FALSE),"") -> SD-GT-9 | L197: =IFERROR(VLOOKUP($F197,MasterReferenceTable!$C$2:$Q$388,10,FALSE),"") -> SD-GT-1 | M197: =IFERROR(VLOOKUP($F197,MasterReferenceTable!$C$2:$Q$388,11,FALSE),"") -> SD-GT-4 | N197: =IFERROR(VLOOKUP($F197,MasterReferenceTable!$C$2:$Q$388,12,FALSE),"") -> SD-CD-1 | O197: =IFERROR(VLOOKUP($F197,MasterReferenceTable!$C$2:$Q$388,13,FALSE),"") -> SD-CD-5 | P197: =IFERROR(VLOOKUP($F197,MasterReferenceTable!$C$2:$Q$388,14,FALSE),"") -> SD-CD-32 | AH197: 196
A198: 27 | B198: Gregory | C198: 1 | D198: GREGORY | E198: =IF(F198="","",VLOOKUP(F198,MasterReferenceTable!$C$1:$Q$388,3,FALSE)) -> GRGS2 | F198: 393452 | G198: =IF(F198="","",VLOOKUP(F198,MasterReferenceTable!$C$2:$Q$388,2,FALSE)) -> 57533 | H198: =IF(F198="","",VLOOKUP(F198,MasterReferenceTable!$C$2:$Q$388,6,FALSE)) -> GREGORY | I198: =IF(F198="","",VLOOKUP(F198,MasterReferenceTable!$C$2:$Q$388,7,FALSE)) -> Gregory | J198: =IF(F198="","",VLOOKUP(F198,MasterReferenceTable!$C$2:$Q$388,8,FALSE)) -> SD | K198: =IFERROR(VLOOKUP($F198,MasterReferenceTable!$C$2:$Q$388,9,FALSE),"") -> SD-GY-3 | L198: =IFERROR(VLOOKUP($F198,MasterReferenceTable!$C$2:$Q$388,10,FALSE),"") -> SD-GY-1 | M198: =IFERROR(VLOOKUP($F198,MasterReferenceTable!$C$2:$Q$388,11,FALSE),"") -> SD-GY-15 | N198: =IFERROR(VLOOKUP($F198,MasterReferenceTable!$C$2:$Q$388,12,FALSE),"") -> SD-BL-10 | O198: =IFERROR(VLOOKUP($F198,MasterReferenceTable!$C$2:$Q$388,13,FALSE),"") -> SD-GY-10 | P198: =IFERROR(VLOOKUP($F198,MasterReferenceTable!$C$2:$Q$388,14,FALSE),"") -> SD-TP-7 | AH198: 197
A199: 27 | B199: Gregory | C199: 2 | D199: Bonesteel 0.1 S (SD-GY-21) | E199: =IF(F199="","",VLOOKUP(F199,MasterReferenceTable!$C$1:$Q$388,3,FALSE)) -> GRGS2 | F199: SD-GY-21 | G199: =IF(F199="","",VLOOKUP(F199,MasterReferenceTable!$C$2:$Q$388,2,FALSE)) -> 57317 | H199: =IF(F199="","",VLOOKUP(F199,MasterReferenceTable!$C$2:$Q$388,6,FALSE)) -> Bonesteel 0.1 S (SD-GY-21) | I199: =IF(F199="","",VLOOKUP(F199,MasterReferenceTable!$C$2:$Q$388,7,FALSE)) -> Bonesteel | J199: =IF(F199="","",VLOOKUP(F199,MasterReferenceTable!$C$2:$Q$388,8,FALSE)) -> SD | K199: =IFERROR(VLOOKUP($F199,MasterReferenceTable!$C$2:$Q$388,9,FALSE),"") -> SD-GY-18 | L199: =IFERROR(VLOOKUP($F199,MasterReferenceTable!$C$2:$Q$388,10,FALSE),"") -> SD-GY-10 | M199: =IFERROR(VLOOKUP($F199,MasterReferenceTable!$C$2:$Q$388,11,FALSE),"") -> SD-GY-15 | N199: =IFERROR(VLOOKUP($F199,MasterReferenceTable!$C$2:$Q$388,12,FALSE),"") -> SD-GY-1 | O199: =IFERROR(VLOOKUP($F199,MasterReferenceTable!$C$2:$Q$388,13,FALSE),"") -> SD-CM-14 | P199: =IFERROR(VLOOKUP($F199,MasterReferenceTable!$C$2:$Q$388,14,FALSE),"") -> SD-TP-13 | AH199: 198
A200: 27 | B200: Gregory | C200: 3 | D200: Burke 10.5 SSE (SD-GY-18) | E200: =IF(F200="","",VLOOKUP(F200,MasterReferenceTable!$C$1:$Q$388,3,FALSE)) -> GRGS2 | F200: SD-GY-18 | G200: =IF(F200="","",VLOOKUP(F200,MasterReferenceTable!$C$2:$Q$388,2,FALSE)) -> 57523 | H200: =IF(F200="","",VLOOKUP(F200,MasterReferenceTable!$C$2:$Q$388,6,FALSE)) -> Burke 10.5 SSE (SD-GY-18) | I200: =IF(F200="","",VLOOKUP(F200,MasterReferenceTable!$C$2:$Q$388,7,FALSE)) -> Burke | J200: =IF(F200="","",VLOOKUP(F200,MasterReferenceTable!$C$2:$Q$388,8,FALSE)) -> SD | K200: =IFERROR(VLOOKUP($F200,MasterReferenceTable!$C$2:$Q$388,9,FALSE),"") -> SD-GY-10 | L200: =IFERROR(VLOOKUP($F200,MasterReferenceTable!$C$2:$Q$388,10,FALSE),"") -> SD-GY-15 | M200: =IFERROR(VLOOKUP($F200,MasterReferenceTable!$C$2:$Q$388,11,FALSE),"") -> SD-GY-21 | N200: =IFERROR(VLOOKUP($F200,MasterReferenceTable!$C$2:$Q$388,12,FALSE),"") -> SD-GY-1 | O200: =IFERROR(VLOOKUP($F200,MasterReferenceTable!$C$2:$Q$388,13,FALSE),"") -> SD-TP-13 | P200: =IFERROR(VLOOKUP($F200,MasterReferenceTable!$C$2:$Q$388,14,FALSE),"") -> SD-GY-3 | AH200: 199
... 721 more rows

Sheet StatewideDataTable
A1: ID | B1: Name | C1: CurrStat | D1: ProjStat | E1: Y | F1: X | H1: Statewide Counter | J1: Current status | M1: Projected Staus
A2: SD-BR-11 | B2: Aberdeen 1.5 SSW (SD-BR-11) | E2: =VLOOKUP(A2,MasterReferenceTable!$C$1:$P$388,4,FALSE) -> 45.446769 | F2: =VLOOKUP(A2,MasterReferenceTable!$C$1:$P$388,5,FALSE) -> -98.49093 | H2: 1 | J2: Average | M2: Average | Q2: SD Drought Tool'!A1
A3: SD-BR-38 | B3: Aberdeen 1.5 SW (SD-BR-38) | E3: =VLOOKUP(A3,MasterReferenceTable!$C$1:$P$388,4,FALSE) -> 45.450537 | F3: =VLOOKUP(A3,MasterReferenceTable!$C$1:$P$388,5,FALSE) -> -98.50856 | H3: 2 | J3: =AVERAGE(C2:C93) ->  | M3: =AVERAGE(D2:D93) -> 
A4: SD-BR-23 | B4: Aberdeen 7.5 SE (SD-BR-23) | E4: =VLOOKUP(A4,MasterReferenceTable!$C$1:$P$388,4,FALSE) -> 45.3917927 | F4: =VLOOKUP(A4,MasterReferenceTable!$C$1:$P$388,5,FALSE) -> -98.3717546 | H4: 3 | J4: Average Range | M4: Average Range
A5: 390020 | B5: ABERDEEN WSO AP | E5: =VLOOKUP(A5,MasterReferenceTable!$C$1:$P$388,4,FALSE) -> 45.467451 | F5: =VLOOKUP(A5,MasterReferenceTable!$C$1:$P$388,5,FALSE) -> -98.527454 | H5: 4 | J5: tollerance | M5: tollerance
A6: 390043 | B6: ACADEMY 2 NE | E6: =VLOOKUP(A6,MasterReferenceTable!$C$1:$P$388,4,FALSE) -> 43.390762 | F6: =VLOOKUP(A6,MasterReferenceTable!$C$1:$P$388,5,FALSE) -> -99.012836 | H6: 5 | J6: 0.5 | K6: 0.4 | M6: 0.5 | N6: 0.4
A7: SD-SL-23 | B7: Agar 15.1 WNW (SD-SL-23) | E7: =VLOOKUP(A7,MasterReferenceTable!$C$1:$P$388,4,FALSE) -> 44.896725 | F7: =VLOOKUP(A7,MasterReferenceTable!$C$1:$P$388,5,FALSE) -> -100.369448 | H7: 6 | J7: Bottom | K7: Top | M7: Bottom | N7: Top
A8: 250030 | B8: AGATE 3 E | E8: =VLOOKUP(A8,MasterReferenceTable!$C$1:$P$388,4,FALSE) -> 42.4244 | F8: =VLOOKUP(A8,MasterReferenceTable!$C$1:$P$388,5,FALSE) -> -103.7347 | H8: 7 | J8: =J3-(J3*J6) ->  | K8: =J3+(J3*K6) ->  | M8: =M3-(M3*M6) ->  | N8: =M3+(M3*N6) -> 
A9: 130088 | B9: AKRON | E9: =VLOOKUP(A9,MasterReferenceTable!$C$1:$P$388,4,FALSE) -> 43.003944 | F9: =VLOOKUP(A9,MasterReferenceTable!$C$1:$P$388,5,FALSE) -> -96.610094 | H9: 8
A10: 390128 | B10: ALEXANDRIA | E10: =VLOOKUP(A10,MasterReferenceTable!$C$1:$P$388,4,FALSE) -> 43.668217 | F10: =VLOOKUP(A10,MasterReferenceTable!$C$1:$P$388,5,FALSE) -> -97.746687 | H10: 9 | L10: curr | M10: proj
A11: SD-HN-17 | B11: Alexandria 0.4 WNW (SD-HN-17) | E11: =VLOOKUP(A11,MasterReferenceTable!$C$1:$P$388,4,FALSE) -> 43.65596467 | F11: =VLOOKUP(A11,MasterReferenceTable!$C$1:$P$388,5,FALSE) -> -97.78750933 | H11: 10 | J11: NWpt | K11: sd5048 | L11: =VLOOKUP(K11,$A$1:$F$260,3,FALSE) ->  | M11: =VLOOKUP(K11,$A$1:$F$260,4,FALSE) ->  | N11: 45.963084 | O11: -104.065933
A12: SD-HN-8 | B12: Alexandria 6.4 N (SD-HN-8) | E12: =VLOOKUP(A12,MasterReferenceTable!$C$1:$P$388,4,FALSE) -> 43.74594793 | F12: =VLOOKUP(A12,MasterReferenceTable!$C$1:$P$388,5,FALSE) -> -97.7889318 | H12: 11 | J12: SWpt | K12: sd4007 | L12: =VLOOKUP(K12,$A$1:$F$260,3,FALSE) ->  | M12: =VLOOKUP(K12,$A$1:$F$260,4,FALSE) ->  | N12: 42.928777 | O12: -104.181976
A13: 390198 | B13: ANDOVER NO. 2 | E13: =VLOOKUP(A13,MasterReferenceTable!$C$1:$P$388,4,FALSE) -> 45.4136 | F13: =VLOOKUP(A13,MasterReferenceTable!$C$1:$P$388,5,FALSE) -> -97.9069 | H13: 12 | J13: Se.pt | K13: sd9502 | L13: =VLOOKUP(K13,$A$1:$F$260,3,FALSE) ->  | M13: =VLOOKUP(K13,$A$1:$F$260,4,FALSE) ->  | N13: 42.440688 | O13: -96.292419
A14: SD-KY-10 | B14: Arlington 9.0 SSW (SD-KY-10) | E14: =VLOOKUP(A14,MasterReferenceTable!$C$1:$P$388,4,FALSE) -> 44.23537664 | F14: =VLOOKUP(A14,MasterReferenceTable!$C$1:$P$388,5,FALSE) -> -97.16962382 | H14: 13
A15: SD-DG-2 | B15: Armour 4.6 W (SD-DG-2) | E15: =VLOOKUP(A15,MasterReferenceTable!$C$1:$P$388,4,FALSE) -> 43.326455 | F15: =VLOOKUP(A15,MasterReferenceTable!$C$1:$P$388,5,FALSE) -> -98.435378 | H15: 14
A16: SD-BK-2 | B16: Astoria 2.2 SSE (SD-BK-2) | E16: =VLOOKUP(A16,MasterReferenceTable!$C$1:$P$388,4,FALSE) -> 44.53093333 | F16: =VLOOKUP(A16,MasterReferenceTable!$C$1:$P$388,5,FALSE) -> -96.52268333 | H16: 15
A17: SD-BH-15 | B17: Avon 7.5 NE (SD-BH-15) | E17: =VLOOKUP(A17,MasterReferenceTable!$C$1:$P$388,4,FALSE) -> 43.092613 | F17: =VLOOKUP(A17,MasterReferenceTable!$C$1:$P$388,5,FALSE) -> -97.972454 | H17: 16
A18: sdSBAK | B18: Baker Park South Dakota (RAWS) | E18: =VLOOKUP(A18,MasterReferenceTable!$C$1:$P$388,4,FALSE) -> 43.979167 | F18: =VLOOKUP(A18,MasterReferenceTable!$C$1:$P$388,5,FALSE) -> -103.425 | H18: 17 | K18: Stations Rejected:
A19: SD-BN-2 | B19: Batesland 7.4 NNE (SD-BN-2) | E19: =VLOOKUP(A19,MasterReferenceTable!$C$1:$P$388,4,FALSE) -> 43.2218 | F19: =VLOOKUP(A19,MasterReferenceTable!$C$1:$P$388,5,FALSE) -> -102.03258 | H19: 18 | K19: academy
A20: sdSBEA | B20: Bear Creek South Dakota (RAWS) | E20: =VLOOKUP(A20,MasterReferenceTable!$C$1:$P$388,4,FALSE) -> 45.05722 | F20: =VLOOKUP(A20,MasterReferenceTable!$C$1:$P$388,5,FALSE) -> -101.47667 | H20: 19 | K20: camp crook
A21: wyWBEA | B21: Bear Lodge Wyoming (RAWS) | E21: =VLOOKUP(A21,MasterReferenceTable!$C$1:$P$388,4,FALSE) -> 44.59737 | F21: =VLOOKUP(A21,MasterReferenceTable!$C$1:$P$388,5,FALSE) -> -104.42823 | H21: 20 | K21: edgemont
A22: 390559 | B22: BELLE FOURCHE | E22: =VLOOKUP(A22,MasterReferenceTable!$C$1:$P$388,4,FALSE) -> 44.892151 | F22: =VLOOKUP(A22,MasterReferenceTable!$C$1:$P$388,5,FALSE) -> -103.731196 | H22: 21 | K22: gregory
A23: 240636 | B23: BELLTOWER | E23: =VLOOKUP(A23,MasterReferenceTable!$C$1:$P$388,4,FALSE) -> 45.6946 | F23: =VLOOKUP(A23,MasterReferenceTable!$C$1:$P$388,5,FALSE) -> -104.3856 | H23: 22 | K23: highmore 1 W
A24: SD-ML-11 | B24: Belvidere 14.9 SSE (SD-ML-11) | E24: =VLOOKUP(A24,MasterReferenceTable!$C$1:$P$388,4,FALSE) -> 43.6501 | F24: =VLOOKUP(A24,MasterReferenceTable!$C$1:$P$388,5,FALSE) -> -101.1101 | H24: 23 | K24: Lemmon
A25: 390662 | B25: BIG STONE CITY 2 NW | E25: =VLOOKUP(A25,MasterReferenceTable!$C$1:$P$388,4,FALSE) -> 45.246266 | F25: =VLOOKUP(A25,MasterReferenceTable!$C$1:$P$388,5,FALSE) -> -96.534426 | H25: 24 | K25: Mcglaup[hlin
A26: SD-GT-8 | B26: Big Stone City 5.0 WNW (SD-GT-8) | E26: =VLOOKUP(A26,MasterReferenceTable!$C$1:$P$388,4,FALSE) -> 45.311353 | F26: =VLOOKUP(A26,MasterReferenceTable!$C$1:$P$388,5,FALSE) -> -96.564426 | H26: 25 | K26: Pickstown
A27: 390701 | B27: BISON | E27: =VLOOKUP(A27,MasterReferenceTable!$C$1:$P$388,4,FALSE) -> 45.448838 | F27: =VLOOKUP(A27,MasterReferenceTable!$C$1:$P$388,5,FALSE) -> -102.518906 | H27: 26 | K27: stephan
A28: SD-PK-6 | B28: Bison 24.1 SW (SD-PK-6) | E28: =VLOOKUP(A28,MasterReferenceTable!$C$1:$P$388,4,FALSE) -> 45.324012 | F28: =VLOOKUP(A28,MasterReferenceTable!$C$1:$P$388,5,FALSE) -> -102.876782 | H28: 27 | K28: tyndall
A29: 354 | B29: Blind Park (SNOTEL) | E29: =VLOOKUP(A29,MasterReferenceTable!$C$1:$P$388,4,FALSE) -> 44.10991 | F29: =VLOOKUP(A29,MasterReferenceTable!$C$1:$P$388,5,FALSE) -> -103.98012 | H29: 28 | K29: white lake
A30: SD-GY-21 | B30: Bonesteel 0.1 S (SD-GY-21) | E30: =VLOOKUP(A30,MasterReferenceTable!$C$1:$P$388,4,FALSE) -> 43.07683333 | F30: =VLOOKUP(A30,MasterReferenceTable!$C$1:$P$388,5,FALSE) -> -98.94655556 | H30: 29
A31: 390834 | B31: BOWDLE | E31: =VLOOKUP(A31,MasterReferenceTable!$C$1:$P$388,4,FALSE) -> 45.419284 | F31: =VLOOKUP(A31,MasterReferenceTable!$C$1:$P$388,5,FALSE) -> -99.646827 | H31: 30
A32: 320995 | B32: BOWMAN | E32: =VLOOKUP(A32,MasterReferenceTable!$C$1:$P$388,4,FALSE) -> 46.1936 | F32: =VLOOKUP(A32,MasterReferenceTable!$C$1:$P$388,5,FALSE) -> -103.3714 | H32: 31
A33: ND-BW-2 | B33: Bowman 0.2 WSW (ND-BW-2) | E33: =VLOOKUP(A33,MasterReferenceTable!$C$1:$P$388,4,FALSE) -> 46.1822 | F33: =VLOOKUP(A33,MasterReferenceTable!$C$1:$P$388,5,FALSE) -> -103.4038 | H33: 32
A34: SD-PN-50 | B34: Box Elder 1.6 NE (SD-PN-50) | E34: =VLOOKUP(A34,MasterReferenceTable!$C$1:$P$388,4,FALSE) -> 44.138652 | F34: =VLOOKUP(A34,MasterReferenceTable!$C$1:$P$388,5,FALSE) -> -103.053226 | H34: 33
A35: SD-MD-1 | B35: Box Elder 8.0 NNE (SD-MD-1) | E35: =VLOOKUP(A35,MasterReferenceTable!$C$1:$P$388,4,FALSE) -> 44.231776 | F35: =VLOOKUP(A35,MasterReferenceTable!$C$1:$P$388,5,FALSE) -> -103.034516 | H35: 34
A36: SD-MH-106 | B36: Brandon 0.4 NNE (SD-MH-106) | E36: =VLOOKUP(A36,MasterReferenceTable!$C$1:$P$388,4,FALSE) -> 43.596961 | F36: =VLOOKUP(A36,MasterReferenceTable!$C$1:$P$388,5,FALSE) -> -96.575971 | H36: 35
A37: 391032 | B37: BRIDGEWATER | E37: =VLOOKUP(A37,MasterReferenceTable!$C$1:$P$388,4,FALSE) -> 43.557414 | F37: =VLOOKUP(A37,MasterReferenceTable!$C$1:$P$388,5,FALSE) -> -97.487588 | H37: 36
A38: 391049 | B38: BRITTON | E38: =VLOOKUP(A38,MasterReferenceTable!$C$1:$P$388,4,FALSE) -> 45.790744 | F38: =VLOOKUP(A38,MasterReferenceTable!$C$1:$P$388,5,FALSE) -> -97.70911 | H38: 37
A39: SD-MR-12 | B39: Britton 6.3 NNE (SD-MR-12) | E39: =VLOOKUP(A39,MasterReferenceTable!$C$1:$P$388,4,FALSE) -> 45.87826654 | F39: =VLOOKUP(A39,MasterReferenceTable!$C$1:$P$388,5,FALSE) -> -97.72272147 | H39: 38
A40: SD-BK-7 | B40: Brookings 0.2 SSW (SD-BK-7) | E40: =VLOOKUP(A40,MasterReferenceTable!$C$1:$P$388,4,FALSE) -> 44.303888 | F40: =VLOOKUP(A40,MasterReferenceTable!$C$1:$P$388,5,FALSE) -> -96.787839 | H40: 39
A41: SD-BK-35 | B41: Brookings 0.5 E (SD-BK-35) | E41: =VLOOKUP(A41,MasterReferenceTable!$C$1:$P$388,4,FALSE) -> 44.306148 | F41: =VLOOKUP(A41,MasterReferenceTable!$C$1:$P$388,5,FALSE) -> -96.775108 | H41: 40
A42: SD-BK-43 | B42: Brookings 1.0 S (SD-BK-43) | E42: =VLOOKUP(A42,MasterReferenceTable!$C$1:$P$388,4,FALSE) -> 44.291801 | F42: =VLOOKUP(A42,MasterReferenceTable!$C$1:$P$388,5,FALSE) -> -96.7855 | H42: 41
A43: SD-BK-3 | B43: Brookings 1.4 SW (SD-BK-3) | E43: =VLOOKUP(A43,MasterReferenceTable!$C$1:$P$388,4,FALSE) -> 44.289889 | F43: =VLOOKUP(A43,MasterReferenceTable!$C$1:$P$388,5,FALSE) -> -96.802123 | H43: 42
A44: SD-BK-57 | B44: Brookings 1.6 S (SD-BK-57) | E44: =VLOOKUP(A44,MasterReferenceTable!$C$1:$P$388,4,FALSE) -> 44.283677 | F44: =VLOOKUP(A44,MasterReferenceTable!$C$1:$P$388,5,FALSE) -> -96.79109 | H44: 43
A45: 391076 | B45: BROOKINGS 2 NE | E45: =VLOOKUP(A45,MasterReferenceTable!$C$1:$P$388,4,FALSE) -> 44.320074 | F45: =VLOOKUP(A45,MasterReferenceTable!$C$1:$P$388,5,FALSE) -> -96.782804 | H45: 44
A46: SD-BK-56 | B46: Brookings 6.5 NNW (SD-BK-56) | E46: =VLOOKUP(A46,MasterReferenceTable!$C$1:$P$388,4,FALSE) -> 44.395278 | F46: =VLOOKUP(A46,MasterReferenceTable!$C$1:$P$388,5,FALSE) -> -96.829167 | H46: 45
A47: SD-BK-37 | B47: Bruce 0.2 SSW (SD-BK-37) | E47: =VLOOKUP(A47,MasterReferenceTable!$C$1:$P$388,4,FALSE) -> 44.435512 | F47: =VLOOKUP(A47,MasterReferenceTable!$C$1:$P$388,5,FALSE) -> -96.89067 | H47: 46
A48: SD-BK-9 | B48: Bruce 4.1 NE (SD-BK-9) | E48: =VLOOKUP(A48,MasterReferenceTable!$C$1:$P$388,4,FALSE) -> 44.48479 | F48: =VLOOKUP(A48,MasterReferenceTable!$C$1:$P$388,5,FALSE) -> -96.83752 | H48: 47
A49: 2WX | B49: BUFFALO | E49: =VLOOKUP(A49,MasterReferenceTable!$C$1:$P$388,4,FALSE) -> 45.6044 | F49: =VLOOKUP(A49,MasterReferenceTable!$C$1:$P$388,5,FALSE) -> -103.5464 | H49: 48
A50: SD-HR-20 | B50: Buffalo 14.5 NW (SD-HR-20) | E50: =VLOOKUP(A50,MasterReferenceTable!$C$1:$P$388,4,FALSE) -> 45.704031 | F50: =VLOOKUP(A50,MasterReferenceTable!$C$1:$P$388,5,FALSE) -> -103.790212 | H50: 49
A51: SD-GY-18 | B51: Burke 10.5 SSE (SD-GY-18) | E51: =VLOOKUP(A51,MasterReferenceTable!$C$1:$P$388,4,FALSE) -> 43.03866667 | F51: =VLOOKUP(A51,MasterReferenceTable!$C$1:$P$388,5,FALSE) -> -99.22588333 | H51: 50
A52: SD-GY-15 | B52: Burke 4.2 SW (SD-GY-15) | E52: =VLOOKUP(A52,MasterReferenceTable!$C$1:$P$388,4,FALSE) -> 43.14107 | F52: =VLOOKUP(A52,MasterReferenceTable!$C$1:$P$388,5,FALSE) -> -99.35415 | H52: 51
A53: 391294 | B53: CAMP CROOK | E53: =VLOOKUP(A53,MasterReferenceTable!$C$1:$P$388,4,FALSE) -> 45.61542 | F53: =VLOOKUP(A53,MasterReferenceTable!$C$1:$P$388,5,FALSE) -> -103.93308 | H53: 52
A54: SD-HR-24 | B54: Camp Crook 16.4 NNE (SD-HR-24) | E54: =VLOOKUP(A54,MasterReferenceTable!$C$1:$P$388,4,FALSE) -> 45.782316 | F54: =VLOOKUP(A54,MasterReferenceTable!$C$1:$P$388,5,FALSE) -> -103.90494 | H54: 53
A55: 391392 | B55: CANTON 4 WNW | E55: =VLOOKUP(A55,MasterReferenceTable!$C$1:$P$388,4,FALSE) -> 43.301388 | F55: =VLOOKUP(A55,MasterReferenceTable!$C$1:$P$388,5,FALSE) -> -96.618714 | H55: 54
A56: 391519 | B56: CASTLEWOOD NO. 2 | E56: =VLOOKUP(A56,MasterReferenceTable!$C$1:$P$388,4,FALSE) -> 44.727 | F56: =VLOOKUP(A56,MasterReferenceTable!$C$1:$P$388,5,FALSE) -> -97.026 | H56: 55
A57: 391579 | B57: CENTERVILLE 6 SE | E57: =VLOOKUP(A57,MasterReferenceTable!$C$1:$P$388,4,FALSE) -> 43.089283 | F57: =VLOOKUP(A57,MasterReferenceTable!$C$1:$P$388,5,FALSE) -> -96.973199 | H57: 56
A58: 251575 | B58: CHADRON 3 SW | E58: =VLOOKUP(A58,MasterReferenceTable!$C$1:$P$388,4,FALSE) -> 42.8083 | F58: =VLOOKUP(A58,MasterReferenceTable!$C$1:$P$388,5,FALSE) -> -103.0533 | H58: 57
A59: SD-BL-1 | B59: Chamberlain 0.3 W (SD-BL-1) | E59: =VLOOKUP(A59,MasterReferenceTable!$C$1:$P$388,4,FALSE) -> 43.806791 | F59: =VLOOKUP(A59,MasterReferenceTable!$C$1:$P$388,5,FALSE) -> -99.327094 | H59: 58
A60: 391621 | B60: CHAMBERLAIN 5 S | E60: =VLOOKUP(A60,MasterReferenceTable!$C$1:$P$388,4,FALSE) -> 43.738376 | F60: =VLOOKUP(A60,MasterReferenceTable!$C$1:$P$388,5,FALSE) -> -99.250803 | H60: 59
A61: SD-BL-13 | B61: Chamberlain 7.5 NNE (SD-BL-13) | E61: =VLOOKUP(A61,MasterReferenceTable!$C$1:$P$388,4,FALSE) -> 43.904788 | F61: =VLOOKUP(A61,MasterReferenceTable!$C$1:$P$388,5,FALSE) -> -99.254916 | H61: 60
A62: SD-BL-10 | B62: Chamberlain 7.5 SSW (SD-BL-10) | E62: =VLOOKUP(A62,MasterReferenceTable!$C$1:$P$388,4,FALSE) -> 43.705134 | F62: =VLOOKUP(A62,MasterReferenceTable!$C$1:$P$388,5,FALSE) -> -99.377341 | H62: 61
A63: SD-FK-6 | B63: Chelsea 3.8 W (SD-FK-6) | E63: =VLOOKUP(A63,MasterReferenceTable!$C$1:$P$388,4,FALSE) -> 45.171466 | F63: =VLOOKUP(A63,MasterReferenceTable!$C$1:$P$388,5,FALSE) -> -98.820589 | H63: 62
A64: 391739 | B64: CLARK NO2 | E64: =VLOOKUP(A64,MasterReferenceTable!$C$1:$P$388,4,FALSE) -> 44.8818 | F64: =VLOOKUP(A64,MasterReferenceTable!$C$1:$P$388,5,FALSE) -> -97.7325 | H64: 63
A65: 982 | B65: Cole Canyon (SNOTEL) | E65: =VLOOKUP(A65,MasterReferenceTable!$C$1:$P$388,4,FALSE) -> 44.47737 | F65: =VLOOKUP(A65,MasterReferenceTable!$C$1:$P$388,5,FALSE) -> -104.42466 | H65: 64
A66: SD-MY-11 | B66: Colman 10.6 N (SD-MY-11) | E66: =VLOOKUP(A66,MasterReferenceTable!$C$1:$P$388,4,FALSE) -> 44.13807 | F66: =VLOOKUP(A66,MasterReferenceTable!$C$1:$P$388,5,FALSE) -> -96.803952 | H66: 65
A67: SD-TP-30 | B67: Colome 4.6 WSW (SD-TP-30) | E67: =VLOOKUP(A67,MasterReferenceTable!$C$1:$P$388,4,FALSE) -> 43.22695 | F67: =VLOOKUP(A67,MasterReferenceTable!$C$1:$P$388,5,FALSE) -> -99.79475 | H67: 66
A68: 391851 | B68: COLTON 2 E | E68: =VLOOKUP(A68,MasterReferenceTable!$C$1:$P$388,4,FALSE) -> 43.790276 | F68: =VLOOKUP(A68,MasterReferenceTable!$C$1:$P$388,5,FALSE) -> -96.980196 | H68: 67
A69: 391873 | B69: COLUMBIA 8 N | E69: =VLOOKUP(A69,MasterReferenceTable!$C$1:$P$388,4,FALSE) -> 45.723 | F69: =VLOOKUP(A69,MasterReferenceTable!$C$1:$P$388,5,FALSE) -> -98.303 | H69: 68
A70: SD-DG-11 | B70: Corsica 0.1 SSE (SD-DG-11) | E70: =VLOOKUP(A70,MasterReferenceTable!$C$1:$P$388,4,FALSE) -> 43.4233 | F70: =VLOOKUP(A70,MasterReferenceTable!$C$1:$P$388,5,FALSE) -> -98.40527778 | H70: 69
A71: 391972 | B71: COTTONWOOD 3 E | E71: =VLOOKUP(A71,MasterReferenceTable!$C$1:$P$388,4,FALSE) -> 44.081358 | F71: =VLOOKUP(A71,MasterReferenceTable!$C$1:$P$388,5,FALSE) -> -102.1176 | H71: 70
A72: SD-MH-89 | B72: Crooks 0.7 WSW (SD-MH-89) | E72: =VLOOKUP(A72,MasterReferenceTable!$C$1:$P$388,4,FALSE) -> 43.655466 | F72: =VLOOKUP(A72,MasterReferenceTable!$C$1:$P$388,5,FALSE) -> -96.819208 | H72: 71
A73: 392087 | B73: CUSTER | E73: =VLOOKUP(A73,MasterReferenceTable!$C$1:$P$388,4,FALSE) -> 43.708374 | F73: =VLOOKUP(A73,MasterReferenceTable!$C$1:$P$388,5,FALSE) -> -103.745192 | H73: 72
A74: SD-CS-1 | B74: Custer 10.2 E (SD-CS-1) | E74: =VLOOKUP(A74,MasterReferenceTable!$C$1:$P$388,4,FALSE) -> 43.77083 | F74: =VLOOKUP(A74,MasterReferenceTable!$C$1:$P$388,5,FALSE) -> -103.39639 | H74: 73
A75: sdSCUS | B75: Custer South Dakota (RAWS) | E75: =VLOOKUP(A75,MasterReferenceTable!$C$1:$P$388,4,FALSE) -> 43.75 | F75: =VLOOKUP(A75,MasterReferenceTable!$C$1:$P$388,5,FALSE) -> -103.63333 | H75: 74
A76: sdSCSP | B76: Custer State Park South Dakota (RAWS) | E76: =VLOOKUP(A76,MasterReferenceTable!$C$1:$P$388,4,FALSE) -> 43.728611 | F76: =VLOOKUP(A76,MasterReferenceTable!$C$1:$P$388,5,FALSE) -> -103.354167 | H76: 75
A77: SD-TP-13 | B77: Dallas 13.2 SSW (SD-TP-13) | E77: =VLOOKUP(A77,MasterReferenceTable!$C$1:$P$388,4,FALSE) -> 43.059678 | F77: =VLOOKUP(A77,MasterReferenceTable!$C$1:$P$388,5,FALSE) -> -99.612865 | H77: 76
A78: SD-GY-1 | B78: Dallas 8.8 S (SD-GY-1) | E78: =VLOOKUP(A78,MasterReferenceTable!$C$1:$P$388,4,FALSE) -> 43.113169 | F78: =VLOOKUP(A78,MasterReferenceTable!$C$1:$P$388,5,FALSE) -> -99.496356 | H78: 77
A79: 392302 | B79: DE SMET | E79: =VLOOKUP(A79,MasterReferenceTable!$C$1:$P$388,4,FALSE) -> 44.369474 | F79: =VLOOKUP(A79,MasterReferenceTable!$C$1:$P$388,5,FALSE) -> -97.562312 | H79: 78
A80: SD-KY-5 | B80: De Smet 0.2 SSE (SD-KY-5) | E80: =VLOOKUP(A80,MasterReferenceTable!$C$1:$P$388,4,FALSE) -> 44.383863 | F80: =VLOOKUP(A80,MasterReferenceTable!$C$1:$P$388,5,FALSE) -> -97.546238 | H80: 79
A81: SD-DG-1 | B81: Dimock 10.2 W (SD-DG-1) | E81: =VLOOKUP(A81,MasterReferenceTable!$C$1:$P$388,4,FALSE) -> 43.49747 | F81: =VLOOKUP(A81,MasterReferenceTable!$C$1:$P$388,5,FALSE) -> -98.188757 | H81: 80
A82: 392446 | B82: DUPREE 15 SSE | E82: =VLOOKUP(A82,MasterReferenceTable!$C$1:$P$388,4,FALSE) -> 44.614674 | F82: =VLOOKUP(A82,MasterReferenceTable!$C$1:$P$388,5,FALSE) -> -101.682032 | H82: 81
A83: 392429 | B83: DUPREE 5 NNE | E83: =VLOOKUP(A83,MasterReferenceTable!$C$1:$P$388,4,FALSE) -> 45.050708 | F83: =VLOOKUP(A83,MasterReferenceTable!$C$1:$P$388,5,FALSE) -> -101.568746 | H83: 82
A84: 392557 | B84: EDGEMONT | E84: =VLOOKUP(A84,MasterReferenceTable!$C$1:$P$388,4,FALSE) -> 43.381062 | F84: =VLOOKUP(A84,MasterReferenceTable!$C$1:$P$388,5,FALSE) -> -103.70068 | H84: 83
A85: SD-FR-21 | B85: Edgemont 0.4 W (SD-FR-21) | E85: =VLOOKUP(A85,MasterReferenceTable!$C$1:$P$388,4,FALSE) -> 43.298685 | F85: =VLOOKUP(A85,MasterReferenceTable!$C$1:$P$388,5,FALSE) -> -103.834831 | H85: 84
A86: SD-FR-24 | B86: Edgemont 14.2 NW (SD-FR-24) | E86: =VLOOKUP(A86,MasterReferenceTable!$C$1:$P$388,4,FALSE) -> 43.45273333 | F86: =VLOOKUP(A86,MasterReferenceTable!$C$1:$P$388,5,FALSE) -> -104.0154167 | H86: 85
A87: SD-FR-20 | B87: Edgemont 2.2 ENE (SD-FR-20) | E87: =VLOOKUP(A87,MasterReferenceTable!$C$1:$P$388,4,FALSE) -> 43.315728 | F87: =VLOOKUP(A87,MasterReferenceTable!$C$1:$P$388,5,FALSE) -> -103.789756 | H87: 86
A88: 242689 | B88: EKALAKA | E88: =VLOOKUP(A88,MasterReferenceTable!$C$1:$P$388,4,FALSE) -> 45.8863 | F88: =VLOOKUP(A88,MasterReferenceTable!$C$1:$P$388,5,FALSE) -> -104.5478 | H88: 87
A89: SD-UN-2 | B89: Elk Point 5.6 NNE (SD-UN-2) | E89: =VLOOKUP(A89,MasterReferenceTable!$C$1:$P$388,4,FALSE) -> 42.76126 | F89: =VLOOKUP(A89,MasterReferenceTable!$C$1:$P$388,5,FALSE) -> -96.653165 | H89: 88
A90: 392647 | B90: ELM SPRINGS 3 ESE | E90: =VLOOKUP(A90,MasterReferenceTable!$C$1:$P$388,4,FALSE) -> 44.213851 | F90: =VLOOKUP(A90,MasterReferenceTable!$C$1:$P$388,5,FALSE) -> -102.480743 | H90: 89
A91: SD-MD-43 | B91: Elm Springs 4.1 NNW (SD-MD-43) | E91: =VLOOKUP(A91,MasterReferenceTable!$C$1:$P$388,4,FALSE) -> 44.3638638 | F91: =VLOOKUP(A91,MasterReferenceTable!$C$1:$P$388,5,FALSE) -> -102.5678748 | H91: 90
A92: SD-HT-16 | B92: Emery 10.8 S (SD-HT-16) | E92: =VLOOKUP(A92,MasterReferenceTable!$C$1:$P$388,4,FALSE) -> 43.44903 | F92: =VLOOKUP(A92,MasterReferenceTable!$C$1:$P$388,5,FALSE) -> -97.65538 | H92: 91
A93: 392797 | B93: EUREKA | E93: =VLOOKUP(A93,MasterReferenceTable!$C$1:$P$388,4,FALSE) -> 45.767149 | F93: =VLOOKUP(A93,MasterReferenceTable!$C$1:$P$388,5,FALSE) -> -99.572613 | H93: 92
A94: SD-MP-3 | B94: Eureka 0.3 SSE (SD-MP-3) | E94: =VLOOKUP(A94,MasterReferenceTable!$C$1:$P$388,4,FALSE) -> 45.765158 | F94: =VLOOKUP(A94,MasterReferenceTable!$C$1:$P$388,5,FALSE) -> -99.621622 | H94: 93
A95: 392852 | B95: FAITH MUNICIPAL AP | E95: =VLOOKUP(A95,MasterReferenceTable!$C$1:$P$388,4,FALSE) -> 45.0203 | F95: =VLOOKUP(A95,MasterReferenceTable!$C$1:$P$388,5,FALSE) -> -102.0367 | H95: 94
A96: SD-PK-28 | B96: Faith 20.5 NW (SD-PK-28) | E96: =VLOOKUP(A96,MasterReferenceTable!$C$1:$P$388,4,FALSE) -> 45.24831772 | F96: =VLOOKUP(A96,MasterReferenceTable!$C$1:$P$388,5,FALSE) -> -102.3165665 | H96: 95
A97: SD-MD-9 | B97: Faith 36.3 W (SD-MD-9) | E97: =VLOOKUP(A97,MasterReferenceTable!$C$1:$P$388,4,FALSE) -> 44.924953 | F97: =VLOOKUP(A97,MasterReferenceTable!$C$1:$P$388,5,FALSE) -> -102.762833 | H97: 96
A98: 392927 | B98: FAULKTON 1 NW | E98: =VLOOKUP(A98,MasterReferenceTable!$C$1:$P$388,4,FALSE) -> 45.07111 | F98: =VLOOKUP(A98,MasterReferenceTable!$C$1:$P$388,5,FALSE) -> -99.124594 | H98: 97
A99: 392984 | B99: FLANDREAU | E99: =VLOOKUP(A99,MasterReferenceTable!$C$1:$P$388,4,FALSE) -> 44.065077 | F99: =VLOOKUP(A99,MasterReferenceTable!$C$1:$P$388,5,FALSE) -> -96.621084 | H99: 98
A100: SD-SB-2 | B100: Forestburg 0.1 NE (SD-SB-2) | E100: =VLOOKUP(A100,MasterReferenceTable!$C$1:$P$388,4,FALSE) -> 44.02278 | F100: =VLOOKUP(A100,MasterReferenceTable!$C$1:$P$388,5,FALSE) -> -98.10742 | H100: 99
A101: 393029 | B101: FORESTBURG 4 NNE | E101: =VLOOKUP(A101,MasterReferenceTable!$C$1:$P$388,4,FALSE) -> 44.022908 | F101: =VLOOKUP(A101,MasterReferenceTable!$C$1:$P$388,5,FALSE) -> -97.981808 | H101: 100
A102: 393069 | B102: FORT MEADE | E102: =VLOOKUP(A102,MasterReferenceTable!$C$1:$P$388,4,FALSE) -> 44.412722 | F102: =VLOOKUP(A102,MasterReferenceTable!$C$1:$P$388,5,FALSE) -> -103.473124 | H102: 101
A103: SD-ST-6 | B103: Fort Pierre 0.5 SE (SD-ST-6) | E103: =VLOOKUP(A103,MasterReferenceTable!$C$1:$P$388,4,FALSE) -> 44.357927 | F103: =VLOOKUP(A103,MasterReferenceTable!$C$1:$P$388,5,FALSE) -> -100.372102 | H103: 102
A104: sdSFOP | B104: Fort Pierre South Dakota (RAWS) | E104: =VLOOKUP(A104,MasterReferenceTable!$C$1:$P$388,4,FALSE) -> 44.115278 | F104: =VLOOKUP(A104,MasterReferenceTable!$C$1:$P$388,5,FALSE) -> -100.301389 | H104: 103
A105: SD-MN-1 | B105: Fulton 9.4 N (SD-MN-1) | E105: =VLOOKUP(A105,MasterReferenceTable!$C$1:$P$388,4,FALSE) -> 43.862385 | F105: =VLOOKUP(A105,MasterReferenceTable!$C$1:$P$388,5,FALSE) -> -97.79072 | H105: 104
A106: 393217 | B106: GANN VALLEY 3 NNE | E106: =VLOOKUP(A106,MasterReferenceTable!$C$1:$P$388,4,FALSE) -> 44.0569 | F106: =VLOOKUP(A106,MasterReferenceTable!$C$1:$P$388,5,FALSE) -> -99.0719 | H106: 105
A107: SD-MH-91 | B107: Garretson 1.7 WSW (SD-MH-91) | E107: =VLOOKUP(A107,MasterReferenceTable!$C$1:$P$388,4,FALSE) -> 43.705743 | F107: =VLOOKUP(A107,MasterReferenceTable!$C$1:$P$388,5,FALSE) -> -96.531771 | H107: 106
A108: SD-MH-56 | B108: Garretson 6.9 W (SD-MH-56) | E108: =VLOOKUP(A108,MasterReferenceTable!$C$1:$P$388,4,FALSE) -> 43.72813333 | F108: =VLOOKUP(A108,MasterReferenceTable!$C$1:$P$388,5,FALSE) -> -96.63773333 | H108: 107
A109: SD-DL-7 | B109: Gary 6.1 SW (SD-DL-7) | E109: =VLOOKUP(A109,MasterReferenceTable!$C$1:$P$388,4,FALSE) -> 44.729206 | F109: =VLOOKUP(A109,MasterReferenceTable!$C$1:$P$388,5,FALSE) -> -96.541329 | H109: 108
A110: 393294 | B110: GETTYSBURG | E110: =VLOOKUP(A110,MasterReferenceTable!$C$1:$P$388,4,FALSE) -> 45.057025 | F110: =VLOOKUP(A110,MasterReferenceTable!$C$1:$P$388,5,FALSE) -> -100.130575 | H110: 109
A111: 393316 | B111: GLAD VALLEY 2 W | E111: =VLOOKUP(A111,MasterReferenceTable!$C$1:$P$388,4,FALSE) -> 45.4008 | F111: =VLOOKUP(A111,MasterReferenceTable!$C$1:$P$388,5,FALSE) -> -101.8103 | H111: 110
A112: 253355 | B112: GORDON 6 N | E112: =VLOOKUP(A112,MasterReferenceTable!$C$1:$P$388,4,FALSE) -> 42.8966 | F112: =VLOOKUP(A112,MasterReferenceTable!$C$1:$P$388,5,FALSE) -> -102.203 | H112: 111
A113: sdSGRR | B113: Grand River South Dakota (RAWS) | E113: =VLOOKUP(A113,MasterReferenceTable!$C$1:$P$388,4,FALSE) -> 45.614167 | F113: =VLOOKUP(A113,MasterReferenceTable!$C$1:$P$388,5,FALSE) -> -101.062778 | H113: 112
A114: 393452 | B114: GREGORY | E114: =VLOOKUP(A114,MasterReferenceTable!$C$1:$P$388,4,FALSE) -> 43.386914 | F114: =VLOOKUP(A114,MasterReferenceTable!$C$1:$P$388,5,FALSE) -> -99.452625 | H114: 113
A115: SD-GY-3 | B115: Gregory 8.7 N (SD-GY-3) | E115: =VLOOKUP(A115,MasterReferenceTable!$C$1:$P$388,4,FALSE) -> 43.3581 | F115: =VLOOKUP(A115,MasterReferenceTable!$C$1:$P$388,5,FALSE) -> -99.4169 | H115: 114
A116: SD-DY-16 | B116: Grenville 6.6 ENE (SD-DY-16) | E116: =VLOOKUP(A116,MasterReferenceTable!$C$1:$P$388,4,FALSE) -> 45.509264 | F116: =VLOOKUP(A116,MasterReferenceTable!$C$1:$P$388,5,FALSE) -> -97.266916 | H116: 115
A117: SD-TP-7 | B117: Hamill 1.7 SW (SD-TP-7) | E117: =VLOOKUP(A117,MasterReferenceTable!$C$1:$P$388,4,FALSE) -> 43.5868 | F117: =VLOOKUP(A117,MasterReferenceTable!$C$1:$P$388,5,FALSE) -> -99.711432 | H117: 116
A118: SD-LN-34 | B118: Harrisburg 0.8 NNE (SD-LN-34) | E118: =VLOOKUP(A118,MasterReferenceTable!$C$1:$P$388,4,FALSE) -> 43.4415134 | F118: =VLOOKUP(A118,MasterReferenceTable!$C$1:$P$388,5,FALSE) -> -96.6894567 | H118: 117
A119: 253615 | B119: HARRISON | E119: =VLOOKUP(A119,MasterReferenceTable!$C$1:$P$388,4,FALSE) -> 42.6858 | F119: =VLOOKUP(A119,MasterReferenceTable!$C$1:$P$388,5,FALSE) -> -103.8841 | H119: 118
A120: SD-SL-10 | B120: Harrold 13.5 NNW (SD-SL-10) | E120: =VLOOKUP(A120,MasterReferenceTable!$C$1:$P$388,4,FALSE) -> 44.7086684 | F120: =VLOOKUP(A120,MasterReferenceTable!$C$1:$P$388,5,FALSE) -> -99.8285949 | H120: 119
A121: SD-HY-3 | B121: Harrold 3.8 ESE (SD-HY-3) | E121: =VLOOKUP(A121,MasterReferenceTable!$C$1:$P$388,4,FALSE) -> 44.5122 | F121: =VLOOKUP(A121,MasterReferenceTable!$C$1:$P$388,5,FALSE) -> -99.6634 | H121: 120
A122: SD-SL-19 | B122: Harrold 5.2 N (SD-SL-19) | E122: =VLOOKUP(A122,MasterReferenceTable!$C$1:$P$388,4,FALSE) -> 44.598109 | F122: =VLOOKUP(A122,MasterReferenceTable!$C$1:$P$388,5,FALSE) -> -99.732582 | H122: 121
A123: SD-MH-8 | B123: Hartford 6.4 S (SD-MH-8) | E123: =VLOOKUP(A123,MasterReferenceTable!$C$1:$P$388,4,FALSE) -> 43.531275 | F123: =VLOOKUP(A123,MasterReferenceTable!$C$1:$P$388,5,FALSE) -> -96.950224 | H123: 122
A124: SD-HM-1 | B124: Hayti 0.1 WNW (SD-HM-1) | E124: =VLOOKUP(A124,MasterReferenceTable!$C$1:$P$388,4,FALSE) -> 44.657048 | F124: =VLOOKUP(A124,MasterReferenceTable!$C$1:$P$388,5,FALSE) -> -97.206584 | H124: 123
A125: SD-CS-17 | B125: Hermosa 0.3 ENE (SD-CS-17) | E125: =VLOOKUP(A125,MasterReferenceTable!$C$1:$P$388,4,FALSE) -> 43.840965 | F125: =VLOOKUP(A125,MasterReferenceTable!$C$1:$P$388,5,FALSE) -> -103.185396 | H125: 124
A126: SD-CS-28 | B126: Hermosa 1.0 NW (SD-CS-28) | E126: =VLOOKUP(A126,MasterReferenceTable!$C$1:$P$388,4,FALSE) -> 43.848243 | F126: =VLOOKUP(A126,MasterReferenceTable!$C$1:$P$388,5,FALSE) -> -103.206982 | H126: 125
A127: SD-CS-27 | B127: Hermosa 10.3 ESE (SD-CS-27) | E127: =VLOOKUP(A127,MasterReferenceTable!$C$1:$P$388,4,FALSE) -> 43.802 | F127: =VLOOKUP(A127,MasterReferenceTable!$C$1:$P$388,5,FALSE) -> -102.992 | H127: 126
A128: SD-CP-6 | B128: Herreid 3.6 ESE (SD-CP-6) | E128: =VLOOKUP(A128,MasterReferenceTable!$C$1:$P$388,4,FALSE) -> 45.816495 | F128: =VLOOKUP(A128,MasterReferenceTable!$C$1:$P$388,5,FALSE) -> -100.007029 | H128: 127
A129: SD-GY-10 | B129: Herrick 4.5 NW (SD-GY-10) | E129: =VLOOKUP(A129,MasterReferenceTable!$C$1:$P$388,4,FALSE) -> 43.155108 | F129: =VLOOKUP(A129,MasterReferenceTable!$C$1:$P$388,5,FALSE) -> -99.2584 | H129: 128
A130: 393832 | B130: HIGHMORE 1 W | E130: =VLOOKUP(A130,MasterReferenceTable!$C$1:$P$388,4,FALSE) -> 44.54507 | F130: =VLOOKUP(A130,MasterReferenceTable!$C$1:$P$388,5,FALSE) -> -99.487366 | H130: 129
A131: SD-HY-1 | B131: Highmore 12.4 N (SD-HY-1) | E131: =VLOOKUP(A131,MasterReferenceTable!$C$1:$P$388,4,FALSE) -> 44.698685 | F131: =VLOOKUP(A131,MasterReferenceTable!$C$1:$P$388,5,FALSE) -> -99.413871 | H131: 130
A132: SD-HY-2 | B132: Highmore 19.1 NNW (SD-HY-2) | E132: =VLOOKUP(A132,MasterReferenceTable!$C$1:$P$388,4,FALSE) -> 44.780033 | F132: =VLOOKUP(A132,MasterReferenceTable!$C$1:$P$388,5,FALSE) -> -99.573808 | H132: 131
A133: SD-HY-6 | B133: Highmore 21.3 N (SD-HY-6) | E133: =VLOOKUP(A133,MasterReferenceTable!$C$1:$P$388,4,FALSE) -> 44.827797 | F133: =VLOOKUP(A133,MasterReferenceTable!$C$1:$P$388,5,FALSE) -> -99.478558 | H133: 132
A134: 393868 | B134: HILL CITY | E134: =VLOOKUP(A134,MasterReferenceTable!$C$1:$P$388,4,FALSE) -> 43.997309 | F134: =VLOOKUP(A134,MasterReferenceTable!$C$1:$P$388,5,FALSE) -> -103.775444 | H134: 133
A135: SD-PN-62 | B135: Hill City 4.4 SSW (SD-PN-62) | E135: =VLOOKUP(A135,MasterReferenceTable!$C$1:$P$388,4,FALSE) -> 43.869773 | F135: =VLOOKUP(A135,MasterReferenceTable!$C$1:$P$388,5,FALSE) -> -103.588241 | H135: 134
A136: SD-HY-8 | B136: Holabird 8.5 N (SD-HY-8) | E136: =VLOOKUP(A136,MasterReferenceTable!$C$1:$P$388,4,FALSE) -> 44.6494 | F136: =VLOOKUP(A136,MasterReferenceTable!$C$1:$P$388,5,FALSE) -> -99.6047 | H136: 135
A137: 394007 | B137: HOT SPRINGS | E137: =VLOOKUP(A137,MasterReferenceTable!$C$1:$P$388,4,FALSE) -> 43.347211 | F137: =VLOOKUP(A137,MasterReferenceTable!$C$1:$P$388,5,FALSE) -> -103.479166 | H137: 136
A138: SD-FR-34 | B138: Hot Springs 0.4 NW (SD-FR-34) | E138: =VLOOKUP(A138,MasterReferenceTable!$C$1:$P$388,4,FALSE) -> 43.437133 | F138: =VLOOKUP(A138,MasterReferenceTable!$C$1:$P$388,5,FALSE) -> -103.486839 | H138: 137
A139: SD-FR-30 | B139: Hot Springs 4.2 W (SD-FR-30) | E139: =VLOOKUP(A139,MasterReferenceTable!$C$1:$P$388,4,FALSE) -> 43.443475 | F139: =VLOOKUP(A139,MasterReferenceTable!$C$1:$P$388,5,FALSE) -> -103.562235 | H139: 138
A140: SD-CS-22 | B140: Hot Springs 5.2 NW (SD-CS-22) | E140: =VLOOKUP(A140,MasterReferenceTable!$C$1:$P$388,4,FALSE) -> 43.49375534 | F140: =VLOOKUP(A140,MasterReferenceTable!$C$1:$P$388,5,FALSE) -> -103.5429916 | H140: 139
A141: 394037 | B141: HOWARD | E141: =VLOOKUP(A141,MasterReferenceTable!$C$1:$P$388,4,FALSE) -> 44.036858 | F141: =VLOOKUP(A141,MasterReferenceTable!$C$1:$P$388,5,FALSE) -> -97.560879 | H141: 140
A142: SD-MN-11 | B142: Howard 5.3 W (SD-MN-11) | E142: =VLOOKUP(A142,MasterReferenceTable!$C$1:$P$388,4,FALSE) -> 44.004956 | F142: =VLOOKUP(A142,MasterReferenceTable!$C$1:$P$388,5,FALSE) -> -97.629411 | H142: 141
A143: SD-TR-9 | B143: Hurley 0.2 S (SD-TR-9) | E143: =VLOOKUP(A143,MasterReferenceTable!$C$1:$P$388,4,FALSE) -> 43.27722654 | F143: =VLOOKUP(A143,MasterReferenceTable!$C$1:$P$388,5,FALSE) -> -97.0896095 | H143: 142
A144: SD-BD-24 | B144: Huron 1.1 NNE (SD-BD-24) | E144: =VLOOKUP(A144,MasterReferenceTable!$C$1:$P$388,4,FALSE) -> 44.378778 | F144: =VLOOKUP(A144,MasterReferenceTable!$C$1:$P$388,5,FALSE) -> -98.212875 | H144: 143
A145: SD-BD-20 | B145: Huron 1.3 S (SD-BD-20) | E145: =VLOOKUP(A145,MasterReferenceTable!$C$1:$P$388,4,FALSE) -> 44.34529826 | F145: =VLOOKUP(A145,MasterReferenceTable!$C$1:$P$388,5,FALSE) -> -98.21969055 | H145: 144
A146: SD-BD-7 | B146: Huron 6.8 NNE (SD-BD-7) | E146: =VLOOKUP(A146,MasterReferenceTable!$C$1:$P$388,4,FALSE) -> 44.4566774 | F146: =VLOOKUP(A146,MasterReferenceTable!$C$1:$P$388,5,FALSE) -> -98.1740423 | H146: 145
A147: 394127 | B147: HURON WB AIRPORT | E147: =VLOOKUP(A147,MasterReferenceTable!$C$1:$P$388,4,FALSE) -> 44.379236 | F147: =VLOOKUP(A147,MasterReferenceTable!$C$1:$P$388,5,FALSE) -> -98.175826 | H147: 146
A148: SD-TP-25 | B148: Ideal 1.4 NE (SD-TP-25) | E148: =VLOOKUP(A148,MasterReferenceTable!$C$1:$P$388,4,FALSE) -> 43.55740567 | F148: =VLOOKUP(A148,MasterReferenceTable!$C$1:$P$388,5,FALSE) -> -99.90123267 | H148: 147
A149: sdSIND | B149: Indian Butte South Dakota (RAWS) | E149: =VLOOKUP(A149,MasterReferenceTable!$C$1:$P$388,4,FALSE) -> 45.13944 | F149: =VLOOKUP(A149,MasterReferenceTable!$C$1:$P$388,5,FALSE) -> -103.912778 | H149: 148
A150: 394184 | B150: INTERIOR 3 NE | E150: =VLOOKUP(A150,MasterReferenceTable!$C$1:$P$388,4,FALSE) -> 43.752655 | F150: =VLOOKUP(A150,MasterReferenceTable!$C$1:$P$388,5,FALSE) -> -101.898198 | H150: 149
A151: 394206 | B151: IPSWICH | E151: =VLOOKUP(A151,MasterReferenceTable!$C$1:$P$388,4,FALSE) -> 45.418986 | F151: =VLOOKUP(A151,MasterReferenceTable!$C$1:$P$388,5,FALSE) -> -98.876851 | H151: 150
A152: SD-ED-9 | B152: Ipswich 9.8 ESE (SD-ED-9) | E152: =VLOOKUP(A152,MasterReferenceTable!$C$1:$P$388,4,FALSE) -> 45.3679 | F152: =VLOOKUP(A152,MasterReferenceTable!$C$1:$P$388,5,FALSE) -> -98.8586 | H152: 151
A153: 394254 | B153: IROQUOIS | E153: =VLOOKUP(A153,MasterReferenceTable!$C$1:$P$388,4,FALSE) -> 44.369504 | F153: =VLOOKUP(A153,MasterReferenceTable!$C$1:$P$388,5,FALSE) -> -97.83345 | H153: 152
A154: SD-CP-9 | B154: Java 11.5 NNE (SD-CP-9) | E154: =VLOOKUP(A154,MasterReferenceTable!$C$1:$P$388,4,FALSE) -> 45.658898 | F154: =VLOOKUP(A154,MasterReferenceTable!$C$1:$P$388,5,FALSE) -> -99.800885 | H154: 153
A155: SD-UN-12 | B155: Jefferson 1.1 E (SD-UN-12) | E155: =VLOOKUP(A155,MasterReferenceTable!$C$1:$P$388,4,FALSE) -> 42.604826 | F155: =VLOOKUP(A155,MasterReferenceTable!$C$1:$P$388,5,FALSE) -> -96.540312 | H155: 154
A156: SD-UN-11 | B156: Jefferson 2.1 WNW (SD-UN-11) | E156: =VLOOKUP(A156,MasterReferenceTable!$C$1:$P$388,4,FALSE) -> 42.6202 | F156: =VLOOKUP(A156,MasterReferenceTable!$C$1:$P$388,5,FALSE) -> -96.59683 | H156: 155
A157: SD-JK-1 | B157: Kadoka 2.8 WNW (SD-JK-1) | E157: =VLOOKUP(A157,MasterReferenceTable!$C$1:$P$388,4,FALSE) -> 43.8528 | F157: =VLOOKUP(A157,MasterReferenceTable!$C$1:$P$388,5,FALSE) -> -101.5581 | H157: 156
A158: 394516 | B158: KENNEBEC | E158: =VLOOKUP(A158,MasterReferenceTable!$C$1:$P$388,4,FALSE) -> 43.863239 | F158: =VLOOKUP(A158,MasterReferenceTable!$C$1:$P$388,5,FALSE) -> -99.825803 | H158: 157
A159: SD-LY-2 | B159: Kennebec 0.3 SE (SD-LY-2) | E159: =VLOOKUP(A159,MasterReferenceTable!$C$1:$P$388,4,FALSE) -> 43.901598 | F159: =VLOOKUP(A159,MasterReferenceTable!$C$1:$P$388,5,FALSE) -> -99.857761 | H159: 158
A160: SD-LY-27 | B160: Kennebec 8.4 SSW (SD-LY-27) | E160: =VLOOKUP(A160,MasterReferenceTable!$C$1:$P$388,4,FALSE) -> 43.790182 | F160: =VLOOKUP(A160,MasterReferenceTable!$C$1:$P$388,5,FALSE) -> -99.917668 | H160: 159
A161: 244715 | B161: KNOBS 4 SW | E161: =VLOOKUP(A161,MasterReferenceTable!$C$1:$P$388,4,FALSE) -> 45.8727 | F161: =VLOOKUP(A161,MasterReferenceTable!$C$1:$P$388,5,FALSE) -> -104.1583 | H161: 160
A162: 394630 | B162: KYLE 2 E | E162: =VLOOKUP(A162,MasterReferenceTable!$C$1:$P$388,4,FALSE) -> 43.4402 | F162: =VLOOKUP(A162,MasterReferenceTable!$C$1:$P$388,5,FALSE) -> -102.1431 | H162: 161
A163: SD-GT-9 | B163: LaBolt 0.1 WSW (SD-GT-9) | E163: =VLOOKUP(A163,MasterReferenceTable!$C$1:$P$388,4,FALSE) -> 45.04956722 | F163: =VLOOKUP(A163,MasterReferenceTable!$C$1:$P$388,5,FALSE) -> -96.6769892 | H163: 162
A164: sdSLAN | B164: Lake Andes South Dakota (RAWS) | E164: =VLOOKUP(A164,MasterReferenceTable!$C$1:$P$388,4,FALSE) -> 43.258611 | F164: =VLOOKUP(A164,MasterReferenceTable!$C$1:$P$388,5,FALSE) -> -98.759167 | H164: 163
A165: SD-MR-13 | B165: Lake City 4.1 SE (SD-MR-13) | E165: =VLOOKUP(A165,MasterReferenceTable!$C$1:$P$388,4,FALSE) -> 45.6822 | F165: =VLOOKUP(A165,MasterReferenceTable!$C$1:$P$388,5,FALSE) -> -97.3536 | H165: 164
A166: SD-HM-8 | B166: Lake Norden 4.3 ENE (SD-HM-8) | E166: =VLOOKUP(A166,MasterReferenceTable!$C$1:$P$388,4,FALSE) -> 44.5943 | F166: =VLOOKUP(A166,MasterReferenceTable!$C$1:$P$388,5,FALSE) -> -97.1241 | H166: 165
A167: 394834 | B167: LEAD | E167: =VLOOKUP(A167,MasterReferenceTable!$C$1:$P$388,4,FALSE) -> 44.26089 | F167: =VLOOKUP(A167,MasterReferenceTable!$C$1:$P$388,5,FALSE) -> -103.894821 | H167: 166
A168: SD-LW-6 | B168: Lead 5.5 SSW (SD-LW-6) | E168: =VLOOKUP(A168,MasterReferenceTable!$C$1:$P$388,4,FALSE) -> 44.27806 | F168: =VLOOKUP(A168,MasterReferenceTable!$C$1:$P$388,5,FALSE) -> -103.8092 | H168: 167
A169: 394864 | B169: LEMMON | E169: =VLOOKUP(A169,MasterReferenceTable!$C$1:$P$388,4,FALSE) -> 45.752313 | F169: =VLOOKUP(A169,MasterReferenceTable!$C$1:$P$388,5,FALSE) -> -102.2542 | H169: 168
A170: SD-LN-12 | B170: Lennox 3.3 NE (SD-LN-12) | E170: =VLOOKUP(A170,MasterReferenceTable!$C$1:$P$388,4,FALSE) -> 43.384209 | F170: =VLOOKUP(A170,MasterReferenceTable!$C$1:$P$388,5,FALSE) -> -96.8460972 | H170: 169
A171: sdILBK | B171: Loess Hills TNC Broken Iowa (RAWS) | E171: =VLOOKUP(A171,MasterReferenceTable!$C$1:$P$388,4,FALSE) -> 42.698056 | F171: =VLOOKUP(A171,MasterReferenceTable!$C$1:$P$388,5,FALSE) -> -96.581944 | H171: 170
A172: SD-LK-9 | B172: Madison 0.2 NW (SD-LK-9) | E172: =VLOOKUP(A172,MasterReferenceTable!$C$1:$P$388,4,FALSE) -> 44.009755 | F172: =VLOOKUP(A172,MasterReferenceTable!$C$1:$P$388,5,FALSE) -> -97.110182 | H172: 171
A173: 395090 | B173: MADISON 2 E | E173: =VLOOKUP(A173,MasterReferenceTable!$C$1:$P$388,4,FALSE) -> 43.971126 | F173: =VLOOKUP(A173,MasterReferenceTable!$C$1:$P$388,5,FALSE) -> -97.139085 | H173: 172
A174: SD-LK-10 | B174: Madison 5.0 SE (SD-LK-10) | E174: =VLOOKUP(A174,MasterReferenceTable!$C$1:$P$388,4,FALSE) -> 43.949916 | F174: =VLOOKUP(A174,MasterReferenceTable!$C$1:$P$388,5,FALSE) -> -97.048627 | H174: 173
A175: sdSMAG | B175: Magpie Creek South Dakota (RAWS) | E175: =VLOOKUP(A175,MasterReferenceTable!$C$1:$P$388,4,FALSE) -> 43.318056 | F175: =VLOOKUP(A175,MasterReferenceTable!$C$1:$P$388,5,FALSE) -> -101.14444 | H175: 174
A176: 395228 | B176: MARION | E176: =VLOOKUP(A176,MasterReferenceTable!$C$1:$P$388,4,FALSE) -> 43.377968 | F176: =VLOOKUP(A176,MasterReferenceTable!$C$1:$P$388,5,FALSE) -> -97.291276 | H176: 175
A177: sdSMRC | B177: Marshall Co. South Dakota (RAWS) | E177: =VLOOKUP(A177,MasterReferenceTable!$C$1:$P$388,4,FALSE) -> 45.803889 | F177: =VLOOKUP(A177,MasterReferenceTable!$C$1:$P$388,5,FALSE) -> -97.450833 | H177: 176
A178: SD-BN-17 | B178: Martin 14.1 ENE (SD-BN-17) | E178: =VLOOKUP(A178,MasterReferenceTable!$C$1:$P$388,4,FALSE) -> 43.287645 | F178: =VLOOKUP(A178,MasterReferenceTable!$C$1:$P$388,5,FALSE) -> -101.491217 | H178: 177
A179: 395325 | B179: MAURINE 10 SW | E179: =VLOOKUP(A179,MasterReferenceTable!$C$1:$P$388,4,FALSE) -> 44.8933 | F179: =VLOOKUP(A179,MasterReferenceTable!$C$1:$P$388,5,FALSE) -> -102.6125 | H179: 178
A180: 395381 | B180: MC INTOSH 6 SE | E180: =VLOOKUP(A180,MasterReferenceTable!$C$1:$P$388,4,FALSE) -> 45.70832 | F180: =VLOOKUP(A180,MasterReferenceTable!$C$1:$P$388,5,FALSE) -> -101.520986 | H180: 179
A181: 395406 | B181: MC LAUGHLIN | E181: =VLOOKUP(A181,MasterReferenceTable!$C$1:$P$388,4,FALSE) -> 45.70832 | F181: =VLOOKUP(A181,MasterReferenceTable!$C$1:$P$388,5,FALSE) -> -101.018093 | H181: 180
A182: SD-PK-10 | B182: Meadow 10 SE (SD-PK-10) | E182: =VLOOKUP(A182,MasterReferenceTable!$C$1:$P$388,4,FALSE) -> 45.452085 | F182: =VLOOKUP(A182,MasterReferenceTable!$C$1:$P$388,5,FALSE) -> -102.066112 | H182: 181
A183: 395481 | B183: MENNO | E183: =VLOOKUP(A183,MasterReferenceTable!$C$1:$P$388,4,FALSE) -> 43.23412 | F183: =VLOOKUP(A183,MasterReferenceTable!$C$1:$P$388,5,FALSE) -> -97.519934 | H183: 182
A184: SD-HK-23 | B184: Midland 1.9 E (SD-HK-23) | E184: =VLOOKUP(A184,MasterReferenceTable!$C$1:$P$388,4,FALSE) -> 44.070348 | F184: =VLOOKUP(A184,MasterReferenceTable!$C$1:$P$388,5,FALSE) -> -101.115471 | H184: 183
A185: SD-GT-4 | B185: Milbank 0.9 NNW (SD-GT-4) | E185: =VLOOKUP(A185,MasterReferenceTable!$C$1:$P$388,4,FALSE) -> 45.23149475 | F185: =VLOOKUP(A185,MasterReferenceTable!$C$1:$P$388,5,FALSE) -> -96.64416768 | H185: 184
A186: SD-GT-1 | B186: Milbank 3.9 SSW (SD-GT-1) | E186: =VLOOKUP(A186,MasterReferenceTable!$C$1:$P$388,4,FALSE) -> 45.16535 | F186: =VLOOKUP(A186,MasterReferenceTable!$C$1:$P$388,5,FALSE) -> -96.653167 | H186: 185
A187: 395544 | B187: MILESVILLE 8 NE | E187: =VLOOKUP(A187,MasterReferenceTable!$C$1:$P$388,4,FALSE) -> 44.431928 | F187: =VLOOKUP(A187,MasterReferenceTable!$C$1:$P$388,5,FALSE) -> -101.771879 | H187: 186
A188: 395561 | B188: MILLER | E188: =VLOOKUP(A188,MasterReferenceTable!$C$1:$P$388,4,FALSE) -> 44.488243 | F188: =VLOOKUP(A188,MasterReferenceTable!$C$1:$P$388,5,FALSE) -> -99.069098 | H188: 187
A189: SD-HD-12 | B189: Miller 0.3 SSW (SD-HD-12) | E189: =VLOOKUP(A189,MasterReferenceTable!$C$1:$P$388,4,FALSE) -> 44.51611111 | F189: =VLOOKUP(A189,MasterReferenceTable!$C$1:$P$388,5,FALSE) -> -98.98944444 | H189: 188
A190: SD-ED-14 | B190: Mina 2.2 NE (SD-ED-14) | E190: =VLOOKUP(A190,MasterReferenceTable!$C$1:$P$388,4,FALSE) -> 45.4616 | F190: =VLOOKUP(A190,MasterReferenceTable!$C$1:$P$388,5,FALSE) -> -98.7287 | H190: 189
A191: 395638 | B191: MISSION 14 S | E191: =VLOOKUP(A191,MasterReferenceTable!$C$1:$P$388,4,FALSE) -> 43.161396 | F191: =VLOOKUP(A191,MasterReferenceTable!$C$1:$P$388,5,FALSE) -> -100.969464 | H191: 190
A192: 395670 | B192: MITCHELL | E192: =VLOOKUP(A192,MasterReferenceTable!$C$1:$P$388,4,FALSE) -> 43.718253 | F192: =VLOOKUP(A192,MasterReferenceTable!$C$1:$P$388,5,FALSE) -> -98.02626 | H192: 191
A193: SD-DV-31 | B193: Mitchell 0.9 SSE (SD-DV-31) | E193: =VLOOKUP(A193,MasterReferenceTable!$C$1:$P$388,4,FALSE) -> 43.719782 | F193: =VLOOKUP(A193,MasterReferenceTable!$C$1:$P$388,5,FALSE) -> -98.028601 | H193: 192
A194: SD-DV-27 | B194: Mitchell 1.0 SE (SD-DV-27) | E194: =VLOOKUP(A194,MasterReferenceTable!$C$1:$P$388,4,FALSE) -> 43.723046 | F194: =VLOOKUP(A194,MasterReferenceTable!$C$1:$P$388,5,FALSE) -> -98.01953 | H194: 193
A195: SD-DV-24 | B195: Mitchell 3.4 SSE (SD-DV-24) | E195: =VLOOKUP(A195,MasterReferenceTable!$C$1:$P$388,4,FALSE) -> 43.689536 | F195: =VLOOKUP(A195,MasterReferenceTable!$C$1:$P$388,5,FALSE) -> -98.002501 | H195: 194
A196: SD-DV-25 | B196: Mitchell 6.2 S (SD-DV-25) | E196: =VLOOKUP(A196,MasterReferenceTable!$C$1:$P$388,4,FALSE) -> 43.64416212 | F196: =VLOOKUP(A196,MasterReferenceTable!$C$1:$P$388,5,FALSE) -> -98.01086582 | H196: 195
A197: SD-DV-28 | B197: Mitchell 7.3 S (SD-DV-28) | E197: =VLOOKUP(A197,MasterReferenceTable!$C$1:$P$388,4,FALSE) -> 43.629171 | F197: =VLOOKUP(A197,MasterReferenceTable!$C$1:$P$388,5,FALSE) -> -98.009567 | H197: 196
A198: 395691 | B198: MOBRIDGE 2 NNW | E198: =VLOOKUP(A198,MasterReferenceTable!$C$1:$P$388,4,FALSE) -> 45.402708 | F198: =VLOOKUP(A198,MasterReferenceTable!$C$1:$P$388,5,FALSE) -> -100.534475 | H198: 197
A199: 395733 | B199: MONTROSE | E199: =VLOOKUP(A199,MasterReferenceTable!$C$1:$P$388,4,FALSE) -> 43.7174 | F199: =VLOOKUP(A199,MasterReferenceTable!$C$1:$P$388,5,FALSE) -> -97.1596 | H199: 198
A200: SD-MC-12 | B200: Montrose 2.4 E (SD-MC-12) | E200: =VLOOKUP(A200,MasterReferenceTable!$C$1:$P$388,4,FALSE) -> 43.70304801 | F200: =VLOOKUP(A200,MasterReferenceTable!$C$1:$P$388,5,FALSE) -> -97.13527277 | H200: 199
... 132 more rows

Sheet BlackHillsList
A1: Clim Station Name | B1: Location | C1: Symbol | D1: Zip | E1: StaSymbol | F1: Lat | G1: Long | H1: WW Name | I1: WW City | J1: State | K1: CCR1 | L1: CCR2 | M1: CCR3 | N1: CCR4 | O1: CCR5 | P1: CCR6 | Q1: County | R1: Type | S1: Historic | T1: Sequence
A2: Baker Park South Dakota (RAWS) | B2: Rockerville | C2: sdSBAK | D2: 57745 | E2: USR0000SBAK | F2: 43.979167 | G2: -103.425 | H2: Baker Park South Dakota (RAWS) | I2: HillCity | J2: SD | K2: SD-PN-63 | L2: SD-PN-56 | M2: SD-PN-40 | N2: SD-PN-43 | O2: SD-PN-2 | P2: SD-PN-62 | Q2: Pennington | R2: RAWS | S2: 393868 | T2: 1
A3: Bear Lodge Wyoming (RAWS) | B3: Sundance | C3: wyWBEA | D3: 82729 | E3: USR0000WBEA | F3: 44.59737 | G3: -104.42823 | H3: Bear Lodge Wyoming (RAWS) | I3: Sundance | J3: WY | K3: WY-CK-32 | L3: WY-CK-6 | M3: WY-CK-18 | N3: WY-WS-30 | O3: SD-LW-24 | P3: SD-LW-26 | Q3: Crook | R3: RAWS | S3: wyWBEA | T3: 2
A4: BELLE FOURCHE | B4: Belle Fourche | C4: 390559 | D4: 57717 | E4: BELS2 | F4: 44.892151 | G4: -103.731196 | H4: BELLE FOURCHE | I4: SaintOnge | J4: SD | K4: SD-LW-1 | L4: SD-LW-24 | M4: SD-BT-15 | N4: SD-LW-26 | O4: SD-BT-10 | P4: WY-CK-18 | Q4: Butte | R4: ACIS | S4: 390559 | T4: 3
A5: Beulah 6.1 SW (WY-CK-18) | B5: Beulah | C5: WY-CK-18 | D5: 82712 | E5: SDNW4 | F5: 44.4792 | G5: -104.1721 | H5: Beulah 6.1 SW (WY-CK-18) | I5: Beulah | J5: WY | K5: WY-CK-32 | L5: SD-LW-26 | M5: SD-LW-15 | N5: SD-LW-24 | O5: SD-LW-1 | P5: SD-LW-6 | Q5: Crook | R5: CCR | S5: 488705 | T5: 4
A6: Blind Park (SNOTEL) | B6: Rochford | C6: 354 | D6: 57745 | E6: 354 | F6: 44.10991 | G6: -103.98012 | H6: Blind Park (SNOTEL) | I6: HillCity | J6: SD | K6: SD-LW-6 | L6: WY-WS-23 | M6: WY-WS-24 | N6: WY-WS-30 | O6: WY-WS-5 | P6: SD-LW-26 | Q6: Pennington | R6: SNOTEL | S6: 354 | T6: 5
A7: Box Elder 1.6 NE (SD-PN-50) | B7: Box Elder | C7: SD-PN-50 | D7: 57719 | E7: RACS2 | F7: 44.138652 | G7: -103.053226 | H7: Box Elder 1.6 NE (SD-PN-50) | I7: Box Elder | J7: SD | K7: SD-MD-1 | L7: SD-MD-36 | M7: SD-PN-1 | N7: SD-PN-38 | O7: SD-PN-74 | P7: SD-PN-65 | Q7: Pennington | R7: CCR | S7: 397759 | T7: 6
A8: Box Elder 8.0 NNE (SD-MD-1) | B8: Box Elder | C8: SD-MD-1 | D8: 57719 | E8: RACS2 | F8: 44.231776 | G8: -103.034516 | H8: Box Elder 8.0 NNE (SD-MD-1) | I8: Box Elder | J8: SD | K8: SD-PN-50 | L8: SD-MD-36 | M8: SD-MD-32 | N8: SD-PN-1 | O8: SD-PN-38 | P8: SD-PN-74 | Q8: Meade | R8: CCR | S8: 396937 | T8: 7
A9: Carlile 6.7 ENE (WY-CK-6) | B9: Hulett | C9: WY-CK-6 | D9: 82720 | E9: SDNW4 | F9: 44.5395 | G9: -104.6857 | H9: Carlile 6.7 ENE (WY-CK-6) | I9: Hulett | J9: WY | K9: WY-CK-32 | L9: WY-WS-26 | M9: WY-CK-27 | N9: WY-CK-18 | O9: WY-WS-30 | Q9: Crook | R9: CCR | S9: 488705 | T9: 8
A10: Cole Canyon (SNOTEL) | B10: Sundance | C10: 982 | D10: 82729 | E10: 982 | F10: 44.47737 | G10: -104.42466 | H10: Cole Canyon (SNOTEL) | I10: Sundance | J10: WY | K10: WY-CK-32 | L10: WY-CK-18 | M10: WY-CK-6 | N10: WY-WS-30 | O10: SD-LW-26 | P10: WY-WS-26 | Q10: Crook | R10: SNOTEL | S10: 982 | T10: 9
A11: CUSTER | B11: Custer | C11: 392087 | D11: 57730 | E11: CUSS2 | F11: 43.708374 | G11: -103.745192 | H11: CUSTER | I11: Custer | J11: SD | K11: SD-PN-62 | L11: SD-CS-22 | M11: SD-FR-30 | N11: SD-FR-24 | O11: WY-WS-24 | P11: WY-WS-5 | Q11: Custer | R11: ACIS | S11: 392087 | T11: 10
A12: Custer 10.2 E (SD-CS-1) | B12: Custer | C12: SD-CS-1 | D12: 57730 | E12: CUSS2 | F12: 43.77083 | G12: -103.39639 | H12: Custer 10.2 E (SD-CS-1) | I12: Custer | J12: SD | K12: SD-CS-17 | L12: SD-PN-62 | M12: SD-PN-63 | N12: SD-PN-40 | O12: SD-PN-56 | P12: SD-PN-43 | Q12: Custer | R12: CCR | S12: 392087 | T12: 11
A13: Custer South Dakota (RAWS) | B13: Custer | C13: sdSCUS | D13: 57730 | E13: USR0000SCUS | F13: 43.75 | G13: -103.63333 | H13: Custer South Dakota (RAWS) | I13: Custer | J13: SD | K13: SD-PN-62 | L13: SD-CS-22 | M13: SD-FR-30 | N13: SD-FR-34 | O13: SD-CS-28 | P13: SD-CS-17 | Q13: Custer | R13: RAWS | S13: 392087 | T13: 12
A14: Custer State Park South Dakota (RAWS) | B14: Hermosa | C14: sdSCSP | D14: 57744 | E14: USR0000SCSP | F14: 43.728611 | G14: -103.354167 | H14: Custer State Park South Dakota (RAWS) | I14: Hermosa | J14: SD | K14: SD-CS-28 | L14: SD-CS-17 | M14: SD-PN-40 | N14: SD-PN-62 | O14: SD-PN-63 | P14: SD-PN-43 | Q14: Custer | R14: RAWS | S14: 393775 | T14: 13
A15: EDGEMONT | B15: Ardmore | C15: 392557 | D15: 57735 | E15: EMTS2 | F15: 43.381062 | G15: -103.70068 | H15: EDGEMONT | I15: Edgemont | J15: SD | K15: SD-FR-20 | L15: SD-FR-30 | M15: SD-FR-21 | N15: SD-FR-24 | O15: SD-PN-62 | P15: WY-WS-10 | Q15: Fall River | R15: ACIS | S15: 392557 | T15: 14
A16: Edgemont 0.4 W (SD-FR-21) | B16: Edgemont | C16: SD-FR-21 | D16: 57735 | E16: EMTS2 | F16: 43.298685 | G16: -103.834831 | H16: Edgemont 0.4 W (SD-FR-21) | I16: Edgemont | J16: SD | K16: SD-FR-20 | L16: SD-FR-24 | M16: SD-FR-30 | N16: SD-FR-34 | O16: SD-CS-22 | P16: WY-WS-10 | Q16: Fall River | R16: CCR | S16: 392557 | T16: 15
A17: Edgemont 14.2 NW (SD-FR-24) | B17: Edgemont | C17: SD-FR-24 | D17: 57735 | E17: EMTS2 | F17: 43.45273333 | G17: -104.0154167 | H17: Edgemont 14.2 NW (SD-FR-24) | I17: Edgemont | J17: SD | K17: SD-FR-21 | L17: SD-FR-20 | M17: WY-WS-10 | N17: SD-FR-30 | O17: SD-CS-22 | P17: WY-WS-24 | Q17: Fall River | R17: CCR | S17: 392557 | T17: 16
A18: Edgemont 2.2 ENE (SD-FR-20) | B18: Edgemont | C18: SD-FR-20 | D18: 57735 | E18: EMTS2 | F18: 43.315728 | G18: -103.789756 | H18: Edgemont 2.2 ENE (SD-FR-20) | I18: Edgemont | J18: SD | K18: SD-FR-21 | L18: SD-FR-30 | M18: SD-FR-24 | N18: SD-FR-34 | O18: SD-CS-22 | P18: SD-PN-62 | Q18: Fall River | R18: CCR | S18: 392557 | T18: 17
A19: FORT MEADE | B19: Fort Meade | C19: 393069 | D19: 57741 | E19: FTMS2 | F19: 44.412722 | G19: -103.473124 | H19: FORT MEADE | I19: FortMeade | J19: SD | K19: SD-MD-31 | L19: SD-LW-1 | M19: SD-MD-32 | N19: SD-BT-15 | O19: SD-BT-10 | P19: SD-MD-36 | Q19: Meade | R19: ACIS | S19: 393069 | T19: 18
A20: Hermosa 0.3 ENE (SD-CS-17) | B20: Hermosa | C20: SD-CS-17 | D20: 57744 | E20: HMAS2 | F20: 43.840965 | G20: -103.185396 | H20: Hermosa 0.3 ENE (SD-CS-17) | I20: Hermosa | J20: SD | K20: SD-CS-28 | L20: SD-PN-43 | M20: SD-CS-27 | N20: SD-PN-1 | O20: SD-PN-74 | P20: SD-PN-38 | Q20: Custer | R20: CCR | S20: 393775 | T20: 19
A21: Hermosa 1.0 NW (SD-CS-28) | B21: Hermosa | C21: SD-CS-28 | D21: 57744 | E21: HMAS2 | F21: 43.848243 | G21: -103.206982 | H21: Hermosa 1.0 NW (SD-CS-28) | I21: Hermosa | J21: SD | K21: SD-CS-17 | L21: SD-PN-43 | M21: SD-PN-74 | N21: SD-PN-38 | O21: SD-CS-27 | P21: SD-PN-1 | Q21: Custer | R21: CCR | S21: 393775 | T21: 20
A22: Hermosa 10.3 ESE (SD-CS-27) | B22: Hermosa | C22: SD-CS-27 | D22: 57744 | E22: HMAS2 | F22: 43.802 | G22: -102.992 | H22: Hermosa 10.3 ESE (SD-CS-27) | I22: Hermosa | J22: SD | K22: SD-CS-17 | L22: SD-CS-28 | M22: SD-PN-1 | N22: SD-PN-19 | O22: SD-PN-50 | P22: SD-PN-43 | Q22: Custer | R22: CCR | S22: 393775 | T22: 21
A23: HILL CITY | B23: Hill City | C23: 393868 | D23: 57745 | E23: HICS2 | F23: 43.997309 | G23: -103.775444 | H23: HILL CITY | I23: HillCity | J23: SD | K23: SD-LW-6 | L23: SD-PN-62 | M23: SD-PN-63 | N23: SD-PN-56 | O23: SD-PN-40 | P23: WY-WS-23 | Q23: Pennington | R23: ACIS | S23: 393868 | T23: 22
A24: Hill City 4.4 SSW (SD-PN-62) | B24: Hill City | C24: SD-PN-62 | D24: 57745 | E24: HICS2 | F24: 43.869773 | G24: -103.588241 | H24: Hill City 4.4 SSW (SD-PN-62) | I24: Hill City | J24: SD | K24: SD-PN-63 | L24: SD-CS-28 | M24: SD-CS-22 | N24: SD-CS-17 | O24: SD-PN-56 | P24: SD-PN-40 | Q24: Pennington | R24: CCR | S24: 393868 | T24: 23
A25: HOT SPRINGS | B25: Hot Springs | C25: 394007 | D25: 57747 | E25: HOSS2 | F25: 43.347211 | G25: -103.479166 | H25: HOT SPRINGS | I25: HotSprings | J25: SD | K25: SD-FR-34 | L25: SD-FR-30 | M25: SD-CS-22 | N25: SD-FR-20 | O25: SD-FR-21 | P25: SD-PN-62 | Q25: Fall River | R25: ACIS | S25: 394007 | T25: 24
A26: Hot Springs 0.4 NW (SD-FR-34) | B26: Hot Springs | C26: SD-FR-34 | D26: 57747 | E26: HOSS2 | F26: 43.437133 | G26: -103.486839 | H26: Hot Springs 0.4 NW (SD-FR-34) | I26: Hot Springs | J26: SD | K26: SD-FR-30 | L26: SD-CS-22 | M26: SD-FR-20 | N26: SD-FR-21 | O26: SD-PN-62 | P26: SD-FR-24 | Q26: Fall River | R26: CCR | S26: 394007 | T26: 25
A27: Hot Springs 4.2 W (SD-FR-30) | B27: Hot Springs | C27: SD-FR-30 | D27: 57747 | E27: HOSS2 | F27: 43.443475 | G27: -103.562235 | H27: Hot Springs 4.2 W (SD-FR-30) | I27: Hot Springs | J27: SD | K27: SD-CS-22 | L27: SD-FR-34 | M27: SD-FR-20 | N27: SD-FR-21 | O27: SD-PN-62 | P27: SD-FR-24 | Q27: Fall River | R27: CCR | S27: 394007 | T27: 26
A28: Hot Springs 5.2 NW (SD-CS-22) | B28: Hot Springs | C28: SD-CS-22 | D28: 57747 | E28: HOSS2 | F28: 43.49375534 | G28: -103.5429916 | H28: Hot Springs 5.2 NW (SD-CS-22) | I28: Hot Springs | J28: SD | K28: SD-FR-30 | L28: SD-FR-34 | M28: SD-PN-62 | N28: SD-FR-20 | O28: SD-FR-21 | P28: SD-FR-24 | Q28: Custer | R28: CCR | S28: 394007 | T28: 27
A29: Indian Butte South Dakota (RAWS) | B29: Belle Fourche | C29: sdSIND | D29: 57717 | E29: USR0000SIND | F29: 45.13944 | G29: -103.912778 | H29: Indian Butte South Dakota (RAWS) | I29: BelleFourche | J29: SD | K29: SD-LW-24 | L29: SD-LW-26 | M29: SD-HR-24 | N29: SD-HR-20 | O29: SD-LW-15 | Q29: Butte | R29: RAWS | S29: 390559 | T29: 28
A30: LEAD | B30: Lead | C30: 394834 | D30: 57754 | E30: LEAS2 | F30: 44.26089 | G30: -103.894821 | H30: LEAD | I30: Deadwood | J30: SD | K30: SD-LW-6 | L30: SD-LW-26 | M30: SD-LW-15 | N30: WY-CK-18 | O30: WY-CK-32 | P30: SD-PN-56 | Q30: Lawrence | R30: ACIS | S30: 394834 | T30: 29
A31: Lead 5.5 SSW (SD-LW-6) | B31: Lead | C31: SD-LW-6 | D31: 57754 | E31: LEAS2 | F31: 44.27806 | G31: -103.8092 | H31: Lead 5.5 SSW (SD-LW-6) | I31: Lead | J31: SD | K31: SD-LW-15 | L31: SD-LW-26 | M31: SD-LW-1 | N31: SD-LW-24 | O31: SD-PN-56 | P31: SD-PN-63 | Q31: Lawrence | R31: CCR | S31: 394834 | T31: 30
A32: MT RUSHMORE NATL MEM | B32: Keystone | C32: 395870 | D32: 57751 | E32: RNMS2 | F32: 43.885196 | G32: -103.429098 | H32: MT RUSHMORE NATL MEM | I32: Keystone | J32: SD | K32: SD-PN-62 | L32: SD-PN-63 | M32: SD-PN-56 | N32: SD-PN-40 | O32: SD-PN-2 | P32: SD-PN-65 | Q32: Pennington | R32: ACIS | S32: 395870 | T32: 31
A33: Mt. Rushmore South Dakota (RAWS) | B33: Keystone | C33: sdSMRU | D33: 57751 | E33: USR0000SMRU | F33: 43.875 | G33: -103.45833 | H33: Mt. Rushmore South Dakota (RAWS) | I33: Keystone | J33: SD | K33: SD-PN-62 | L33: SD-PN-63 | M33: SD-PN-56 | N33: SD-PN-40 | O33: SD-PN-2 | P33: SD-PN-65 | Q33: Pennington | R33: RAWS | S33: 395870 | T33: 32
A34: Nemo South Dakota (RAWS) | B34: Nemo | C34: sdSNEM | D34: 57759 | E34: USR0000SNEM | F34: 44.191667 | G34: -103.509722 | H34: Nemo South Dakota (RAWS) | I34: RapidCity | J34: SD | K34: SD-PN-56 | L34: SD-MD-31 | M34: SD-PN-63 | N34: SD-PN-40 | O34: SD-PN-2 | P34: SD-PN-65 | Q34: Lawrence | R34: RAWS | S34: 397759 | T34: 33
A35: NEWCASTLE | B35: Newcastle | C35: 486660 | D35: 82701 | E35: NCLW4 | F35: 43.8497 | G35: -104.1886 | H35: Newcastle | I35: Newcastle | J35: WY | K35: WY-WS-5 | L35: WY-WS-20 | M35: WY-WS-24 | N35: WY-WS-23 | O35: WY-WS-10 | P35: WY-WS-30 | Q35: Weston | R35: ACIS | S35: 486660 | T35: 34
A36: Newcastle 0.8 ESE (WY-WS-5) | B36: Newcastle | C36: WY-WS-5 | D36: 82701 | E36: NCLW4 | F36: 43.8486 | G36: -104.1888 | H36: Newcastle 0.8 ESE (WY-WS-5) | I36: Newcastle | J36: WY | K36: WY-WS-20 | L36: WY-WS-24 | M36: WY-WS-23 | N36: WY-WS-10 | O36: WY-WS-30 | P36: SD-FR-24 | Q36: Weston | R36: CCR | S36: 486660 | T36: 35
A37: Newcastle 1.0 W (WY-WS-20) | B37: Newcastle | C37: WY-WS-20 | D37: 82701 | E37: NCLW4 | F37: 43.8499 | G37: -104.2309 | H37: Newcastle 1.0 W (WY-WS-20) | I37: Newcastle | J37: WY | K37: WY-WS-5 | L37: WY-WS-24 | M37: WY-WS-23 | N37: WY-WS-10 | O37: WY-WS-30 | P37: WY-WS-29 | Q37: Weston | R37: CCR | S37: 486660 | T37: 36
A38: Newcastle 13.0 SSW (WY-WS-10) | B38: Newcastle | C38: WY-WS-10 | D38: 82701 | E38: NCLW4 | F38: 43.6656 | G38: -104.2649 | H38: Newcastle 13.0 SSW (WY-WS-10) | I38: Newcastle | J38: WY | K38: WY-WS-20 | L38: WY-WS-5 | M38: WY-WS-24 | N38: WY-WS-23 | O38: SD-FR-24 | P38: WY-WS-29 | Q38: Weston | R38: CCR | S38: 486660 | T38: 37
A39: Newcastle 26.2 WSW (WY-WS-29) | B39: Newcastle | C39: WY-WS-29 | D39: 82701 | E39: NCLW4 | F39: 43.7019 | G39: -104.6947 | H39: Newcastle 26.2 WSW (WY-WS-29) | I39: Newcastle | J39: WY | K39: WY-WS-10 | L39: WY-WS-26 | M39: WY-WS-20 | N39: WY-CK-27 | O39: WY-WS-5 | P39: WY-WS-24 | Q39: Weston | R39: CCR | S39: 486660 | T39: 38
A40: Newcastle 3.5 E (WY-WS-24) | B40: Newcastle | C40: WY-WS-24 | D40: 82701 | E40: NCLW4 | F40: 43.8575 | G40: -104.1402 | H40: Newcastle 3.5 E (WY-WS-24) | I40: Newcastle | J40: WY | K40: WY-WS-5 | L40: WY-WS-20 | M40: WY-WS-23 | N40: WY-WS-10 | O40: WY-WS-30 | P40: SD-FR-24 | Q40: Weston | R40: CCR | S40: 486660 | T40: 39
A41: Newcastle 8.4 N (WY-WS-23) | B41: Newcastle | C41: WY-WS-23 | D41: 82701 | E41: NCLW4 | F41: 43.9686 | G41: -104.2417 | H41: Newcastle 8.4 N (WY-WS-23) | I41: Newcastle | J41: WY | K41: WY-WS-20 | L41: WY-WS-5 | M41: WY-WS-24 | N41: WY-WS-30 | O41: WY-WS-10 | P41: WY-WS-26 | Q41: Weston | R41: CCR | S41: 486660 | T41: 40
A42: NEWELL | B42: Newell | C42: 396054 | D42: 57760 | E42: NWLS2 | F42: 44.908668 | G42: -103.232789 | H42: NEWELL | I42: Nisland | J42: SD | K42: SD-BT-10 | L42: SD-BT-15 | M42: SD-MD-9 | N42: SD-MD-38 | O42: SD-MD-32 | P42: SD-PK-6 | Q42: Butte | R42: ACIS | S42: 396054 | T42: 41
